Workbook

Sheet FIAR-ALL (hidden)
D2: Satisfactory
A5: School Name | B5: Tested | C5: Number of Satisfactory | D5: % of Satisfactory
A6: 0041 | B6: 378 | C6: 293 | D6: 78 | E6: 0041 0041 - Air Base Elementary
A7: 0070 | B7: 224 | C7: 176 | D7: 79 | E7: 0070 0070 - Coral Reef Montessori Acad Ch
A8: 0071 | B8: 997 | C8: 650 | D8: 65 | E8: 0071 0071 - Eugenia B. Thomas K-8 Center
A9: 0072 | B9: 232 | C9: 119 | D9: 51 | E9: 0072 0072 - Summerville Charter School
A10: 0073 | B10: 646 | C10: 210 | D10: 33 | E10: 0073 0073 - Mandarin Lakes K-8 Center
A11: 0081 | B11: 161 | C11: 52 | D11: 32 | E11: 0081 0081 - Lenora B. Smith Elementary
A12: 0091 | B12: 1218 | C12: 787 | D12: 65 | E12: 0091 0091 - Bob Graham Education Ctr
A13: 0092 | B13: 1206 | C13: 931 | D13: 77 | E13: 0092 0092 - Norman S. Edelcup/sunny Isles
A14: 0100 | B14: 399 | C14: 282 | D14: 71 | E14: 0100 0100 - Mater Academy
A15: 0101 | B15: 194 | C15: 70 | D15: 36 | E15: 0101 0101 - Arcola Lake Elementary
A16: 0102 | B16: 1 | C16: 0 | D16: 0 | E16: 0102 0102 - Miami Community Charter School
A17: 0111 | B17: 283 | C17: 110 | D17: 39 | E17: 0111 0111 - Maya Angelou Elementary
A18: 0121 | B18: 392 | C18: 201 | D18: 51 | E18: 0121 0121 - Auburndale Elementary
A19: 0122 | B19: 1064 | C19: 697 | D19: 66 | E19: 0122 0122 - Dr Rolando Espinosa K-8
A20: 0125 | B20: 629 | C20: 443 | D20: 70 | E20: 0125 0125 - Norma Butler Bossard Elem
A21: 0161 | B21: 152 | C21: 43 | D21: 28 | E21: 0161 0161 - Avocado Elementary
A22: 0201 | B22: 156 | C22: 115 | D22: 74 | E22: 0201 0201 - Banyan Elementary
A23: 0211 | B23: 423 | C23: 275 | D23: 65 | E23: 0211 0211 - Dr. Manuel C. Barreiro Elem
A24: 0231 | B24: 1131 | C24: 745 | D24: 66 | E24: 0231 0231 - Aventura Waterways K-8 Center
A25: 0241 | B25: 863 | C25: 620 | D25: 72 | E25: 0241 0241 - Ruth K Broad/bay Harbor K-8
A26: 0251 | B26: 358 | C26: 298 | D26: 83 | E26: 0251 0251 - Ethel Koger Beckham Elementary
A27: 0261 | B27: 178 | C27: 71 | D27: 40 | E27: 0261 0261 - Bel-Aire Elementary
A28: 0271 | B28: 241 | C28: 137 | D28: 57 | E28: 0271 0271 - Bent Tree Elementary
A29: 0311 | B29: 241 | C29: 124 | D29: 51 | E29: 0311 0311 - Goulds Elementary
A30: 0312 | B30: 287 | C30: 220 | D30: 77 | E30: 0312 0312 - Mater Gardens Academy
A31: 0321 | B31: 287 | C31: 135 | D31: 47 | E31: 0321 0321 - Biscayne Elementary
... 38 more rows

Sheet FIAR-W (hidden)
D2: Satisfactory
A3: White
A5: School Name | B5: Tested | C5: Number of Satisfactory | D5: % of Satisfactory
A6: 0041 | B6: 53 | C6: 39 | D6: 74 | E6: 0041 0041 - Air Base Elementary
A7: 0070 | B7: 34 | C7: 28 | D7: 82 | E7: 0070 0070 - Coral Reef Montessori Acad Ch
A8: 0071 | B8: 73 | C8: 54 | D8: 74 | E8: 0071 0071 - Eugenia B. Thomas K-8 Center
A9: 0072 | B9: 7 | C9: 3 | D9: 43 | E9: 0072 0072 - Summerville Charter School
A10: 0073 | B10: 19 | C10: 10 | D10: 53 | E10: 0073 0073 - Mandarin Lakes K-8 Center
A11: 0081 | B11: 0 | C11: 0 | D11: NA | E11: 0081 0081 - Lenora B. Smith Elementary
A12: 0091 | B12: 66 | C12: 44 | D12: 67 | E12: 0091 0091 - Bob Graham Education Ctr
A13: 0092 | B13: 520 | C13: 408 | D13: 78 | E13: 0092 0092 - Norman S. Edelcup/sunny Isles
A14: 0100 | B14: 4 | C14: 2 | D14: 50 | E14: 0100 0100 - Mater Academy
A15: 0101 | B15: 1 | C15: 0 | D15: 0 | E15: 0101 0101 - Arcola Lake Elementary
A16: 0102 | B16: 0 | C16: 0 | D16: NA | E16: 0102 0102 - Miami Community Charter School
A17: 0111 | B17: 1 | C17: 0 | D17: 0 | E17: 0111 0111 - Maya Angelou Elementary
A18: 0121 | B18: 4 | C18: 3 | D18: 75 | E18: 0121 0121 - Auburndale Elementary
A19: 0122 | B19: 65 | C19: 48 | D19: 74 | E19: 0122 0122 - Dr Rolando Espinosa K-8
A20: 0125 | B20: 47 | C20: 40 | D20: 85 | E20: 0125 0125 - Norma Butler Bossard Elem
A21: 0161 | B21: 12 | C21: 6 | D21: 50 | E21: 0161 0161 - Avocado Elementary
A22: 0201 | B22: 9 | C22: 9 | D22: 100 | E22: 0201 0201 - Banyan Elementary
A23: 0211 | B23: 15 | C23: 10 | D23: 67 | E23: 0211 0211 - Dr. Manuel C. Barreiro Elem
A24: 0231 | B24: 329 | C24: 230 | D24: 70 | E24: 0231 0231 - Aventura Waterways K-8 Center
A25: 0241 | B25: 346 | C25: 265 | D25: 77 | E25: 0241 0241 - Ruth K Broad/bay Harbor K-8
A26: 0251 | B26: 11 | C26: 10 | D26: 91 | E26: 0251 0251 - Ethel Koger Beckham Elementary
A27: 0261 | B27: 10 | C27: 6 | D27: 60 | E27: 0261 0261 - Bel-Aire Elementary
A28: 0271 | B28: 11 | C28: 7 | D28: 64 | E28: 0271 0271 - Bent Tree Elementary
A29: 0311 | B29: 3 | C29: 1 | D29: 33 | E29: 0311 0311 - Goulds Elementary
A30: 0312 | B30: 11 | C30: 6 | D30: 55 | E30: 0312 0312 - Mater Gardens Academy
A31: 0321 | B31: 19 | C31: 12 | D31: 63 | E31: 0321 0321 - Biscayne Elementary
... 38 more rows

Sheet FIAR-B (hidden)
D2: Satisfactory
A3: Black
A5: School Name | B5: Tested | C5: Number of Satisfactory | D5: % of Satisfactory
A6: 0041 | B6: 60 | C6: 46 | D6: 77 | E6: 0041 0041 - Air Base Elementary
A7: 0070 | B7: 42 | C7: 29 | D7: 69 | E7: 0070 0070 - Coral Reef Montessori Acad Ch
A8: 0071 | B8: 23 | C8: 14 | D8: 61 | E8: 0071 0071 - Eugenia B. Thomas K-8 Center
A9: 0072 | B9: 19 | C9: 9 | D9: 47 | E9: 0072 0072 - Summerville Charter School
A10: 0073 | B10: 249 | C10: 75 | D10: 30 | E10: 0073 0073 - Mandarin Lakes K-8 Center
A11: 0081 | B11: 129 | C11: 43 | D11: 33 | E11: 0081 0081 - Lenora B. Smith Elementary
A12: 0091 | B12: 36 | C12: 20 | D12: 56 | E12: 0091 0091 - Bob Graham Education Ctr
A13: 0092 | B13: 22 | C13: 17 | D13: 77 | E13: 0092 0092 - Norman S. Edelcup/sunny Isles
A14: 0100 | B14: 2 | C14: 2 | D14: 100 | E14: 0100 0100 - Mater Academy
A15: 0101 | B15: 143 | C15: 56 | D15: 39 | E15: 0101 0101 - Arcola Lake Elementary
A16: 0102 | B16: 0 | C16: 0 | D16: NA | E16: 0102 0102 - Miami Community Charter School
A17: 0111 | B17: 25 | C17: 9 | D17: 36 | E17: 0111 0111 - Maya Angelou Elementary
A18: 0121 | B18: 1 | C18: 0 | D18: 0 | E18: 0121 0121 - Auburndale Elementary
A19: 0122 | B19: 6 | C19: 5 | D19: 83 | E19: 0122 0122 - Dr Rolando Espinosa K-8
A20: 0125 | B20: 21 | C20: 14 | D20: 67 | E20: 0125 0125 - Norma Butler Bossard Elem
A21: 0161 | B21: 27 | C21: 4 | D21: 15 | E21: 0161 0161 - Avocado Elementary
A22: 0201 | B22: 1 | C22: 1 | D22: 100 | E22: 0201 0201 - Banyan Elementary
A23: 0211 | B23: 5 | C23: 3 | D23: 60 | E23: 0211 0211 - Dr. Manuel C. Barreiro Elem
A24: 0231 | B24: 190 | C24: 108 | D24: 57 | E24: 0231 0231 - Aventura Waterways K-8 Center
A25: 0241 | B25: 27 | C25: 21 | D25: 78 | E25: 0241 0241 - Ruth K Broad/bay Harbor K-8
A26: 0251 | B26: 0 | C26: 0 | D26: NA | E26: 0251 0251 - Ethel Koger Beckham Elementary
A27: 0261 | B27: 88 | C27: 29 | D27: 33 | E27: 0261 0261 - Bel-Aire Elementary
A28: 0271 | B28: 1 | C28: 1 | D28: 100 | E28: 0271 0271 - Bent Tree Elementary
A29: 0311 | B29: 130 | C29: 55 | D29: 42 | E29: 0311 0311 - Goulds Elementary
A30: 0312 | B30: 5 | C30: 3 | D30: 60 | E30: 0312 0312 - Mater Gardens Academy
A31: 0321 | B31: 17 | C31: 9 | D31: 53 | E31: 0321 0321 - Biscayne Elementary
... 38 more rows

Sheet FIAR-H (hidden)
D2: Satisfactory
A3: Hispanic
A5: School Name | B5: Tested | C5: Number of Satisfactory | D5: % of Satisfactory
A6: 0041 | B6: 246 | C6: 193 | D6: 78 | E6: 0041 0041 - Air Base Elementary
A7: 0070 | B7: 137 | C7: 108 | D7: 79 | E7: 0070 0070 - Coral Reef Montessori Acad Ch
A8: 0071 | B8: 875 | C8: 560 | D8: 64 | E8: 0071 0071 - Eugenia B. Thomas K-8 Center
A9: 0072 | B9: 192 | C9: 98 | D9: 51 | E9: 0072 0072 - Summerville Charter School
A10: 0073 | B10: 372 | C10: 123 | D10: 33 | E10: 0073 0073 - Mandarin Lakes K-8 Center
A11: 0081 | B11: 32 | C11: 9 | D11: 28 | E11: 0081 0081 - Lenora B. Smith Elementary
A12: 0091 | B12: 1094 | C12: 706 | D12: 65 | E12: 0091 0091 - Bob Graham Education Ctr
A13: 0092 | B13: 641 | C13: 487 | D13: 76 | E13: 0092 0092 - Norman S. Edelcup/sunny Isles
A14: 0100 | B14: 393 | C14: 278 | D14: 71 | E14: 0100 0100 - Mater Academy
A15: 0101 | B15: 49 | C15: 14 | D15: 29 | E15: 0101 0101 - Arcola Lake Elementary
A16: 0102 | B16: 1 | C16: 0 | D16: 0 | E16: 0102 0102 - Miami Community Charter School
A17: 0111 | B17: 256 | C17: 100 | D17: 39 | E17: 0111 0111 - Maya Angelou Elementary
A18: 0121 | B18: 386 | C18: 198 | D18: 51 | E18: 0121 0121 - Auburndale Elementary
A19: 0122 | B19: 974 | C19: 631 | D19: 65 | E19: 0122 0122 - Dr Rolando Espinosa K-8
A20: 0125 | B20: 533 | C20: 364 | D20: 68 | E20: 0125 0125 - Norma Butler Bossard Elem
A21: 0161 | B21: 113 | C21: 33 | D21: 29 | E21: 0161 0161 - Avocado Elementary
A22: 0201 | B22: 146 | C22: 105 | D22: 72 | E22: 0201 0201 - Banyan Elementary
A23: 0211 | B23: 382 | C23: 246 | D23: 64 | E23: 0211 0211 - Dr. Manuel C. Barreiro Elem
A24: 0231 | B24: 569 | C24: 372 | D24: 65 | E24: 0231 0231 - Aventura Waterways K-8 Center
A25: 0241 | B25: 474 | C25: 319 | D25: 67 | E25: 0241 0241 - Ruth K Broad/bay Harbor K-8
A26: 0251 | B26: 341 | C26: 283 | D26: 83 | E26: 0251 0251 - Ethel Koger Beckham Elementary
A27: 0261 | B27: 70 | C27: 32 | D27: 46 | E27: 0261 0261 - Bel-Aire Elementary
A28: 0271 | B28: 228 | C28: 128 | D28: 56 | E28: 0271 0271 - Bent Tree Elementary
A29: 0311 | B29: 84 | C29: 54 | D29: 64 | E29: 0311 0311 - Goulds Elementary
A30: 0312 | B30: 268 | C30: 209 | D30: 78 | E30: 0312 0312 - Mater Gardens Academy
A31: 0321 | B31: 250 | C31: 113 | D31: 45 | E31: 0321 0321 - Biscayne Elementary
... 38 more rows

Sheet FIAR-A (hidden)
D2: Satisfactory
A3: Asian
A5: School Name | B5: Tested | C5: Number of Satisfactory | D5: % of Satisfactory
A6: 0041 | B6: 10 | C6: 9 | D6: 90 | E6: 0041 0041 - Air Base Elementary
A7: 0070 | B7: 5 | C7: 5 | D7: 100 | E7: 0070 0070 - Coral Reef Montessori Acad Ch
A8: 0071 | B8: 23 | C8: 20 | D8: 87 | E8: 0071 0071 - Eugenia B. Thomas K-8 Center
A9: 0072 | B9: 1 | C9: 1 | D9: 100 | E9: 0072 0072 - Summerville Charter School
A10: 0073 | B10: 1 | C10: 1 | D10: 100 | E10: 0073 0073 - Mandarin Lakes K-8 Center
A11: 0081 | B11: 0 | C11: 0 | D11: NA | E11: 0081 0081 - Lenora B. Smith Elementary
A12: 0091 | B12: 16 | C12: 11 | D12: 69 | E12: 0091 0091 - Bob Graham Education Ctr
A13: 0092 | B13: 12 | C13: 10 | D13: 83 | E13: 0092 0092 - Norman S. Edelcup/sunny Isles
A14: 0100 | B14: 0 | C14: 0 | D14: NA | E14: 0100 0100 - Mater Academy
A15: 0101 | B15: 0 | C15: 0 | D15: NA | E15: 0101 0101 - Arcola Lake Elementary
A16: 0102 | B16: 0 | C16: 0 | D16: NA | E16: 0102 0102 - Miami Community Charter School
A17: 0111 | B17: 1 | C17: 1 | D17: 100 | E17: 0111 0111 - Maya Angelou Elementary
A18: 0121 | B18: 0 | C18: 0 | D18: NA | E18: 0121 0121 - Auburndale Elementary
A19: 0122 | B19: 17 | C19: 11 | D19: 65 | E19: 0122 0122 - Dr Rolando Espinosa K-8
A20: 0125 | B20: 17 | C20: 16 | D20: 94 | E20: 0125 0125 - Norma Butler Bossard Elem
A21: 0161 | B21: 0 | C21: 0 | D21: NA | E21: 0161 0161 - Avocado Elementary
A22: 0201 | B22: 0 | C22: 0 | D22: NA | E22: 0201 0201 - Banyan Elementary
A23: 0211 | B23: 13 | C23: 10 | D23: 77 | E23: 0211 0211 - Dr. Manuel C. Barreiro Elem
A24: 0231 | B24: 30 | C24: 26 | D24: 87 | E24: 0231 0231 - Aventura Waterways K-8 Center
A25: 0241 | B25: 10 | C25: 9 | D25: 90 | E25: 0241 0241 - Ruth K Broad/bay Harbor K-8
A26: 0251 | B26: 5 | C26: 4 | D26: 80 | E26: 0251 0251 - Ethel Koger Beckham Elementary
A27: 0261 | B27: 9 | C27: 3 | D27: 33 | E27: 0261 0261 - Bel-Aire Elementary
A28: 0271 | B28: 0 | C28: 0 | D28: NA | E28: 0271 0271 - Bent Tree Elementary
A29: 0311 | B29: 3 | C29: 3 | D29: 100 | E29: 0311 0311 - Goulds Elementary
A30: 0312 | B30: 3 | C30: 2 | D30: 67 | E30: 0312 0312 - Mater Gardens Academy
A31: 0321 | B31: 1 | C31: 1 | D31: 100 | E31: 0321 0321 - Biscayne Elementary
... 38 more rows

Sheet FIAR-I (hidden)
D2: Satisfactory
A3: American Indian
A5: School Name | B5: Tested | C5: Number of Satisfactory | D5: % of Satisfactory
A6: 0041 | B6: 1 | C6: 1 | D6: 100 | E6: 0041 0041 - Air Base Elementary
A7: 0070 | B7: 1 | C7: 1 | D7: 100 | E7: 0070 0070 - Coral Reef Montessori Acad Ch
A8: 0071 | B8: 0 | C8: 0 | D8: NA | E8: 0071 0071 - Eugenia B. Thomas K-8 Center
A9: 0072 | B9: 2 | C9: 2 | D9: 100 | E9: 0072 0072 - Summerville Charter School
A10: 0073 | B10: 1 | C10: 1 | D10: 100 | E10: 0073 0073 - Mandarin Lakes K-8 Center
A11: 0081 | B11: 0 | C11: 0 | D11: NA | E11: 0081 0081 - Lenora B. Smith Elementary
A12: 0091 | B12: 0 | C12: 0 | D12: NA | E12: 0091 0091 - Bob Graham Education Ctr
A13: 0092 | B13: 2 | C13: 1 | D13: 50 | E13: 0092 0092 - Norman S. Edelcup/sunny Isles
A14: 0100 | B14: 0 | C14: 0 | D14: NA | E14: 0100 0100 - Mater Academy
A15: 0101 | B15: 0 | C15: 0 | D15: NA | E15: 0101 0101 - Arcola Lake Elementary
A16: 0102 | B16: 0 | C16: 0 | D16: NA | E16: 0102 0102 - Miami Community Charter School
A17: 0111 | B17: 0 | C17: 0 | D17: NA | E17: 0111 0111 - Maya Angelou Elementary
A18: 0121 | B18: 0 | C18: 0 | D18: NA | E18: 0121 0121 - Auburndale Elementary
A19: 0122 | B19: 0 | C19: 0 | D19: NA | E19: 0122 0122 - Dr Rolando Espinosa K-8
A20: 0125 | B20: 0 | C20: 0 | D20: NA | E20: 0125 0125 - Norma Butler Bossard Elem
A21: 0161 | B21: 0 | C21: 0 | D21: NA | E21: 0161 0161 - Avocado Elementary
A22: 0201 | B22: 0 | C22: 0 | D22: NA | E22: 0201 0201 - Banyan Elementary
A23: 0211 | B23: 0 | C23: 0 | D23: NA | E23: 0211 0211 - Dr. Manuel C. Barreiro Elem
A24: 0231 | B24: 0 | C24: 0 | D24: NA | E24: 0231 0231 - Aventura Waterways K-8 Center
A25: 0241 | B25: 0 | C25: 0 | D25: NA | E25: 0241 0241 - Ruth K Broad/bay Harbor K-8
A26: 0251 | B26: 1 | C26: 1 | D26: 100 | E26: 0251 0251 - Ethel Koger Beckham Elementary
A27: 0261 | B27: 0 | C27: 0 | D27: NA | E27: 0261 0261 - Bel-Aire Elementary
A28: 0271 | B28: 0 | C28: 0 | D28: NA | E28: 0271 0271 - Bent Tree Elementary
A29: 0311 | B29: 0 | C29: 0 | D29: NA | E29: 0311 0311 - Goulds Elementary
A30: 0312 | B30: 0 | C30: 0 | D30: NA | E30: 0312 0312 - Mater Gardens Academy
A31: 0321 | B31: 0 | C31: 0 | D31: NA | E31: 0321 0321 - Biscayne Elementary
... 38 more rows

Sheet FIAR-ED (hidden)
A2: ED | D2: Satisfactory
A3: Y
A5: School Name | B5: Tested | C5: Number of Satisfactory | D5: % of Satisfactory
A6: 0041 | B6: 254 | C6: 196 | D6: 77 | E6: 0041 0041 - Air Base Elementary
A7: 0070 | B7: 71 | C7: 54 | D7: 76 | E7: 0070 0070 - Coral Reef Montessori Acad Ch
A8: 0071 | B8: 420 | C8: 256 | D8: 61 | E8: 0071 0071 - Eugenia B. Thomas K-8 Center
A9: 0072 | B9: 179 | C9: 94 | D9: 53 | E9: 0072 0072 - Summerville Charter School
A10: 0073 | B10: 601 | C10: 193 | D10: 32 | E10: 0073 0073 - Mandarin Lakes K-8 Center
A11: 0081 | B11: 158 | C11: 50 | D11: 32 | E11: 0081 0081 - Lenora B. Smith Elementary
A12: 0091 | B12: 671 | C12: 394 | D12: 59 | E12: 0091 0091 - Bob Graham Education Ctr
A13: 0092 | B13: 446 | C13: 333 | D13: 75 | E13: 0092 0092 - Norman S. Edelcup/sunny Isles
A14: 0100 | B14: 360 | C14: 249 | D14: 69 | E14: 0100 0100 - Mater Academy
A15: 0101 | B15: 187 | C15: 66 | D15: 35 | E15: 0101 0101 - Arcola Lake Elementary
A16: 0102 | B16: 0 | C16: 0 | D16: NA | E16: 0102 0102 - Miami Community Charter School
A17: 0111 | B17: 280 | C17: 109 | D17: 39 | E17: 0111 0111 - Maya Angelou Elementary
A18: 0121 | B18: 351 | C18: 171 | D18: 49 | E18: 0121 0121 - Auburndale Elementary
A19: 0122 | B19: 423 | C19: 249 | D19: 59 | E19: 0122 0122 - Dr Rolando Espinosa K-8
A20: 0125 | B20: 397 | C20: 248 | D20: 62 | E20: 0125 0125 - Norma Butler Bossard Elem
A21: 0161 | B21: 144 | C21: 40 | D21: 28 | E21: 0161 0161 - Avocado Elementary
A22: 0201 | B22: 132 | C22: 95 | D22: 72 | E22: 0201 0201 - Banyan Elementary
A23: 0211 | B23: 283 | C23: 170 | D23: 60 | E23: 0211 0211 - Dr. Manuel C. Barreiro Elem
A24: 0231 | B24: 547 | C24: 334 | D24: 61 | E24: 0231 0231 - Aventura Waterways K-8 Center
A25: 0241 | B25: 355 | C25: 213 | D25: 60 | E25: 0241 0241 - Ruth K Broad/bay Harbor K-8
A26: 0251 | B26: 285 | C26: 237 | D26: 83 | E26: 0251 0251 - Ethel Koger Beckham Elementary
A27: 0261 | B27: 169 | C27: 70 | D27: 41 | E27: 0261 0261 - Bel-Aire Elementary
A28: 0271 | B28: 200 | C28: 108 | D28: 54 | E28: 0271 0271 - Bent Tree Elementary
A29: 0311 | B29: 227 | C29: 116 | D29: 51 | E29: 0311 0311 - Goulds Elementary
A30: 0312 | B30: 162 | C30: 118 | D30: 73 | E30: 0312 0312 - Mater Gardens Academy
A31: 0321 | B31: 255 | C31: 115 | D31: 45 | E31: 0321 0321 - Biscayne Elementary
... 38 more rows

Sheet FIAR-ELL (hidden)
A2: ELL | D2: Satisfactory
A3: Y
A5: School Name | B5: Tested | C5: Number of Satisfactory | D5: % of Satisfactory
A6: 0041 | B6: 42 | C6: 25 | D6: 60 | E6: 0041 0041 - Air Base Elementary
A7: 0070 | B7: 15 | C7: 6 | D7: 40 | E7: 0070 0070 - Coral Reef Montessori Acad Ch
A8: 0071 | B8: 369 | C8: 158 | D8: 43 | E8: 0071 0071 - Eugenia B. Thomas K-8 Center
A9: 0072 | B9: 75 | C9: 29 | D9: 39 | E9: 0072 0072 - Summerville Charter School
A10: 0073 | B10: 165 | C10: 28 | D10: 17 | E10: 0073 0073 - Mandarin Lakes K-8 Center
A11: 0081 | B11: 24 | C11: 4 | D11: 17 | E11: 0081 0081 - Lenora B. Smith Elementary
A12: 0091 | B12: 290 | C12: 125 | D12: 43 | E12: 0091 0091 - Bob Graham Education Ctr
A13: 0092 | B13: 343 | C13: 187 | D13: 55 | E13: 0092 0092 - Norman S. Edelcup/sunny Isles
A14: 0100 | B14: 208 | C14: 126 | D14: 61 | E14: 0100 0100 - Mater Academy
A15: 0101 | B15: 41 | C15: 8 | D15: 20 | E15: 0101 0101 - Arcola Lake Elementary
A16: 0102 | B16: 1 | C16: 0 | D16: 0 | E16: 0102 0102 - Miami Community Charter School
A17: 0111 | B17: 175 | C17: 50 | D17: 29 | E17: 0111 0111 - Maya Angelou Elementary
A18: 0121 | B18: 257 | C18: 102 | D18: 40 | E18: 0121 0121 - Auburndale Elementary
A19: 0122 | B19: 444 | C19: 195 | D19: 44 | E19: 0122 0122 - Dr Rolando Espinosa K-8
A20: 0125 | B20: 196 | C20: 98 | D20: 50 | E20: 0125 0125 - Norma Butler Bossard Elem
A21: 0161 | B21: 83 | C21: 21 | D21: 25 | E21: 0161 0161 - Avocado Elementary
A22: 0201 | B22: 65 | C22: 33 | D22: 51 | E22: 0201 0201 - Banyan Elementary
A23: 0211 | B23: 146 | C23: 69 | D23: 47 | E23: 0211 0211 - Dr. Manuel C. Barreiro Elem
A24: 0231 | B24: 262 | C24: 97 | D24: 37 | E24: 0231 0231 - Aventura Waterways K-8 Center
A25: 0241 | B25: 182 | C25: 76 | D25: 42 | E25: 0241 0241 - Ruth K Broad/bay Harbor K-8
A26: 0251 | B26: 126 | C26: 90 | D26: 71 | E26: 0251 0251 - Ethel Koger Beckham Elementary
A27: 0261 | B27: 47 | C27: 18 | D27: 38 | E27: 0261 0261 - Bel-Aire Elementary
A28: 0271 | B28: 110 | C28: 43 | D28: 39 | E28: 0271 0271 - Bent Tree Elementary
A29: 0311 | B29: 34 | C29: 18 | D29: 53 | E29: 0311 0311 - Goulds Elementary
A30: 0312 | B30: 55 | C30: 38 | D30: 69 | E30: 0312 0312 - Mater Gardens Academy
A31: 0321 | B31: 168 | C31: 60 | D31: 36 | E31: 0321 0321 - Biscayne Elementary
... 38 more rows

Sheet FIAR-SWD (hidden)
A2: SWD | D2: Satisfactory
A3: Y
A5: School Name | B5: Tested | C5: Number of Satisfactory | D5: % of Satisfactory
A6: 0041 | B6: 14 | C6: 6 | D6: 43 | E6: 0041 0041 - Air Base Elementary
A7: 0070 | B7: 27 | C7: 13 | D7: 48 | E7: 0070 0070 - Coral Reef Montessori Acad Ch
A8: 0071 | B8: 45 | C8: 14 | D8: 31 | E8: 0071 0071 - Eugenia B. Thomas K-8 Center
A9: 0072 | B9: 12 | C9: 4 | D9: 33 | E9: 0072 0072 - Summerville Charter School
A10: 0073 | B10: 84 | C10: 7 | D10: 8 | E10: 0073 0073 - Mandarin Lakes K-8 Center
A11: 0081 | B11: 22 | C11: 3 | D11: 14 | E11: 0081 0081 - Lenora B. Smith Elementary
A12: 0091 | B12: 81 | C12: 11 | D12: 14 | E12: 0091 0091 - Bob Graham Education Ctr
A13: 0092 | B13: 63 | C13: 27 | D13: 43 | E13: 0092 0092 - Norman S. Edelcup/sunny Isles
A14: 0100 | B14: 10 | C14: 7 | D14: 70 | E14: 0100 0100 - Mater Academy
A15: 0101 | B15: 17 | C15: 1 | D15: 6 | E15: 0101 0101 - Arcola Lake Elementary
A16: 0102 | B16: 0 | C16: 0 | D16: NA | E16: 0102 0102 - Miami Community Charter School
A17: 0111 | B17: 35 | C17: 3 | D17: 9 | E17: 0111 0111 - Maya Angelou Elementary
A18: 0121 | B18: 27 | C18: 0 | D18: 0 | E18: 0121 0121 - Auburndale Elementary
A19: 0122 | B19: 38 | C19: 11 | D19: 29 | E19: 0122 0122 - Dr Rolando Espinosa K-8
A20: 0125 | B20: 65 | C20: 20 | D20: 31 | E20: 0125 0125 - Norma Butler Bossard Elem
A21: 0161 | B21: 13 | C21: 0 | D21: 0 | E21: 0161 0161 - Avocado Elementary
A22: 0201 | B22: 23 | C22: 8 | D22: 35 | E22: 0201 0201 - Banyan Elementary
A23: 0211 | B23: 32 | C23: 7 | D23: 22 | E23: 0211 0211 - Dr. Manuel C. Barreiro Elem
A24: 0231 | B24: 68 | C24: 14 | D24: 21 | E24: 0231 0231 - Aventura Waterways K-8 Center
A25: 0241 | B25: 51 | C25: 24 | D25: 47 | E25: 0241 0241 - Ruth K Broad/bay Harbor K-8
A26: 0251 | B26: 46 | C26: 24 | D26: 52 | E26: 0251 0251 - Ethel Koger Beckham Elementary
A27: 0261 | B27: 20 | C27: 2 | D27: 10 | E27: 0261 0261 - Bel-Aire Elementary
A28: 0271 | B28: 30 | C28: 4 | D28: 13 | E28: 0271 0271 - Bent Tree Elementary
A29: 0311 | B29: 51 | C29: 11 | D29: 22 | E29: 0311 0311 - Goulds Elementary
A30: 0312 | B30: 2 | C30: 0 | D30: 0 | E30: 0312 0312 - Mater Gardens Academy
A31: 0321 | B31: 19 | C31: 4 | D31: 21 | E31: 0321 0321 - Biscayne Elementary
... 38 more rows

Sheet WIAR-ALL (hidden)
D2: Satisfactory
A5: School Name | B5: Tested | C5: Number of Satisfactory | D5: % of Satisfactory
A6: 0041 | B6: 367 | C6: 281 | D6: 77 | E6: 0041 0041 - Air Base Elementary
A7: 0070 | B7: 225 | C7: 157 | D7: 70 | E7: 0070 0070 - Coral Reef Montessori Acad Ch
A8: 0071 | B8: 1038 | C8: 608 | D8: 59 | E8: 0071 0071 - Eugenia B. Thomas K-8 Center
A9: 0072 | B9: 237 | C9: 133 | D9: 56 | E9: 0072 0072 - Summerville Charter School
A10: 0073 | B10: 654 | C10: 211 | D10: 32 | E10: 0073 0073 - Mandarin Lakes K-8 Center
A11: 0081 | B11: 164 | C11: 71 | D11: 43 | E11: 0081 0081 - Lenora B. Smith Elementary
A12: 0091 | B12: 1189 | C12: 741 | D12: 62 | E12: 0091 0091 - Bob Graham Education Ctr
A13: 0092 | B13: 1229 | C13: 961 | D13: 78 | E13: 0092 0092 - Norman S. Edelcup/sunny Isles
A14: 0100 | B14: 401 | C14: 294 | D14: 73 | E14: 0100 0100 - Mater Academy
A15: 0101 | B15: 203 | C15: 63 | D15: 31 | E15: 0101 0101 - Arcola Lake Elementary
A16: 0102 | B16: 236 | C16: 80 | D16: 34 | E16: 0102 0102 - Miami Community Charter School
A17: 0111 | B17: 296 | C17: 126 | D17: 43 | E17: 0111 0111 - Maya Angelou Elementary
A18: 0121 | B18: 400 | C18: 212 | D18: 53 | E18: 0121 0121 - Auburndale Elementary
A19: 0122 | B19: 1076 | C19: 678 | D19: 63 | E19: 0122 0122 - Dr Rolando Espinosa K-8
A20: 0125 | B20: 639 | C20: 435 | D20: 68 | E20: 0125 0125 - Norma Butler Bossard Elem
A21: 0161 | B21: 143 | C21: 41 | D21: 29 | E21: 0161 0161 - Avocado Elementary
A22: 0201 | B22: 162 | C22: 114 | D22: 70 | E22: 0201 0201 - Banyan Elementary
A23: 0211 | B23: 413 | C23: 276 | D23: 67 | E23: 0211 0211 - Dr. Manuel C. Barreiro Elem
A24: 0231 | B24: 1123 | C24: 736 | D24: 66 | E24: 0231 0231 - Aventura Waterways K-8 Center
A25: 0241 | B25: 848 | C25: 601 | D25: 71 | E25: 0241 0241 - Ruth K Broad/bay Harbor K-8
A26: 0251 | B26: 358 | C26: 295 | D26: 82 | E26: 0251 0251 - Ethel Koger Beckham Elementary
A27: 0261 | B27: 183 | C27: 74 | D27: 40 | E27: 0261 0261 - Bel-Aire Elementary
A28: 0271 | B28: 245 | C28: 158 | D28: 64 | E28: 0271 0271 - Bent Tree Elementary
A29: 0311 | B29: 256 | C29: 132 | D29: 52 | E29: 0311 0311 - Goulds Elementary
A30: 0312 | B30: 287 | C30: 215 | D30: 75 | E30: 0312 0312 - Mater Gardens Academy
A31: 0321 | B31: 280 | C31: 123 | D31: 44 | E31: 0321 0321 - Biscayne Elementary
... 38 more rows

Sheet WIAR-W (hidden)
D2: Satisfactory
A3: White
A5: School Name | B5: Tested | C5: Number of Satisfactory | D5: % of Satisfactory
A6: 0041 | B6: 51 | C6: 41 | D6: 80 | E6: 0041 0041 - Air Base Elementary
A7: 0070 | B7: 33 | C7: 28 | D7: 85 | E7: 0070 0070 - Coral Reef Montessori Acad Ch
A8: 0071 | B8: 77 | C8: 51 | D8: 66 | E8: 0071 0071 - Eugenia B. Thomas K-8 Center
A9: 0072 | B9: 7 | C9: 5 | D9: 71 | E9: 0072 0072 - Summerville Charter School
A10: 0073 | B10: 19 | C10: 7 | D10: 37 | E10: 0073 0073 - Mandarin Lakes K-8 Center
A11: 0081 | B11: 1 | C11: 1 | D11: 100 | E11: 0081 0081 - Lenora B. Smith Elementary
A12: 0091 | B12: 64 | C12: 42 | D12: 66 | E12: 0091 0091 - Bob Graham Education Ctr
A13: 0092 | B13: 537 | C13: 429 | D13: 80 | E13: 0092 0092 - Norman S. Edelcup/sunny Isles
A14: 0100 | B14: 5 | C14: 3 | D14: 60 | E14: 0100 0100 - Mater Academy
A15: 0101 | B15: 0 | C15: 0 | D15: NA | E15: 0101 0101 - Arcola Lake Elementary
A16: 0102 | B16: 2 | C16: 1 | D16: 50 | E16: 0102 0102 - Miami Community Charter School
A17: 0111 | B17: 1 | C17: 0 | D17: 0 | E17: 0111 0111 - Maya Angelou Elementary
A18: 0121 | B18: 4 | C18: 3 | D18: 75 | E18: 0121 0121 - Auburndale Elementary
A19: 0122 | B19: 68 | C19: 44 | D19: 65 | E19: 0122 0122 - Dr Rolando Espinosa K-8
A20: 0125 | B20: 48 | C20: 39 | D20: 81 | E20: 0125 0125 - Norma Butler Bossard Elem
A21: 0161 | B21: 10 | C21: 5 | D21: 50 | E21: 0161 0161 - Avocado Elementary
A22: 0201 | B22: 9 | C22: 9 | D22: 100 | E22: 0201 0201 - Banyan Elementary
A23: 0211 | B23: 16 | C23: 11 | D23: 69 | E23: 0211 0211 - Dr. Manuel C. Barreiro Elem
A24: 0231 | B24: 323 | C24: 228 | D24: 71 | E24: 0231 0231 - Aventura Waterways K-8 Center
A25: 0241 | B25: 343 | C25: 254 | D25: 74 | E25: 0241 0241 - Ruth K Broad/bay Harbor K-8
A26: 0251 | B26: 11 | C26: 7 | D26: 64 | E26: 0251 0251 - Ethel Koger Beckham Elementary
A27: 0261 | B27: 11 | C27: 9 | D27: 82 | E27: 0261 0261 - Bel-Aire Elementary
A28: 0271 | B28: 11 | C28: 8 | D28: 73 | E28: 0271 0271 - Bent Tree Elementary
A29: 0311 | B29: 3 | C29: 2 | D29: 67 | E29: 0311 0311 - Goulds Elementary
A30: 0312 | B30: 11 | C30: 7 | D30: 64 | E30: 0312 0312 - Mater Gardens Academy
A31: 0321 | B31: 18 | C31: 15 | D31: 83 | E31: 0321 0321 - Biscayne Elementary
... 38 more rows

Sheet WIAR-B (hidden)
D2: Satisfactory
A3: Black
A5: School Name | B5: Tested | C5: Number of Satisfactory | D5: % of Satisfactory
A6: 0041 | B6: 61 | C6: 44 | D6: 72 | E6: 0041 0041 - Air Base Elementary
A7: 0070 | B7: 45 | C7: 24 | D7: 53 | E7: 0070 0070 - Coral Reef Montessori Acad Ch
A8: 0071 | B8: 23 | C8: 12 | D8: 52 | E8: 0071 0071 - Eugenia B. Thomas K-8 Center
A9: 0072 | B9: 19 | C9: 8 | D9: 42 | E9: 0072 0072 - Summerville Charter School
A10: 0073 | B10: 249 | C10: 71 | D10: 29 | E10: 0073 0073 - Mandarin Lakes K-8 Center
A11: 0081 | B11: 133 | C11: 61 | D11: 46 | E11: 0081 0081 - Lenora B. Smith Elementary
A12: 0091 | B12: 36 | C12: 18 | D12: 50 | E12: 0091 0091 - Bob Graham Education Ctr
A13: 0092 | B13: 22 | C13: 16 | D13: 73 | E13: 0092 0092 - Norman S. Edelcup/sunny Isles
A14: 0100 | B14: 2 | C14: 2 | D14: 100 | E14: 0100 0100 - Mater Academy
A15: 0101 | B15: 150 | C15: 49 | D15: 33 | E15: 0101 0101 - Arcola Lake Elementary
A16: 0102 | B16: 21 | C16: 8 | D16: 38 | E16: 0102 0102 - Miami Community Charter School
A17: 0111 | B17: 26 | C17: 12 | D17: 46 | E17: 0111 0111 - Maya Angelou Elementary
A18: 0121 | B18: 1 | C18: 0 | D18: 0 | E18: 0121 0121 - Auburndale Elementary
A19: 0122 | B19: 6 | C19: 5 | D19: 83 | E19: 0122 0122 - Dr Rolando Espinosa K-8
A20: 0125 | B20: 19 | C20: 15 | D20: 79 | E20: 0125 0125 - Norma Butler Bossard Elem
A21: 0161 | B21: 25 | C21: 3 | D21: 12 | E21: 0161 0161 - Avocado Elementary
A22: 0201 | B22: 1 | C22: 1 | D22: 100 | E22: 0201 0201 - Banyan Elementary
A23: 0211 | B23: 5 | C23: 5 | D23: 100 | E23: 0211 0211 - Dr. Manuel C. Barreiro Elem
A24: 0231 | B24: 185 | C24: 110 | D24: 59 | E24: 0231 0231 - Aventura Waterways K-8 Center
A25: 0241 | B25: 27 | C25: 22 | D25: 81 | E25: 0241 0241 - Ruth K Broad/bay Harbor K-8
A26: 0251 | B26: 0 | C26: 0 | D26: NA | E26: 0251 0251 - Ethel Koger Beckham Elementary
A27: 0261 | B27: 93 | C27: 30 | D27: 32 | E27: 0261 0261 - Bel-Aire Elementary
A28: 0271 | B28: 1 | C28: 1 | D28: 100 | E28: 0271 0271 - Bent Tree Elementary
A29: 0311 | B29: 139 | C29: 67 | D29: 48 | E29: 0311 0311 - Goulds Elementary
A30: 0312 | B30: 5 | C30: 4 | D30: 80 | E30: 0312 0312 - Mater Gardens Academy
A31: 0321 | B31: 14 | C31: 7 | D31: 50 | E31: 0321 0321 - Biscayne Elementary
... 38 more rows

Sheet WIAR-H (hidden)
D2: Satisfactory
A3: Hispanic
A5: School Name | B5: Tested | C5: Number of Satisfactory | D5: % of Satisfactory
A6: 0041 | B6: 238 | C6: 182 | D6: 76 | E6: 0041 0041 - Air Base Elementary
A7: 0070 | B7: 137 | C7: 96 | D7: 70 | E7: 0070 0070 - Coral Reef Montessori Acad Ch
A8: 0071 | B8: 912 | C8: 523 | D8: 57 | E8: 0071 0071 - Eugenia B. Thomas K-8 Center
A9: 0072 | B9: 196 | C9: 111 | D9: 57 | E9: 0072 0072 - Summerville Charter School
A10: 0073 | B10: 380 | C10: 130 | D10: 34 | E10: 0073 0073 - Mandarin Lakes K-8 Center
A11: 0081 | B11: 30 | C11: 9 | D11: 30 | E11: 0081 0081 - Lenora B. Smith Elementary
A12: 0091 | B12: 1067 | C12: 663 | D12: 62 | E12: 0091 0091 - Bob Graham Education Ctr
A13: 0092 | B13: 647 | C13: 499 | D13: 77 | E13: 0092 0092 - Norman S. Edelcup/sunny Isles
A14: 0100 | B14: 394 | C14: 289 | D14: 73 | E14: 0100 0100 - Mater Academy
A15: 0101 | B15: 51 | C15: 14 | D15: 27 | E15: 0101 0101 - Arcola Lake Elementary
A16: 0102 | B16: 210 | C16: 68 | D16: 32 | E16: 0102 0102 - Miami Community Charter School
A17: 0111 | B17: 268 | C17: 113 | D17: 42 | E17: 0111 0111 - Maya Angelou Elementary
A18: 0121 | B18: 394 | C18: 209 | D18: 53 | E18: 0121 0121 - Auburndale Elementary
A19: 0122 | B19: 982 | C19: 615 | D19: 63 | E19: 0122 0122 - Dr Rolando Espinosa K-8
A20: 0125 | B20: 544 | C20: 355 | D20: 65 | E20: 0125 0125 - Norma Butler Bossard Elem
A21: 0161 | B21: 108 | C21: 33 | D21: 31 | E21: 0161 0161 - Avocado Elementary
A22: 0201 | B22: 152 | C22: 104 | D22: 68 | E22: 0201 0201 - Banyan Elementary
A23: 0211 | B23: 373 | C23: 246 | D23: 66 | E23: 0211 0211 - Dr. Manuel C. Barreiro Elem
A24: 0231 | B24: 571 | C24: 364 | D24: 64 | E24: 0231 0231 - Aventura Waterways K-8 Center
A25: 0241 | B25: 464 | C25: 313 | D25: 67 | E25: 0241 0241 - Ruth K Broad/bay Harbor K-8
A26: 0251 | B26: 341 | C26: 283 | D26: 83 | E26: 0251 0251 - Ethel Koger Beckham Elementary
A27: 0261 | B27: 69 | C27: 29 | D27: 42 | E27: 0261 0261 - Bel-Aire Elementary
A28: 0271 | B28: 232 | C28: 148 | D28: 64 | E28: 0271 0271 - Bent Tree Elementary
A29: 0311 | B29: 90 | C29: 52 | D29: 58 | E29: 0311 0311 - Goulds Elementary
A30: 0312 | B30: 268 | C30: 202 | D30: 75 | E30: 0312 0312 - Mater Gardens Academy
A31: 0321 | B31: 247 | C31: 100 | D31: 40 | E31: 0321 0321 - Biscayne Elementary
... 38 more rows

Sheet WIAR-A (hidden)
D2: Satisfactory
A3: Asian
A5: School Name | B5: Tested | C5: Number of Satisfactory | D5: % of Satisfactory
A6: 0041 | B6: 10 | C6: 8 | D6: 80 | E6: 0041 0041 - Air Base Elementary
A7: 0070 | B7: 4 | C7: 3 | D7: 75 | E7: 0070 0070 - Coral Reef Montessori Acad Ch
A8: 0071 | B8: 23 | C8: 20 | D8: 87 | E8: 0071 0071 - Eugenia B. Thomas K-8 Center
A9: 0072 | B9: 1 | C9: 1 | D9: 100 | E9: 0072 0072 - Summerville Charter School
A10: 0073 | B10: 1 | C10: 1 | D10: 100 | E10: 0073 0073 - Mandarin Lakes K-8 Center
A11: 0081 | B11: 0 | C11: 0 | D11: NA | E11: 0081 0081 - Lenora B. Smith Elementary
A12: 0091 | B12: 16 | C12: 12 | D12: 75 | E12: 0091 0091 - Bob Graham Education Ctr
A13: 0092 | B13: 12 | C13: 9 | D13: 75 | E13: 0092 0092 - Norman S. Edelcup/sunny Isles
A14: 0100 | B14: 0 | C14: 0 | D14: NA | E14: 0100 0100 - Mater Academy
A15: 0101 | B15: 0 | C15: 0 | D15: NA | E15: 0101 0101 - Arcola Lake Elementary
A16: 0102 | B16: 2 | C16: 2 | D16: 100 | E16: 0102 0102 - Miami Community Charter School
A17: 0111 | B17: 1 | C17: 1 | D17: 100 | E17: 0111 0111 - Maya Angelou Elementary
A18: 0121 | B18: 0 | C18: 0 | D18: NA | E18: 0121 0121 - Auburndale Elementary
A19: 0122 | B19: 18 | C19: 13 | D19: 72 | E19: 0122 0122 - Dr Rolando Espinosa K-8
A20: 0125 | B20: 17 | C20: 16 | D20: 94 | E20: 0125 0125 - Norma Butler Bossard Elem
A21: 0161 | B21: 0 | C21: 0 | D21: NA | E21: 0161 0161 - Avocado Elementary
A22: 0201 | B22: 0 | C22: 0 | D22: NA | E22: 0201 0201 - Banyan Elementary
A23: 0211 | B23: 14 | C23: 11 | D23: 79 | E23: 0211 0211 - Dr. Manuel C. Barreiro Elem
A24: 0231 | B24: 30 | C24: 25 | D24: 83 | E24: 0231 0231 - Aventura Waterways K-8 Center
A25: 0241 | B25: 10 | C25: 8 | D25: 80 | E25: 0241 0241 - Ruth K Broad/bay Harbor K-8
A26: 0251 | B26: 5 | C26: 4 | D26: 80 | E26: 0251 0251 - Ethel Koger Beckham Elementary
A27: 0261 | B27: 9 | C27: 5 | D27: 56 | E27: 0261 0261 - Bel-Aire Elementary
A28: 0271 | B28: 0 | C28: 0 | D28: NA | E28: 0271 0271 - Bent Tree Elementary
A29: 0311 | B29: 3 | C29: 3 | D29: 100 | E29: 0311 0311 - Goulds Elementary
A30: 0312 | B30: 3 | C30: 2 | D30: 67 | E30: 0312 0312 - Mater Gardens Academy
A31: 0321 | B31: 1 | C31: 1 | D31: 100 | E31: 0321 0321 - Biscayne Elementary
... 38 more rows

Sheet WIAR-I (hidden)
D2: Satisfactory
A3: American Indian
A5: School Name | B5: Tested | C5: Number of Satisfactory | D5: % of Satisfactory
A6: 0041 | B6: 1 | C6: 1 | D6: 100 | E6: 0041 0041 - Air Base Elementary
A7: 0070 | B7: 1 | C7: 1 | D7: 100 | E7: 0070 0070 - Coral Reef Montessori Acad Ch
A8: 0071 | B8: 0 | C8: 0 | D8: NA | E8: 0071 0071 - Eugenia B. Thomas K-8 Center
A9: 0072 | B9: 2 | C9: 2 | D9: 100 | E9: 0072 0072 - Summerville Charter School
A10: 0073 | B10: 1 | C10: 0 | D10: 0 | E10: 0073 0073 - Mandarin Lakes K-8 Center
A11: 0081 | B11: 0 | C11: 0 | D11: NA | E11: 0081 0081 - Lenora B. Smith Elementary
A12: 0091 | B12: 0 | C12: 0 | D12: NA | E12: 0091 0091 - Bob Graham Education Ctr
A13: 0092 | B13: 2 | C13: 0 | D13: 0 | E13: 0092 0092 - Norman S. Edelcup/sunny Isles
A14: 0100 | B14: 0 | C14: 0 | D14: NA | E14: 0100 0100 - Mater Academy
A15: 0101 | B15: 0 | C15: 0 | D15: NA | E15: 0101 0101 - Arcola Lake Elementary
A16: 0102 | B16: 0 | C16: 0 | D16: NA | E16: 0102 0102 - Miami Community Charter School
A17: 0111 | B17: 0 | C17: 0 | D17: NA | E17: 0111 0111 - Maya Angelou Elementary
A18: 0121 | B18: 0 | C18: 0 | D18: NA | E18: 0121 0121 - Auburndale Elementary
A19: 0122 | B19: 0 | C19: 0 | D19: NA | E19: 0122 0122 - Dr Rolando Espinosa K-8
A20: 0125 | B20: 0 | C20: 0 | D20: NA | E20: 0125 0125 - Norma Butler Bossard Elem
A21: 0161 | B21: 0 | C21: 0 | D21: NA | E21: 0161 0161 - Avocado Elementary
A22: 0201 | B22: 0 | C22: 0 | D22: NA | E22: 0201 0201 - Banyan Elementary
A23: 0211 | B23: 0 | C23: 0 | D23: NA | E23: 0211 0211 - Dr. Manuel C. Barreiro Elem
A24: 0231 | B24: 0 | C24: 0 | D24: NA | E24: 0231 0231 - Aventura Waterways K-8 Center
A25: 0241 | B25: 0 | C25: 0 | D25: NA | E25: 0241 0241 - Ruth K Broad/bay Harbor K-8
A26: 0251 | B26: 1 | C26: 1 | D26: 100 | E26: 0251 0251 - Ethel Koger Beckham Elementary
A27: 0261 | B27: 0 | C27: 0 | D27: NA | E27: 0261 0261 - Bel-Aire Elementary
A28: 0271 | B28: 0 | C28: 0 | D28: NA | E28: 0271 0271 - Bent Tree Elementary
A29: 0311 | B29: 0 | C29: 0 | D29: NA | E29: 0311 0311 - Goulds Elementary
A30: 0312 | B30: 0 | C30: 0 | D30: NA | E30: 0312 0312 - Mater Gardens Academy
A31: 0321 | B31: 0 | C31: 0 | D31: NA | E31: 0321 0321 - Biscayne Elementary
... 38 more rows

Sheet WIAR-ED (hidden)
A2: ED | D2: Satisfactory
A3: Y
A5: School Name | B5: Tested | C5: Number of Satisfactory | D5: % of Satisfactory
A6: 0041 | B6: 244 | C6: 177 | D6: 73 | E6: 0041 0041 - Air Base Elementary
A7: 0070 | B7: 72 | C7: 45 | D7: 63 | E7: 0070 0070 - Coral Reef Montessori Acad Ch
A8: 0071 | B8: 437 | C8: 224 | D8: 51 | E8: 0071 0071 - Eugenia B. Thomas K-8 Center
A9: 0072 | B9: 184 | C9: 101 | D9: 55 | E9: 0072 0072 - Summerville Charter School
A10: 0073 | B10: 619 | C10: 198 | D10: 32 | E10: 0073 0073 - Mandarin Lakes K-8 Center
A11: 0081 | B11: 162 | C11: 69 | D11: 43 | E11: 0081 0081 - Lenora B. Smith Elementary
A12: 0091 | B12: 663 | C12: 364 | D12: 55 | E12: 0091 0091 - Bob Graham Education Ctr
A13: 0092 | B13: 465 | C13: 351 | D13: 75 | E13: 0092 0092 - Norman S. Edelcup/sunny Isles
A14: 0100 | B14: 365 | C14: 263 | D14: 72 | E14: 0100 0100 - Mater Academy
A15: 0101 | B15: 198 | C15: 60 | D15: 30 | E15: 0101 0101 - Arcola Lake Elementary
A16: 0102 | B16: 217 | C16: 73 | D16: 34 | E16: 0102 0102 - Miami Community Charter School
A17: 0111 | B17: 294 | C17: 125 | D17: 43 | E17: 0111 0111 - Maya Angelou Elementary
A18: 0121 | B18: 360 | C18: 182 | D18: 51 | E18: 0121 0121 - Auburndale Elementary
A19: 0122 | B19: 431 | C19: 237 | D19: 55 | E19: 0122 0122 - Dr Rolando Espinosa K-8
A20: 0125 | B20: 410 | C20: 254 | D20: 62 | E20: 0125 0125 - Norma Butler Bossard Elem
A21: 0161 | B21: 137 | C21: 39 | D21: 28 | E21: 0161 0161 - Avocado Elementary
A22: 0201 | B22: 138 | C22: 95 | D22: 69 | E22: 0201 0201 - Banyan Elementary
A23: 0211 | B23: 277 | C23: 170 | D23: 61 | E23: 0211 0211 - Dr. Manuel C. Barreiro Elem
A24: 0231 | B24: 546 | C24: 328 | D24: 60 | E24: 0231 0231 - Aventura Waterways K-8 Center
A25: 0241 | B25: 353 | C25: 205 | D25: 58 | E25: 0241 0241 - Ruth K Broad/bay Harbor K-8
A26: 0251 | B26: 286 | C26: 235 | D26: 82 | E26: 0251 0251 - Ethel Koger Beckham Elementary
A27: 0261 | B27: 177 | C27: 72 | D27: 41 | E27: 0261 0261 - Bel-Aire Elementary
A28: 0271 | B28: 202 | C28: 124 | D28: 61 | E28: 0271 0271 - Bent Tree Elementary
A29: 0311 | B29: 245 | C29: 125 | D29: 51 | E29: 0311 0311 - Goulds Elementary
A30: 0312 | B30: 164 | C30: 121 | D30: 74 | E30: 0312 0312 - Mater Gardens Academy
A31: 0321 | B31: 255 | C31: 108 | D31: 42 | E31: 0321 0321 - Biscayne Elementary
... 38 more rows

Sheet WIAR-ELL (hidden)
A2: ELL | D2: Satisfactory
A3: Y
A5: School Name | B5: Tested | C5: Number of Satisfactory | D5: % of Satisfactory
A6: 0041 | B6: 40 | C6: 26 | D6: 65 | E6: 0041 0041 - Air Base Elementary
A7: 0070 | B7: 15 | C7: 7 | D7: 47 | E7: 0070 0070 - Coral Reef Montessori Acad Ch
A8: 0071 | B8: 388 | C8: 141 | D8: 36 | E8: 0071 0071 - Eugenia B. Thomas K-8 Center
A9: 0072 | B9: 78 | C9: 33 | D9: 42 | E9: 0072 0072 - Summerville Charter School
A10: 0073 | B10: 178 | C10: 37 | D10: 21 | E10: 0073 0073 - Mandarin Lakes K-8 Center
A11: 0081 | B11: 25 | C11: 7 | D11: 28 | E11: 0081 0081 - Lenora B. Smith Elementary
A12: 0091 | B12: 289 | C12: 122 | D12: 42 | E12: 0091 0091 - Bob Graham Education Ctr
A13: 0092 | B13: 367 | C13: 200 | D13: 54 | E13: 0092 0092 - Norman S. Edelcup/sunny Isles
A14: 0100 | B14: 210 | C14: 130 | D14: 62 | E14: 0100 0100 - Mater Academy
A15: 0101 | B15: 48 | C15: 9 | D15: 19 | E15: 0101 0101 - Arcola Lake Elementary
A16: 0102 | B16: 140 | C16: 41 | D16: 29 | E16: 0102 0102 - Miami Community Charter School
A17: 0111 | B17: 187 | C17: 63 | D17: 34 | E17: 0111 0111 - Maya Angelou Elementary
A18: 0121 | B18: 261 | C18: 112 | D18: 43 | E18: 0121 0121 - Auburndale Elementary
A19: 0122 | B19: 468 | C19: 202 | D19: 43 | E19: 0122 0122 - Dr Rolando Espinosa K-8
A20: 0125 | B20: 208 | C20: 97 | D20: 47 | E20: 0125 0125 - Norma Butler Bossard Elem
A21: 0161 | B21: 79 | C21: 21 | D21: 27 | E21: 0161 0161 - Avocado Elementary
A22: 0201 | B22: 70 | C22: 30 | D22: 43 | E22: 0201 0201 - Banyan Elementary
A23: 0211 | B23: 146 | C23: 70 | D23: 48 | E23: 0211 0211 - Dr. Manuel C. Barreiro Elem
A24: 0231 | B24: 262 | C24: 99 | D24: 38 | E24: 0231 0231 - Aventura Waterways K-8 Center
A25: 0241 | B25: 185 | C25: 83 | D25: 45 | E25: 0241 0241 - Ruth K Broad/bay Harbor K-8
A26: 0251 | B26: 125 | C26: 86 | D26: 69 | E26: 0251 0251 - Ethel Koger Beckham Elementary
A27: 0261 | B27: 49 | C27: 17 | D27: 35 | E27: 0261 0261 - Bel-Aire Elementary
A28: 0271 | B28: 114 | C28: 59 | D28: 52 | E28: 0271 0271 - Bent Tree Elementary
A29: 0311 | B29: 39 | C29: 17 | D29: 44 | E29: 0311 0311 - Goulds Elementary
A30: 0312 | B30: 54 | C30: 34 | D30: 63 | E30: 0312 0312 - Mater Gardens Academy
A31: 0321 | B31: 166 | C31: 53 | D31: 32 | E31: 0321 0321 - Biscayne Elementary
... 38 more rows

Sheet WIAR-SWD (hidden)
A2: SWD | D2: Satisfactory
A3: Y
A5: School Name | B5: Tested | C5: Number of Satisfactory | D5: % of Satisfactory
A6: 0041 | B6: 13 | C6: 6 | D6: 46 | E6: 0041 0041 - Air Base Elementary
A7: 0070 | B7: 27 | C7: 11 | D7: 41 | E7: 0070 0070 - Coral Reef Montessori Acad Ch
A8: 0071 | B8: 52 | C8: 8 | D8: 15 | E8: 0071 0071 - Eugenia B. Thomas K-8 Center
A9: 0072 | B9: 10 | C9: 5 | D9: 50 | E9: 0072 0072 - Summerville Charter School
A10: 0073 | B10: 92 | C10: 7 | D10: 8 | E10: 0073 0073 - Mandarin Lakes K-8 Center
A11: 0081 | B11: 22 | C11: 1 | D11: 5 | E11: 0081 0081 - Lenora B. Smith Elementary
A12: 0091 | B12: 83 | C12: 13 | D12: 16 | E12: 0091 0091 - Bob Graham Education Ctr
A13: 0092 | B13: 61 | C13: 28 | D13: 46 | E13: 0092 0092 - Norman S. Edelcup/sunny Isles
A14: 0100 | B14: 10 | C14: 7 | D14: 70 | E14: 0100 0100 - Mater Academy
A15: 0101 | B15: 17 | C15: 1 | D15: 6 | E15: 0101 0101 - Arcola Lake Elementary
A16: 0102 | B16: 7 | C16: 0 | D16: 0 | E16: 0102 0102 - Miami Community Charter School
A17: 0111 | B17: 35 | C17: 3 | D17: 9 | E17: 0111 0111 - Maya Angelou Elementary
A18: 0121 | B18: 31 | C18: 4 | D18: 13 | E18: 0121 0121 - Auburndale Elementary
A19: 0122 | B19: 42 | C19: 12 | D19: 29 | E19: 0122 0122 - Dr Rolando Espinosa K-8
A20: 0125 | B20: 73 | C20: 17 | D20: 23 | E20: 0125 0125 - Norma Butler Bossard Elem
A21: 0161 | B21: 13 | C21: 0 | D21: 0 | E21: 0161 0161 - Avocado Elementary
A22: 0201 | B22: 23 | C22: 5 | D22: 22 | E22: 0201 0201 - Banyan Elementary
A23: 0211 | B23: 33 | C23: 5 | D23: 15 | E23: 0211 0211 - Dr. Manuel C. Barreiro Elem
A24: 0231 | B24: 65 | C24: 19 | D24: 29 | E24: 0231 0231 - Aventura Waterways K-8 Center
A25: 0241 | B25: 53 | C25: 25 | D25: 47 | E25: 0241 0241 - Ruth K Broad/bay Harbor K-8
A26: 0251 | B26: 45 | C26: 22 | D26: 49 | E26: 0251 0251 - Ethel Koger Beckham Elementary
A27: 0261 | B27: 20 | C27: 2 | D27: 10 | E27: 0261 0261 - Bel-Aire Elementary
A28: 0271 | B28: 28 | C28: 7 | D28: 25 | E28: 0271 0271 - Bent Tree Elementary
A29: 0311 | B29: 48 | C29: 9 | D29: 19 | E29: 0311 0311 - Goulds Elementary
A30: 0312 | B30: 2 | C30: 0 | D30: 0 | E30: 0312 0312 - Mater Gardens Academy
A31: 0321 | B31: 21 | C31: 5 | D31: 24 | E31: 0321 0321 - Biscayne Elementary
... 38 more rows

Sheet FIAM-ALL (hidden)
D2: Satisfactory
A5: School Name | B5: Tested | C5: Number of Satisfactory | D5: % of Satisfactory
A6: 0041 | B6: 375 | C6: 274 | D6: 73 | E6: 0041 0041 - Air Base Elementary
A7: 0070 | B7: 226 | C7: 143 | D7: 63 | E7: 0070 0070 - Coral Reef Montessori Acad Ch
A8: 0071 | B8: 983 | C8: 571 | D8: 58 | E8: 0071 0071 - Eugenia B. Thomas K-8 Center
A9: 0072 | B9: 232 | C9: 131 | D9: 56 | E9: 0072 0072 - Summerville Charter School
A10: 0073 | B10: 659 | C10: 281 | D10: 43 | E10: 0073 0073 - Mandarin Lakes K-8 Center
A11: 0081 | B11: 159 | C11: 92 | D11: 58 | E11: 0081 0081 - Lenora B. Smith Elementary
A12: 0091 | B12: 1220 | C12: 715 | D12: 59 | E12: 0091 0091 - Bob Graham Education Ctr
A13: 0092 | B13: 1200 | C13: 940 | D13: 78 | E13: 0092 0092 - Norman S. Edelcup/sunny Isles
A14: 0100 | B14: 399 | C14: 278 | D14: 70 | E14: 0100 0100 - Mater Academy
A15: 0101 | B15: 191 | C15: 96 | D15: 50 | E15: 0101 0101 - Arcola Lake Elementary
A16: 0111 | B16: 285 | C16: 150 | D16: 53 | E16: 0111 0111 - Maya Angelou Elementary
A17: 0121 | B17: 394 | C17: 203 | D17: 52 | E17: 0121 0121 - Auburndale Elementary
A18: 0122 | B18: 1070 | C18: 592 | D18: 55 | E18: 0122 0122 - Dr Rolando Espinosa K-8
A19: 0125 | B19: 622 | C19: 470 | D19: 76 | E19: 0125 0125 - Norma Butler Bossard Elem
A20: 0161 | B20: 147 | C20: 96 | D20: 65 | E20: 0161 0161 - Avocado Elementary
A21: 0201 | B21: 159 | C21: 105 | D21: 66 | E21: 0201 0201 - Banyan Elementary
A22: 0211 | B22: 425 | C22: 299 | D22: 70 | E22: 0211 0211 - Dr. Manuel C. Barreiro Elem
A23: 0231 | B23: 1143 | C23: 707 | D23: 62 | E23: 0231 0231 - Aventura Waterways K-8 Center
A24: 0241 | B24: 817 | C24: 548 | D24: 67 | E24: 0241 0241 - Ruth K Broad/bay Harbor K-8
A25: 0251 | B25: 357 | C25: 310 | D25: 87 | E25: 0251 0251 - Ethel Koger Beckham Elementary
A26: 0261 | B26: 182 | C26: 79 | D26: 43 | E26: 0261 0261 - Bel-Aire Elementary
A27: 0271 | B27: 242 | C27: 141 | D27: 58 | E27: 0271 0271 - Bent Tree Elementary
A28: 0311 | B28: 249 | C28: 144 | D28: 58 | E28: 0311 0311 - Goulds Elementary
A29: 0312 | B29: 286 | C29: 202 | D29: 71 | E29: 0312 0312 - Mater Gardens Academy
A30: 0321 | B30: 288 | C30: 143 | D30: 50 | E30: 0321 0321 - Biscayne Elementary
A31: 0332 | B31: 625 | C31: 387 | D31: 62 | E31: 0332 0332 - Somerset Academy(silver Palms)
... 38 more rows

Sheet FIAM-W (hidden)
D2: Satisfactory
A3: White
A5: School Name | B5: Tested | C5: Number of Satisfactory | D5: % of Satisfactory
A6: 0041 | B6: 52 | C6: 40 | D6: 77 | E6: 0041 0041 - Air Base Elementary
A7: 0070 | B7: 34 | C7: 22 | D7: 65 | E7: 0070 0070 - Coral Reef Montessori Acad Ch
A8: 0071 | B8: 73 | C8: 42 | D8: 58 | E8: 0071 0071 - Eugenia B. Thomas K-8 Center
A9: 0072 | B9: 7 | C9: 7 | D9: 100 | E9: 0072 0072 - Summerville Charter School
A10: 0073 | B10: 19 | C10: 9 | D10: 47 | E10: 0073 0073 - Mandarin Lakes K-8 Center
A11: 0081 | B11: 0 | C11: 0 | D11: NA | E11: 0081 0081 - Lenora B. Smith Elementary
A12: 0091 | B12: 66 | C12: 37 | D12: 56 | E12: 0091 0091 - Bob Graham Education Ctr
A13: 0092 | B13: 519 | C13: 434 | D13: 84 | E13: 0092 0092 - Norman S. Edelcup/sunny Isles
A14: 0100 | B14: 4 | C14: 2 | D14: 50 | E14: 0100 0100 - Mater Academy
A15: 0101 | B15: 1 | C15: 0 | D15: 0 | E15: 0101 0101 - Arcola Lake Elementary
A16: 0111 | B16: 1 | C16: 0 | D16: 0 | E16: 0111 0111 - Maya Angelou Elementary
A17: 0121 | B17: 3 | C17: 0 | D17: 0 | E17: 0121 0121 - Auburndale Elementary
A18: 0122 | B18: 65 | C18: 30 | D18: 46 | E18: 0122 0122 - Dr Rolando Espinosa K-8
A19: 0125 | B19: 46 | C19: 36 | D19: 78 | E19: 0125 0125 - Norma Butler Bossard Elem
A20: 0161 | B20: 12 | C20: 9 | D20: 75 | E20: 0161 0161 - Avocado Elementary
A21: 0201 | B21: 9 | C21: 8 | D21: 89 | E21: 0201 0201 - Banyan Elementary
A22: 0211 | B22: 15 | C22: 9 | D22: 60 | E22: 0211 0211 - Dr. Manuel C. Barreiro Elem
A23: 0231 | B23: 327 | C23: 209 | D23: 64 | E23: 0231 0231 - Aventura Waterways K-8 Center
A24: 0241 | B24: 333 | C24: 239 | D24: 72 | E24: 0241 0241 - Ruth K Broad/bay Harbor K-8
A25: 0251 | B25: 11 | C25: 10 | D25: 91 | E25: 0251 0251 - Ethel Koger Beckham Elementary
A26: 0261 | B26: 11 | C26: 5 | D26: 45 | E26: 0261 0261 - Bel-Aire Elementary
A27: 0271 | B27: 12 | C27: 7 | D27: 58 | E27: 0271 0271 - Bent Tree Elementary
A28: 0311 | B28: 3 | C28: 1 | D28: 33 | E28: 0311 0311 - Goulds Elementary
A29: 0312 | B29: 11 | C29: 8 | D29: 73 | E29: 0312 0312 - Mater Gardens Academy
A30: 0321 | B30: 18 | C30: 11 | D30: 61 | E30: 0321 0321 - Biscayne Elementary
A31: 0332 | B31: 36 | C31: 27 | D31: 75 | E31: 0332 0332 - Somerset Academy(silver Palms)
... 38 more rows

Sheet FIAM-B (hidden)
D2: Satisfactory
A3: Black
A5: School Name | B5: Tested | C5: Number of Satisfactory | D5: % of Satisfactory
A6: 0041 | B6: 61 | C6: 43 | D6: 70 | E6: 0041 0041 - Air Base Elementary
A7: 0070 | B7: 42 | C7: 18 | D7: 43 | E7: 0070 0070 - Coral Reef Montessori Acad Ch
A8: 0071 | B8: 24 | C8: 10 | D8: 42 | E8: 0071 0071 - Eugenia B. Thomas K-8 Center
A9: 0072 | B9: 19 | C9: 11 | D9: 58 | E9: 0072 0072 - Summerville Charter School
A10: 0073 | B10: 257 | C10: 87 | D10: 34 | E10: 0073 0073 - Mandarin Lakes K-8 Center
A11: 0081 | B11: 128 | C11: 78 | D11: 61 | E11: 0081 0081 - Lenora B. Smith Elementary
A12: 0091 | B12: 35 | C12: 14 | D12: 40 | E12: 0091 0091 - Bob Graham Education Ctr
A13: 0092 | B13: 21 | C13: 15 | D13: 71 | E13: 0092 0092 - Norman S. Edelcup/sunny Isles
A14: 0100 | B14: 2 | C14: 2 | D14: 100 | E14: 0100 0100 - Mater Academy
A15: 0101 | B15: 142 | C15: 76 | D15: 54 | E15: 0101 0101 - Arcola Lake Elementary
A16: 0111 | B16: 25 | C16: 18 | D16: 72 | E16: 0111 0111 - Maya Angelou Elementary
A17: 0121 | B17: 1 | C17: 0 | D17: 0 | E17: 0121 0121 - Auburndale Elementary
A18: 0122 | B18: 6 | C18: 5 | D18: 83 | E18: 0122 0122 - Dr Rolando Espinosa K-8
A19: 0125 | B19: 21 | C19: 13 | D19: 62 | E19: 0125 0125 - Norma Butler Bossard Elem
A20: 0161 | B20: 27 | C20: 17 | D20: 63 | E20: 0161 0161 - Avocado Elementary
A21: 0201 | B21: 1 | C21: 1 | D21: 100 | E21: 0201 0201 - Banyan Elementary
A22: 0211 | B22: 5 | C22: 5 | D22: 100 | E22: 0211 0211 - Dr. Manuel C. Barreiro Elem
A23: 0231 | B23: 194 | C23: 101 | D23: 52 | E23: 0231 0231 - Aventura Waterways K-8 Center
A24: 0241 | B24: 25 | C24: 19 | D24: 76 | E24: 0241 0241 - Ruth K Broad/bay Harbor K-8
A25: 0251 | B25: 0 | C25: 0 | D25: NA | E25: 0251 0251 - Ethel Koger Beckham Elementary
A26: 0261 | B26: 91 | C26: 33 | D26: 36 | E26: 0261 0261 - Bel-Aire Elementary
A27: 0271 | B27: 2 | C27: 0 | D27: 0 | E27: 0271 0271 - Bent Tree Elementary
A28: 0311 | B28: 136 | C28: 82 | D28: 60 | E28: 0311 0311 - Goulds Elementary
A29: 0312 | B29: 5 | C29: 3 | D29: 60 | E29: 0312 0312 - Mater Gardens Academy
A30: 0321 | B30: 17 | C30: 7 | D30: 41 | E30: 0321 0321 - Biscayne Elementary
A31: 0332 | B31: 48 | C31: 27 | D31: 56 | E31: 0332 0332 - Somerset Academy(silver Palms)
... 38 more rows

Sheet FIAM-H (hidden)
D2: Satisfactory
A3: Hispanic
A5: School Name | B5: Tested | C5: Number of Satisfactory | D5: % of Satisfactory
A6: 0041 | B6: 244 | C6: 177 | D6: 73 | E6: 0041 0041 - Air Base Elementary
A7: 0070 | B7: 139 | C7: 92 | D7: 66 | E7: 0070 0070 - Coral Reef Montessori Acad Ch
A8: 0071 | B8: 862 | C8: 498 | D8: 58 | E8: 0071 0071 - Eugenia B. Thomas K-8 Center
A9: 0072 | B9: 192 | C9: 105 | D9: 55 | E9: 0072 0072 - Summerville Charter School
A10: 0073 | B10: 377 | C10: 182 | D10: 48 | E10: 0073 0073 - Mandarin Lakes K-8 Center
A11: 0081 | B11: 31 | C11: 14 | D11: 45 | E11: 0081 0081 - Lenora B. Smith Elementary
A12: 0091 | B12: 1097 | C12: 645 | D12: 59 | E12: 0091 0091 - Bob Graham Education Ctr
A13: 0092 | B13: 637 | C13: 476 | D13: 75 | E13: 0092 0092 - Norman S. Edelcup/sunny Isles
A14: 0100 | B14: 393 | C14: 274 | D14: 70 | E14: 0100 0100 - Mater Academy
A15: 0101 | B15: 46 | C15: 20 | D15: 43 | E15: 0101 0101 - Arcola Lake Elementary
A16: 0111 | B16: 258 | C16: 131 | D16: 51 | E16: 0111 0111 - Maya Angelou Elementary
A17: 0121 | B17: 389 | C17: 202 | D17: 52 | E17: 0121 0121 - Auburndale Elementary
A18: 0122 | B18: 979 | C18: 541 | D18: 55 | E18: 0122 0122 - Dr Rolando Espinosa K-8
A19: 0125 | B19: 528 | C19: 396 | D19: 75 | E19: 0125 0125 - Norma Butler Bossard Elem
A20: 0161 | B20: 108 | C20: 70 | D20: 65 | E20: 0161 0161 - Avocado Elementary
A21: 0201 | B21: 149 | C21: 96 | D21: 64 | E21: 0201 0201 - Banyan Elementary
A22: 0211 | B22: 383 | C22: 267 | D22: 70 | E22: 0211 0211 - Dr. Manuel C. Barreiro Elem
A23: 0231 | B23: 578 | C23: 365 | D23: 63 | E23: 0231 0231 - Aventura Waterways K-8 Center
A24: 0241 | B24: 444 | C24: 279 | D24: 63 | E24: 0241 0241 - Ruth K Broad/bay Harbor K-8
A25: 0251 | B25: 340 | C25: 296 | D25: 87 | E25: 0251 0251 - Ethel Koger Beckham Elementary
A26: 0261 | B26: 70 | C26: 37 | D26: 53 | E26: 0261 0261 - Bel-Aire Elementary
A27: 0271 | B27: 227 | C27: 133 | D27: 59 | E27: 0271 0271 - Bent Tree Elementary
A28: 0311 | B28: 83 | C28: 45 | D28: 54 | E28: 0311 0311 - Goulds Elementary
A29: 0312 | B29: 267 | C29: 189 | D29: 71 | E29: 0312 0312 - Mater Gardens Academy
A30: 0321 | B30: 252 | C30: 124 | D30: 49 | E30: 0321 0321 - Biscayne Elementary
A31: 0332 | B31: 532 | C31: 327 | D31: 61 | E31: 0332 0332 - Somerset Academy(silver Palms)
... 38 more rows

Sheet FIAM-A (hidden)
D2: Satisfactory
A3: Asian
A5: School Name | B5: Tested | C5: Number of Satisfactory | D5: % of Satisfactory
A6: 0041 | B6: 10 | C6: 9 | D6: 90 | E6: 0041 0041 - Air Base Elementary
A7: 0070 | B7: 5 | C7: 5 | D7: 100 | E7: 0070 0070 - Coral Reef Montessori Acad Ch
A8: 0071 | B8: 21 | C8: 18 | D8: 86 | E8: 0071 0071 - Eugenia B. Thomas K-8 Center
A9: 0072 | B9: 1 | C9: 1 | D9: 100 | E9: 0072 0072 - Summerville Charter School
A10: 0073 | B10: 1 | C10: 1 | D10: 100 | E10: 0073 0073 - Mandarin Lakes K-8 Center
A11: 0081 | B11: 0 | C11: 0 | D11: NA | E11: 0081 0081 - Lenora B. Smith Elementary
A12: 0091 | B12: 16 | C12: 13 | D12: 81 | E12: 0091 0091 - Bob Graham Education Ctr
A13: 0092 | B13: 12 | C13: 8 | D13: 67 | E13: 0092 0092 - Norman S. Edelcup/sunny Isles
A14: 0100 | B14: 0 | C14: 0 | D14: NA | E14: 0100 0100 - Mater Academy
A15: 0101 | B15: 0 | C15: 0 | D15: NA | E15: 0101 0101 - Arcola Lake Elementary
A16: 0111 | B16: 1 | C16: 1 | D16: 100 | E16: 0111 0111 - Maya Angelou Elementary
A17: 0121 | B17: 0 | C17: 0 | D17: NA | E17: 0121 0121 - Auburndale Elementary
A18: 0122 | B18: 18 | C18: 16 | D18: 89 | E18: 0122 0122 - Dr Rolando Espinosa K-8
A19: 0125 | B19: 17 | C19: 16 | D19: 94 | E19: 0125 0125 - Norma Butler Bossard Elem
A20: 0161 | B20: 0 | C20: 0 | D20: NA | E20: 0161 0161 - Avocado Elementary
A21: 0201 | B21: 0 | C21: 0 | D21: NA | E21: 0201 0201 - Banyan Elementary
A22: 0211 | B22: 14 | C22: 12 | D22: 86 | E22: 0211 0211 - Dr. Manuel C. Barreiro Elem
A23: 0231 | B23: 31 | C23: 24 | D23: 77 | E23: 0231 0231 - Aventura Waterways K-8 Center
A24: 0241 | B24: 9 | C24: 7 | D24: 78 | E24: 0241 0241 - Ruth K Broad/bay Harbor K-8
A25: 0251 | B25: 5 | C25: 3 | D25: 60 | E25: 0251 0251 - Ethel Koger Beckham Elementary
A26: 0261 | B26: 9 | C26: 4 | D26: 44 | E26: 0261 0261 - Bel-Aire Elementary
A27: 0271 | B27: 0 | C27: 0 | D27: NA | E27: 0271 0271 - Bent Tree Elementary
A28: 0311 | B28: 3 | C28: 2 | D28: 67 | E28: 0311 0311 - Goulds Elementary
A29: 0312 | B29: 3 | C29: 2 | D29: 67 | E29: 0312 0312 - Mater Gardens Academy
A30: 0321 | B30: 1 | C30: 1 | D30: 100 | E30: 0321 0321 - Biscayne Elementary
A31: 0332 | B31: 5 | C31: 5 | D31: 100 | E31: 0332 0332 - Somerset Academy(silver Palms)
... 38 more rows

Sheet FIAM-I (hidden)
D2: Satisfactory
A3: American Indian
A5: School Name | B5: Tested | C5: Number of Satisfactory | D5: % of Satisfactory
A6: 0041 | B6: 1 | C6: 1 | D6: 100 | E6: 0041 0041 - Air Base Elementary
A7: 0070 | B7: 1 | C7: 1 | D7: 100 | E7: 0070 0070 - Coral Reef Montessori Acad Ch
A8: 0071 | B8: 0 | C8: 0 | D8: NA | E8: 0071 0071 - Eugenia B. Thomas K-8 Center
A9: 0072 | B9: 2 | C9: 2 | D9: 100 | E9: 0072 0072 - Summerville Charter School
A10: 0073 | B10: 1 | C10: 0 | D10: 0 | E10: 0073 0073 - Mandarin Lakes K-8 Center
A11: 0081 | B11: 0 | C11: 0 | D11: NA | E11: 0081 0081 - Lenora B. Smith Elementary
A12: 0091 | B12: 0 | C12: 0 | D12: NA | E12: 0091 0091 - Bob Graham Education Ctr
A13: 0092 | B13: 2 | C13: 0 | D13: 0 | E13: 0092 0092 - Norman S. Edelcup/sunny Isles
A14: 0100 | B14: 0 | C14: 0 | D14: NA | E14: 0100 0100 - Mater Academy
A15: 0101 | B15: 0 | C15: 0 | D15: NA | E15: 0101 0101 - Arcola Lake Elementary
A16: 0111 | B16: 0 | C16: 0 | D16: NA | E16: 0111 0111 - Maya Angelou Elementary
A17: 0121 | B17: 0 | C17: 0 | D17: NA | E17: 0121 0121 - Auburndale Elementary
A18: 0122 | B18: 0 | C18: 0 | D18: NA | E18: 0122 0122 - Dr Rolando Espinosa K-8
A19: 0125 | B19: 0 | C19: 0 | D19: NA | E19: 0125 0125 - Norma Butler Bossard Elem
A20: 0161 | B20: 0 | C20: 0 | D20: NA | E20: 0161 0161 - Avocado Elementary
A21: 0201 | B21: 0 | C21: 0 | D21: NA | E21: 0201 0201 - Banyan Elementary
A22: 0211 | B22: 0 | C22: 0 | D22: NA | E22: 0211 0211 - Dr. Manuel C. Barreiro Elem
A23: 0231 | B23: 0 | C23: 0 | D23: NA | E23: 0231 0231 - Aventura Waterways K-8 Center
A24: 0241 | B24: 0 | C24: 0 | D24: NA | E24: 0241 0241 - Ruth K Broad/bay Harbor K-8
A25: 0251 | B25: 1 | C25: 1 | D25: 100 | E25: 0251 0251 - Ethel Koger Beckham Elementary
A26: 0261 | B26: 0 | C26: 0 | D26: NA | E26: 0261 0261 - Bel-Aire Elementary
A27: 0271 | B27: 0 | C27: 0 | D27: NA | E27: 0271 0271 - Bent Tree Elementary
A28: 0311 | B28: 0 | C28: 0 | D28: NA | E28: 0311 0311 - Goulds Elementary
A29: 0312 | B29: 0 | C29: 0 | D29: NA | E29: 0312 0312 - Mater Gardens Academy
A30: 0321 | B30: 0 | C30: 0 | D30: NA | E30: 0321 0321 - Biscayne Elementary
A31: 0332 | B31: 0 | C31: 0 | D31: NA | E31: 0332 0332 - Somerset Academy(silver Palms)
... 38 more rows

Sheet FIAM-ED (hidden)
A2: ED | D2: Satisfactory
A3: Y
A5: School Name | B5: Tested | C5: Number of Satisfactory | D5: % of Satisfactory
A6: 0041 | B6: 253 | C6: 183 | D6: 72 | E6: 0041 0041 - Air Base Elementary
A7: 0070 | B7: 72 | C7: 37 | D7: 51 | E7: 0070 0070 - Coral Reef Montessori Acad Ch
A8: 0071 | B8: 412 | C8: 201 | D8: 49 | E8: 0071 0071 - Eugenia B. Thomas K-8 Center
A9: 0072 | B9: 179 | C9: 102 | D9: 57 | E9: 0072 0072 - Summerville Charter School
A10: 0073 | B10: 613 | C10: 260 | D10: 42 | E10: 0073 0073 - Mandarin Lakes K-8 Center
A11: 0081 | B11: 156 | C11: 90 | D11: 58 | E11: 0081 0081 - Lenora B. Smith Elementary
A12: 0091 | B12: 671 | C12: 352 | D12: 52 | E12: 0091 0091 - Bob Graham Education Ctr
A13: 0092 | B13: 446 | C13: 327 | D13: 73 | E13: 0092 0092 - Norman S. Edelcup/sunny Isles
A14: 0100 | B14: 360 | C14: 253 | D14: 70 | E14: 0100 0100 - Mater Academy
A15: 0101 | B15: 184 | C15: 90 | D15: 49 | E15: 0101 0101 - Arcola Lake Elementary
A16: 0111 | B16: 282 | C16: 148 | D16: 52 | E16: 0111 0111 - Maya Angelou Elementary
A17: 0121 | B17: 353 | C17: 177 | D17: 50 | E17: 0121 0121 - Auburndale Elementary
A18: 0122 | B18: 425 | C18: 199 | D18: 47 | E18: 0122 0122 - Dr Rolando Espinosa K-8
A19: 0125 | B19: 391 | C19: 282 | D19: 72 | E19: 0125 0125 - Norma Butler Bossard Elem
A20: 0161 | B20: 138 | C20: 91 | D20: 66 | E20: 0161 0161 - Avocado Elementary
A21: 0201 | B21: 135 | C21: 88 | D21: 65 | E21: 0201 0201 - Banyan Elementary
A22: 0211 | B22: 285 | C22: 187 | D22: 66 | E22: 0211 0211 - Dr. Manuel C. Barreiro Elem
A23: 0231 | B23: 549 | C23: 307 | D23: 56 | E23: 0231 0231 - Aventura Waterways K-8 Center
A24: 0241 | B24: 333 | C24: 181 | D24: 54 | E24: 0241 0241 - Ruth K Broad/bay Harbor K-8
A25: 0251 | B25: 284 | C25: 243 | D25: 86 | E25: 0251 0251 - Ethel Koger Beckham Elementary
A26: 0261 | B26: 173 | C26: 75 | D26: 43 | E26: 0261 0261 - Bel-Aire Elementary
A27: 0271 | B27: 199 | C27: 112 | D27: 56 | E27: 0271 0271 - Bent Tree Elementary
A28: 0311 | B28: 234 | C28: 133 | D28: 57 | E28: 0311 0311 - Goulds Elementary
A29: 0312 | B29: 161 | C29: 114 | D29: 71 | E29: 0312 0312 - Mater Gardens Academy
A30: 0321 | B30: 256 | C30: 131 | D30: 51 | E30: 0321 0321 - Biscayne Elementary
A31: 0332 | B31: 504 | C31: 307 | D31: 61 | E31: 0332 0332 - Somerset Academy(silver Palms)
... 38 more rows

Sheet FIAM-ELL (hidden)
A2: ELL | D2: Satisfactory
A3: Y
A5: School Name | B5: Tested | C5: Number of Satisfactory | D5: % of Satisfactory
A6: 0041 | B6: 41 | C6: 22 | D6: 54 | E6: 0041 0041 - Air Base Elementary
A7: 0070 | B7: 15 | C7: 7 | D7: 47 | E7: 0070 0070 - Coral Reef Montessori Acad Ch
A8: 0071 | B8: 356 | C8: 162 | D8: 46 | E8: 0071 0071 - Eugenia B. Thomas K-8 Center
A9: 0072 | B9: 76 | C9: 38 | D9: 50 | E9: 0072 0072 - Summerville Charter School
A10: 0073 | B10: 173 | C10: 66 | D10: 38 | E10: 0073 0073 - Mandarin Lakes K-8 Center
A11: 0081 | B11: 23 | C11: 8 | D11: 35 | E11: 0081 0081 - Lenora B. Smith Elementary
A12: 0091 | B12: 291 | C12: 123 | D12: 42 | E12: 0091 0091 - Bob Graham Education Ctr
A13: 0092 | B13: 344 | C13: 242 | D13: 70 | E13: 0092 0092 - Norman S. Edelcup/sunny Isles
A14: 0100 | B14: 207 | C14: 136 | D14: 66 | E14: 0100 0100 - Mater Academy
A15: 0101 | B15: 40 | C15: 14 | D15: 35 | E15: 0101 0101 - Arcola Lake Elementary
A16: 0111 | B16: 178 | C16: 75 | D16: 42 | E16: 0111 0111 - Maya Angelou Elementary
A17: 0121 | B17: 259 | C17: 116 | D17: 45 | E17: 0121 0121 - Auburndale Elementary
A18: 0122 | B18: 451 | C18: 202 | D18: 45 | E18: 0122 0122 - Dr Rolando Espinosa K-8
A19: 0125 | B19: 195 | C19: 133 | D19: 68 | E19: 0125 0125 - Norma Butler Bossard Elem
A20: 0161 | B20: 78 | C20: 51 | D20: 65 | E20: 0161 0161 - Avocado Elementary
A21: 0201 | B21: 69 | C21: 29 | D21: 42 | E21: 0201 0201 - Banyan Elementary
A22: 0211 | B22: 148 | C22: 79 | D22: 53 | E22: 0211 0211 - Dr. Manuel C. Barreiro Elem
A23: 0231 | B23: 264 | C23: 125 | D23: 47 | E23: 0231 0231 - Aventura Waterways K-8 Center
A24: 0241 | B24: 178 | C24: 83 | D24: 47 | E24: 0241 0241 - Ruth K Broad/bay Harbor K-8
A25: 0251 | B25: 126 | C25: 99 | D25: 79 | E25: 0251 0251 - Ethel Koger Beckham Elementary
A26: 0261 | B26: 47 | C26: 21 | D26: 45 | E26: 0261 0261 - Bel-Aire Elementary
A27: 0271 | B27: 109 | C27: 60 | D27: 55 | E27: 0271 0271 - Bent Tree Elementary
A28: 0311 | B28: 37 | C28: 18 | D28: 49 | E28: 0311 0311 - Goulds Elementary
A29: 0312 | B29: 54 | C29: 33 | D29: 61 | E29: 0312 0312 - Mater Gardens Academy
A30: 0321 | B30: 169 | C30: 76 | D30: 45 | E30: 0321 0321 - Biscayne Elementary
A31: 0332 | B31: 141 | C31: 67 | D31: 48 | E31: 0332 0332 - Somerset Academy(silver Palms)
... 38 more rows

Sheet FIAM-SWD (hidden)
A2: SWD | D2: Satisfactory
A3: Y
A5: School Name | B5: Tested | C5: Number of Satisfactory | D5: % of Satisfactory
A6: 0041 | B6: 14 | C6: 4 | D6: 29 | E6: 0041 0041 - Air Base Elementary
A7: 0070 | B7: 27 | C7: 6 | D7: 22 | E7: 0070 0070 - Coral Reef Montessori Acad Ch
A8: 0071 | B8: 46 | C8: 12 | D8: 26 | E8: 0071 0071 - Eugenia B. Thomas K-8 Center
A9: 0072 | B9: 12 | C9: 4 | D9: 33 | E9: 0072 0072 - Summerville Charter School
A10: 0073 | B10: 88 | C10: 16 | D10: 18 | E10: 0073 0073 - Mandarin Lakes K-8 Center
A11: 0081 | B11: 22 | C11: 12 | D11: 55 | E11: 0081 0081 - Lenora B. Smith Elementary
A12: 0091 | B12: 83 | C12: 14 | D12: 17 | E12: 0091 0091 - Bob Graham Education Ctr
A13: 0092 | B13: 60 | C13: 34 | D13: 57 | E13: 0092 0092 - Norman S. Edelcup/sunny Isles
A14: 0100 | B14: 10 | C14: 8 | D14: 80 | E14: 0100 0100 - Mater Academy
A15: 0101 | B15: 18 | C15: 3 | D15: 17 | E15: 0101 0101 - Arcola Lake Elementary
A16: 0111 | B16: 34 | C16: 6 | D16: 18 | E16: 0111 0111 - Maya Angelou Elementary
A17: 0121 | B17: 33 | C17: 4 | D17: 12 | E17: 0121 0121 - Auburndale Elementary
A18: 0122 | B18: 41 | C18: 13 | D18: 32 | E18: 0122 0122 - Dr Rolando Espinosa K-8
A19: 0125 | B19: 59 | C19: 39 | D19: 66 | E19: 0125 0125 - Norma Butler Bossard Elem
A20: 0161 | B20: 13 | C20: 3 | D20: 23 | E20: 0161 0161 - Avocado Elementary
A21: 0201 | B21: 23 | C21: 8 | D21: 35 | E21: 0201 0201 - Banyan Elementary
A22: 0211 | B22: 31 | C22: 7 | D22: 23 | E22: 0211 0211 - Dr. Manuel C. Barreiro Elem
A23: 0231 | B23: 64 | C23: 27 | D23: 42 | E23: 0231 0231 - Aventura Waterways K-8 Center
A24: 0241 | B24: 47 | C24: 23 | D24: 49 | E24: 0241 0241 - Ruth K Broad/bay Harbor K-8
A25: 0251 | B25: 46 | C25: 30 | D25: 65 | E25: 0251 0251 - Ethel Koger Beckham Elementary
A26: 0261 | B26: 20 | C26: 3 | D26: 15 | E26: 0261 0261 - Bel-Aire Elementary
A27: 0271 | B27: 32 | C27: 7 | D27: 22 | E27: 0271 0271 - Bent Tree Elementary
A28: 0311 | B28: 51 | C28: 14 | D28: 27 | E28: 0311 0311 - Goulds Elementary
A29: 0312 | B29: 2 | C29: 1 | D29: 50 | E29: 0312 0312 - Mater Gardens Academy
A30: 0321 | B30: 20 | C30: 9 | D30: 45 | E30: 0321 0321 - Biscayne Elementary
A31: 0332 | B31: 23 | C31: 11 | D31: 48 | E31: 0332 0332 - Somerset Academy(silver Palms)
... 38 more rows

Sheet WIAM-ALL (hidden)
D2: Satisfactory
A5: School Name | B5: Tested | C5: Number of Satisfactory | D5: % of Satisfactory
A6: 0041 | B6: 384 | C6: 250 | D6: 65 | E6: 0041 0041 - Air Base Elementary
A7: 0070 | B7: 212 | C7: 121 | D7: 57 | E7: 0070 0070 - Coral Reef Montessori Acad Ch
A8: 0071 | B8: 1036 | C8: 549 | D8: 53 | E8: 0071 0071 - Eugenia B. Thomas K-8 Center
A9: 0072 | B9: 236 | C9: 153 | D9: 65 | E9: 0072 0072 - Summerville Charter School
A10: 0073 | B10: 648 | C10: 203 | D10: 31 | E10: 0073 0073 - Mandarin Lakes K-8 Center
A11: 0081 | B11: 161 | C11: 102 | D11: 63 | E11: 0081 0081 - Lenora B. Smith Elementary
A12: 0091 | B12: 1186 | C12: 640 | D12: 54 | E12: 0091 0091 - Bob Graham Education Ctr
A13: 0092 | B13: 1226 | C13: 984 | D13: 80 | E13: 0092 0092 - Norman S. Edelcup/sunny Isles
A14: 0100 | B14: 401 | C14: 245 | D14: 61 | E14: 0100 0100 - Mater Academy
A15: 0101 | B15: 204 | C15: 117 | D15: 57 | E15: 0101 0101 - Arcola Lake Elementary
A16: 0102 | B16: 236 | C16: 91 | D16: 39 | E16: 0102 0102 - Miami Community Charter School
A17: 0111 | B17: 298 | C17: 181 | D17: 61 | E17: 0111 0111 - Maya Angelou Elementary
A18: 0121 | B18: 401 | C18: 209 | D18: 52 | E18: 0121 0121 - Auburndale Elementary
A19: 0122 | B19: 1082 | C19: 577 | D19: 53 | E19: 0122 0122 - Dr Rolando Espinosa K-8
A20: 0125 | B20: 623 | C20: 406 | D20: 65 | E20: 0125 0125 - Norma Butler Bossard Elem
A21: 0161 | B21: 148 | C21: 60 | D21: 41 | E21: 0161 0161 - Avocado Elementary
A22: 0201 | B22: 157 | C22: 118 | D22: 75 | E22: 0201 0201 - Banyan Elementary
A23: 0211 | B23: 415 | C23: 260 | D23: 63 | E23: 0211 0211 - Dr. Manuel C. Barreiro Elem
A24: 0231 | B24: 1121 | C24: 644 | D24: 57 | E24: 0231 0231 - Aventura Waterways K-8 Center
A25: 0241 | B25: 856 | C25: 580 | D25: 68 | E25: 0241 0241 - Ruth K Broad/bay Harbor K-8
A26: 0251 | B26: 359 | C26: 301 | D26: 84 | E26: 0251 0251 - Ethel Koger Beckham Elementary
A27: 0261 | B27: 184 | C27: 83 | D27: 45 | E27: 0261 0261 - Bel-Aire Elementary
A28: 0271 | B28: 240 | C28: 143 | D28: 60 | E28: 0271 0271 - Bent Tree Elementary
A29: 0311 | B29: 258 | C29: 174 | D29: 67 | E29: 0311 0311 - Goulds Elementary
A30: 0312 | B30: 289 | C30: 209 | D30: 72 | E30: 0312 0312 - Mater Gardens Academy
A31: 0321 | B31: 278 | C31: 132 | D31: 47 | E31: 0321 0321 - Biscayne Elementary
... 38 more rows

Sheet WIAM-W (hidden)
D2: Satisfactory
A3: White
A5: School Name | B5: Tested | C5: Number of Satisfactory | D5: % of Satisfactory
A6: 0041 | B6: 55 | C6: 34 | D6: 62 | E6: 0041 0041 - Air Base Elementary
A7: 0070 | B7: 29 | C7: 16 | D7: 55 | E7: 0070 0070 - Coral Reef Montessori Acad Ch
A8: 0071 | B8: 79 | C8: 48 | D8: 61 | E8: 0071 0071 - Eugenia B. Thomas K-8 Center
A9: 0072 | B9: 7 | C9: 5 | D9: 71 | E9: 0072 0072 - Summerville Charter School
A10: 0073 | B10: 21 | C10: 9 | D10: 43 | E10: 0073 0073 - Mandarin Lakes K-8 Center
A11: 0081 | B11: 1 | C11: 1 | D11: 100 | E11: 0081 0081 - Lenora B. Smith Elementary
A12: 0091 | B12: 65 | C12: 38 | D12: 58 | E12: 0091 0091 - Bob Graham Education Ctr
A13: 0092 | B13: 532 | C13: 455 | D13: 86 | E13: 0092 0092 - Norman S. Edelcup/sunny Isles
A14: 0100 | B14: 5 | C14: 3 | D14: 60 | E14: 0100 0100 - Mater Academy
A15: 0101 | B15: 0 | C15: 0 | D15: NA | E15: 0101 0101 - Arcola Lake Elementary
A16: 0102 | B16: 2 | C16: 1 | D16: 50 | E16: 0102 0102 - Miami Community Charter School
A17: 0111 | B17: 1 | C17: 0 | D17: 0 | E17: 0111 0111 - Maya Angelou Elementary
A18: 0121 | B18: 4 | C18: 2 | D18: 50 | E18: 0121 0121 - Auburndale Elementary
A19: 0122 | B19: 69 | C19: 32 | D19: 46 | E19: 0122 0122 - Dr Rolando Espinosa K-8
A20: 0125 | B20: 48 | C20: 31 | D20: 65 | E20: 0125 0125 - Norma Butler Bossard Elem
A21: 0161 | B21: 11 | C21: 7 | D21: 64 | E21: 0161 0161 - Avocado Elementary
A22: 0201 | B22: 9 | C22: 6 | D22: 67 | E22: 0201 0201 - Banyan Elementary
A23: 0211 | B23: 16 | C23: 9 | D23: 56 | E23: 0211 0211 - Dr. Manuel C. Barreiro Elem
A24: 0231 | B24: 320 | C24: 204 | D24: 64 | E24: 0231 0231 - Aventura Waterways K-8 Center
A25: 0241 | B25: 346 | C25: 256 | D25: 74 | E25: 0241 0241 - Ruth K Broad/bay Harbor K-8
A26: 0251 | B26: 11 | C26: 9 | D26: 82 | E26: 0251 0251 - Ethel Koger Beckham Elementary
A27: 0261 | B27: 11 | C27: 6 | D27: 55 | E27: 0261 0261 - Bel-Aire Elementary
A28: 0271 | B28: 11 | C28: 8 | D28: 73 | E28: 0271 0271 - Bent Tree Elementary
A29: 0311 | B29: 3 | C29: 0 | D29: 0 | E29: 0311 0311 - Goulds Elementary
A30: 0312 | B30: 11 | C30: 6 | D30: 55 | E30: 0312 0312 - Mater Gardens Academy
A31: 0321 | B31: 19 | C31: 10 | D31: 53 | E31: 0321 0321 - Biscayne Elementary
... 38 more rows

Sheet WIAM-B (hidden)
D2: Satisfactory
A3: Black
A5: School Name | B5: Tested | C5: Number of Satisfactory | D5: % of Satisfactory
A6: 0041 | B6: 63 | C6: 43 | D6: 68 | E6: 0041 0041 - Air Base Elementary
A7: 0070 | B7: 44 | C7: 17 | D7: 39 | E7: 0070 0070 - Coral Reef Montessori Acad Ch
A8: 0071 | B8: 24 | C8: 10 | D8: 42 | E8: 0071 0071 - Eugenia B. Thomas K-8 Center
A9: 0072 | B9: 19 | C9: 12 | D9: 63 | E9: 0072 0072 - Summerville Charter School
A10: 0073 | B10: 242 | C10: 58 | D10: 24 | E10: 0073 0073 - Mandarin Lakes K-8 Center
A11: 0081 | B11: 132 | C11: 83 | D11: 63 | E11: 0081 0081 - Lenora B. Smith Elementary
A12: 0091 | B12: 36 | C12: 13 | D12: 36 | E12: 0091 0091 - Bob Graham Education Ctr
A13: 0092 | B13: 22 | C13: 19 | D13: 86 | E13: 0092 0092 - Norman S. Edelcup/sunny Isles
A14: 0100 | B14: 2 | C14: 2 | D14: 100 | E14: 0100 0100 - Mater Academy
A15: 0101 | B15: 150 | C15: 88 | D15: 59 | E15: 0101 0101 - Arcola Lake Elementary
A16: 0102 | B16: 21 | C16: 5 | D16: 24 | E16: 0102 0102 - Miami Community Charter School
A17: 0111 | B17: 26 | C17: 20 | D17: 77 | E17: 0111 0111 - Maya Angelou Elementary
A18: 0121 | B18: 1 | C18: 0 | D18: 0 | E18: 0121 0121 - Auburndale Elementary
A19: 0122 | B19: 6 | C19: 4 | D19: 67 | E19: 0122 0122 - Dr Rolando Espinosa K-8
A20: 0125 | B20: 19 | C20: 10 | D20: 53 | E20: 0125 0125 - Norma Butler Bossard Elem
A21: 0161 | B21: 25 | C21: 9 | D21: 36 | E21: 0161 0161 - Avocado Elementary
A22: 0201 | B22: 1 | C22: 0 | D22: 0 | E22: 0201 0201 - Banyan Elementary
A23: 0211 | B23: 5 | C23: 4 | D23: 80 | E23: 0211 0211 - Dr. Manuel C. Barreiro Elem
A24: 0231 | B24: 185 | C24: 89 | D24: 48 | E24: 0231 0231 - Aventura Waterways K-8 Center
A25: 0241 | B25: 27 | C25: 19 | D25: 70 | E25: 0241 0241 - Ruth K Broad/bay Harbor K-8
A26: 0251 | B26: 0 | C26: 0 | D26: NA | E26: 0251 0251 - Ethel Koger Beckham Elementary
A27: 0261 | B27: 94 | C27: 36 | D27: 38 | E27: 0261 0261 - Bel-Aire Elementary
A28: 0271 | B28: 2 | C28: 1 | D28: 50 | E28: 0271 0271 - Bent Tree Elementary
A29: 0311 | B29: 137 | C29: 98 | D29: 72 | E29: 0311 0311 - Goulds Elementary
A30: 0312 | B30: 5 | C30: 2 | D30: 40 | E30: 0312 0312 - Mater Gardens Academy
A31: 0321 | B31: 13 | C31: 7 | D31: 54 | E31: 0321 0321 - Biscayne Elementary
... 38 more rows

Sheet WIAM-H (hidden)
D2: Satisfactory
A3: Hispanic
A5: School Name | B5: Tested | C5: Number of Satisfactory | D5: % of Satisfactory
A6: 0041 | B6: 247 | C6: 159 | D6: 64 | E6: 0041 0041 - Air Base Elementary
A7: 0070 | B7: 129 | C7: 79 | D7: 61 | E7: 0070 0070 - Coral Reef Montessori Acad Ch
A8: 0071 | B8: 907 | C8: 469 | D8: 52 | E8: 0071 0071 - Eugenia B. Thomas K-8 Center
A9: 0072 | B9: 195 | C9: 123 | D9: 63 | E9: 0072 0072 - Summerville Charter School
A10: 0073 | B10: 379 | C10: 133 | D10: 35 | E10: 0073 0073 - Mandarin Lakes K-8 Center
A11: 0081 | B11: 28 | C11: 18 | D11: 64 | E11: 0081 0081 - Lenora B. Smith Elementary
A12: 0091 | B12: 1063 | C12: 572 | D12: 54 | E12: 0091 0091 - Bob Graham Education Ctr
A13: 0092 | B13: 649 | C13: 495 | D13: 76 | E13: 0092 0092 - Norman S. Edelcup/sunny Isles
A14: 0100 | B14: 394 | C14: 240 | D14: 61 | E14: 0100 0100 - Mater Academy
A15: 0101 | B15: 52 | C15: 28 | D15: 54 | E15: 0101 0101 - Arcola Lake Elementary
A16: 0102 | B16: 210 | C16: 83 | D16: 40 | E16: 0102 0102 - Miami Community Charter School
A17: 0111 | B17: 270 | C17: 160 | D17: 59 | E17: 0111 0111 - Maya Angelou Elementary
A18: 0121 | B18: 395 | C18: 207 | D18: 52 | E18: 0121 0121 - Auburndale Elementary
A19: 0122 | B19: 987 | C19: 527 | D19: 53 | E19: 0122 0122 - Dr Rolando Espinosa K-8
A20: 0125 | B20: 531 | C20: 342 | D20: 64 | E20: 0125 0125 - Norma Butler Bossard Elem
A21: 0161 | B21: 112 | C21: 44 | D21: 39 | E21: 0161 0161 - Avocado Elementary
A22: 0201 | B22: 147 | C22: 112 | D22: 76 | E22: 0201 0201 - Banyan Elementary
A23: 0211 | B23: 375 | C23: 230 | D23: 61 | E23: 0211 0211 - Dr. Manuel C. Barreiro Elem
A24: 0231 | B24: 570 | C24: 322 | D24: 56 | E24: 0231 0231 - Aventura Waterways K-8 Center
A25: 0241 | B25: 469 | C25: 293 | D25: 62 | E25: 0241 0241 - Ruth K Broad/bay Harbor K-8
A26: 0251 | B26: 342 | C26: 287 | D26: 84 | E26: 0251 0251 - Ethel Koger Beckham Elementary
A27: 0261 | B27: 69 | C27: 32 | D27: 46 | E27: 0261 0261 - Bel-Aire Elementary
A28: 0271 | B28: 226 | C28: 133 | D28: 59 | E28: 0271 0271 - Bent Tree Elementary
A29: 0311 | B29: 92 | C29: 60 | D29: 65 | E29: 0311 0311 - Goulds Elementary
A30: 0312 | B30: 270 | C30: 199 | D30: 74 | E30: 0312 0312 - Mater Gardens Academy
A31: 0321 | B31: 245 | C31: 114 | D31: 47 | E31: 0321 0321 - Biscayne Elementary
... 38 more rows

Sheet WIAM-A (hidden)
D2: Satisfactory
A3: Asian
A5: School Name | B5: Tested | C5: Number of Satisfactory | D5: % of Satisfactory
A6: 0041 | B6: 10 | C6: 8 | D6: 80 | E6: 0041 0041 - Air Base Elementary
A7: 0070 | B7: 4 | C7: 3 | D7: 75 | E7: 0070 0070 - Coral Reef Montessori Acad Ch
A8: 0071 | B8: 23 | C8: 20 | D8: 87 | E8: 0071 0071 - Eugenia B. Thomas K-8 Center
A9: 0072 | B9: 1 | C9: 1 | D9: 100 | E9: 0072 0072 - Summerville Charter School
A10: 0073 | B10: 1 | C10: 1 | D10: 100 | E10: 0073 0073 - Mandarin Lakes K-8 Center
A11: 0081 | B11: 0 | C11: 0 | D11: NA | E11: 0081 0081 - Lenora B. Smith Elementary
A12: 0091 | B12: 16 | C12: 12 | D12: 75 | E12: 0091 0091 - Bob Graham Education Ctr
A13: 0092 | B13: 12 | C13: 8 | D13: 67 | E13: 0092 0092 - Norman S. Edelcup/sunny Isles
A14: 0100 | B14: 0 | C14: 0 | D14: NA | E14: 0100 0100 - Mater Academy
A15: 0101 | B15: 0 | C15: 0 | D15: NA | E15: 0101 0101 - Arcola Lake Elementary
A16: 0102 | B16: 2 | C16: 2 | D16: 100 | E16: 0102 0102 - Miami Community Charter School
A17: 0111 | B17: 1 | C17: 1 | D17: 100 | E17: 0111 0111 - Maya Angelou Elementary
A18: 0121 | B18: 0 | C18: 0 | D18: NA | E18: 0121 0121 - Auburndale Elementary
A19: 0122 | B19: 18 | C19: 14 | D19: 78 | E19: 0122 0122 - Dr Rolando Espinosa K-8
A20: 0125 | B20: 15 | C20: 13 | D20: 87 | E20: 0125 0125 - Norma Butler Bossard Elem
A21: 0161 | B21: 0 | C21: 0 | D21: NA | E21: 0161 0161 - Avocado Elementary
A22: 0201 | B22: 0 | C22: 0 | D22: NA | E22: 0201 0201 - Banyan Elementary
A23: 0211 | B23: 14 | C23: 13 | D23: 93 | E23: 0211 0211 - Dr. Manuel C. Barreiro Elem
A24: 0231 | B24: 32 | C24: 22 | D24: 69 | E24: 0231 0231 - Aventura Waterways K-8 Center
A25: 0241 | B25: 10 | C25: 9 | D25: 90 | E25: 0241 0241 - Ruth K Broad/bay Harbor K-8
A26: 0251 | B26: 5 | C26: 4 | D26: 80 | E26: 0251 0251 - Ethel Koger Beckham Elementary
A27: 0261 | B27: 9 | C27: 8 | D27: 89 | E27: 0261 0261 - Bel-Aire Elementary
A28: 0271 | B28: 0 | C28: 0 | D28: NA | E28: 0271 0271 - Bent Tree Elementary
A29: 0311 | B29: 3 | C29: 2 | D29: 67 | E29: 0311 0311 - Goulds Elementary
A30: 0312 | B30: 3 | C30: 2 | D30: 67 | E30: 0312 0312 - Mater Gardens Academy
A31: 0321 | B31: 1 | C31: 1 | D31: 100 | E31: 0321 0321 - Biscayne Elementary
... 38 more rows

Sheet WIAM-I (hidden)
D2: Satisfactory
A3: American Indian
A5: School Name | B5: Tested | C5: Number of Satisfactory | D5: % of Satisfactory
A6: 0041 | B6: 1 | C6: 1 | D6: 100 | E6: 0041 0041 - Air Base Elementary
A7: 0070 | B7: 1 | C7: 1 | D7: 100 | E7: 0070 0070 - Coral Reef Montessori Acad Ch
A8: 0071 | B8: 0 | C8: 0 | D8: NA | E8: 0071 0071 - Eugenia B. Thomas K-8 Center
A9: 0072 | B9: 2 | C9: 2 | D9: 100 | E9: 0072 0072 - Summerville Charter School
A10: 0073 | B10: 1 | C10: 0 | D10: 0 | E10: 0073 0073 - Mandarin Lakes K-8 Center
A11: 0081 | B11: 0 | C11: 0 | D11: NA | E11: 0081 0081 - Lenora B. Smith Elementary
A12: 0091 | B12: 0 | C12: 0 | D12: NA | E12: 0091 0091 - Bob Graham Education Ctr
A13: 0092 | B13: 2 | C13: 1 | D13: 50 | E13: 0092 0092 - Norman S. Edelcup/sunny Isles
A14: 0100 | B14: 0 | C14: 0 | D14: NA | E14: 0100 0100 - Mater Academy
A15: 0101 | B15: 0 | C15: 0 | D15: NA | E15: 0101 0101 - Arcola Lake Elementary
A16: 0102 | B16: 0 | C16: 0 | D16: NA | E16: 0102 0102 - Miami Community Charter School
A17: 0111 | B17: 0 | C17: 0 | D17: NA | E17: 0111 0111 - Maya Angelou Elementary
A18: 0121 | B18: 0 | C18: 0 | D18: NA | E18: 0121 0121 - Auburndale Elementary
A19: 0122 | B19: 0 | C19: 0 | D19: NA | E19: 0122 0122 - Dr Rolando Espinosa K-8
A20: 0125 | B20: 0 | C20: 0 | D20: NA | E20: 0125 0125 - Norma Butler Bossard Elem
A21: 0161 | B21: 0 | C21: 0 | D21: NA | E21: 0161 0161 - Avocado Elementary
A22: 0201 | B22: 0 | C22: 0 | D22: NA | E22: 0201 0201 - Banyan Elementary
A23: 0211 | B23: 0 | C23: 0 | D23: NA | E23: 0211 0211 - Dr. Manuel C. Barreiro Elem
A24: 0231 | B24: 0 | C24: 0 | D24: NA | E24: 0231 0231 - Aventura Waterways K-8 Center
A25: 0241 | B25: 0 | C25: 0 | D25: NA | E25: 0241 0241 - Ruth K Broad/bay Harbor K-8
A26: 0251 | B26: 1 | C26: 1 | D26: 100 | E26: 0251 0251 - Ethel Koger Beckham Elementary
A27: 0261 | B27: 0 | C27: 0 | D27: NA | E27: 0261 0261 - Bel-Aire Elementary
A28: 0271 | B28: 0 | C28: 0 | D28: NA | E28: 0271 0271 - Bent Tree Elementary
A29: 0311 | B29: 0 | C29: 0 | D29: NA | E29: 0311 0311 - Goulds Elementary
A30: 0312 | B30: 0 | C30: 0 | D30: NA | E30: 0312 0312 - Mater Gardens Academy
A31: 0321 | B31: 0 | C31: 0 | D31: NA | E31: 0321 0321 - Biscayne Elementary
... 38 more rows

Sheet WIAM-ED (hidden)
A2: ED | D2: Satisfactory
A3: Y
A5: School Name | B5: Tested | C5: Number of Satisfactory | D5: % of Satisfactory
A6: 0041 | B6: 257 | C6: 164 | D6: 64 | E6: 0041 0041 - Air Base Elementary
A7: 0070 | B7: 71 | C7: 35 | D7: 49 | E7: 0070 0070 - Coral Reef Montessori Acad Ch
A8: 0071 | B8: 437 | C8: 186 | D8: 43 | E8: 0071 0071 - Eugenia B. Thomas K-8 Center
A9: 0072 | B9: 183 | C9: 123 | D9: 67 | E9: 0072 0072 - Summerville Charter School
A10: 0073 | B10: 611 | C10: 188 | D10: 31 | E10: 0073 0073 - Mandarin Lakes K-8 Center
A11: 0081 | B11: 159 | C11: 100 | D11: 63 | E11: 0081 0081 - Lenora B. Smith Elementary
A12: 0091 | B12: 658 | C12: 301 | D12: 46 | E12: 0091 0091 - Bob Graham Education Ctr
A13: 0092 | B13: 464 | C13: 349 | D13: 75 | E13: 0092 0092 - Norman S. Edelcup/sunny Isles
A14: 0100 | B14: 365 | C14: 220 | D14: 60 | E14: 0100 0100 - Mater Academy
A15: 0101 | B15: 199 | C15: 112 | D15: 56 | E15: 0101 0101 - Arcola Lake Elementary
A16: 0102 | B16: 216 | C16: 86 | D16: 40 | E16: 0102 0102 - Miami Community Charter School
A17: 0111 | B17: 296 | C17: 180 | D17: 61 | E17: 0111 0111 - Maya Angelou Elementary
A18: 0121 | B18: 361 | C18: 181 | D18: 50 | E18: 0121 0121 - Auburndale Elementary
A19: 0122 | B19: 431 | C19: 195 | D19: 45 | E19: 0122 0122 - Dr Rolando Espinosa K-8
A20: 0125 | B20: 400 | C20: 249 | D20: 62 | E20: 0125 0125 - Norma Butler Bossard Elem
A21: 0161 | B21: 140 | C21: 58 | D21: 41 | E21: 0161 0161 - Avocado Elementary
A22: 0201 | B22: 134 | C22: 102 | D22: 76 | E22: 0201 0201 - Banyan Elementary
A23: 0211 | B23: 279 | C23: 164 | D23: 59 | E23: 0211 0211 - Dr. Manuel C. Barreiro Elem
A24: 0231 | B24: 545 | C24: 281 | D24: 52 | E24: 0231 0231 - Aventura Waterways K-8 Center
A25: 0241 | B25: 358 | C25: 190 | D25: 53 | E25: 0241 0241 - Ruth K Broad/bay Harbor K-8
A26: 0251 | B26: 287 | C26: 240 | D26: 84 | E26: 0251 0251 - Ethel Koger Beckham Elementary
A27: 0261 | B27: 178 | C27: 81 | D27: 46 | E27: 0261 0261 - Bel-Aire Elementary
A28: 0271 | B28: 197 | C28: 120 | D28: 61 | E28: 0271 0271 - Bent Tree Elementary
A29: 0311 | B29: 246 | C29: 166 | D29: 67 | E29: 0311 0311 - Goulds Elementary
A30: 0312 | B30: 164 | C30: 120 | D30: 73 | E30: 0312 0312 - Mater Gardens Academy
A31: 0321 | B31: 252 | C31: 122 | D31: 48 | E31: 0321 0321 - Biscayne Elementary
... 38 more rows

Sheet WIAM-ELL (hidden)
A2: ELL | D2: Satisfactory
A3: Y
A5: School Name | B5: Tested | C5: Number of Satisfactory | D5: % of Satisfactory
A6: 0041 | B6: 42 | C6: 20 | D6: 48 | E6: 0041 0041 - Air Base Elementary
A7: 0070 | B7: 15 | C7: 8 | D7: 53 | E7: 0070 0070 - Coral Reef Montessori Acad Ch
A8: 0071 | B8: 386 | C8: 139 | D8: 36 | E8: 0071 0071 - Eugenia B. Thomas K-8 Center
A9: 0072 | B9: 78 | C9: 50 | D9: 64 | E9: 0072 0072 - Summerville Charter School
A10: 0073 | B10: 181 | C10: 52 | D10: 29 | E10: 0073 0073 - Mandarin Lakes K-8 Center
A11: 0081 | B11: 24 | C11: 14 | D11: 58 | E11: 0081 0081 - Lenora B. Smith Elementary
A12: 0091 | B12: 290 | C12: 109 | D12: 38 | E12: 0091 0091 - Bob Graham Education Ctr
A13: 0092 | B13: 366 | C13: 249 | D13: 68 | E13: 0092 0092 - Norman S. Edelcup/sunny Isles
A14: 0100 | B14: 210 | C14: 114 | D14: 54 | E14: 0100 0100 - Mater Academy
A15: 0101 | B15: 48 | C15: 19 | D15: 40 | E15: 0101 0101 - Arcola Lake Elementary
A16: 0102 | B16: 140 | C16: 50 | D16: 36 | E16: 0102 0102 - Miami Community Charter School
A17: 0111 | B17: 186 | C17: 97 | D17: 52 | E17: 0111 0111 - Maya Angelou Elementary
A18: 0121 | B18: 261 | C18: 117 | D18: 45 | E18: 0121 0121 - Auburndale Elementary
A19: 0122 | B19: 476 | C19: 187 | D19: 39 | E19: 0122 0122 - Dr Rolando Espinosa K-8
A20: 0125 | B20: 203 | C20: 114 | D20: 56 | E20: 0125 0125 - Norma Butler Bossard Elem
A21: 0161 | B21: 84 | C21: 32 | D21: 38 | E21: 0161 0161 - Avocado Elementary
A22: 0201 | B22: 66 | C22: 42 | D22: 64 | E22: 0201 0201 - Banyan Elementary
A23: 0211 | B23: 143 | C23: 63 | D23: 44 | E23: 0211 0211 - Dr. Manuel C. Barreiro Elem
A24: 0231 | B24: 262 | C24: 100 | D24: 38 | E24: 0231 0231 - Aventura Waterways K-8 Center
A25: 0241 | B25: 184 | C25: 92 | D25: 50 | E25: 0241 0241 - Ruth K Broad/bay Harbor K-8
A26: 0251 | B26: 125 | C26: 102 | D26: 82 | E26: 0251 0251 - Ethel Koger Beckham Elementary
A27: 0261 | B27: 49 | C27: 22 | D27: 45 | E27: 0261 0261 - Bel-Aire Elementary
A28: 0271 | B28: 110 | C28: 62 | D28: 56 | E28: 0271 0271 - Bent Tree Elementary
A29: 0311 | B29: 40 | C29: 22 | D29: 55 | E29: 0311 0311 - Goulds Elementary
A30: 0312 | B30: 54 | C30: 37 | D30: 69 | E30: 0312 0312 - Mater Gardens Academy
A31: 0321 | B31: 165 | C31: 70 | D31: 42 | E31: 0321 0321 - Biscayne Elementary
... 38 more rows

Sheet WIAM-SWD (hidden)
A2: SWD | D2: Satisfactory
A3: Y
A5: School Name | B5: Tested | C5: Number of Satisfactory | D5: % of Satisfactory
A6: 0041 | B6: 14 | C6: 4 | D6: 29 | E6: 0041 0041 - Air Base Elementary
A7: 0070 | B7: 24 | C7: 4 | D7: 17 | E7: 0070 0070 - Coral Reef Montessori Acad Ch
A8: 0071 | B8: 52 | C8: 8 | D8: 15 | E8: 0071 0071 - Eugenia B. Thomas K-8 Center
A9: 0072 | B9: 10 | C9: 5 | D9: 50 | E9: 0072 0072 - Summerville Charter School
A10: 0073 | B10: 90 | C10: 13 | D10: 14 | E10: 0073 0073 - Mandarin Lakes K-8 Center
A11: 0081 | B11: 20 | C11: 11 | D11: 55 | E11: 0081 0081 - Lenora B. Smith Elementary
A12: 0091 | B12: 83 | C12: 9 | D12: 11 | E12: 0091 0091 - Bob Graham Education Ctr
A13: 0092 | B13: 62 | C13: 33 | D13: 53 | E13: 0092 0092 - Norman S. Edelcup/sunny Isles
A14: 0100 | B14: 10 | C14: 6 | D14: 60 | E14: 0100 0100 - Mater Academy
A15: 0101 | B15: 19 | C15: 3 | D15: 16 | E15: 0101 0101 - Arcola Lake Elementary
A16: 0102 | B16: 7 | C16: 3 | D16: 43 | E16: 0102 0102 - Miami Community Charter School
A17: 0111 | B17: 34 | C17: 8 | D17: 24 | E17: 0111 0111 - Maya Angelou Elementary
A18: 0121 | B18: 30 | C18: 4 | D18: 13 | E18: 0121 0121 - Auburndale Elementary
A19: 0122 | B19: 43 | C19: 9 | D19: 21 | E19: 0122 0122 - Dr Rolando Espinosa K-8
A20: 0125 | B20: 73 | C20: 27 | D20: 37 | E20: 0125 0125 - Norma Butler Bossard Elem
A21: 0161 | B21: 13 | C21: 1 | D21: 8 | E21: 0161 0161 - Avocado Elementary
A22: 0201 | B22: 21 | C22: 14 | D22: 67 | E22: 0201 0201 - Banyan Elementary
A23: 0211 | B23: 33 | C23: 8 | D23: 24 | E23: 0211 0211 - Dr. Manuel C. Barreiro Elem
A24: 0231 | B24: 61 | C24: 16 | D24: 26 | E24: 0231 0231 - Aventura Waterways K-8 Center
A25: 0241 | B25: 53 | C25: 31 | D25: 58 | E25: 0241 0241 - Ruth K Broad/bay Harbor K-8
A26: 0251 | B26: 46 | C26: 28 | D26: 61 | E26: 0251 0251 - Ethel Koger Beckham Elementary
A27: 0261 | B27: 20 | C27: 9 | D27: 45 | E27: 0261 0261 - Bel-Aire Elementary
A28: 0271 | B28: 31 | C28: 11 | D28: 35 | E28: 0271 0271 - Bent Tree Elementary
A29: 0311 | B29: 48 | C29: 24 | D29: 50 | E29: 0311 0311 - Goulds Elementary
A30: 0312 | B30: 2 | C30: 1 | D30: 50 | E30: 0312 0312 - Mater Gardens Academy
A31: 0321 | B31: 20 | C31: 8 | D31: 40 | E31: 0321 0321 - Biscayne Elementary
... 38 more rows

Sheet Ranking FIA Reading (hidden)
E1: Back to Content Page
A2: School Num | B2: Region | C2: SS Tier | D2: ETO Tier | E2: School Name | F2: 2013 School Grade | G2: Ranking 2013 FIA Reading Satisfactory Progress | H2: 2013 FIA Reading Satisfactory Across Grades | I2: 2013 Total Tested Grades Across Grades | J2: # of Satisfactory Across Grades | K2: Grade 3 | L2: Grade 4 | M2: Grade 5 | N2: Grade 6 | O2: Grade 7 | P2: Grade 8 | Q2: Grade 9 | R2: Grade 10 | S2: Grade 3 # of Sat. | T2: Grade 4 # of Sat. | U2: Grade 5 # of Sat. | V2: Grade 6 # of Sat. | W2: Grade 7 # of Sat. | X2: Grade 8 # of Sat. | Y2: Grade 9 # of Sat. | Z2: Grade 10 # of Sat. | AA2: Grade 3 # Tested | AB2: Grade 4 # Tested | AC2: Grade 5 # Tested | AD2: Grade 6 # Tested | AE2: Grade 7 # Tested | AF2: Grade 8 # Tested | AG2: Grade 9 # Tested | AH2: Grade 10 # Tested | AI2: School Type from OADA | AJ2: ETO | AK2: Support Schools | AL2: School Type Web
A4: 9999 | B4: =VLOOKUP($A4,SchList!$A$2:$E$476,5,FALSE) -> 9 | C4: =VLOOKUP(A4,SchList!$A$2:$G$476,7,FALSE) -> SS-9 | D4: =VLOOKUP(A4,SchList!$A$2:$G$476,6,FALSE) ->  | E4: =VLOOKUP($A4,SchList!$A$2:$B$476,2,FALSE) -> District | F4: =IF(VLOOKUP(TEXT($A4,"0000"),'2013 SG'!$D$2:$BE$500,29,FALSE)="Yes",VLOOKUP(TEXT($A4,"0000"),'2013 SG'!$D$2:$BE$500,30,FALSE)&VLOOKUP(TEXT($A4,"0000"),'2013 SG'!$D$2:$BE$500,54,FALSE),VLOOKUP(TEXT($A4,"0000"),'2013 SG'!$D$2:$BE$500,30,FALSE)) -> B | G4: =IF(H4="","",RANK(H4,$H$4:$H$326,1)) -> 193 | H4: =IFERROR(IF(I4<10,"",J4/I4*100),"") -> 55.96091336 | I4: =SUM(AA4:AH4) -> 199659 | J4: =SUM(S4:Z4) -> 111731 | K4: =IFERROR(VLOOKUP(VALUE($A4),'FIAG3-RAll'!$B$2:$AC$500,12,FALSE)*100,"") -> 51 | L4: =IFERROR(VLOOKUP(VALUE($A4),'FIAG4-RAll'!$B$2:$AC$500,12,FALSE)*100,"") -> 62 | M4: =IFERROR(VLOOKUP(VALUE($A4),'FIAG5-RAll'!$B$2:$AC$500,12,FALSE)*100,"") -> 57 | N4: =IFERROR(VLOOKUP(VALUE($A4),'FIAG6-RAll'!$B$2:$AC$500,12,FALSE)*100,"") -> 60 | O4: =IFERROR(VLOOKUP(VALUE($A4),'FIAG7-RAll'!$B$2:$AC$500,12,FALSE)*100,"") -> 59 | P4: =IFERROR(VLOOKUP(VALUE($A4),'FIAG8-RAll'!$B$2:$AC$500,12,FALSE)*100,"") -> 54 | Q4: =IFERROR(VLOOKUP(VALUE($A4),'FIAG9-RAll'!$B$2:$AC$500,12,FALSE)*100,"") -> 54 | R4: =IFERROR(VLOOKUP(VALUE($A4),'FIAG10-RAll'!$B$2:$AC$500,12,FALSE)*100,"") -> 51 | S4: =IFERROR(VLOOKUP(VALUE($A4),'FIAG3-RAll'!$B$2:$AC$500,9,FALSE),"") -> 13068 | T4: =IFERROR(VLOOKUP(VALUE($A4),'FIAG4-RAll'!$B$2:$AC$500,9,FALSE),"") -> 14840 | U4: =IFERROR(VLOOKUP(VALUE($A4),'FIAG5-RAll'!$B$2:$AC$500,9,FALSE),"") -> 13984 | V4: =IFERROR(VLOOKUP(VALUE($A4),'FIAG6-RAll'!$B$2:$AC$500,9,FALSE),"") -> 14451 | W4: =IFERROR(VLOOKUP(VALUE($A4),'FIAG7-RAll'!$B$2:$AC$500,9,FALSE),"") -> 14884 | X4: =IFERROR(VLOOKUP(VALUE($A4),'FIAG8-RAll'!$B$2:$AC$500,9,FALSE),"") -> 13883 | Y4: =IFERROR(VLOOKUP(VALUE($A4),'FIAG9-RAll'!$B$2:$AC$500,9,FALSE),"") -> 13926 | Z4: =IFERROR(VLOOKUP(VALUE($A4),'FIAG10-RAll'!$B$2:$AC$500,9,FALSE),"") -> 12695 | AA4: =IFERROR(VLOOKUP(VALUE($A4),'FIAG3-RAll'!$B$2:$AC$500,3,FALSE),"") -> 25756 | AB4: =IFERROR(VLOOKUP(VALUE($A4),'FIAG4-RAll'!$B$2:$AC$500,3,FALSE),"") -> 23760 | AC4: =IFERROR(VLOOKUP(VALUE($A4),'FIAG5-RAll'!$B$2:$AC$500,3,FALSE),"") -> 24427 | AD4: =IFERROR(VLOOKUP(VALUE($A4),'FIAG6-RAll'!$B$2:$AC$500,3,FALSE),"") -> 24105 | AE4: =IFERROR(VLOOKUP(VALUE($A4),'FIAG7-RAll'!$B$2:$AC$500,3,FALSE),"") -> 25026 | AF4: =IFERROR(VLOOKUP(VALUE($A4),'FIAG8-RAll'!$B$2:$AC$500,3,FALSE),"") -> 25644 | AG4: =IFERROR(VLOOKUP(VALUE($A4),'FIAG9-RAll'!$B$2:$AC$500,3,FALSE),"") -> 25948 | AH4: =IFERROR(VLOOKUP(VALUE($A4),'FIAG10-RAll'!$B$2:$AC$500,3,FALSE),"") -> 24993 | AI4: =VLOOKUP(TEXT($A4,"0000"),'SchType from OADA'!$A$1:$B$679,2,FALSE) -> 9 | AJ4: =IF(D4<>"","ETO","N-ETO") -> N-ETO | AK4: =IF(C4<>"SS-0","SS","N-SS") -> SS | AL4: 9
A5: 41 | B5: =VLOOKUP($A5,SchList!$A$2:$E$476,5,FALSE) -> 5 | C5: =VLOOKUP(A5,SchList!$A$2:$G$476,7,FALSE) -> SS-0 | D5: =VLOOKUP(A5,SchList!$A$2:$G$476,6,FALSE) ->  | E5: =VLOOKUP($A5,SchList!$A$2:$B$476,2,FALSE) -> AIR BASE ELEMENTARY | F5: =IF(VLOOKUP(TEXT($A5,"0000"),'2013 SG'!$D$2:$BE$500,29,FALSE)="Yes",VLOOKUP(TEXT($A5,"0000"),'2013 SG'!$D$2:$BE$500,30,FALSE)&VLOOKUP(TEXT($A5,"0000"),'2013 SG'!$D$2:$BE$500,54,FALSE),VLOOKUP(TEXT($A5,"0000"),'2013 SG'!$D$2:$BE$500,30,FALSE)) -> A | G5: =IF(H5="","",RANK(H5,$H$4:$H$326,1)) -> 291 | H5: 77.51322751 | I5: 378 | J5: 293 | K5: =IFERROR(VLOOKUP(VALUE($A5),'FIAG3-RAll'!$B$2:$AC$500,12,FALSE)*100,"") -> 69 | L5: =IFERROR(VLOOKUP(VALUE($A5),'FIAG4-RAll'!$B$2:$AC$500,12,FALSE)*100,"") -> 81 | M5: =IFERROR(VLOOKUP(VALUE($A5),'FIAG5-RAll'!$B$2:$AC$500,12,FALSE)*100,"") -> 79 | N5: =IFERROR(VLOOKUP(VALUE($A5),'FIAG6-RAll'!$B$2:$AC$500,12,FALSE)*100,"") -> 88 | O5: =IFERROR(VLOOKUP(VALUE($A5),'FIAG7-RAll'!$B$2:$AC$500,12,FALSE)*100,"") ->  | P5: =IFERROR(VLOOKUP(VALUE($A5),'FIAG8-RAll'!$B$2:$AC$500,12,FALSE)*100,"") ->  | Q5: =IFERROR(VLOOKUP(VALUE($A5),'FIAG9-RAll'!$B$2:$AC$500,12,FALSE)*100,"") ->  | R5: =IFERROR(VLOOKUP(VALUE($A5),'FIAG10-RAll'!$B$2:$AC$500,12,FALSE)*100,"") ->  | S5: =IFERROR(VLOOKUP(VALUE($A5),'FIAG3-RAll'!$B$2:$AC$500,9,FALSE),"") -> 80 | T5: =IFERROR(VLOOKUP(VALUE($A5),'FIAG4-RAll'!$B$2:$AC$500,9,FALSE),"") -> 89 | U5: =IFERROR(VLOOKUP(VALUE($A5),'FIAG5-RAll'!$B$2:$AC$500,9,FALSE),"") -> 88 | V5: =IFERROR(VLOOKUP(VALUE($A5),'FIAG6-RAll'!$B$2:$AC$500,9,FALSE),"") -> 36 | W5: =IFERROR(VLOOKUP(VALUE($A5),'FIAG7-RAll'!$B$2:$AC$500,9,FALSE),"") ->  | X5: =IFERROR(VLOOKUP(VALUE($A5),'FIAG8-RAll'!$B$2:$AC$500,9,FALSE),"") ->  | Y5: =IFERROR(VLOOKUP(VALUE($A5),'FIAG9-RAll'!$B$2:$AC$500,9,FALSE),"") ->  | Z5: =IFERROR(VLOOKUP(VALUE($A5),'FIAG10-RAll'!$B$2:$AC$500,9,FALSE),"") ->  | AA5: =IFERROR(VLOOKUP(VALUE($A5),'FIAG3-RAll'!$B$2:$AC$500,3,FALSE),"") -> 116 | AB5: =IFERROR(VLOOKUP(VALUE($A5),'FIAG4-RAll'!$B$2:$AC$500,3,FALSE),"") -> 110 | AC5: =IFERROR(VLOOKUP(VALUE($A5),'FIAG5-RAll'!$B$2:$AC$500,3,FALSE),"") -> 111 | AD5: =IFERROR(VLOOKUP(VALUE($A5),'FIAG6-RAll'!$B$2:$AC$500,3,FALSE),"") -> 41 | AE5: =IFERROR(VLOOKUP(VALUE($A5),'FIAG7-RAll'!$B$2:$AC$500,3,FALSE),"") ->  | AF5: =IFERROR(VLOOKUP(VALUE($A5),'FIAG8-RAll'!$B$2:$AC$500,3,FALSE),"") ->  | AG5: =IFERROR(VLOOKUP(VALUE($A5),'FIAG9-RAll'!$B$2:$AC$500,3,FALSE),"") ->  | AH5: =IFERROR(VLOOKUP(VALUE($A5),'FIAG10-RAll'!$B$2:$AC$500,3,FALSE),"") ->  | AI5: =VLOOKUP(TEXT($A5,"0000"),'SchType from OADA'!$A$1:$B$679,2,FALSE) -> 1 | AJ5: N-ETO | AK5: N-SS | AL5: E
A6: 81 | B6: =VLOOKUP($A6,SchList!$A$2:$E$476,5,FALSE) -> 6 | C6: =VLOOKUP(A6,SchList!$A$2:$G$476,7,FALSE) -> SS-0 | D6: =VLOOKUP(A6,SchList!$A$2:$G$476,6,FALSE) -> 3 | E6: =VLOOKUP($A6,SchList!$A$2:$B$476,2,FALSE) -> LENORA B. SMITH ELEMENTARY | F6: =IF(VLOOKUP(TEXT($A6,"0000"),'2013 SG'!$D$2:$BE$500,29,FALSE)="Yes",VLOOKUP(TEXT($A6,"0000"),'2013 SG'!$D$2:$BE$500,30,FALSE)&VLOOKUP(TEXT($A6,"0000"),'2013 SG'!$D$2:$BE$500,54,FALSE),VLOOKUP(TEXT($A6,"0000"),'2013 SG'!$D$2:$BE$500,30,FALSE)) -> F | G6: 25 | H6: 32.29813665 | I6: 161 | J6: 52 | K6: =IFERROR(VLOOKUP(VALUE($A6),'FIAG3-RAll'!$B$2:$AC$500,12,FALSE)*100,"") -> 22 | L6: =IFERROR(VLOOKUP(VALUE($A6),'FIAG4-RAll'!$B$2:$AC$500,12,FALSE)*100,"") -> 40 | M6: =IFERROR(VLOOKUP(VALUE($A6),'FIAG5-RAll'!$B$2:$AC$500,12,FALSE)*100,"") -> 34 | N6: =IFERROR(VLOOKUP(VALUE($A6),'FIAG6-RAll'!$B$2:$AC$500,12,FALSE)*100,"") ->  | O6: =IFERROR(VLOOKUP(VALUE($A6),'FIAG7-RAll'!$B$2:$AC$500,12,FALSE)*100,"") ->  | P6: =IFERROR(VLOOKUP(VALUE($A6),'FIAG8-RAll'!$B$2:$AC$500,12,FALSE)*100,"") ->  | Q6: =IFERROR(VLOOKUP(VALUE($A6),'FIAG9-RAll'!$B$2:$AC$500,12,FALSE)*100,"") ->  | R6: =IFERROR(VLOOKUP(VALUE($A6),'FIAG10-RAll'!$B$2:$AC$500,12,FALSE)*100,"") ->  | S6: =IFERROR(VLOOKUP(VALUE($A6),'FIAG3-RAll'!$B$2:$AC$500,9,FALSE),"") -> 11 | T6: =IFERROR(VLOOKUP(VALUE($A6),'FIAG4-RAll'!$B$2:$AC$500,9,FALSE),"") -> 25 | U6: =IFERROR(VLOOKUP(VALUE($A6),'FIAG5-RAll'!$B$2:$AC$500,9,FALSE),"") -> 16 | V6: =IFERROR(VLOOKUP(VALUE($A6),'FIAG6-RAll'!$B$2:$AC$500,9,FALSE),"") ->  | W6: =IFERROR(VLOOKUP(VALUE($A6),'FIAG7-RAll'!$B$2:$AC$500,9,FALSE),"") ->  | X6: =IFERROR(VLOOKUP(VALUE($A6),'FIAG8-RAll'!$B$2:$AC$500,9,FALSE),"") ->  | Y6: =IFERROR(VLOOKUP(VALUE($A6),'FIAG9-RAll'!$B$2:$AC$500,9,FALSE),"") ->  | Z6: =IFERROR(VLOOKUP(VALUE($A6),'FIAG10-RAll'!$B$2:$AC$500,9,FALSE),"") ->  | AA6: =IFERROR(VLOOKUP(VALUE($A6),'FIAG3-RAll'!$B$2:$AC$500,3,FALSE),"") -> 51 | AB6: =IFERROR(VLOOKUP(VALUE($A6),'FIAG4-RAll'!$B$2:$AC$500,3,FALSE),"") -> 63 | AC6: =IFERROR(VLOOKUP(VALUE($A6),'FIAG5-RAll'!$B$2:$AC$500,3,FALSE),"") -> 47 | AD6: =IFERROR(VLOOKUP(VALUE($A6),'FIAG6-RAll'!$B$2:$AC$500,3,FALSE),"") ->  | AE6: =IFERROR(VLOOKUP(VALUE($A6),'FIAG7-RAll'!$B$2:$AC$500,3,FALSE),"") ->  | AF6: =IFERROR(VLOOKUP(VALUE($A6),'FIAG8-RAll'!$B$2:$AC$500,3,FALSE),"") ->  | AG6: =IFERROR(VLOOKUP(VALUE($A6),'FIAG9-RAll'!$B$2:$AC$500,3,FALSE),"") ->  | AH6: =IFERROR(VLOOKUP(VALUE($A6),'FIAG10-RAll'!$B$2:$AC$500,3,FALSE),"") ->  | AI6: =VLOOKUP(TEXT($A6,"0000"),'SchType from OADA'!$A$1:$B$679,2,FALSE) -> 1 | AJ6: ETO | AK6: N-SS | AL6: E
A7: 101 | B7: =VLOOKUP($A7,SchList!$A$2:$E$476,5,FALSE) -> 4 | C7: =VLOOKUP(A7,SchList!$A$2:$G$476,7,FALSE) -> SS-0 | D7: =VLOOKUP(A7,SchList!$A$2:$G$476,6,FALSE) -> 2 | E7: =VLOOKUP($A7,SchList!$A$2:$B$476,2,FALSE) -> ARCOLA LAKE ELEMENTARY | F7: =IF(VLOOKUP(TEXT($A7,"0000"),'2013 SG'!$D$2:$BE$500,29,FALSE)="Yes",VLOOKUP(TEXT($A7,"0000"),'2013 SG'!$D$2:$BE$500,30,FALSE)&VLOOKUP(TEXT($A7,"0000"),'2013 SG'!$D$2:$BE$500,54,FALSE),VLOOKUP(TEXT($A7,"0000"),'2013 SG'!$D$2:$BE$500,30,FALSE)) -> D | G7: 46 | H7: 36.08247423 | I7: 194 | J7: 70 | K7: =IFERROR(VLOOKUP(VALUE($A7),'FIAG3-RAll'!$B$2:$AC$500,12,FALSE)*100,"") -> 24 | L7: =IFERROR(VLOOKUP(VALUE($A7),'FIAG4-RAll'!$B$2:$AC$500,12,FALSE)*100,"") -> 48 | M7: =IFERROR(VLOOKUP(VALUE($A7),'FIAG5-RAll'!$B$2:$AC$500,12,FALSE)*100,"") -> 41 | N7: =IFERROR(VLOOKUP(VALUE($A7),'FIAG6-RAll'!$B$2:$AC$500,12,FALSE)*100,"") ->  | O7: =IFERROR(VLOOKUP(VALUE($A7),'FIAG7-RAll'!$B$2:$AC$500,12,FALSE)*100,"") ->  | P7: =IFERROR(VLOOKUP(VALUE($A7),'FIAG8-RAll'!$B$2:$AC$500,12,FALSE)*100,"") ->  | Q7: =IFERROR(VLOOKUP(VALUE($A7),'FIAG9-RAll'!$B$2:$AC$500,12,FALSE)*100,"") ->  | R7: =IFERROR(VLOOKUP(VALUE($A7),'FIAG10-RAll'!$B$2:$AC$500,12,FALSE)*100,"") ->  | S7: =IFERROR(VLOOKUP(VALUE($A7),'FIAG3-RAll'!$B$2:$AC$500,9,FALSE),"") -> 19 | T7: =IFERROR(VLOOKUP(VALUE($A7),'FIAG4-RAll'!$B$2:$AC$500,9,FALSE),"") -> 25 | U7: =IFERROR(VLOOKUP(VALUE($A7),'FIAG5-RAll'!$B$2:$AC$500,9,FALSE),"") -> 26 | V7: =IFERROR(VLOOKUP(VALUE($A7),'FIAG6-RAll'!$B$2:$AC$500,9,FALSE),"") ->  | W7: =IFERROR(VLOOKUP(VALUE($A7),'FIAG7-RAll'!$B$2:$AC$500,9,FALSE),"") ->  | X7: =IFERROR(VLOOKUP(VALUE($A7),'FIAG8-RAll'!$B$2:$AC$500,9,FALSE),"") ->  | Y7: =IFERROR(VLOOKUP(VALUE($A7),'FIAG9-RAll'!$B$2:$AC$500,9,FALSE),"") ->  | Z7: =IFERROR(VLOOKUP(VALUE($A7),'FIAG10-RAll'!$B$2:$AC$500,9,FALSE),"") ->  | AA7: =IFERROR(VLOOKUP(VALUE($A7),'FIAG3-RAll'!$B$2:$AC$500,3,FALSE),"") -> 79 | AB7: =IFERROR(VLOOKUP(VALUE($A7),'FIAG4-RAll'!$B$2:$AC$500,3,FALSE),"") -> 52 | AC7: =IFERROR(VLOOKUP(VALUE($A7),'FIAG5-RAll'!$B$2:$AC$500,3,FALSE),"") -> 63 | AD7: =IFERROR(VLOOKUP(VALUE($A7),'FIAG6-RAll'!$B$2:$AC$500,3,FALSE),"") ->  | AE7: =IFERROR(VLOOKUP(VALUE($A7),'FIAG7-RAll'!$B$2:$AC$500,3,FALSE),"") ->  | AF7: =IFERROR(VLOOKUP(VALUE($A7),'FIAG8-RAll'!$B$2:$AC$500,3,FALSE),"") ->  | AG7: =IFERROR(VLOOKUP(VALUE($A7),'FIAG9-RAll'!$B$2:$AC$500,3,FALSE),"") ->  | AH7: =IFERROR(VLOOKUP(VALUE($A7),'FIAG10-RAll'!$B$2:$AC$500,3,FALSE),"") ->  | AI7: =VLOOKUP(TEXT($A7,"0000"),'SchType from OADA'!$A$1:$B$679,2,FALSE) -> 1 | AJ7: ETO | AK7: N-SS | AL7: E
A8: 111 | B8: =VLOOKUP($A8,SchList!$A$2:$E$476,5,FALSE) -> 4 | C8: =VLOOKUP(A8,SchList!$A$2:$G$476,7,FALSE) -> SS-0 | D8: =VLOOKUP(A8,SchList!$A$2:$G$476,6,FALSE) -> 2 | E8: =VLOOKUP($A8,SchList!$A$2:$B$476,2,FALSE) -> MAYA ANGELOU ELEMENTARY | F8: =IF(VLOOKUP(TEXT($A8,"0000"),'2013 SG'!$D$2:$BE$500,29,FALSE)="Yes",VLOOKUP(TEXT($A8,"0000"),'2013 SG'!$D$2:$BE$500,30,FALSE)&VLOOKUP(TEXT($A8,"0000"),'2013 SG'!$D$2:$BE$500,54,FALSE),VLOOKUP(TEXT($A8,"0000"),'2013 SG'!$D$2:$BE$500,30,FALSE)) -> C(D) | G8: 60 | H8: 38.86925795 | I8: 283 | J8: 110 | K8: =IFERROR(VLOOKUP(VALUE($A8),'FIAG3-RAll'!$B$2:$AC$500,12,FALSE)*100,"") -> 35 | L8: =IFERROR(VLOOKUP(VALUE($A8),'FIAG4-RAll'!$B$2:$AC$500,12,FALSE)*100,"") -> 42 | M8: =IFERROR(VLOOKUP(VALUE($A8),'FIAG5-RAll'!$B$2:$AC$500,12,FALSE)*100,"") -> 42 | N8: =IFERROR(VLOOKUP(VALUE($A8),'FIAG6-RAll'!$B$2:$AC$500,12,FALSE)*100,"") ->  | O8: =IFERROR(VLOOKUP(VALUE($A8),'FIAG7-RAll'!$B$2:$AC$500,12,FALSE)*100,"") ->  | P8: =IFERROR(VLOOKUP(VALUE($A8),'FIAG8-RAll'!$B$2:$AC$500,12,FALSE)*100,"") ->  | Q8: =IFERROR(VLOOKUP(VALUE($A8),'FIAG9-RAll'!$B$2:$AC$500,12,FALSE)*100,"") ->  | R8: =IFERROR(VLOOKUP(VALUE($A8),'FIAG10-RAll'!$B$2:$AC$500,12,FALSE)*100,"") ->  | S8: =IFERROR(VLOOKUP(VALUE($A8),'FIAG3-RAll'!$B$2:$AC$500,9,FALSE),"") -> 41 | T8: =IFERROR(VLOOKUP(VALUE($A8),'FIAG4-RAll'!$B$2:$AC$500,9,FALSE),"") -> 33 | U8: =IFERROR(VLOOKUP(VALUE($A8),'FIAG5-RAll'!$B$2:$AC$500,9,FALSE),"") -> 36 | V8: =IFERROR(VLOOKUP(VALUE($A8),'FIAG6-RAll'!$B$2:$AC$500,9,FALSE),"") ->  | W8: =IFERROR(VLOOKUP(VALUE($A8),'FIAG7-RAll'!$B$2:$AC$500,9,FALSE),"") ->  | X8: =IFERROR(VLOOKUP(VALUE($A8),'FIAG8-RAll'!$B$2:$AC$500,9,FALSE),"") ->  | Y8: =IFERROR(VLOOKUP(VALUE($A8),'FIAG9-RAll'!$B$2:$AC$500,9,FALSE),"") ->  | Z8: =IFERROR(VLOOKUP(VALUE($A8),'FIAG10-RAll'!$B$2:$AC$500,9,FALSE),"") ->  | AA8: =IFERROR(VLOOKUP(VALUE($A8),'FIAG3-RAll'!$B$2:$AC$500,3,FALSE),"") -> 118 | AB8: =IFERROR(VLOOKUP(VALUE($A8),'FIAG4-RAll'!$B$2:$AC$500,3,FALSE),"") -> 79 | AC8: =IFERROR(VLOOKUP(VALUE($A8),'FIAG5-RAll'!$B$2:$AC$500,3,FALSE),"") -> 86 | AD8: =IFERROR(VLOOKUP(VALUE($A8),'FIAG6-RAll'!$B$2:$AC$500,3,FALSE),"") ->  | AE8: =IFERROR(VLOOKUP(VALUE($A8),'FIAG7-RAll'!$B$2:$AC$500,3,FALSE),"") ->  | AF8: =IFERROR(VLOOKUP(VALUE($A8),'FIAG8-RAll'!$B$2:$AC$500,3,FALSE),"") ->  | AG8: =IFERROR(VLOOKUP(VALUE($A8),'FIAG9-RAll'!$B$2:$AC$500,3,FALSE),"") ->  | AH8: =IFERROR(VLOOKUP(VALUE($A8),'FIAG10-RAll'!$B$2:$AC$500,3,FALSE),"") ->  | AI8: =VLOOKUP(TEXT($A8,"0000"),'SchType from OADA'!$A$1:$B$679,2,FALSE) -> 1 | AJ8: ETO | AK8: N-SS | AL8: E
A9: 121 | B9: =VLOOKUP($A9,SchList!$A$2:$E$476,5,FALSE) -> 4 | C9: =VLOOKUP(A9,SchList!$A$2:$G$476,7,FALSE) -> SS-0 | D9: =VLOOKUP(A9,SchList!$A$2:$G$476,6,FALSE) ->  | E9: =VLOOKUP($A9,SchList!$A$2:$B$476,2,FALSE) -> AUBURNDALE ELEMENTARY | F9: =IF(VLOOKUP(TEXT($A9,"0000"),'2013 SG'!$D$2:$BE$500,29,FALSE)="Yes",VLOOKUP(TEXT($A9,"0000"),'2013 SG'!$D$2:$BE$500,30,FALSE)&VLOOKUP(TEXT($A9,"0000"),'2013 SG'!$D$2:$BE$500,54,FALSE),VLOOKUP(TEXT($A9,"0000"),'2013 SG'!$D$2:$BE$500,30,FALSE)) -> B(C) | G9: 160 | H9: 51.2755102 | I9: 392 | J9: 201 | K9: =IFERROR(VLOOKUP(VALUE($A9),'FIAG3-RAll'!$B$2:$AC$500,12,FALSE)*100,"") -> 43 | L9: =IFERROR(VLOOKUP(VALUE($A9),'FIAG4-RAll'!$B$2:$AC$500,12,FALSE)*100,"") -> 62 | M9: =IFERROR(VLOOKUP(VALUE($A9),'FIAG5-RAll'!$B$2:$AC$500,12,FALSE)*100,"") -> 50 | N9: =IFERROR(VLOOKUP(VALUE($A9),'FIAG6-RAll'!$B$2:$AC$500,12,FALSE)*100,"") ->  | O9: =IFERROR(VLOOKUP(VALUE($A9),'FIAG7-RAll'!$B$2:$AC$500,12,FALSE)*100,"") ->  | P9: =IFERROR(VLOOKUP(VALUE($A9),'FIAG8-RAll'!$B$2:$AC$500,12,FALSE)*100,"") ->  | Q9: =IFERROR(VLOOKUP(VALUE($A9),'FIAG9-RAll'!$B$2:$AC$500,12,FALSE)*100,"") ->  | R9: =IFERROR(VLOOKUP(VALUE($A9),'FIAG10-RAll'!$B$2:$AC$500,12,FALSE)*100,"") ->  | S9: =IFERROR(VLOOKUP(VALUE($A9),'FIAG3-RAll'!$B$2:$AC$500,9,FALSE),"") -> 63 | T9: =IFERROR(VLOOKUP(VALUE($A9),'FIAG4-RAll'!$B$2:$AC$500,9,FALSE),"") -> 73 | U9: =IFERROR(VLOOKUP(VALUE($A9),'FIAG5-RAll'!$B$2:$AC$500,9,FALSE),"") -> 65 | V9: =IFERROR(VLOOKUP(VALUE($A9),'FIAG6-RAll'!$B$2:$AC$500,9,FALSE),"") ->  | W9: =IFERROR(VLOOKUP(VALUE($A9),'FIAG7-RAll'!$B$2:$AC$500,9,FALSE),"") ->  | X9: =IFERROR(VLOOKUP(VALUE($A9),'FIAG8-RAll'!$B$2:$AC$500,9,FALSE),"") ->  | Y9: =IFERROR(VLOOKUP(VALUE($A9),'FIAG9-RAll'!$B$2:$AC$500,9,FALSE),"") ->  | Z9: =IFERROR(VLOOKUP(VALUE($A9),'FIAG10-RAll'!$B$2:$AC$500,9,FALSE),"") ->  | AA9: =IFERROR(VLOOKUP(VALUE($A9),'FIAG3-RAll'!$B$2:$AC$500,3,FALSE),"") -> 145 | AB9: =IFERROR(VLOOKUP(VALUE($A9),'FIAG4-RAll'!$B$2:$AC$500,3,FALSE),"") -> 117 | AC9: =IFERROR(VLOOKUP(VALUE($A9),'FIAG5-RAll'!$B$2:$AC$500,3,FALSE),"") -> 130 | AD9: =IFERROR(VLOOKUP(VALUE($A9),'FIAG6-RAll'!$B$2:$AC$500,3,FALSE),"") ->  | AE9: =IFERROR(VLOOKUP(VALUE($A9),'FIAG7-RAll'!$B$2:$AC$500,3,FALSE),"") ->  | AF9: =IFERROR(VLOOKUP(VALUE($A9),'FIAG8-RAll'!$B$2:$AC$500,3,FALSE),"") ->  | AG9: =IFERROR(VLOOKUP(VALUE($A9),'FIAG9-RAll'!$B$2:$AC$500,3,FALSE),"") ->  | AH9: =IFERROR(VLOOKUP(VALUE($A9),'FIAG10-RAll'!$B$2:$AC$500,3,FALSE),"") ->  | AI9: =VLOOKUP(TEXT($A9,"0000"),'SchType from OADA'!$A$1:$B$679,2,FALSE) -> 1 | AJ9: N-ETO | AK9: N-SS | AL9: E
A10: 125 | B10: =VLOOKUP($A10,SchList!$A$2:$E$476,5,FALSE) -> 5 | C10: =VLOOKUP(A10,SchList!$A$2:$G$476,7,FALSE) -> SS-0 | D10: =VLOOKUP(A10,SchList!$A$2:$G$476,6,FALSE) ->  | E10: =VLOOKUP($A10,SchList!$A$2:$B$476,2,FALSE) -> NORMA BUTLER BOSSARD ELEM | F10: =IF(VLOOKUP(TEXT($A10,"0000"),'2013 SG'!$D$2:$BE$500,29,FALSE)="Yes",VLOOKUP(TEXT($A10,"0000"),'2013 SG'!$D$2:$BE$500,30,FALSE)&VLOOKUP(TEXT($A10,"0000"),'2013 SG'!$D$2:$BE$500,54,FALSE),VLOOKUP(TEXT($A10,"0000"),'2013 SG'!$D$2:$BE$500,30,FALSE)) -> B | G10: 277 | H10: 70.42925278 | I10: 629 | J10: 443 | K10: =IFERROR(VLOOKUP(VALUE($A10),'FIAG3-RAll'!$B$2:$AC$500,12,FALSE)*100,"") -> 70 | L10: =IFERROR(VLOOKUP(VALUE($A10),'FIAG4-RAll'!$B$2:$AC$500,12,FALSE)*100,"") -> 74 | M10: =IFERROR(VLOOKUP(VALUE($A10),'FIAG5-RAll'!$B$2:$AC$500,12,FALSE)*100,"") -> 67 | N10: =IFERROR(VLOOKUP(VALUE($A10),'FIAG6-RAll'!$B$2:$AC$500,12,FALSE)*100,"") ->  | O10: =IFERROR(VLOOKUP(VALUE($A10),'FIAG7-RAll'!$B$2:$AC$500,12,FALSE)*100,"") ->  | P10: =IFERROR(VLOOKUP(VALUE($A10),'FIAG8-RAll'!$B$2:$AC$500,12,FALSE)*100,"") ->  | Q10: =IFERROR(VLOOKUP(VALUE($A10),'FIAG9-RAll'!$B$2:$AC$500,12,FALSE)*100,"") ->  | R10: =IFERROR(VLOOKUP(VALUE($A10),'FIAG10-RAll'!$B$2:$AC$500,12,FALSE)*100,"") ->  | S10: =IFERROR(VLOOKUP(VALUE($A10),'FIAG3-RAll'!$B$2:$AC$500,9,FALSE),"") -> 131 | T10: =IFERROR(VLOOKUP(VALUE($A10),'FIAG4-RAll'!$B$2:$AC$500,9,FALSE),"") -> 165 | U10: =IFERROR(VLOOKUP(VALUE($A10),'FIAG5-RAll'!$B$2:$AC$500,9,FALSE),"") -> 147 | V10: =IFERROR(VLOOKUP(VALUE($A10),'FIAG6-RAll'!$B$2:$AC$500,9,FALSE),"") ->  | W10: =IFERROR(VLOOKUP(VALUE($A10),'FIAG7-RAll'!$B$2:$AC$500,9,FALSE),"") ->  | X10: =IFERROR(VLOOKUP(VALUE($A10),'FIAG8-RAll'!$B$2:$AC$500,9,FALSE),"") ->  | Y10: =IFERROR(VLOOKUP(VALUE($A10),'FIAG9-RAll'!$B$2:$AC$500,9,FALSE),"") ->  | Z10: =IFERROR(VLOOKUP(VALUE($A10),'FIAG10-RAll'!$B$2:$AC$500,9,FALSE),"") ->  | AA10: =IFERROR(VLOOKUP(VALUE($A10),'FIAG3-RAll'!$B$2:$AC$500,3,FALSE),"") -> 186 | AB10: =IFERROR(VLOOKUP(VALUE($A10),'FIAG4-RAll'!$B$2:$AC$500,3,FALSE),"") -> 222 | AC10: =IFERROR(VLOOKUP(VALUE($A10),'FIAG5-RAll'!$B$2:$AC$500,3,FALSE),"") -> 221 | AD10: =IFERROR(VLOOKUP(VALUE($A10),'FIAG6-RAll'!$B$2:$AC$500,3,FALSE),"") ->  | AE10: =IFERROR(VLOOKUP(VALUE($A10),'FIAG7-RAll'!$B$2:$AC$500,3,FALSE),"") ->  | AF10: =IFERROR(VLOOKUP(VALUE($A10),'FIAG8-RAll'!$B$2:$AC$500,3,FALSE),"") ->  | AG10: =IFERROR(VLOOKUP(VALUE($A10),'FIAG9-RAll'!$B$2:$AC$500,3,FALSE),"") ->  | AH10: =IFERROR(VLOOKUP(VALUE($A10),'FIAG10-RAll'!$B$2:$AC$500,3,FALSE),"") ->  | AI10: =VLOOKUP(TEXT($A10,"0000"),'SchType from OADA'!$A$1:$B$679,2,FALSE) -> 1 | AJ10: N-ETO | AK10: N-SS | AL10: E
A11: 161 | B11: =VLOOKUP($A11,SchList!$A$2:$E$476,5,FALSE) -> 5 | C11: =VLOOKUP(A11,SchList!$A$2:$G$476,7,FALSE) -> SS-0 | D11: =VLOOKUP(A11,SchList!$A$2:$G$476,6,FALSE) ->  | E11: =VLOOKUP($A11,SchList!$A$2:$B$476,2,FALSE) -> AVOCADO ELEMENTARY | F11: =IF(VLOOKUP(TEXT($A11,"0000"),'2013 SG'!$D$2:$BE$500,29,FALSE)="Yes",VLOOKUP(TEXT($A11,"0000"),'2013 SG'!$D$2:$BE$500,30,FALSE)&VLOOKUP(TEXT($A11,"0000"),'2013 SG'!$D$2:$BE$500,54,FALSE),VLOOKUP(TEXT($A11,"0000"),'2013 SG'!$D$2:$BE$500,30,FALSE)) ->  | G11: 14 | H11: 28.28947368 | I11: 152 | J11: 43 | K11: =IFERROR(VLOOKUP(VALUE($A11),'FIAG3-RAll'!$B$2:$AC$500,12,FALSE)*100,"") -> 28 | L11: =IFERROR(VLOOKUP(VALUE($A11),'FIAG4-RAll'!$B$2:$AC$500,12,FALSE)*100,"") ->  | M11: =IFERROR(VLOOKUP(VALUE($A11),'FIAG5-RAll'!$B$2:$AC$500,12,FALSE)*100,"") ->  | N11: =IFERROR(VLOOKUP(VALUE($A11),'FIAG6-RAll'!$B$2:$AC$500,12,FALSE)*100,"") ->  | O11: =IFERROR(VLOOKUP(VALUE($A11),'FIAG7-RAll'!$B$2:$AC$500,12,FALSE)*100,"") ->  | P11: =IFERROR(VLOOKUP(VALUE($A11),'FIAG8-RAll'!$B$2:$AC$500,12,FALSE)*100,"") ->  | Q11: =IFERROR(VLOOKUP(VALUE($A11),'FIAG9-RAll'!$B$2:$AC$500,12,FALSE)*100,"") ->  | R11: =IFERROR(VLOOKUP(VALUE($A11),'FIAG10-RAll'!$B$2:$AC$500,12,FALSE)*100,"") ->  | S11: =IFERROR(VLOOKUP(VALUE($A11),'FIAG3-RAll'!$B$2:$AC$500,9,FALSE),"") -> 43 | T11: =IFERROR(VLOOKUP(VALUE($A11),'FIAG4-RAll'!$B$2:$AC$500,9,FALSE),"") ->  | U11: =IFERROR(VLOOKUP(VALUE($A11),'FIAG5-RAll'!$B$2:$AC$500,9,FALSE),"") ->  | V11: =IFERROR(VLOOKUP(VALUE($A11),'FIAG6-RAll'!$B$2:$AC$500,9,FALSE),"") ->  | W11: =IFERROR(VLOOKUP(VALUE($A11),'FIAG7-RAll'!$B$2:$AC$500,9,FALSE),"") ->  | X11: =IFERROR(VLOOKUP(VALUE($A11),'FIAG8-RAll'!$B$2:$AC$500,9,FALSE),"") ->  | Y11: =IFERROR(VLOOKUP(VALUE($A11),'FIAG9-RAll'!$B$2:$AC$500,9,FALSE),"") ->  | Z11: =IFERROR(VLOOKUP(VALUE($A11),'FIAG10-RAll'!$B$2:$AC$500,9,FALSE),"") ->  | AA11: =IFERROR(VLOOKUP(VALUE($A11),'FIAG3-RAll'!$B$2:$AC$500,3,FALSE),"") -> 152 | AB11: =IFERROR(VLOOKUP(VALUE($A11),'FIAG4-RAll'!$B$2:$AC$500,3,FALSE),"") ->  | AC11: =IFERROR(VLOOKUP(VALUE($A11),'FIAG5-RAll'!$B$2:$AC$500,3,FALSE),"") ->  | AD11: =IFERROR(VLOOKUP(VALUE($A11),'FIAG6-RAll'!$B$2:$AC$500,3,FALSE),"") ->  | AE11: =IFERROR(VLOOKUP(VALUE($A11),'FIAG7-RAll'!$B$2:$AC$500,3,FALSE),"") ->  | AF11: =IFERROR(VLOOKUP(VALUE($A11),'FIAG8-RAll'!$B$2:$AC$500,3,FALSE),"") ->  | AG11: =IFERROR(VLOOKUP(VALUE($A11),'FIAG9-RAll'!$B$2:$AC$500,3,FALSE),"") ->  | AH11: =IFERROR(VLOOKUP(VALUE($A11),'FIAG10-RAll'!$B$2:$AC$500,3,FALSE),"") ->  | AI11: =VLOOKUP(TEXT($A11,"0000"),'SchType from OADA'!$A$1:$B$679,2,FALSE) -> 1 | AJ11: N-ETO | AK11: N-SS | AL11: E
A12: 201 | B12: =VLOOKUP($A12,SchList!$A$2:$E$476,5,FALSE) -> 4 | C12: =VLOOKUP(A12,SchList!$A$2:$G$476,7,FALSE) -> SS-0 | D12: =VLOOKUP(A12,SchList!$A$2:$G$476,6,FALSE) ->  | E12: =VLOOKUP($A12,SchList!$A$2:$B$476,2,FALSE) -> BANYAN ELEMENTARY | F12: =IF(VLOOKUP(TEXT($A12,"0000"),'2013 SG'!$D$2:$BE$500,29,FALSE)="Yes",VLOOKUP(TEXT($A12,"0000"),'2013 SG'!$D$2:$BE$500,30,FALSE)&VLOOKUP(TEXT($A12,"0000"),'2013 SG'!$D$2:$BE$500,54,FALSE),VLOOKUP(TEXT($A12,"0000"),'2013 SG'!$D$2:$BE$500,30,FALSE)) -> B | G12: 287 | H12: 73.71794872 | I12: 156 | J12: 115 | K12: =IFERROR(VLOOKUP(VALUE($A12),'FIAG3-RAll'!$B$2:$AC$500,12,FALSE)*100,"") -> 74 | L12: =IFERROR(VLOOKUP(VALUE($A12),'FIAG4-RAll'!$B$2:$AC$500,12,FALSE)*100,"") -> 81 | M12: =IFERROR(VLOOKUP(VALUE($A12),'FIAG5-RAll'!$B$2:$AC$500,12,FALSE)*100,"") -> 69 | N12: =IFERROR(VLOOKUP(VALUE($A12),'FIAG6-RAll'!$B$2:$AC$500,12,FALSE)*100,"") ->  | O12: =IFERROR(VLOOKUP(VALUE($A12),'FIAG7-RAll'!$B$2:$AC$500,12,FALSE)*100,"") ->  | P12: =IFERROR(VLOOKUP(VALUE($A12),'FIAG8-RAll'!$B$2:$AC$500,12,FALSE)*100,"") ->  | Q12: =IFERROR(VLOOKUP(VALUE($A12),'FIAG9-RAll'!$B$2:$AC$500,12,FALSE)*100,"") ->  | R12: =IFERROR(VLOOKUP(VALUE($A12),'FIAG10-RAll'!$B$2:$AC$500,12,FALSE)*100,"") ->  | S12: =IFERROR(VLOOKUP(VALUE($A12),'FIAG3-RAll'!$B$2:$AC$500,9,FALSE),"") -> 43 | T12: =IFERROR(VLOOKUP(VALUE($A12),'FIAG4-RAll'!$B$2:$AC$500,9,FALSE),"") -> 30 | U12: =IFERROR(VLOOKUP(VALUE($A12),'FIAG5-RAll'!$B$2:$AC$500,9,FALSE),"") -> 42 | V12: =IFERROR(VLOOKUP(VALUE($A12),'FIAG6-RAll'!$B$2:$AC$500,9,FALSE),"") ->  | W12: =IFERROR(VLOOKUP(VALUE($A12),'FIAG7-RAll'!$B$2:$AC$500,9,FALSE),"") ->  | X12: =IFERROR(VLOOKUP(VALUE($A12),'FIAG8-RAll'!$B$2:$AC$500,9,FALSE),"") ->  | Y12: =IFERROR(VLOOKUP(VALUE($A12),'FIAG9-RAll'!$B$2:$AC$500,9,FALSE),"") ->  | Z12: =IFERROR(VLOOKUP(VALUE($A12),'FIAG10-RAll'!$B$2:$AC$500,9,FALSE),"") ->  | AA12: =IFERROR(VLOOKUP(VALUE($A12),'FIAG3-RAll'!$B$2:$AC$500,3,FALSE),"") -> 58 | AB12: =IFERROR(VLOOKUP(VALUE($A12),'FIAG4-RAll'!$B$2:$AC$500,3,FALSE),"") -> 37 | AC12: =IFERROR(VLOOKUP(VALUE($A12),'FIAG5-RAll'!$B$2:$AC$500,3,FALSE),"") -> 61 | AD12: =IFERROR(VLOOKUP(VALUE($A12),'FIAG6-RAll'!$B$2:$AC$500,3,FALSE),"") ->  | AE12: =IFERROR(VLOOKUP(VALUE($A12),'FIAG7-RAll'!$B$2:$AC$500,3,FALSE),"") ->  | AF12: =IFERROR(VLOOKUP(VALUE($A12),'FIAG8-RAll'!$B$2:$AC$500,3,FALSE),"") ->  | AG12: =IFERROR(VLOOKUP(VALUE($A12),'FIAG9-RAll'!$B$2:$AC$500,3,FALSE),"") ->  | AH12: =IFERROR(VLOOKUP(VALUE($A12),'FIAG10-RAll'!$B$2:$AC$500,3,FALSE),"") ->  | AI12: =VLOOKUP(TEXT($A12,"0000"),'SchType from OADA'!$A$1:$B$679,2,FALSE) -> 1 | AJ12: N-ETO | AK12: N-SS | AL12: E
A13: 211 | B13: =VLOOKUP($A13,SchList!$A$2:$E$476,5,FALSE) -> 5 | C13: =VLOOKUP(A13,SchList!$A$2:$G$476,7,FALSE) -> SS-0 | D13: =VLOOKUP(A13,SchList!$A$2:$G$476,6,FALSE) ->  | E13: =VLOOKUP($A13,SchList!$A$2:$B$476,2,FALSE) -> DR. MANUEL C. BARREIRO ELEM | F13: =IF(VLOOKUP(TEXT($A13,"0000"),'2013 SG'!$D$2:$BE$500,29,FALSE)="Yes",VLOOKUP(TEXT($A13,"0000"),'2013 SG'!$D$2:$BE$500,30,FALSE)&VLOOKUP(TEXT($A13,"0000"),'2013 SG'!$D$2:$BE$500,54,FALSE),VLOOKUP(TEXT($A13,"0000"),'2013 SG'!$D$2:$BE$500,30,FALSE)) -> B | G13: 250 | H13: 65.01182033 | I13: 423 | J13: 275 | K13: =IFERROR(VLOOKUP(VALUE($A13),'FIAG3-RAll'!$B$2:$AC$500,12,FALSE)*100,"") -> 70 | L13: =IFERROR(VLOOKUP(VALUE($A13),'FIAG4-RAll'!$B$2:$AC$500,12,FALSE)*100,"") -> 71 | M13: =IFERROR(VLOOKUP(VALUE($A13),'FIAG5-RAll'!$B$2:$AC$500,12,FALSE)*100,"") -> 57 | N13: =IFERROR(VLOOKUP(VALUE($A13),'FIAG6-RAll'!$B$2:$AC$500,12,FALSE)*100,"") ->  | O13: =IFERROR(VLOOKUP(VALUE($A13),'FIAG7-RAll'!$B$2:$AC$500,12,FALSE)*100,"") ->  | P13: =IFERROR(VLOOKUP(VALUE($A13),'FIAG8-RAll'!$B$2:$AC$500,12,FALSE)*100,"") ->  | Q13: =IFERROR(VLOOKUP(VALUE($A13),'FIAG9-RAll'!$B$2:$AC$500,12,FALSE)*100,"") ->  | R13: =IFERROR(VLOOKUP(VALUE($A13),'FIAG10-RAll'!$B$2:$AC$500,12,FALSE)*100,"") ->  | S13: =IFERROR(VLOOKUP(VALUE($A13),'FIAG3-RAll'!$B$2:$AC$500,9,FALSE),"") -> 86 | T13: =IFERROR(VLOOKUP(VALUE($A13),'FIAG4-RAll'!$B$2:$AC$500,9,FALSE),"") -> 94 | U13: =IFERROR(VLOOKUP(VALUE($A13),'FIAG5-RAll'!$B$2:$AC$500,9,FALSE),"") -> 95 | V13: =IFERROR(VLOOKUP(VALUE($A13),'FIAG6-RAll'!$B$2:$AC$500,9,FALSE),"") ->  | W13: =IFERROR(VLOOKUP(VALUE($A13),'FIAG7-RAll'!$B$2:$AC$500,9,FALSE),"") ->  | X13: =IFERROR(VLOOKUP(VALUE($A13),'FIAG8-RAll'!$B$2:$AC$500,9,FALSE),"") ->  | Y13: =IFERROR(VLOOKUP(VALUE($A13),'FIAG9-RAll'!$B$2:$AC$500,9,FALSE),"") ->  | Z13: =IFERROR(VLOOKUP(VALUE($A13),'FIAG10-RAll'!$B$2:$AC$500,9,FALSE),"") ->  | AA13: =IFERROR(VLOOKUP(VALUE($A13),'FIAG3-RAll'!$B$2:$AC$500,3,FALSE),"") -> 123 | AB13: =IFERROR(VLOOKUP(VALUE($A13),'FIAG4-RAll'!$B$2:$AC$500,3,FALSE),"") -> 132 | AC13: =IFERROR(VLOOKUP(VALUE($A13),'FIAG5-RAll'!$B$2:$AC$500,3,FALSE),"") -> 168 | AD13: =IFERROR(VLOOKUP(VALUE($A13),'FIAG6-RAll'!$B$2:$AC$500,3,FALSE),"") ->  | AE13: =IFERROR(VLOOKUP(VALUE($A13),'FIAG7-RAll'!$B$2:$AC$500,3,FALSE),"") ->  | AF13: =IFERROR(VLOOKUP(VALUE($A13),'FIAG8-RAll'!$B$2:$AC$500,3,FALSE),"") ->  | AG13: =IFERROR(VLOOKUP(VALUE($A13),'FIAG9-RAll'!$B$2:$AC$500,3,FALSE),"") ->  | AH13: =IFERROR(VLOOKUP(VALUE($A13),'FIAG10-RAll'!$B$2:$AC$500,3,FALSE),"") ->  | AI13: =VLOOKUP(TEXT($A13,"0000"),'SchType from OADA'!$A$1:$B$679,2,FALSE) -> 1 | AJ13: N-ETO | AK13: N-SS | AL13: E
A14: 251 | B14: =VLOOKUP($A14,SchList!$A$2:$E$476,5,FALSE) -> 5 | C14: =VLOOKUP(A14,SchList!$A$2:$G$476,7,FALSE) -> SS-0 | D14: =VLOOKUP(A14,SchList!$A$2:$G$476,6,FALSE) ->  | E14: =VLOOKUP($A14,SchList!$A$2:$B$476,2,FALSE) -> ETHEL KOGER BECKHAM ELEMENTARY | F14: =IF(VLOOKUP(TEXT($A14,"0000"),'2013 SG'!$D$2:$BE$500,29,FALSE)="Yes",VLOOKUP(TEXT($A14,"0000"),'2013 SG'!$D$2:$BE$500,30,FALSE)&VLOOKUP(TEXT($A14,"0000"),'2013 SG'!$D$2:$BE$500,54,FALSE),VLOOKUP(TEXT($A14,"0000"),'2013 SG'!$D$2:$BE$500,30,FALSE)) -> A | G14: 306 | H14: 83.24022346 | I14: 358 | J14: 298 | K14: =IFERROR(VLOOKUP(VALUE($A14),'FIAG3-RAll'!$B$2:$AC$500,12,FALSE)*100,"") -> 85 | L14: =IFERROR(VLOOKUP(VALUE($A14),'FIAG4-RAll'!$B$2:$AC$500,12,FALSE)*100,"") -> 76 | M14: =IFERROR(VLOOKUP(VALUE($A14),'FIAG5-RAll'!$B$2:$AC$500,12,FALSE)*100,"") -> 89 | N14: =IFERROR(VLOOKUP(VALUE($A14),'FIAG6-RAll'!$B$2:$AC$500,12,FALSE)*100,"") ->  | O14: =IFERROR(VLOOKUP(VALUE($A14),'FIAG7-RAll'!$B$2:$AC$500,12,FALSE)*100,"") ->  | P14: =IFERROR(VLOOKUP(VALUE($A14),'FIAG8-RAll'!$B$2:$AC$500,12,FALSE)*100,"") ->  | Q14: =IFERROR(VLOOKUP(VALUE($A14),'FIAG9-RAll'!$B$2:$AC$500,12,FALSE)*100,"") ->  | R14: =IFERROR(VLOOKUP(VALUE($A14),'FIAG10-RAll'!$B$2:$AC$500,12,FALSE)*100,"") ->  | S14: =IFERROR(VLOOKUP(VALUE($A14),'FIAG3-RAll'!$B$2:$AC$500,9,FALSE),"") -> 99 | T14: =IFERROR(VLOOKUP(VALUE($A14),'FIAG4-RAll'!$B$2:$AC$500,9,FALSE),"") -> 94 | U14: =IFERROR(VLOOKUP(VALUE($A14),'FIAG5-RAll'!$B$2:$AC$500,9,FALSE),"") -> 105 | V14: =IFERROR(VLOOKUP(VALUE($A14),'FIAG6-RAll'!$B$2:$AC$500,9,FALSE),"") ->  | W14: =IFERROR(VLOOKUP(VALUE($A14),'FIAG7-RAll'!$B$2:$AC$500,9,FALSE),"") ->  | X14: =IFERROR(VLOOKUP(VALUE($A14),'FIAG8-RAll'!$B$2:$AC$500,9,FALSE),"") ->  | Y14: =IFERROR(VLOOKUP(VALUE($A14),'FIAG9-RAll'!$B$2:$AC$500,9,FALSE),"") ->  | Z14: =IFERROR(VLOOKUP(VALUE($A14),'FIAG10-RAll'!$B$2:$AC$500,9,FALSE),"") ->  | AA14: =IFERROR(VLOOKUP(VALUE($A14),'FIAG3-RAll'!$B$2:$AC$500,3,FALSE),"") -> 117 | AB14: =IFERROR(VLOOKUP(VALUE($A14),'FIAG4-RAll'!$B$2:$AC$500,3,FALSE),"") -> 123 | AC14: =IFERROR(VLOOKUP(VALUE($A14),'FIAG5-RAll'!$B$2:$AC$500,3,FALSE),"") -> 118 | AD14: =IFERROR(VLOOKUP(VALUE($A14),'FIAG6-RAll'!$B$2:$AC$500,3,FALSE),"") ->  | AE14: =IFERROR(VLOOKUP(VALUE($A14),'FIAG7-RAll'!$B$2:$AC$500,3,FALSE),"") ->  | AF14: =IFERROR(VLOOKUP(VALUE($A14),'FIAG8-RAll'!$B$2:$AC$500,3,FALSE),"") ->  | AG14: =IFERROR(VLOOKUP(VALUE($A14),'FIAG9-RAll'!$B$2:$AC$500,3,FALSE),"") ->  | AH14: =IFERROR(VLOOKUP(VALUE($A14),'FIAG10-RAll'!$B$2:$AC$500,3,FALSE),"") ->  | AI14: =VLOOKUP(TEXT($A14,"0000"),'SchType from OADA'!$A$1:$B$679,2,FALSE) -> 1 | AJ14: N-ETO | AK14: N-SS | AL14: E
A15: 261 | B15: =VLOOKUP($A15,SchList!$A$2:$E$476,5,FALSE) -> 5 | C15: =VLOOKUP(A15,SchList!$A$2:$G$476,7,FALSE) -> SS-0 | D15: =VLOOKUP(A15,SchList!$A$2:$G$476,6,FALSE) -> 1 | E15: =VLOOKUP($A15,SchList!$A$2:$B$476,2,FALSE) -> BEL-AIRE ELEMENTARY | F15: =IF(VLOOKUP(TEXT($A15,"0000"),'2013 SG'!$D$2:$BE$500,29,FALSE)="Yes",VLOOKUP(TEXT($A15,"0000"),'2013 SG'!$D$2:$BE$500,30,FALSE)&VLOOKUP(TEXT($A15,"0000"),'2013 SG'!$D$2:$BE$500,54,FALSE),VLOOKUP(TEXT($A15,"0000"),'2013 SG'!$D$2:$BE$500,30,FALSE)) -> C | G15: 68 | H15: 39.88764045 | I15: 178 | J15: 71 | K15: =IFERROR(VLOOKUP(VALUE($A15),'FIAG3-RAll'!$B$2:$AC$500,12,FALSE)*100,"") -> 20 | L15: =IFERROR(VLOOKUP(VALUE($A15),'FIAG4-RAll'!$B$2:$AC$500,12,FALSE)*100,"") -> 41 | M15: =IFERROR(VLOOKUP(VALUE($A15),'FIAG5-RAll'!$B$2:$AC$500,12,FALSE)*100,"") -> 61 | N15: =IFERROR(VLOOKUP(VALUE($A15),'FIAG6-RAll'!$B$2:$AC$500,12,FALSE)*100,"") ->  | O15: =IFERROR(VLOOKUP(VALUE($A15),'FIAG7-RAll'!$B$2:$AC$500,12,FALSE)*100,"") ->  | P15: =IFERROR(VLOOKUP(VALUE($A15),'FIAG8-RAll'!$B$2:$AC$500,12,FALSE)*100,"") ->  | Q15: =IFERROR(VLOOKUP(VALUE($A15),'FIAG9-RAll'!$B$2:$AC$500,12,FALSE)*100,"") ->  | R15: =IFERROR(VLOOKUP(VALUE($A15),'FIAG10-RAll'!$B$2:$AC$500,12,FALSE)*100,"") ->  | S15: =IFERROR(VLOOKUP(VALUE($A15),'FIAG3-RAll'!$B$2:$AC$500,9,FALSE),"") -> 13 | T15: =IFERROR(VLOOKUP(VALUE($A15),'FIAG4-RAll'!$B$2:$AC$500,9,FALSE),"") -> 24 | U15: =IFERROR(VLOOKUP(VALUE($A15),'FIAG5-RAll'!$B$2:$AC$500,9,FALSE),"") -> 34 | V15: =IFERROR(VLOOKUP(VALUE($A15),'FIAG6-RAll'!$B$2:$AC$500,9,FALSE),"") ->  | W15: =IFERROR(VLOOKUP(VALUE($A15),'FIAG7-RAll'!$B$2:$AC$500,9,FALSE),"") ->  | X15: =IFERROR(VLOOKUP(VALUE($A15),'FIAG8-RAll'!$B$2:$AC$500,9,FALSE),"") ->  | Y15: =IFERROR(VLOOKUP(VALUE($A15),'FIAG9-RAll'!$B$2:$AC$500,9,FALSE),"") ->  | Z15: =IFERROR(VLOOKUP(VALUE($A15),'FIAG10-RAll'!$B$2:$AC$500,9,FALSE),"") ->  | AA15: =IFERROR(VLOOKUP(VALUE($A15),'FIAG3-RAll'!$B$2:$AC$500,3,FALSE),"") -> 64 | AB15: =IFERROR(VLOOKUP(VALUE($A15),'FIAG4-RAll'!$B$2:$AC$500,3,FALSE),"") -> 58 | AC15: =IFERROR(VLOOKUP(VALUE($A15),'FIAG5-RAll'!$B$2:$AC$500,3,FALSE),"") -> 56 | AD15: =IFERROR(VLOOKUP(VALUE($A15),'FIAG6-RAll'!$B$2:$AC$500,3,FALSE),"") ->  | AE15: =IFERROR(VLOOKUP(VALUE($A15),'FIAG7-RAll'!$B$2:$AC$500,3,FALSE),"") ->  | AF15: =IFERROR(VLOOKUP(VALUE($A15),'FIAG8-RAll'!$B$2:$AC$500,3,FALSE),"") ->  | AG15: =IFERROR(VLOOKUP(VALUE($A15),'FIAG9-RAll'!$B$2:$AC$500,3,FALSE),"") ->  | AH15: =IFERROR(VLOOKUP(VALUE($A15),'FIAG10-RAll'!$B$2:$AC$500,3,FALSE),"") ->  | AI15: =VLOOKUP(TEXT($A15,"0000"),'SchType from OADA'!$A$1:$B$679,2,FALSE) -> 1 | AJ15: ETO | AK15: N-SS | AL15: E
A16: 271 | B16: =VLOOKUP($A16,SchList!$A$2:$E$476,5,FALSE) -> 5 | C16: =VLOOKUP(A16,SchList!$A$2:$G$476,7,FALSE) -> SS-0 | D16: =VLOOKUP(A16,SchList!$A$2:$G$476,6,FALSE) ->  | E16: =VLOOKUP($A16,SchList!$A$2:$B$476,2,FALSE) -> BENT TREE ELEMENTARY | F16: =IF(VLOOKUP(TEXT($A16,"0000"),'2013 SG'!$D$2:$BE$500,29,FALSE)="Yes",VLOOKUP(TEXT($A16,"0000"),'2013 SG'!$D$2:$BE$500,30,FALSE)&VLOOKUP(TEXT($A16,"0000"),'2013 SG'!$D$2:$BE$500,54,FALSE),VLOOKUP(TEXT($A16,"0000"),'2013 SG'!$D$2:$BE$500,30,FALSE)) -> A | G16: 200 | H16: 56.84647303 | I16: 241 | J16: 137 | K16: =IFERROR(VLOOKUP(VALUE($A16),'FIAG3-RAll'!$B$2:$AC$500,12,FALSE)*100,"") -> 48 | L16: =IFERROR(VLOOKUP(VALUE($A16),'FIAG4-RAll'!$B$2:$AC$500,12,FALSE)*100,"") -> 68 | M16: =IFERROR(VLOOKUP(VALUE($A16),'FIAG5-RAll'!$B$2:$AC$500,12,FALSE)*100,"") -> 56 | N16: =IFERROR(VLOOKUP(VALUE($A16),'FIAG6-RAll'!$B$2:$AC$500,12,FALSE)*100,"") ->  | O16: =IFERROR(VLOOKUP(VALUE($A16),'FIAG7-RAll'!$B$2:$AC$500,12,FALSE)*100,"") ->  | P16: =IFERROR(VLOOKUP(VALUE($A16),'FIAG8-RAll'!$B$2:$AC$500,12,FALSE)*100,"") ->  | Q16: =IFERROR(VLOOKUP(VALUE($A16),'FIAG9-RAll'!$B$2:$AC$500,12,FALSE)*100,"") ->  | R16: =IFERROR(VLOOKUP(VALUE($A16),'FIAG10-RAll'!$B$2:$AC$500,12,FALSE)*100,"") ->  | S16: =IFERROR(VLOOKUP(VALUE($A16),'FIAG3-RAll'!$B$2:$AC$500,9,FALSE),"") -> 40 | T16: =IFERROR(VLOOKUP(VALUE($A16),'FIAG4-RAll'!$B$2:$AC$500,9,FALSE),"") -> 48 | U16: =IFERROR(VLOOKUP(VALUE($A16),'FIAG5-RAll'!$B$2:$AC$500,9,FALSE),"") -> 49 | V16: =IFERROR(VLOOKUP(VALUE($A16),'FIAG6-RAll'!$B$2:$AC$500,9,FALSE),"") ->  | W16: =IFERROR(VLOOKUP(VALUE($A16),'FIAG7-RAll'!$B$2:$AC$500,9,FALSE),"") ->  | X16: =IFERROR(VLOOKUP(VALUE($A16),'FIAG8-RAll'!$B$2:$AC$500,9,FALSE),"") ->  | Y16: =IFERROR(VLOOKUP(VALUE($A16),'FIAG9-RAll'!$B$2:$AC$500,9,FALSE),"") ->  | Z16: =IFERROR(VLOOKUP(VALUE($A16),'FIAG10-RAll'!$B$2:$AC$500,9,FALSE),"") ->  | AA16: =IFERROR(VLOOKUP(VALUE($A16),'FIAG3-RAll'!$B$2:$AC$500,3,FALSE),"") -> 83 | AB16: =IFERROR(VLOOKUP(VALUE($A16),'FIAG4-RAll'!$B$2:$AC$500,3,FALSE),"") -> 71 | AC16: =IFERROR(VLOOKUP(VALUE($A16),'FIAG5-RAll'!$B$2:$AC$500,3,FALSE),"") -> 87 | AD16: =IFERROR(VLOOKUP(VALUE($A16),'FIAG6-RAll'!$B$2:$AC$500,3,FALSE),"") ->  | AE16: =IFERROR(VLOOKUP(VALUE($A16),'FIAG7-RAll'!$B$2:$AC$500,3,FALSE),"") ->  | AF16: =IFERROR(VLOOKUP(VALUE($A16),'FIAG8-RAll'!$B$2:$AC$500,3,FALSE),"") ->  | AG16: =IFERROR(VLOOKUP(VALUE($A16),'FIAG9-RAll'!$B$2:$AC$500,3,FALSE),"") ->  | AH16: =IFERROR(VLOOKUP(VALUE($A16),'FIAG10-RAll'!$B$2:$AC$500,3,FALSE),"") ->  | AI16: =VLOOKUP(TEXT($A16,"0000"),'SchType from OADA'!$A$1:$B$679,2,FALSE) -> 1 | AJ16: N-ETO | AK16: N-SS | AL16: E
A17: 311 | B17: =VLOOKUP($A17,SchList!$A$2:$E$476,5,FALSE) -> 5 | C17: =VLOOKUP(A17,SchList!$A$2:$G$476,7,FALSE) -> SS-2 | D17: =VLOOKUP(A17,SchList!$A$2:$G$476,6,FALSE) ->  | E17: =VLOOKUP($A17,SchList!$A$2:$B$476,2,FALSE) -> GOULDS ELEMENTARY | F17: =IF(VLOOKUP(TEXT($A17,"0000"),'2013 SG'!$D$2:$BE$500,29,FALSE)="Yes",VLOOKUP(TEXT($A17,"0000"),'2013 SG'!$D$2:$BE$500,30,FALSE)&VLOOKUP(TEXT($A17,"0000"),'2013 SG'!$D$2:$BE$500,54,FALSE),VLOOKUP(TEXT($A17,"0000"),'2013 SG'!$D$2:$BE$500,30,FALSE)) -> C | G17: 163 | H17: 51.45228216 | I17: 241 | J17: 124 | K17: =IFERROR(VLOOKUP(VALUE($A17),'FIAG3-RAll'!$B$2:$AC$500,12,FALSE)*100,"") -> 44 | L17: =IFERROR(VLOOKUP(VALUE($A17),'FIAG4-RAll'!$B$2:$AC$500,12,FALSE)*100,"") -> 52 | M17: =IFERROR(VLOOKUP(VALUE($A17),'FIAG5-RAll'!$B$2:$AC$500,12,FALSE)*100,"") -> 56 | N17: =IFERROR(VLOOKUP(VALUE($A17),'FIAG6-RAll'!$B$2:$AC$500,12,FALSE)*100,"") ->  | O17: =IFERROR(VLOOKUP(VALUE($A17),'FIAG7-RAll'!$B$2:$AC$500,12,FALSE)*100,"") ->  | P17: =IFERROR(VLOOKUP(VALUE($A17),'FIAG8-RAll'!$B$2:$AC$500,12,FALSE)*100,"") ->  | Q17: =IFERROR(VLOOKUP(VALUE($A17),'FIAG9-RAll'!$B$2:$AC$500,12,FALSE)*100,"") ->  | R17: =IFERROR(VLOOKUP(VALUE($A17),'FIAG10-RAll'!$B$2:$AC$500,12,FALSE)*100,"") ->  | S17: =IFERROR(VLOOKUP(VALUE($A17),'FIAG3-RAll'!$B$2:$AC$500,9,FALSE),"") -> 35 | T17: =IFERROR(VLOOKUP(VALUE($A17),'FIAG4-RAll'!$B$2:$AC$500,9,FALSE),"") -> 32 | U17: =IFERROR(VLOOKUP(VALUE($A17),'FIAG5-RAll'!$B$2:$AC$500,9,FALSE),"") -> 57 | V17: =IFERROR(VLOOKUP(VALUE($A17),'FIAG6-RAll'!$B$2:$AC$500,9,FALSE),"") ->  | W17: =IFERROR(VLOOKUP(VALUE($A17),'FIAG7-RAll'!$B$2:$AC$500,9,FALSE),"") ->  | X17: =IFERROR(VLOOKUP(VALUE($A17),'FIAG8-RAll'!$B$2:$AC$500,9,FALSE),"") ->  | Y17: =IFERROR(VLOOKUP(VALUE($A17),'FIAG9-RAll'!$B$2:$AC$500,9,FALSE),"") ->  | Z17: =IFERROR(VLOOKUP(VALUE($A17),'FIAG10-RAll'!$B$2:$AC$500,9,FALSE),"") ->  | AA17: =IFERROR(VLOOKUP(VALUE($A17),'FIAG3-RAll'!$B$2:$AC$500,3,FALSE),"") -> 79 | AB17: =IFERROR(VLOOKUP(VALUE($A17),'FIAG4-RAll'!$B$2:$AC$500,3,FALSE),"") -> 61 | AC17: =IFERROR(VLOOKUP(VALUE($A17),'FIAG5-RAll'!$B$2:$AC$500,3,FALSE),"") -> 101 | AD17: =IFERROR(VLOOKUP(VALUE($A17),'FIAG6-RAll'!$B$2:$AC$500,3,FALSE),"") ->  | AE17: =IFERROR(VLOOKUP(VALUE($A17),'FIAG7-RAll'!$B$2:$AC$500,3,FALSE),"") ->  | AF17: =IFERROR(VLOOKUP(VALUE($A17),'FIAG8-RAll'!$B$2:$AC$500,3,FALSE),"") ->  | AG17: =IFERROR(VLOOKUP(VALUE($A17),'FIAG9-RAll'!$B$2:$AC$500,3,FALSE),"") ->  | AH17: =IFERROR(VLOOKUP(VALUE($A17),'FIAG10-RAll'!$B$2:$AC$500,3,FALSE),"") ->  | AI17: =VLOOKUP(TEXT($A17,"0000"),'SchType from OADA'!$A$1:$B$679,2,FALSE) -> 1 | AJ17: N-ETO | AK17: SS | AL17: E
A18: 321 | B18: =VLOOKUP($A18,SchList!$A$2:$E$476,5,FALSE) -> 1 | C18: =VLOOKUP(A18,SchList!$A$2:$G$476,7,FALSE) -> SS-1 | D18: =VLOOKUP(A18,SchList!$A$2:$G$476,6,FALSE) ->  | E18: =VLOOKUP($A18,SchList!$A$2:$B$476,2,FALSE) -> BISCAYNE ELEMENTARY | F18: =IF(VLOOKUP(TEXT($A18,"0000"),'2013 SG'!$D$2:$BE$500,29,FALSE)="Yes",VLOOKUP(TEXT($A18,"0000"),'2013 SG'!$D$2:$BE$500,30,FALSE)&VLOOKUP(TEXT($A18,"0000"),'2013 SG'!$D$2:$BE$500,54,FALSE),VLOOKUP(TEXT($A18,"0000"),'2013 SG'!$D$2:$BE$500,30,FALSE)) -> C | G18: 127 | H18: 47.03832753 | I18: 287 | J18: 135 | K18: =IFERROR(VLOOKUP(VALUE($A18),'FIAG3-RAll'!$B$2:$AC$500,12,FALSE)*100,"") -> 39 | L18: =IFERROR(VLOOKUP(VALUE($A18),'FIAG4-RAll'!$B$2:$AC$500,12,FALSE)*100,"") -> 54 | M18: =IFERROR(VLOOKUP(VALUE($A18),'FIAG5-RAll'!$B$2:$AC$500,12,FALSE)*100,"") -> 49 | N18: =IFERROR(VLOOKUP(VALUE($A18),'FIAG6-RAll'!$B$2:$AC$500,12,FALSE)*100,"") ->  | O18: =IFERROR(VLOOKUP(VALUE($A18),'FIAG7-RAll'!$B$2:$AC$500,12,FALSE)*100,"") ->  | P18: =IFERROR(VLOOKUP(VALUE($A18),'FIAG8-RAll'!$B$2:$AC$500,12,FALSE)*100,"") ->  | Q18: =IFERROR(VLOOKUP(VALUE($A18),'FIAG9-RAll'!$B$2:$AC$500,12,FALSE)*100,"") ->  | R18: =IFERROR(VLOOKUP(VALUE($A18),'FIAG10-RAll'!$B$2:$AC$500,12,FALSE)*100,"") ->  | S18: =IFERROR(VLOOKUP(VALUE($A18),'FIAG3-RAll'!$B$2:$AC$500,9,FALSE),"") -> 39 | T18: =IFERROR(VLOOKUP(VALUE($A18),'FIAG4-RAll'!$B$2:$AC$500,9,FALSE),"") -> 47 | U18: =IFERROR(VLOOKUP(VALUE($A18),'FIAG5-RAll'!$B$2:$AC$500,9,FALSE),"") -> 49 | V18: =IFERROR(VLOOKUP(VALUE($A18),'FIAG6-RAll'!$B$2:$AC$500,9,FALSE),"") ->  | W18: =IFERROR(VLOOKUP(VALUE($A18),'FIAG7-RAll'!$B$2:$AC$500,9,FALSE),"") ->  | X18: =IFERROR(VLOOKUP(VALUE($A18),'FIAG8-RAll'!$B$2:$AC$500,9,FALSE),"") ->  | Y18: =IFERROR(VLOOKUP(VALUE($A18),'FIAG9-RAll'!$B$2:$AC$500,9,FALSE),"") ->  | Z18: =IFERROR(VLOOKUP(VALUE($A18),'FIAG10-RAll'!$B$2:$AC$500,9,FALSE),"") ->  | AA18: =IFERROR(VLOOKUP(VALUE($A18),'FIAG3-RAll'!$B$2:$AC$500,3,FALSE),"") -> 99 | AB18: =IFERROR(VLOOKUP(VALUE($A18),'FIAG4-RAll'!$B$2:$AC$500,3,FALSE),"") -> 87 | AC18: =IFERROR(VLOOKUP(VALUE($A18),'FIAG5-RAll'!$B$2:$AC$500,3,FALSE),"") -> 101 | AD18: =IFERROR(VLOOKUP(VALUE($A18),'FIAG6-RAll'!$B$2:$AC$500,3,FALSE),"") ->  | AE18: =IFERROR(VLOOKUP(VALUE($A18),'FIAG7-RAll'!$B$2:$AC$500,3,FALSE),"") ->  | AF18: =IFERROR(VLOOKUP(VALUE($A18),'FIAG8-RAll'!$B$2:$AC$500,3,FALSE),"") ->  | AG18: =IFERROR(VLOOKUP(VALUE($A18),'FIAG9-RAll'!$B$2:$AC$500,3,FALSE),"") ->  | AH18: =IFERROR(VLOOKUP(VALUE($A18),'FIAG10-RAll'!$B$2:$AC$500,3,FALSE),"") ->  | AI18: =VLOOKUP(TEXT($A18,"0000"),'SchType from OADA'!$A$1:$B$679,2,FALSE) -> 1 | AJ18: N-ETO | AK18: SS | AL18: E
A19: 341 | B19: =VLOOKUP($A19,SchList!$A$2:$E$476,5,FALSE) -> 1 | C19: =VLOOKUP(A19,SchList!$A$2:$G$476,7,FALSE) -> SS-0 | D19: =VLOOKUP(A19,SchList!$A$2:$G$476,6,FALSE) -> 2 | E19: =VLOOKUP($A19,SchList!$A$2:$B$476,2,FALSE) -> ARCH CREEK ELEMENTARY SCHOOL | F19: =IF(VLOOKUP(TEXT($A19,"0000"),'2013 SG'!$D$2:$BE$500,29,FALSE)="Yes",VLOOKUP(TEXT($A19,"0000"),'2013 SG'!$D$2:$BE$500,30,FALSE)&VLOOKUP(TEXT($A19,"0000"),'2013 SG'!$D$2:$BE$500,54,FALSE),VLOOKUP(TEXT($A19,"0000"),'2013 SG'!$D$2:$BE$500,30,FALSE)) -> C(D) | G19: 115 | H19: 45.54455446 | I19: 303 | J19: 138 | K19: =IFERROR(VLOOKUP(VALUE($A19),'FIAG3-RAll'!$B$2:$AC$500,12,FALSE)*100,"") -> 30 | L19: =IFERROR(VLOOKUP(VALUE($A19),'FIAG4-RAll'!$B$2:$AC$500,12,FALSE)*100,"") -> 60 | M19: =IFERROR(VLOOKUP(VALUE($A19),'FIAG5-RAll'!$B$2:$AC$500,12,FALSE)*100,"") -> 52 | N19: =IFERROR(VLOOKUP(VALUE($A19),'FIAG6-RAll'!$B$2:$AC$500,12,FALSE)*100,"") ->  | O19: =IFERROR(VLOOKUP(VALUE($A19),'FIAG7-RAll'!$B$2:$AC$500,12,FALSE)*100,"") ->  | P19: =IFERROR(VLOOKUP(VALUE($A19),'FIAG8-RAll'!$B$2:$AC$500,12,FALSE)*100,"") ->  | Q19: =IFERROR(VLOOKUP(VALUE($A19),'FIAG9-RAll'!$B$2:$AC$500,12,FALSE)*100,"") ->  | R19: =IFERROR(VLOOKUP(VALUE($A19),'FIAG10-RAll'!$B$2:$AC$500,12,FALSE)*100,"") ->  | S19: =IFERROR(VLOOKUP(VALUE($A19),'FIAG3-RAll'!$B$2:$AC$500,9,FALSE),"") -> 34 | T19: =IFERROR(VLOOKUP(VALUE($A19),'FIAG4-RAll'!$B$2:$AC$500,9,FALSE),"") -> 50 | U19: =IFERROR(VLOOKUP(VALUE($A19),'FIAG5-RAll'!$B$2:$AC$500,9,FALSE),"") -> 54 | V19: =IFERROR(VLOOKUP(VALUE($A19),'FIAG6-RAll'!$B$2:$AC$500,9,FALSE),"") ->  | W19: =IFERROR(VLOOKUP(VALUE($A19),'FIAG7-RAll'!$B$2:$AC$500,9,FALSE),"") ->  | X19: =IFERROR(VLOOKUP(VALUE($A19),'FIAG8-RAll'!$B$2:$AC$500,9,FALSE),"") ->  | Y19: =IFERROR(VLOOKUP(VALUE($A19),'FIAG9-RAll'!$B$2:$AC$500,9,FALSE),"") ->  | Z19: =IFERROR(VLOOKUP(VALUE($A19),'FIAG10-RAll'!$B$2:$AC$500,9,FALSE),"") ->  | AA19: =IFERROR(VLOOKUP(VALUE($A19),'FIAG3-RAll'!$B$2:$AC$500,3,FALSE),"") -> 115 | AB19: =IFERROR(VLOOKUP(VALUE($A19),'FIAG4-RAll'!$B$2:$AC$500,3,FALSE),"") -> 84 | AC19: =IFERROR(VLOOKUP(VALUE($A19),'FIAG5-RAll'!$B$2:$AC$500,3,FALSE),"") -> 104 | AD19: =IFERROR(VLOOKUP(VALUE($A19),'FIAG6-RAll'!$B$2:$AC$500,3,FALSE),"") ->  | AE19: =IFERROR(VLOOKUP(VALUE($A19),'FIAG7-RAll'!$B$2:$AC$500,3,FALSE),"") ->  | AF19: =IFERROR(VLOOKUP(VALUE($A19),'FIAG8-RAll'!$B$2:$AC$500,3,FALSE),"") ->  | AG19: =IFERROR(VLOOKUP(VALUE($A19),'FIAG9-RAll'!$B$2:$AC$500,3,FALSE),"") ->  | AH19: =IFERROR(VLOOKUP(VALUE($A19),'FIAG10-RAll'!$B$2:$AC$500,3,FALSE),"") ->  | AI19: =VLOOKUP(TEXT($A19,"0000"),'SchType from OADA'!$A$1:$B$679,2,FALSE) -> 1 | AJ19: ETO | AK19: N-SS | AL19: E
A20: 361 | B20: =VLOOKUP($A20,SchList!$A$2:$E$476,5,FALSE) -> 6 | C20: =VLOOKUP(A20,SchList!$A$2:$G$476,7,FALSE) -> SS-0 | D20: =VLOOKUP(A20,SchList!$A$2:$G$476,6,FALSE) -> 3 | E20: =VLOOKUP($A20,SchList!$A$2:$B$476,2,FALSE) -> BISCAYNE GARDENS ELEMENTARY | F20: =IF(VLOOKUP(TEXT($A20,"0000"),'2013 SG'!$D$2:$BE$500,29,FALSE)="Yes",VLOOKUP(TEXT($A20,"0000"),'2013 SG'!$D$2:$BE$500,30,FALSE)&VLOOKUP(TEXT($A20,"0000"),'2013 SG'!$D$2:$BE$500,54,FALSE),VLOOKUP(TEXT($A20,"0000"),'2013 SG'!$D$2:$BE$500,30,FALSE)) -> D | G20: 74 | H20: 40.6504065 | I20: 246 | J20: 100 | K20: =IFERROR(VLOOKUP(VALUE($A20),'FIAG3-RAll'!$B$2:$AC$500,12,FALSE)*100,"") -> 31 | L20: =IFERROR(VLOOKUP(VALUE($A20),'FIAG4-RAll'!$B$2:$AC$500,12,FALSE)*100,"") -> 52 | M20: =IFERROR(VLOOKUP(VALUE($A20),'FIAG5-RAll'!$B$2:$AC$500,12,FALSE)*100,"") -> 40 | N20: =IFERROR(VLOOKUP(VALUE($A20),'FIAG6-RAll'!$B$2:$AC$500,12,FALSE)*100,"") ->  | O20: =IFERROR(VLOOKUP(VALUE($A20),'FIAG7-RAll'!$B$2:$AC$500,12,FALSE)*100,"") ->  | P20: =IFERROR(VLOOKUP(VALUE($A20),'FIAG8-RAll'!$B$2:$AC$500,12,FALSE)*100,"") ->  | Q20: =IFERROR(VLOOKUP(VALUE($A20),'FIAG9-RAll'!$B$2:$AC$500,12,FALSE)*100,"") ->  | R20: =IFERROR(VLOOKUP(VALUE($A20),'FIAG10-RAll'!$B$2:$AC$500,12,FALSE)*100,"") ->  | S20: =IFERROR(VLOOKUP(VALUE($A20),'FIAG3-RAll'!$B$2:$AC$500,9,FALSE),"") -> 26 | T20: =IFERROR(VLOOKUP(VALUE($A20),'FIAG4-RAll'!$B$2:$AC$500,9,FALSE),"") -> 40 | U20: =IFERROR(VLOOKUP(VALUE($A20),'FIAG5-RAll'!$B$2:$AC$500,9,FALSE),"") -> 34 | V20: =IFERROR(VLOOKUP(VALUE($A20),'FIAG6-RAll'!$B$2:$AC$500,9,FALSE),"") ->  | W20: =IFERROR(VLOOKUP(VALUE($A20),'FIAG7-RAll'!$B$2:$AC$500,9,FALSE),"") ->  | X20: =IFERROR(VLOOKUP(VALUE($A20),'FIAG8-RAll'!$B$2:$AC$500,9,FALSE),"") ->  | Y20: =IFERROR(VLOOKUP(VALUE($A20),'FIAG9-RAll'!$B$2:$AC$500,9,FALSE),"") ->  | Z20: =IFERROR(VLOOKUP(VALUE($A20),'FIAG10-RAll'!$B$2:$AC$500,9,FALSE),"") ->  | AA20: =IFERROR(VLOOKUP(VALUE($A20),'FIAG3-RAll'!$B$2:$AC$500,3,FALSE),"") -> 83 | AB20: =IFERROR(VLOOKUP(VALUE($A20),'FIAG4-RAll'!$B$2:$AC$500,3,FALSE),"") -> 77 | AC20: =IFERROR(VLOOKUP(VALUE($A20),'FIAG5-RAll'!$B$2:$AC$500,3,FALSE),"") -> 86 | AD20: =IFERROR(VLOOKUP(VALUE($A20),'FIAG6-RAll'!$B$2:$AC$500,3,FALSE),"") ->  | AE20: =IFERROR(VLOOKUP(VALUE($A20),'FIAG7-RAll'!$B$2:$AC$500,3,FALSE),"") ->  | AF20: =IFERROR(VLOOKUP(VALUE($A20),'FIAG8-RAll'!$B$2:$AC$500,3,FALSE),"") ->  | AG20: =IFERROR(VLOOKUP(VALUE($A20),'FIAG9-RAll'!$B$2:$AC$500,3,FALSE),"") ->  | AH20: =IFERROR(VLOOKUP(VALUE($A20),'FIAG10-RAll'!$B$2:$AC$500,3,FALSE),"") ->  | AI20: =VLOOKUP(TEXT($A20,"0000"),'SchType from OADA'!$A$1:$B$679,2,FALSE) -> 1 | AJ20: ETO | AK20: N-SS | AL20: E
A21: 401 | B21: =VLOOKUP($A21,SchList!$A$2:$E$476,5,FALSE) -> 4 | C21: =VLOOKUP(A21,SchList!$A$2:$G$476,7,FALSE) -> SS-0 | D21: =VLOOKUP(A21,SchList!$A$2:$G$476,6,FALSE) ->  | E21: =VLOOKUP($A21,SchList!$A$2:$B$476,2,FALSE) -> VAN E. BLANTON ELEMENTARY | F21: =IF(VLOOKUP(TEXT($A21,"0000"),'2013 SG'!$D$2:$BE$500,29,FALSE)="Yes",VLOOKUP(TEXT($A21,"0000"),'2013 SG'!$D$2:$BE$500,30,FALSE)&VLOOKUP(TEXT($A21,"0000"),'2013 SG'!$D$2:$BE$500,54,FALSE),VLOOKUP(TEXT($A21,"0000"),'2013 SG'!$D$2:$BE$500,30,FALSE)) -> B | G21: 79 | H21: 41.08527132 | I21: 258 | J21: 106 | K21: =IFERROR(VLOOKUP(VALUE($A21),'FIAG3-RAll'!$B$2:$AC$500,12,FALSE)*100,"") -> 30 | L21: =IFERROR(VLOOKUP(VALUE($A21),'FIAG4-RAll'!$B$2:$AC$500,12,FALSE)*100,"") -> 46 | M21: =IFERROR(VLOOKUP(VALUE($A21),'FIAG5-RAll'!$B$2:$AC$500,12,FALSE)*100,"") -> 49 | N21: =IFERROR(VLOOKUP(VALUE($A21),'FIAG6-RAll'!$B$2:$AC$500,12,FALSE)*100,"") ->  | O21: =IFERROR(VLOOKUP(VALUE($A21),'FIAG7-RAll'!$B$2:$AC$500,12,FALSE)*100,"") ->  | P21: =IFERROR(VLOOKUP(VALUE($A21),'FIAG8-RAll'!$B$2:$AC$500,12,FALSE)*100,"") ->  | Q21: =IFERROR(VLOOKUP(VALUE($A21),'FIAG9-RAll'!$B$2:$AC$500,12,FALSE)*100,"") ->  | R21: =IFERROR(VLOOKUP(VALUE($A21),'FIAG10-RAll'!$B$2:$AC$500,12,FALSE)*100,"") ->  | S21: =IFERROR(VLOOKUP(VALUE($A21),'FIAG3-RAll'!$B$2:$AC$500,9,FALSE),"") -> 30 | T21: =IFERROR(VLOOKUP(VALUE($A21),'FIAG4-RAll'!$B$2:$AC$500,9,FALSE),"") -> 37 | U21: =IFERROR(VLOOKUP(VALUE($A21),'FIAG5-RAll'!$B$2:$AC$500,9,FALSE),"") -> 39 | V21: =IFERROR(VLOOKUP(VALUE($A21),'FIAG6-RAll'!$B$2:$AC$500,9,FALSE),"") ->  | W21: =IFERROR(VLOOKUP(VALUE($A21),'FIAG7-RAll'!$B$2:$AC$500,9,FALSE),"") ->  | X21: =IFERROR(VLOOKUP(VALUE($A21),'FIAG8-RAll'!$B$2:$AC$500,9,FALSE),"") ->  | Y21: =IFERROR(VLOOKUP(VALUE($A21),'FIAG9-RAll'!$B$2:$AC$500,9,FALSE),"") ->  | Z21: =IFERROR(VLOOKUP(VALUE($A21),'FIAG10-RAll'!$B$2:$AC$500,9,FALSE),"") ->  | AA21: =IFERROR(VLOOKUP(VALUE($A21),'FIAG3-RAll'!$B$2:$AC$500,3,FALSE),"") -> 99 | AB21: =IFERROR(VLOOKUP(VALUE($A21),'FIAG4-RAll'!$B$2:$AC$500,3,FALSE),"") -> 80 | AC21: =IFERROR(VLOOKUP(VALUE($A21),'FIAG5-RAll'!$B$2:$AC$500,3,FALSE),"") -> 79 | AD21: =IFERROR(VLOOKUP(VALUE($A21),'FIAG6-RAll'!$B$2:$AC$500,3,FALSE),"") ->  | AE21: =IFERROR(VLOOKUP(VALUE($A21),'FIAG7-RAll'!$B$2:$AC$500,3,FALSE),"") ->  | AF21: =IFERROR(VLOOKUP(VALUE($A21),'FIAG8-RAll'!$B$2:$AC$500,3,FALSE),"") ->  | AG21: =IFERROR(VLOOKUP(VALUE($A21),'FIAG9-RAll'!$B$2:$AC$500,3,FALSE),"") ->  | AH21: =IFERROR(VLOOKUP(VALUE($A21),'FIAG10-RAll'!$B$2:$AC$500,3,FALSE),"") ->  | AI21: =VLOOKUP(TEXT($A21,"0000"),'SchType from OADA'!$A$1:$B$679,2,FALSE) -> 1 | AJ21: N-ETO | AK21: N-SS | AL21: E
A22: 441 | B22: =VLOOKUP($A22,SchList!$A$2:$E$476,5,FALSE) -> 5 | C22: =VLOOKUP(A22,SchList!$A$2:$G$476,7,FALSE) -> SS-0 | D22: =VLOOKUP(A22,SchList!$A$2:$G$476,6,FALSE) ->  | E22: =VLOOKUP($A22,SchList!$A$2:$B$476,2,FALSE) -> BLUE LAKES ELEMENTARY | F22: =IF(VLOOKUP(TEXT($A22,"0000"),'2013 SG'!$D$2:$BE$500,29,FALSE)="Yes",VLOOKUP(TEXT($A22,"0000"),'2013 SG'!$D$2:$BE$500,30,FALSE)&VLOOKUP(TEXT($A22,"0000"),'2013 SG'!$D$2:$BE$500,54,FALSE),VLOOKUP(TEXT($A22,"0000"),'2013 SG'!$D$2:$BE$500,30,FALSE)) -> B | G22: 217 | H22: 59.02439024 | I22: 205 | J22: 121 | K22: =IFERROR(VLOOKUP(VALUE($A22),'FIAG3-RAll'!$B$2:$AC$500,12,FALSE)*100,"") -> 62 | L22: =IFERROR(VLOOKUP(VALUE($A22),'FIAG4-RAll'!$B$2:$AC$500,12,FALSE)*100,"") -> 64 | M22: =IFERROR(VLOOKUP(VALUE($A22),'FIAG5-RAll'!$B$2:$AC$500,12,FALSE)*100,"") -> 51 | N22: =IFERROR(VLOOKUP(VALUE($A22),'FIAG6-RAll'!$B$2:$AC$500,12,FALSE)*100,"") ->  | O22: =IFERROR(VLOOKUP(VALUE($A22),'FIAG7-RAll'!$B$2:$AC$500,12,FALSE)*100,"") ->  | P22: =IFERROR(VLOOKUP(VALUE($A22),'FIAG8-RAll'!$B$2:$AC$500,12,FALSE)*100,"") ->  | Q22: =IFERROR(VLOOKUP(VALUE($A22),'FIAG9-RAll'!$B$2:$AC$500,12,FALSE)*100,"") ->  | R22: =IFERROR(VLOOKUP(VALUE($A22),'FIAG10-RAll'!$B$2:$AC$500,12,FALSE)*100,"") ->  | S22: =IFERROR(VLOOKUP(VALUE($A22),'FIAG3-RAll'!$B$2:$AC$500,9,FALSE),"") -> 38 | T22: =IFERROR(VLOOKUP(VALUE($A22),'FIAG4-RAll'!$B$2:$AC$500,9,FALSE),"") -> 45 | U22: =IFERROR(VLOOKUP(VALUE($A22),'FIAG5-RAll'!$B$2:$AC$500,9,FALSE),"") -> 38 | V22: =IFERROR(VLOOKUP(VALUE($A22),'FIAG6-RAll'!$B$2:$AC$500,9,FALSE),"") ->  | W22: =IFERROR(VLOOKUP(VALUE($A22),'FIAG7-RAll'!$B$2:$AC$500,9,FALSE),"") ->  | X22: =IFERROR(VLOOKUP(VALUE($A22),'FIAG8-RAll'!$B$2:$AC$500,9,FALSE),"") ->  | Y22: =IFERROR(VLOOKUP(VALUE($A22),'FIAG9-RAll'!$B$2:$AC$500,9,FALSE),"") ->  | Z22: =IFERROR(VLOOKUP(VALUE($A22),'FIAG10-RAll'!$B$2:$AC$500,9,FALSE),"") ->  | AA22: =IFERROR(VLOOKUP(VALUE($A22),'FIAG3-RAll'!$B$2:$AC$500,3,FALSE),"") -> 61 | AB22: =IFERROR(VLOOKUP(VALUE($A22),'FIAG4-RAll'!$B$2:$AC$500,3,FALSE),"") -> 70 | AC22: =IFERROR(VLOOKUP(VALUE($A22),'FIAG5-RAll'!$B$2:$AC$500,3,FALSE),"") -> 74 | AD22: =IFERROR(VLOOKUP(VALUE($A22),'FIAG6-RAll'!$B$2:$AC$500,3,FALSE),"") ->  | AE22: =IFERROR(VLOOKUP(VALUE($A22),'FIAG7-RAll'!$B$2:$AC$500,3,FALSE),"") ->  | AF22: =IFERROR(VLOOKUP(VALUE($A22),'FIAG8-RAll'!$B$2:$AC$500,3,FALSE),"") ->  | AG22: =IFERROR(VLOOKUP(VALUE($A22),'FIAG9-RAll'!$B$2:$AC$500,3,FALSE),"") ->  | AH22: =IFERROR(VLOOKUP(VALUE($A22),'FIAG10-RAll'!$B$2:$AC$500,3,FALSE),"") ->  | AI22: =VLOOKUP(TEXT($A22,"0000"),'SchType from OADA'!$A$1:$B$679,2,FALSE) -> 1 | AJ22: N-ETO | AK22: N-SS | AL22: E
A23: 461 | B23: =VLOOKUP($A23,SchList!$A$2:$E$476,5,FALSE) -> 1 | C23: =VLOOKUP(A23,SchList!$A$2:$G$476,7,FALSE) -> SS-2 | D23: =VLOOKUP(A23,SchList!$A$2:$G$476,6,FALSE) ->  | E23: =VLOOKUP($A23,SchList!$A$2:$B$476,2,FALSE) -> BRENTWOOD ELEMENTARY | F23: =IF(VLOOKUP(TEXT($A23,"0000"),'2013 SG'!$D$2:$BE$500,29,FALSE)="Yes",VLOOKUP(TEXT($A23,"0000"),'2013 SG'!$D$2:$BE$500,30,FALSE)&VLOOKUP(TEXT($A23,"0000"),'2013 SG'!$D$2:$BE$500,54,FALSE),VLOOKUP(TEXT($A23,"0000"),'2013 SG'!$D$2:$BE$500,30,FALSE)) -> C | G23: 83 | H23: 41.74174174 | I23: 333 | J23: 139 | K23: =IFERROR(VLOOKUP(VALUE($A23),'FIAG3-RAll'!$B$2:$AC$500,12,FALSE)*100,"") -> 44 | L23: =IFERROR(VLOOKUP(VALUE($A23),'FIAG4-RAll'!$B$2:$AC$500,12,FALSE)*100,"") -> 43 | M23: =IFERROR(VLOOKUP(VALUE($A23),'FIAG5-RAll'!$B$2:$AC$500,12,FALSE)*100,"") -> 38 | N23: =IFERROR(VLOOKUP(VALUE($A23),'FIAG6-RAll'!$B$2:$AC$500,12,FALSE)*100,"") ->  | O23: =IFERROR(VLOOKUP(VALUE($A23),'FIAG7-RAll'!$B$2:$AC$500,12,FALSE)*100,"") ->  | P23: =IFERROR(VLOOKUP(VALUE($A23),'FIAG8-RAll'!$B$2:$AC$500,12,FALSE)*100,"") ->  | Q23: =IFERROR(VLOOKUP(VALUE($A23),'FIAG9-RAll'!$B$2:$AC$500,12,FALSE)*100,"") ->  | R23: =IFERROR(VLOOKUP(VALUE($A23),'FIAG10-RAll'!$B$2:$AC$500,12,FALSE)*100,"") ->  | S23: =IFERROR(VLOOKUP(VALUE($A23),'FIAG3-RAll'!$B$2:$AC$500,9,FALSE),"") -> 54 | T23: =IFERROR(VLOOKUP(VALUE($A23),'FIAG4-RAll'!$B$2:$AC$500,9,FALSE),"") -> 46 | U23: =IFERROR(VLOOKUP(VALUE($A23),'FIAG5-RAll'!$B$2:$AC$500,9,FALSE),"") -> 39 | V23: =IFERROR(VLOOKUP(VALUE($A23),'FIAG6-RAll'!$B$2:$AC$500,9,FALSE),"") ->  | W23: =IFERROR(VLOOKUP(VALUE($A23),'FIAG7-RAll'!$B$2:$AC$500,9,FALSE),"") ->  | X23: =IFERROR(VLOOKUP(VALUE($A23),'FIAG8-RAll'!$B$2:$AC$500,9,FALSE),"") ->  | Y23: =IFERROR(VLOOKUP(VALUE($A23),'FIAG9-RAll'!$B$2:$AC$500,9,FALSE),"") ->  | Z23: =IFERROR(VLOOKUP(VALUE($A23),'FIAG10-RAll'!$B$2:$AC$500,9,FALSE),"") ->  | AA23: =IFERROR(VLOOKUP(VALUE($A23),'FIAG3-RAll'!$B$2:$AC$500,3,FALSE),"") -> 123 | AB23: =IFERROR(VLOOKUP(VALUE($A23),'FIAG4-RAll'!$B$2:$AC$500,3,FALSE),"") -> 107 | AC23: =IFERROR(VLOOKUP(VALUE($A23),'FIAG5-RAll'!$B$2:$AC$500,3,FALSE),"") -> 103 | AD23: =IFERROR(VLOOKUP(VALUE($A23),'FIAG6-RAll'!$B$2:$AC$500,3,FALSE),"") ->  | AE23: =IFERROR(VLOOKUP(VALUE($A23),'FIAG7-RAll'!$B$2:$AC$500,3,FALSE),"") ->  | AF23: =IFERROR(VLOOKUP(VALUE($A23),'FIAG8-RAll'!$B$2:$AC$500,3,FALSE),"") ->  | AG23: =IFERROR(VLOOKUP(VALUE($A23),'FIAG9-RAll'!$B$2:$AC$500,3,FALSE),"") ->  | AH23: =IFERROR(VLOOKUP(VALUE($A23),'FIAG10-RAll'!$B$2:$AC$500,3,FALSE),"") ->  | AI23: =VLOOKUP(TEXT($A23,"0000"),'SchType from OADA'!$A$1:$B$679,2,FALSE) -> 1 | AJ23: N-ETO | AK23: SS | AL23: E
A24: 481 | B24: =VLOOKUP($A24,SchList!$A$2:$E$476,5,FALSE) -> 1 | C24: =VLOOKUP(A24,SchList!$A$2:$G$476,7,FALSE) -> SS-2 | D24: =VLOOKUP(A24,SchList!$A$2:$G$476,6,FALSE) ->  | E24: =VLOOKUP($A24,SchList!$A$2:$B$476,2,FALSE) -> JAMES H. BRIGHT/JW JOHNSON ES | F24: =IF(VLOOKUP(TEXT($A24,"0000"),'2013 SG'!$D$2:$BE$500,29,FALSE)="Yes",VLOOKUP(TEXT($A24,"0000"),'2013 SG'!$D$2:$BE$500,30,FALSE)&VLOOKUP(TEXT($A24,"0000"),'2013 SG'!$D$2:$BE$500,54,FALSE),VLOOKUP(TEXT($A24,"0000"),'2013 SG'!$D$2:$BE$500,30,FALSE)) -> C | G24: 64 | H24: 39.46666667 | I24: 375 | J24: 148 | K24: =IFERROR(VLOOKUP(VALUE($A24),'FIAG3-RAll'!$B$2:$AC$500,12,FALSE)*100,"") -> 36 | L24: =IFERROR(VLOOKUP(VALUE($A24),'FIAG4-RAll'!$B$2:$AC$500,12,FALSE)*100,"") -> 39 | M24: =IFERROR(VLOOKUP(VALUE($A24),'FIAG5-RAll'!$B$2:$AC$500,12,FALSE)*100,"") -> 44 | N24: =IFERROR(VLOOKUP(VALUE($A24),'FIAG6-RAll'!$B$2:$AC$500,12,FALSE)*100,"") ->  | O24: =IFERROR(VLOOKUP(VALUE($A24),'FIAG7-RAll'!$B$2:$AC$500,12,FALSE)*100,"") ->  | P24: =IFERROR(VLOOKUP(VALUE($A24),'FIAG8-RAll'!$B$2:$AC$500,12,FALSE)*100,"") ->  | Q24: =IFERROR(VLOOKUP(VALUE($A24),'FIAG9-RAll'!$B$2:$AC$500,12,FALSE)*100,"") ->  | R24: =IFERROR(VLOOKUP(VALUE($A24),'FIAG10-RAll'!$B$2:$AC$500,12,FALSE)*100,"") ->  | S24: =IFERROR(VLOOKUP(VALUE($A24),'FIAG3-RAll'!$B$2:$AC$500,9,FALSE),"") -> 44 | T24: =IFERROR(VLOOKUP(VALUE($A24),'FIAG4-RAll'!$B$2:$AC$500,9,FALSE),"") -> 50 | U24: =IFERROR(VLOOKUP(VALUE($A24),'FIAG5-RAll'!$B$2:$AC$500,9,FALSE),"") -> 54 | V24: =IFERROR(VLOOKUP(VALUE($A24),'FIAG6-RAll'!$B$2:$AC$500,9,FALSE),"") ->  | W24: =IFERROR(VLOOKUP(VALUE($A24),'FIAG7-RAll'!$B$2:$AC$500,9,FALSE),"") ->  | X24: =IFERROR(VLOOKUP(VALUE($A24),'FIAG8-RAll'!$B$2:$AC$500,9,FALSE),"") ->  | Y24: =IFERROR(VLOOKUP(VALUE($A24),'FIAG9-RAll'!$B$2:$AC$500,9,FALSE),"") ->  | Z24: =IFERROR(VLOOKUP(VALUE($A24),'FIAG10-RAll'!$B$2:$AC$500,9,FALSE),"") ->  | AA24: =IFERROR(VLOOKUP(VALUE($A24),'FIAG3-RAll'!$B$2:$AC$500,3,FALSE),"") -> 122 | AB24: =IFERROR(VLOOKUP(VALUE($A24),'FIAG4-RAll'!$B$2:$AC$500,3,FALSE),"") -> 129 | AC24: =IFERROR(VLOOKUP(VALUE($A24),'FIAG5-RAll'!$B$2:$AC$500,3,FALSE),"") -> 124 | AD24: =IFERROR(VLOOKUP(VALUE($A24),'FIAG6-RAll'!$B$2:$AC$500,3,FALSE),"") ->  | AE24: =IFERROR(VLOOKUP(VALUE($A24),'FIAG7-RAll'!$B$2:$AC$500,3,FALSE),"") ->  | AF24: =IFERROR(VLOOKUP(VALUE($A24),'FIAG8-RAll'!$B$2:$AC$500,3,FALSE),"") ->  | AG24: =IFERROR(VLOOKUP(VALUE($A24),'FIAG9-RAll'!$B$2:$AC$500,3,FALSE),"") ->  | AH24: =IFERROR(VLOOKUP(VALUE($A24),'FIAG10-RAll'!$B$2:$AC$500,3,FALSE),"") ->  | AI24: =VLOOKUP(TEXT($A24,"0000"),'SchType from OADA'!$A$1:$B$679,2,FALSE) -> 1 | AJ24: N-ETO | AK24: SS | AL24: E
A25: 521 | B25: =VLOOKUP($A25,SchList!$A$2:$E$476,5,FALSE) -> 4 | C25: =VLOOKUP(A25,SchList!$A$2:$G$476,7,FALSE) -> SS-0 | D25: =VLOOKUP(A25,SchList!$A$2:$G$476,6,FALSE) -> 3 | E25: =VLOOKUP($A25,SchList!$A$2:$B$476,2,FALSE) -> BROADMOOR ELEMENTARY | F25: =IF(VLOOKUP(TEXT($A25,"0000"),'2013 SG'!$D$2:$BE$500,29,FALSE)="Yes",VLOOKUP(TEXT($A25,"0000"),'2013 SG'!$D$2:$BE$500,30,FALSE)&VLOOKUP(TEXT($A25,"0000"),'2013 SG'!$D$2:$BE$500,54,FALSE),VLOOKUP(TEXT($A25,"0000"),'2013 SG'!$D$2:$BE$500,30,FALSE)) -> D(F) | G25: 42 | H25: 35.1758794 | I25: 199 | J25: 70 | K25: =IFERROR(VLOOKUP(VALUE($A25),'FIAG3-RAll'!$B$2:$AC$500,12,FALSE)*100,"") -> 32 | L25: =IFERROR(VLOOKUP(VALUE($A25),'FIAG4-RAll'!$B$2:$AC$500,12,FALSE)*100,"") -> 46 | M25: =IFERROR(VLOOKUP(VALUE($A25),'FIAG5-RAll'!$B$2:$AC$500,12,FALSE)*100,"") -> 29 | N25: =IFERROR(VLOOKUP(VALUE($A25),'FIAG6-RAll'!$B$2:$AC$500,12,FALSE)*100,"") ->  | O25: =IFERROR(VLOOKUP(VALUE($A25),'FIAG7-RAll'!$B$2:$AC$500,12,FALSE)*100,"") ->  | P25: =IFERROR(VLOOKUP(VALUE($A25),'FIAG8-RAll'!$B$2:$AC$500,12,FALSE)*100,"") ->  | Q25: =IFERROR(VLOOKUP(VALUE($A25),'FIAG9-RAll'!$B$2:$AC$500,12,FALSE)*100,"") ->  | R25: =IFERROR(VLOOKUP(VALUE($A25),'FIAG10-RAll'!$B$2:$AC$500,12,FALSE)*100,"") ->  | S25: =IFERROR(VLOOKUP(VALUE($A25),'FIAG3-RAll'!$B$2:$AC$500,9,FALSE),"") -> 25 | T25: =IFERROR(VLOOKUP(VALUE($A25),'FIAG4-RAll'!$B$2:$AC$500,9,FALSE),"") -> 26 | U25: =IFERROR(VLOOKUP(VALUE($A25),'FIAG5-RAll'!$B$2:$AC$500,9,FALSE),"") -> 19 | V25: =IFERROR(VLOOKUP(VALUE($A25),'FIAG6-RAll'!$B$2:$AC$500,9,FALSE),"") ->  | W25: =IFERROR(VLOOKUP(VALUE($A25),'FIAG7-RAll'!$B$2:$AC$500,9,FALSE),"") ->  | X25: =IFERROR(VLOOKUP(VALUE($A25),'FIAG8-RAll'!$B$2:$AC$500,9,FALSE),"") ->  | Y25: =IFERROR(VLOOKUP(VALUE($A25),'FIAG9-RAll'!$B$2:$AC$500,9,FALSE),"") ->  | Z25: =IFERROR(VLOOKUP(VALUE($A25),'FIAG10-RAll'!$B$2:$AC$500,9,FALSE),"") ->  | AA25: =IFERROR(VLOOKUP(VALUE($A25),'FIAG3-RAll'!$B$2:$AC$500,3,FALSE),"") -> 77 | AB25: =IFERROR(VLOOKUP(VALUE($A25),'FIAG4-RAll'!$B$2:$AC$500,3,FALSE),"") -> 57 | AC25: =IFERROR(VLOOKUP(VALUE($A25),'FIAG5-RAll'!$B$2:$AC$500,3,FALSE),"") -> 65 | AD25: =IFERROR(VLOOKUP(VALUE($A25),'FIAG6-RAll'!$B$2:$AC$500,3,FALSE),"") ->  | AE25: =IFERROR(VLOOKUP(VALUE($A25),'FIAG7-RAll'!$B$2:$AC$500,3,FALSE),"") ->  | AF25: =IFERROR(VLOOKUP(VALUE($A25),'FIAG8-RAll'!$B$2:$AC$500,3,FALSE),"") ->  | AG25: =IFERROR(VLOOKUP(VALUE($A25),'FIAG9-RAll'!$B$2:$AC$500,3,FALSE),"") ->  | AH25: =IFERROR(VLOOKUP(VALUE($A25),'FIAG10-RAll'!$B$2:$AC$500,3,FALSE),"") ->  | AI25: =VLOOKUP(TEXT($A25,"0000"),'SchType from OADA'!$A$1:$B$679,2,FALSE) -> 1 | AJ25: ETO | AK25: N-SS | AL25: E
A26: 561 | B26: =VLOOKUP($A26,SchList!$A$2:$E$476,5,FALSE) -> 1 | C26: =VLOOKUP(A26,SchList!$A$2:$G$476,7,FALSE) -> SS-1 | D26: =VLOOKUP(A26,SchList!$A$2:$G$476,6,FALSE) ->  | E26: =VLOOKUP($A26,SchList!$A$2:$B$476,2,FALSE) -> W.J. BRYAN ELEMENTARY | F26: =IF(VLOOKUP(TEXT($A26,"0000"),'2013 SG'!$D$2:$BE$500,29,FALSE)="Yes",VLOOKUP(TEXT($A26,"0000"),'2013 SG'!$D$2:$BE$500,30,FALSE)&VLOOKUP(TEXT($A26,"0000"),'2013 SG'!$D$2:$BE$500,54,FALSE),VLOOKUP(TEXT($A26,"0000"),'2013 SG'!$D$2:$BE$500,30,FALSE)) -> C | G26: 147 | H26: 49.51140065 | I26: 307 | J26: 152 | K26: =IFERROR(VLOOKUP(VALUE($A26),'FIAG3-RAll'!$B$2:$AC$500,12,FALSE)*100,"") -> 34 | L26: =IFERROR(VLOOKUP(VALUE($A26),'FIAG4-RAll'!$B$2:$AC$500,12,FALSE)*100,"") -> 72 | M26: =IFERROR(VLOOKUP(VALUE($A26),'FIAG5-RAll'!$B$2:$AC$500,12,FALSE)*100,"") -> 48 | N26: =IFERROR(VLOOKUP(VALUE($A26),'FIAG6-RAll'!$B$2:$AC$500,12,FALSE)*100,"") ->  | O26: =IFERROR(VLOOKUP(VALUE($A26),'FIAG7-RAll'!$B$2:$AC$500,12,FALSE)*100,"") ->  | P26: =IFERROR(VLOOKUP(VALUE($A26),'FIAG8-RAll'!$B$2:$AC$500,12,FALSE)*100,"") ->  | Q26: =IFERROR(VLOOKUP(VALUE($A26),'FIAG9-RAll'!$B$2:$AC$500,12,FALSE)*100,"") ->  | R26: =IFERROR(VLOOKUP(VALUE($A26),'FIAG10-RAll'!$B$2:$AC$500,12,FALSE)*100,"") ->  | S26: =IFERROR(VLOOKUP(VALUE($A26),'FIAG3-RAll'!$B$2:$AC$500,9,FALSE),"") -> 40 | T26: =IFERROR(VLOOKUP(VALUE($A26),'FIAG4-RAll'!$B$2:$AC$500,9,FALSE),"") -> 65 | U26: =IFERROR(VLOOKUP(VALUE($A26),'FIAG5-RAll'!$B$2:$AC$500,9,FALSE),"") -> 47 | V26: =IFERROR(VLOOKUP(VALUE($A26),'FIAG6-RAll'!$B$2:$AC$500,9,FALSE),"") ->  | W26: =IFERROR(VLOOKUP(VALUE($A26),'FIAG7-RAll'!$B$2:$AC$500,9,FALSE),"") ->  | X26: =IFERROR(VLOOKUP(VALUE($A26),'FIAG8-RAll'!$B$2:$AC$500,9,FALSE),"") ->  | Y26: =IFERROR(VLOOKUP(VALUE($A26),'FIAG9-RAll'!$B$2:$AC$500,9,FALSE),"") ->  | Z26: =IFERROR(VLOOKUP(VALUE($A26),'FIAG10-RAll'!$B$2:$AC$500,9,FALSE),"") ->  | AA26: =IFERROR(VLOOKUP(VALUE($A26),'FIAG3-RAll'!$B$2:$AC$500,3,FALSE),"") -> 119 | AB26: =IFERROR(VLOOKUP(VALUE($A26),'FIAG4-RAll'!$B$2:$AC$500,3,FALSE),"") -> 90 | AC26: =IFERROR(VLOOKUP(VALUE($A26),'FIAG5-RAll'!$B$2:$AC$500,3,FALSE),"") -> 98 | AD26: =IFERROR(VLOOKUP(VALUE($A26),'FIAG6-RAll'!$B$2:$AC$500,3,FALSE),"") ->  | AE26: =IFERROR(VLOOKUP(VALUE($A26),'FIAG7-RAll'!$B$2:$AC$500,3,FALSE),"") ->  | AF26: =IFERROR(VLOOKUP(VALUE($A26),'FIAG8-RAll'!$B$2:$AC$500,3,FALSE),"") ->  | AG26: =IFERROR(VLOOKUP(VALUE($A26),'FIAG9-RAll'!$B$2:$AC$500,3,FALSE),"") ->  | AH26: =IFERROR(VLOOKUP(VALUE($A26),'FIAG10-RAll'!$B$2:$AC$500,3,FALSE),"") ->  | AI26: =VLOOKUP(TEXT($A26,"0000"),'SchType from OADA'!$A$1:$B$679,2,FALSE) -> 1 | AJ26: N-ETO | AK26: SS | AL26: E
A27: 641 | B27: =VLOOKUP($A27,SchList!$A$2:$E$476,5,FALSE) -> 1 | C27: =VLOOKUP(A27,SchList!$A$2:$G$476,7,FALSE) -> SS-0 | D27: =VLOOKUP(A27,SchList!$A$2:$G$476,6,FALSE) -> 3 | E27: =VLOOKUP($A27,SchList!$A$2:$B$476,2,FALSE) -> BUNCHE PARK ELEMENTARY | F27: =IF(VLOOKUP(TEXT($A27,"0000"),'2013 SG'!$D$2:$BE$500,29,FALSE)="Yes",VLOOKUP(TEXT($A27,"0000"),'2013 SG'!$D$2:$BE$500,30,FALSE)&VLOOKUP(TEXT($A27,"0000"),'2013 SG'!$D$2:$BE$500,54,FALSE),VLOOKUP(TEXT($A27,"0000"),'2013 SG'!$D$2:$BE$500,30,FALSE)) -> D(F) | G27: 24 | H27: 32.25806452 | I27: 93 | J27: 30 | K27: =IFERROR(VLOOKUP(VALUE($A27),'FIAG3-RAll'!$B$2:$AC$500,12,FALSE)*100,"") -> 19 | L27: =IFERROR(VLOOKUP(VALUE($A27),'FIAG4-RAll'!$B$2:$AC$500,12,FALSE)*100,"") -> 53 | M27: =IFERROR(VLOOKUP(VALUE($A27),'FIAG5-RAll'!$B$2:$AC$500,12,FALSE)*100,"") -> 26 | N27: =IFERROR(VLOOKUP(VALUE($A27),'FIAG6-RAll'!$B$2:$AC$500,12,FALSE)*100,"") ->  | O27: =IFERROR(VLOOKUP(VALUE($A27),'FIAG7-RAll'!$B$2:$AC$500,12,FALSE)*100,"") ->  | P27: =IFERROR(VLOOKUP(VALUE($A27),'FIAG8-RAll'!$B$2:$AC$500,12,FALSE)*100,"") ->  | Q27: =IFERROR(VLOOKUP(VALUE($A27),'FIAG9-RAll'!$B$2:$AC$500,12,FALSE)*100,"") ->  | R27: =IFERROR(VLOOKUP(VALUE($A27),'FIAG10-RAll'!$B$2:$AC$500,12,FALSE)*100,"") ->  | S27: =IFERROR(VLOOKUP(VALUE($A27),'FIAG3-RAll'!$B$2:$AC$500,9,FALSE),"") -> 6 | T27: =IFERROR(VLOOKUP(VALUE($A27),'FIAG4-RAll'!$B$2:$AC$500,9,FALSE),"") -> 16 | U27: =IFERROR(VLOOKUP(VALUE($A27),'FIAG5-RAll'!$B$2:$AC$500,9,FALSE),"") -> 8 | V27: =IFERROR(VLOOKUP(VALUE($A27),'FIAG6-RAll'!$B$2:$AC$500,9,FALSE),"") ->  | W27: =IFERROR(VLOOKUP(VALUE($A27),'FIAG7-RAll'!$B$2:$AC$500,9,FALSE),"") ->  | X27: =IFERROR(VLOOKUP(VALUE($A27),'FIAG8-RAll'!$B$2:$AC$500,9,FALSE),"") ->  | Y27: =IFERROR(VLOOKUP(VALUE($A27),'FIAG9-RAll'!$B$2:$AC$500,9,FALSE),"") ->  | Z27: =IFERROR(VLOOKUP(VALUE($A27),'FIAG10-RAll'!$B$2:$AC$500,9,FALSE),"") ->  | AA27: =IFERROR(VLOOKUP(VALUE($A27),'FIAG3-RAll'!$B$2:$AC$500,3,FALSE),"") -> 32 | AB27: =IFERROR(VLOOKUP(VALUE($A27),'FIAG4-RAll'!$B$2:$AC$500,3,FALSE),"") -> 30 | AC27: =IFERROR(VLOOKUP(VALUE($A27),'FIAG5-RAll'!$B$2:$AC$500,3,FALSE),"") -> 31 | AD27: =IFERROR(VLOOKUP(VALUE($A27),'FIAG6-RAll'!$B$2:$AC$500,3,FALSE),"") ->  | AE27: =IFERROR(VLOOKUP(VALUE($A27),'FIAG7-RAll'!$B$2:$AC$500,3,FALSE),"") ->  | AF27: =IFERROR(VLOOKUP(VALUE($A27),'FIAG8-RAll'!$B$2:$AC$500,3,FALSE),"") ->  | AG27: =IFERROR(VLOOKUP(VALUE($A27),'FIAG9-RAll'!$B$2:$AC$500,3,FALSE),"") ->  | AH27: =IFERROR(VLOOKUP(VALUE($A27),'FIAG10-RAll'!$B$2:$AC$500,3,FALSE),"") ->  | AI27: =VLOOKUP(TEXT($A27,"0000"),'SchType from OADA'!$A$1:$B$679,2,FALSE) -> 1 | AJ27: ETO | AK27: N-SS | AL27: E
A28: 661 | B28: =VLOOKUP($A28,SchList!$A$2:$E$476,5,FALSE) -> 6 | C28: =VLOOKUP(A28,SchList!$A$2:$G$476,7,FALSE) -> SS-0 | D28: =VLOOKUP(A28,SchList!$A$2:$G$476,6,FALSE) -> 3 | E28: =VLOOKUP($A28,SchList!$A$2:$B$476,2,FALSE) -> CARIBBEAN ELEMENTARY | F28: =IF(VLOOKUP(TEXT($A28,"0000"),'2013 SG'!$D$2:$BE$500,29,FALSE)="Yes",VLOOKUP(TEXT($A28,"0000"),'2013 SG'!$D$2:$BE$500,30,FALSE)&VLOOKUP(TEXT($A28,"0000"),'2013 SG'!$D$2:$BE$500,54,FALSE),VLOOKUP(TEXT($A28,"0000"),'2013 SG'!$D$2:$BE$500,30,FALSE)) -> F | G28: 70 | H28: 40.16736402 | I28: 239 | J28: 96 | K28: =IFERROR(VLOOKUP(VALUE($A28),'FIAG3-RAll'!$B$2:$AC$500,12,FALSE)*100,"") -> 35 | L28: =IFERROR(VLOOKUP(VALUE($A28),'FIAG4-RAll'!$B$2:$AC$500,12,FALSE)*100,"") -> 46 | M28: =IFERROR(VLOOKUP(VALUE($A28),'FIAG5-RAll'!$B$2:$AC$500,12,FALSE)*100,"") -> 40 | N28: =IFERROR(VLOOKUP(VALUE($A28),'FIAG6-RAll'!$B$2:$AC$500,12,FALSE)*100,"") ->  | O28: =IFERROR(VLOOKUP(VALUE($A28),'FIAG7-RAll'!$B$2:$AC$500,12,FALSE)*100,"") ->  | P28: =IFERROR(VLOOKUP(VALUE($A28),'FIAG8-RAll'!$B$2:$AC$500,12,FALSE)*100,"") ->  | Q28: =IFERROR(VLOOKUP(VALUE($A28),'FIAG9-RAll'!$B$2:$AC$500,12,FALSE)*100,"") ->  | R28: =IFERROR(VLOOKUP(VALUE($A28),'FIAG10-RAll'!$B$2:$AC$500,12,FALSE)*100,"") ->  | S28: =IFERROR(VLOOKUP(VALUE($A28),'FIAG3-RAll'!$B$2:$AC$500,9,FALSE),"") -> 33 | T28: =IFERROR(VLOOKUP(VALUE($A28),'FIAG4-RAll'!$B$2:$AC$500,9,FALSE),"") -> 34 | U28: =IFERROR(VLOOKUP(VALUE($A28),'FIAG5-RAll'!$B$2:$AC$500,9,FALSE),"") -> 29 | V28: =IFERROR(VLOOKUP(VALUE($A28),'FIAG6-RAll'!$B$2:$AC$500,9,FALSE),"") ->  | W28: =IFERROR(VLOOKUP(VALUE($A28),'FIAG7-RAll'!$B$2:$AC$500,9,FALSE),"") ->  | X28: =IFERROR(VLOOKUP(VALUE($A28),'FIAG8-RAll'!$B$2:$AC$500,9,FALSE),"") ->  | Y28: =IFERROR(VLOOKUP(VALUE($A28),'FIAG9-RAll'!$B$2:$AC$500,9,FALSE),"") ->  | Z28: =IFERROR(VLOOKUP(VALUE($A28),'FIAG10-RAll'!$B$2:$AC$500,9,FALSE),"") ->  | AA28: =IFERROR(VLOOKUP(VALUE($A28),'FIAG3-RAll'!$B$2:$AC$500,3,FALSE),"") -> 93 | AB28: =IFERROR(VLOOKUP(VALUE($A28),'FIAG4-RAll'!$B$2:$AC$500,3,FALSE),"") -> 74 | AC28: =IFERROR(VLOOKUP(VALUE($A28),'FIAG5-RAll'!$B$2:$AC$500,3,FALSE),"") -> 72 | AD28: =IFERROR(VLOOKUP(VALUE($A28),'FIAG6-RAll'!$B$2:$AC$500,3,FALSE),"") ->  | AE28: =IFERROR(VLOOKUP(VALUE($A28),'FIAG7-RAll'!$B$2:$AC$500,3,FALSE),"") ->  | AF28: =IFERROR(VLOOKUP(VALUE($A28),'FIAG8-RAll'!$B$2:$AC$500,3,FALSE),"") ->  | AG28: =IFERROR(VLOOKUP(VALUE($A28),'FIAG9-RAll'!$B$2:$AC$500,3,FALSE),"") ->  | AH28: =IFERROR(VLOOKUP(VALUE($A28),'FIAG10-RAll'!$B$2:$AC$500,3,FALSE),"") ->  | AI28: =VLOOKUP(TEXT($A28,"0000"),'SchType from OADA'!$A$1:$B$679,2,FALSE) -> 1 | AJ28: ETO | AK28: N-SS | AL28: E
A29: 671 | B29: =VLOOKUP($A29,SchList!$A$2:$E$476,5,FALSE) -> 5 | C29: =VLOOKUP(A29,SchList!$A$2:$G$476,7,FALSE) -> SS-0 | D29: =VLOOKUP(A29,SchList!$A$2:$G$476,6,FALSE) ->  | E29: =VLOOKUP($A29,SchList!$A$2:$B$476,2,FALSE) -> CALUSA ELEMENTARY | F29: =IF(VLOOKUP(TEXT($A29,"0000"),'2013 SG'!$D$2:$BE$500,29,FALSE)="Yes",VLOOKUP(TEXT($A29,"0000"),'2013 SG'!$D$2:$BE$500,30,FALSE)&VLOOKUP(TEXT($A29,"0000"),'2013 SG'!$D$2:$BE$500,54,FALSE),VLOOKUP(TEXT($A29,"0000"),'2013 SG'!$D$2:$BE$500,30,FALSE)) -> A | G29: 304 | H29: 81.7551963 | I29: 433 | J29: 354 | K29: =IFERROR(VLOOKUP(VALUE($A29),'FIAG3-RAll'!$B$2:$AC$500,12,FALSE)*100,"") -> 79 | L29: =IFERROR(VLOOKUP(VALUE($A29),'FIAG4-RAll'!$B$2:$AC$500,12,FALSE)*100,"") -> 84 | M29: =IFERROR(VLOOKUP(VALUE($A29),'FIAG5-RAll'!$B$2:$AC$500,12,FALSE)*100,"") -> 81 | N29: =IFERROR(VLOOKUP(VALUE($A29),'FIAG6-RAll'!$B$2:$AC$500,12,FALSE)*100,"") ->  | O29: =IFERROR(VLOOKUP(VALUE($A29),'FIAG7-RAll'!$B$2:$AC$500,12,FALSE)*100,"") ->  | P29: =IFERROR(VLOOKUP(VALUE($A29),'FIAG8-RAll'!$B$2:$AC$500,12,FALSE)*100,"") ->  | Q29: =IFERROR(VLOOKUP(VALUE($A29),'FIAG9-RAll'!$B$2:$AC$500,12,FALSE)*100,"") ->  | R29: =IFERROR(VLOOKUP(VALUE($A29),'FIAG10-RAll'!$B$2:$AC$500,12,FALSE)*100,"") ->  | S29: =IFERROR(VLOOKUP(VALUE($A29),'FIAG3-RAll'!$B$2:$AC$500,9,FALSE),"") -> 100 | T29: =IFERROR(VLOOKUP(VALUE($A29),'FIAG4-RAll'!$B$2:$AC$500,9,FALSE),"") -> 122 | U29: =IFERROR(VLOOKUP(VALUE($A29),'FIAG5-RAll'!$B$2:$AC$500,9,FALSE),"") -> 132 | V29: =IFERROR(VLOOKUP(VALUE($A29),'FIAG6-RAll'!$B$2:$AC$500,9,FALSE),"") ->  | W29: =IFERROR(VLOOKUP(VALUE($A29),'FIAG7-RAll'!$B$2:$AC$500,9,FALSE),"") ->  | X29: =IFERROR(VLOOKUP(VALUE($A29),'FIAG8-RAll'!$B$2:$AC$500,9,FALSE),"") ->  | Y29: =IFERROR(VLOOKUP(VALUE($A29),'FIAG9-RAll'!$B$2:$AC$500,9,FALSE),"") ->  | Z29: =IFERROR(VLOOKUP(VALUE($A29),'FIAG10-RAll'!$B$2:$AC$500,9,FALSE),"") ->  | AA29: =IFERROR(VLOOKUP(VALUE($A29),'FIAG3-RAll'!$B$2:$AC$500,3,FALSE),"") -> 126 | AB29: =IFERROR(VLOOKUP(VALUE($A29),'FIAG4-RAll'!$B$2:$AC$500,3,FALSE),"") -> 145 | AC29: =IFERROR(VLOOKUP(VALUE($A29),'FIAG5-RAll'!$B$2:$AC$500,3,FALSE),"") -> 162 | AD29: =IFERROR(VLOOKUP(VALUE($A29),'FIAG6-RAll'!$B$2:$AC$500,3,FALSE),"") ->  | AE29: =IFERROR(VLOOKUP(VALUE($A29),'FIAG7-RAll'!$B$2:$AC$500,3,FALSE),"") ->  | AF29: =IFERROR(VLOOKUP(VALUE($A29),'FIAG8-RAll'!$B$2:$AC$500,3,FALSE),"") ->  | AG29: =IFERROR(VLOOKUP(VALUE($A29),'FIAG9-RAll'!$B$2:$AC$500,3,FALSE),"") ->  | AH29: =IFERROR(VLOOKUP(VALUE($A29),'FIAG10-RAll'!$B$2:$AC$500,3,FALSE),"") ->  | AI29: =VLOOKUP(TEXT($A29,"0000"),'SchType from OADA'!$A$1:$B$679,2,FALSE) -> 1 | AJ29: N-ETO | AK29: N-SS | AL29: E
A30: 681 | B30: =VLOOKUP($A30,SchList!$A$2:$E$476,5,FALSE) -> 6 | C30: =VLOOKUP(A30,SchList!$A$2:$G$476,7,FALSE) -> SS-0 | D30: =VLOOKUP(A30,SchList!$A$2:$G$476,6,FALSE) -> 2 | E30: =VLOOKUP($A30,SchList!$A$2:$B$476,2,FALSE) -> CAROL CITY ELEMENTARY | F30: =IF(VLOOKUP(TEXT($A30,"0000"),'2013 SG'!$D$2:$BE$500,29,FALSE)="Yes",VLOOKUP(TEXT($A30,"0000"),'2013 SG'!$D$2:$BE$500,30,FALSE)&VLOOKUP(TEXT($A30,"0000"),'2013 SG'!$D$2:$BE$500,54,FALSE),VLOOKUP(TEXT($A30,"0000"),'2013 SG'!$D$2:$BE$500,30,FALSE)) -> D | G30: 69 | H30: 40 | I30: 235 | J30: 94 | K30: =IFERROR(VLOOKUP(VALUE($A30),'FIAG3-RAll'!$B$2:$AC$500,12,FALSE)*100,"") -> 41 | L30: =IFERROR(VLOOKUP(VALUE($A30),'FIAG4-RAll'!$B$2:$AC$500,12,FALSE)*100,"") -> 39 | M30: =IFERROR(VLOOKUP(VALUE($A30),'FIAG5-RAll'!$B$2:$AC$500,12,FALSE)*100,"") -> 40 | N30: =IFERROR(VLOOKUP(VALUE($A30),'FIAG6-RAll'!$B$2:$AC$500,12,FALSE)*100,"") ->  | O30: =IFERROR(VLOOKUP(VALUE($A30),'FIAG7-RAll'!$B$2:$AC$500,12,FALSE)*100,"") ->  | P30: =IFERROR(VLOOKUP(VALUE($A30),'FIAG8-RAll'!$B$2:$AC$500,12,FALSE)*100,"") ->  | Q30: =IFERROR(VLOOKUP(VALUE($A30),'FIAG9-RAll'!$B$2:$AC$500,12,FALSE)*100,"") ->  | R30: =IFERROR(VLOOKUP(VALUE($A30),'FIAG10-RAll'!$B$2:$AC$500,12,FALSE)*100,"") ->  | S30: =IFERROR(VLOOKUP(VALUE($A30),'FIAG3-RAll'!$B$2:$AC$500,9,FALSE),"") -> 43 | T30: =IFERROR(VLOOKUP(VALUE($A30),'FIAG4-RAll'!$B$2:$AC$500,9,FALSE),"") -> 24 | U30: =IFERROR(VLOOKUP(VALUE($A30),'FIAG5-RAll'!$B$2:$AC$500,9,FALSE),"") -> 27 | V30: =IFERROR(VLOOKUP(VALUE($A30),'FIAG6-RAll'!$B$2:$AC$500,9,FALSE),"") ->  | W30: =IFERROR(VLOOKUP(VALUE($A30),'FIAG7-RAll'!$B$2:$AC$500,9,FALSE),"") ->  | X30: =IFERROR(VLOOKUP(VALUE($A30),'FIAG8-RAll'!$B$2:$AC$500,9,FALSE),"") ->  | Y30: =IFERROR(VLOOKUP(VALUE($A30),'FIAG9-RAll'!$B$2:$AC$500,9,FALSE),"") ->  | Z30: =IFERROR(VLOOKUP(VALUE($A30),'FIAG10-RAll'!$B$2:$AC$500,9,FALSE),"") ->  | AA30: =IFERROR(VLOOKUP(VALUE($A30),'FIAG3-RAll'!$B$2:$AC$500,3,FALSE),"") -> 106 | AB30: =IFERROR(VLOOKUP(VALUE($A30),'FIAG4-RAll'!$B$2:$AC$500,3,FALSE),"") -> 62 | AC30: =IFERROR(VLOOKUP(VALUE($A30),'FIAG5-RAll'!$B$2:$AC$500,3,FALSE),"") -> 67 | AD30: =IFERROR(VLOOKUP(VALUE($A30),'FIAG6-RAll'!$B$2:$AC$500,3,FALSE),"") ->  | AE30: =IFERROR(VLOOKUP(VALUE($A30),'FIAG7-RAll'!$B$2:$AC$500,3,FALSE),"") ->  | AF30: =IFERROR(VLOOKUP(VALUE($A30),'FIAG8-RAll'!$B$2:$AC$500,3,FALSE),"") ->  | AG30: =IFERROR(VLOOKUP(VALUE($A30),'FIAG9-RAll'!$B$2:$AC$500,3,FALSE),"") ->  | AH30: =IFERROR(VLOOKUP(VALUE($A30),'FIAG10-RAll'!$B$2:$AC$500,3,FALSE),"") ->  | AI30: =VLOOKUP(TEXT($A30,"0000"),'SchType from OADA'!$A$1:$B$679,2,FALSE) -> 1 | AJ30: ETO | AK30: N-SS | AL30: E
A31: 721 | B31: =VLOOKUP($A31,SchList!$A$2:$E$476,5,FALSE) -> 4 | C31: =VLOOKUP(A31,SchList!$A$2:$G$476,7,FALSE) -> SS-1 | D31: =VLOOKUP(A31,SchList!$A$2:$G$476,6,FALSE) ->  | E31: =VLOOKUP($A31,SchList!$A$2:$B$476,2,FALSE) -> GEORGE WASHINGTON CARVER ELEM | F31: =IF(VLOOKUP(TEXT($A31,"0000"),'2013 SG'!$D$2:$BE$500,29,FALSE)="Yes",VLOOKUP(TEXT($A31,"0000"),'2013 SG'!$D$2:$BE$500,30,FALSE)&VLOOKUP(TEXT($A31,"0000"),'2013 SG'!$D$2:$BE$500,54,FALSE),VLOOKUP(TEXT($A31,"0000"),'2013 SG'!$D$2:$BE$500,30,FALSE)) -> C | G31: 209 | H31: 58.33333333 | I31: 240 | J31: 140 | K31: =IFERROR(VLOOKUP(VALUE($A31),'FIAG3-RAll'!$B$2:$AC$500,12,FALSE)*100,"") -> 52 | L31: =IFERROR(VLOOKUP(VALUE($A31),'FIAG4-RAll'!$B$2:$AC$500,12,FALSE)*100,"") -> 72 | M31: =IFERROR(VLOOKUP(VALUE($A31),'FIAG5-RAll'!$B$2:$AC$500,12,FALSE)*100,"") -> 50 | N31: =IFERROR(VLOOKUP(VALUE($A31),'FIAG6-RAll'!$B$2:$AC$500,12,FALSE)*100,"") ->  | O31: =IFERROR(VLOOKUP(VALUE($A31),'FIAG7-RAll'!$B$2:$AC$500,12,FALSE)*100,"") ->  | P31: =IFERROR(VLOOKUP(VALUE($A31),'FIAG8-RAll'!$B$2:$AC$500,12,FALSE)*100,"") ->  | Q31: =IFERROR(VLOOKUP(VALUE($A31),'FIAG9-RAll'!$B$2:$AC$500,12,FALSE)*100,"") ->  | R31: =IFERROR(VLOOKUP(VALUE($A31),'FIAG10-RAll'!$B$2:$AC$500,12,FALSE)*100,"") ->  | S31: =IFERROR(VLOOKUP(VALUE($A31),'FIAG3-RAll'!$B$2:$AC$500,9,FALSE),"") -> 37 | T31: =IFERROR(VLOOKUP(VALUE($A31),'FIAG4-RAll'!$B$2:$AC$500,9,FALSE),"") -> 60 | U31: =IFERROR(VLOOKUP(VALUE($A31),'FIAG5-RAll'!$B$2:$AC$500,9,FALSE),"") -> 43 | V31: =IFERROR(VLOOKUP(VALUE($A31),'FIAG6-RAll'!$B$2:$AC$500,9,FALSE),"") ->  | W31: =IFERROR(VLOOKUP(VALUE($A31),'FIAG7-RAll'!$B$2:$AC$500,9,FALSE),"") ->  | X31: =IFERROR(VLOOKUP(VALUE($A31),'FIAG8-RAll'!$B$2:$AC$500,9,FALSE),"") ->  | Y31: =IFERROR(VLOOKUP(VALUE($A31),'FIAG9-RAll'!$B$2:$AC$500,9,FALSE),"") ->  | Z31: =IFERROR(VLOOKUP(VALUE($A31),'FIAG10-RAll'!$B$2:$AC$500,9,FALSE),"") ->  | AA31: =IFERROR(VLOOKUP(VALUE($A31),'FIAG3-RAll'!$B$2:$AC$500,3,FALSE),"") -> 71 | AB31: =IFERROR(VLOOKUP(VALUE($A31),'FIAG4-RAll'!$B$2:$AC$500,3,FALSE),"") -> 83 | AC31: =IFERROR(VLOOKUP(VALUE($A31),'FIAG5-RAll'!$B$2:$AC$500,3,FALSE),"") -> 86 | AD31: =IFERROR(VLOOKUP(VALUE($A31),'FIAG6-RAll'!$B$2:$AC$500,3,FALSE),"") ->  | AE31: =IFERROR(VLOOKUP(VALUE($A31),'FIAG7-RAll'!$B$2:$AC$500,3,FALSE),"") ->  | AF31: =IFERROR(VLOOKUP(VALUE($A31),'FIAG8-RAll'!$B$2:$AC$500,3,FALSE),"") ->  | AG31: =IFERROR(VLOOKUP(VALUE($A31),'FIAG9-RAll'!$B$2:$AC$500,3,FALSE),"") ->  | AH31: =IFERROR(VLOOKUP(VALUE($A31),'FIAG10-RAll'!$B$2:$AC$500,3,FALSE),"") ->  | AI31: =VLOOKUP(TEXT($A31,"0000"),'SchType from OADA'!$A$1:$B$679,2,FALSE) -> 1 | AJ31: N-ETO | AK31: SS | AL31: E
... 38 more rows

Sheet Ranking FIA Reading HS (hidden)
E1: Back to Content Page
A2: School Num | B2: Region | C2: SS Tier | D2: ETO Tier | E2: School Name* | F2: 2013 School Grade | G2: Ranking 2013 FIA Reading Satisfactory Progress | H2: 2013 FIA Reading Satisfactory Across Grades | I2: 2013 Total Tested Grades Across Grades | J2: # of Satisfactory Across Grades | K2: Grade 3 | L2: Grade 4 | M2: Grade 5 | N2: Grade 6 | O2: Grade 7 | P2: Grade 8 | Q2: Grade 9 | R2: Grade 10 | S2: Grade 3 # of Sat. | T2: Grade 4 # of Sat. | U2: Grade 5 # of Sat. | V2: Grade 6 # of Sat. | W2: Grade 7 # of Sat. | X2: Grade 8 # of Sat. | Y2: Grade 9 # of Sat. | Z2: Grade 10 # of Sat. | AA2: Grade 3 # Tested | AB2: Grade 4 # Tested | AC2: Grade 5 # Tested | AD2: Grade 6 # Tested | AE2: Grade 7 # Tested | AF2: Grade 8 # Tested | AG2: Grade 9 # Tested | AH2: Grade 10 # Tested | AI2: School Type from OADA | AJ2: ETO | AK2: Support Schools | AL2: School Type Web
A4: 7341 | B4: =VLOOKUP($A4,SchList!$A$2:$E$476,5,FALSE) -> 6 | C4: =VLOOKUP(A4,SchList!$A$2:$G$476,7,FALSE) -> SS-0 | D4: =VLOOKUP(A4,SchList!$A$2:$G$476,6,FALSE) -> 3 | E4: =VLOOKUP($A4,SchList!$A$2:$B$476,2,FALSE) -> MIAMI JACKSON SENIOR HIGH | F4: =IF(VLOOKUP(TEXT($A4,"0000"),'2013 SG'!$D$2:$BE$500,29,FALSE)="Yes",VLOOKUP(TEXT($A4,"0000"),'2013 SG'!$D$2:$BE$500,30,FALSE)&VLOOKUP(TEXT($A4,"0000"),'2013 SG'!$D$2:$BE$500,54,FALSE),VLOOKUP(TEXT($A4,"0000"),'2013 SG'!$D$2:$BE$500,30,FALSE)) -> Pending | G4: =IF(H4="","",RANK(H4,$H$4:$H$56,1)) -> 1 | H4: =IFERROR(IF(I4<10,"",J4/I4*100),"") -> 26.15571776 | I4: =SUM(AA4:AH4) -> 822 | J4: =SUM(S4:Z4) -> 215 | K4: =IFERROR(VLOOKUP(VALUE($A4),'FIAG3-RAll'!$B$2:$AC$500,12,FALSE)*100,"") ->  | L4: =IFERROR(VLOOKUP(VALUE($A4),'FIAG4-RAll'!$B$2:$AC$500,12,FALSE)*100,"") ->  | M4: =IFERROR(VLOOKUP(VALUE($A4),'FIAG5-RAll'!$B$2:$AC$500,12,FALSE)*100,"") ->  | N4: =IFERROR(VLOOKUP(VALUE($A4),'FIAG6-RAll'!$B$2:$AC$500,12,FALSE)*100,"") ->  | O4: =IFERROR(VLOOKUP(VALUE($A4),'FIAG7-RAll'!$B$2:$AC$500,12,FALSE)*100,"") ->  | P4: =IFERROR(VLOOKUP(VALUE($A4),'FIAG8-RAll'!$B$2:$AC$500,12,FALSE)*100,"") -> 0 | Q4: =IFERROR(VLOOKUP(VALUE($A4),'FIAG9-RAll'!$B$2:$AC$500,12,FALSE)*100,"") -> 27 | R4: =IFERROR(VLOOKUP(VALUE($A4),'FIAG10-RAll'!$B$2:$AC$500,12,FALSE)*100,"") -> 26 | S4: =IFERROR(VLOOKUP(VALUE($A4),'FIAG3-RAll'!$B$2:$AC$500,9,FALSE),"") ->  | T4: =IFERROR(VLOOKUP(VALUE($A4),'FIAG4-RAll'!$B$2:$AC$500,9,FALSE),"") ->  | U4: =IFERROR(VLOOKUP(VALUE($A4),'FIAG5-RAll'!$B$2:$AC$500,9,FALSE),"") ->  | V4: =IFERROR(VLOOKUP(VALUE($A4),'FIAG6-RAll'!$B$2:$AC$500,9,FALSE),"") ->  | W4: =IFERROR(VLOOKUP(VALUE($A4),'FIAG7-RAll'!$B$2:$AC$500,9,FALSE),"") ->  | X4: =IFERROR(VLOOKUP(VALUE($A4),'FIAG8-RAll'!$B$2:$AC$500,9,FALSE),"") -> 0 | Y4: =IFERROR(VLOOKUP(VALUE($A4),'FIAG9-RAll'!$B$2:$AC$500,9,FALSE),"") -> 114 | Z4: =IFERROR(VLOOKUP(VALUE($A4),'FIAG10-RAll'!$B$2:$AC$500,9,FALSE),"") -> 101 | AA4: =IFERROR(VLOOKUP(VALUE($A4),'FIAG3-RAll'!$B$2:$AC$500,3,FALSE),"") ->  | AB4: =IFERROR(VLOOKUP(VALUE($A4),'FIAG4-RAll'!$B$2:$AC$500,3,FALSE),"") ->  | AC4: =IFERROR(VLOOKUP(VALUE($A4),'FIAG5-RAll'!$B$2:$AC$500,3,FALSE),"") ->  | AD4: =IFERROR(VLOOKUP(VALUE($A4),'FIAG6-RAll'!$B$2:$AC$500,3,FALSE),"") ->  | AE4: =IFERROR(VLOOKUP(VALUE($A4),'FIAG7-RAll'!$B$2:$AC$500,3,FALSE),"") ->  | AF4: =IFERROR(VLOOKUP(VALUE($A4),'FIAG8-RAll'!$B$2:$AC$500,3,FALSE),"") -> 1 | AG4: =IFERROR(VLOOKUP(VALUE($A4),'FIAG9-RAll'!$B$2:$AC$500,3,FALSE),"") -> 426 | AH4: =IFERROR(VLOOKUP(VALUE($A4),'FIAG10-RAll'!$B$2:$AC$500,3,FALSE),"") -> 395 | AI4: =VLOOKUP(TEXT($A4,"0000"),'SchType from OADA'!$A$1:$B$679,2,FALSE) -> 4 | AJ4: =IF(D4<>"","ETO","N-ETO") -> ETO | AK4: =IF(C4<>"SS-0","SS","N-SS") -> N-SS | AL4: H
A5: 7251 | B5: =VLOOKUP($A5,SchList!$A$2:$E$476,5,FALSE) -> 6 | C5: =VLOOKUP(A5,SchList!$A$2:$G$476,7,FALSE) -> SS-0 | D5: =VLOOKUP(A5,SchList!$A$2:$G$476,6,FALSE) -> 3 | E5: =VLOOKUP($A5,SchList!$A$2:$B$476,2,FALSE) -> MIAMI CENTRAL SENIOR HIGH | F5: =IF(VLOOKUP(TEXT($A5,"0000"),'2013 SG'!$D$2:$BE$500,29,FALSE)="Yes",VLOOKUP(TEXT($A5,"0000"),'2013 SG'!$D$2:$BE$500,30,FALSE)&VLOOKUP(TEXT($A5,"0000"),'2013 SG'!$D$2:$BE$500,54,FALSE),VLOOKUP(TEXT($A5,"0000"),'2013 SG'!$D$2:$BE$500,30,FALSE)) -> Pending | G5: 2 | H5: 27.25344645 | I5: 943 | J5: 257 | K5: =IFERROR(VLOOKUP(VALUE($A5),'FIAG3-RAll'!$B$2:$AC$500,12,FALSE)*100,"") ->  | L5: =IFERROR(VLOOKUP(VALUE($A5),'FIAG4-RAll'!$B$2:$AC$500,12,FALSE)*100,"") ->  | M5: =IFERROR(VLOOKUP(VALUE($A5),'FIAG5-RAll'!$B$2:$AC$500,12,FALSE)*100,"") ->  | N5: =IFERROR(VLOOKUP(VALUE($A5),'FIAG6-RAll'!$B$2:$AC$500,12,FALSE)*100,"") ->  | O5: =IFERROR(VLOOKUP(VALUE($A5),'FIAG7-RAll'!$B$2:$AC$500,12,FALSE)*100,"") ->  | P5: =IFERROR(VLOOKUP(VALUE($A5),'FIAG8-RAll'!$B$2:$AC$500,12,FALSE)*100,"") ->  | Q5: =IFERROR(VLOOKUP(VALUE($A5),'FIAG9-RAll'!$B$2:$AC$500,12,FALSE)*100,"") -> 28 | R5: =IFERROR(VLOOKUP(VALUE($A5),'FIAG10-RAll'!$B$2:$AC$500,12,FALSE)*100,"") -> 27 | S5: =IFERROR(VLOOKUP(VALUE($A5),'FIAG3-RAll'!$B$2:$AC$500,9,FALSE),"") ->  | T5: =IFERROR(VLOOKUP(VALUE($A5),'FIAG4-RAll'!$B$2:$AC$500,9,FALSE),"") ->  | U5: =IFERROR(VLOOKUP(VALUE($A5),'FIAG5-RAll'!$B$2:$AC$500,9,FALSE),"") ->  | V5: =IFERROR(VLOOKUP(VALUE($A5),'FIAG6-RAll'!$B$2:$AC$500,9,FALSE),"") ->  | W5: =IFERROR(VLOOKUP(VALUE($A5),'FIAG7-RAll'!$B$2:$AC$500,9,FALSE),"") ->  | X5: =IFERROR(VLOOKUP(VALUE($A5),'FIAG8-RAll'!$B$2:$AC$500,9,FALSE),"") ->  | Y5: =IFERROR(VLOOKUP(VALUE($A5),'FIAG9-RAll'!$B$2:$AC$500,9,FALSE),"") -> 144 | Z5: =IFERROR(VLOOKUP(VALUE($A5),'FIAG10-RAll'!$B$2:$AC$500,9,FALSE),"") -> 113 | AA5: =IFERROR(VLOOKUP(VALUE($A5),'FIAG3-RAll'!$B$2:$AC$500,3,FALSE),"") ->  | AB5: =IFERROR(VLOOKUP(VALUE($A5),'FIAG4-RAll'!$B$2:$AC$500,3,FALSE),"") ->  | AC5: =IFERROR(VLOOKUP(VALUE($A5),'FIAG5-RAll'!$B$2:$AC$500,3,FALSE),"") ->  | AD5: =IFERROR(VLOOKUP(VALUE($A5),'FIAG6-RAll'!$B$2:$AC$500,3,FALSE),"") ->  | AE5: =IFERROR(VLOOKUP(VALUE($A5),'FIAG7-RAll'!$B$2:$AC$500,3,FALSE),"") ->  | AF5: =IFERROR(VLOOKUP(VALUE($A5),'FIAG8-RAll'!$B$2:$AC$500,3,FALSE),"") ->  | AG5: =IFERROR(VLOOKUP(VALUE($A5),'FIAG9-RAll'!$B$2:$AC$500,3,FALSE),"") -> 519 | AH5: =IFERROR(VLOOKUP(VALUE($A5),'FIAG10-RAll'!$B$2:$AC$500,3,FALSE),"") -> 424 | AI5: =VLOOKUP(TEXT($A5,"0000"),'SchType from OADA'!$A$1:$B$679,2,FALSE) -> 4 | AJ5: ETO | AK5: N-SS | AL5: H
A6: 7049 | B6: =VLOOKUP($A6,SchList!$A$2:$E$476,5,FALSE) -> 1 | C6: =VLOOKUP(A6,SchList!$A$2:$G$476,7,FALSE) -> SS-1 | D6: =VLOOKUP(A6,SchList!$A$2:$G$476,6,FALSE) ->  | E6: =VLOOKUP($A6,SchList!$A$2:$B$476,2,FALSE) -> WESTLAND HIALEAH SENIOR HIGH | F6: =IF(VLOOKUP(TEXT($A6,"0000"),'2013 SG'!$D$2:$BE$500,29,FALSE)="Yes",VLOOKUP(TEXT($A6,"0000"),'2013 SG'!$D$2:$BE$500,30,FALSE)&VLOOKUP(TEXT($A6,"0000"),'2013 SG'!$D$2:$BE$500,54,FALSE),VLOOKUP(TEXT($A6,"0000"),'2013 SG'!$D$2:$BE$500,30,FALSE)) -> Pending | G6: 3 | H6: 28.47222222 | I6: 1008 | J6: 287 | K6: =IFERROR(VLOOKUP(VALUE($A6),'FIAG3-RAll'!$B$2:$AC$500,12,FALSE)*100,"") ->  | L6: =IFERROR(VLOOKUP(VALUE($A6),'FIAG4-RAll'!$B$2:$AC$500,12,FALSE)*100,"") ->  | M6: =IFERROR(VLOOKUP(VALUE($A6),'FIAG5-RAll'!$B$2:$AC$500,12,FALSE)*100,"") ->  | N6: =IFERROR(VLOOKUP(VALUE($A6),'FIAG6-RAll'!$B$2:$AC$500,12,FALSE)*100,"") ->  | O6: =IFERROR(VLOOKUP(VALUE($A6),'FIAG7-RAll'!$B$2:$AC$500,12,FALSE)*100,"") ->  | P6: =IFERROR(VLOOKUP(VALUE($A6),'FIAG8-RAll'!$B$2:$AC$500,12,FALSE)*100,"") ->  | Q6: =IFERROR(VLOOKUP(VALUE($A6),'FIAG9-RAll'!$B$2:$AC$500,12,FALSE)*100,"") -> 28 | R6: =IFERROR(VLOOKUP(VALUE($A6),'FIAG10-RAll'!$B$2:$AC$500,12,FALSE)*100,"") -> 29 | S6: =IFERROR(VLOOKUP(VALUE($A6),'FIAG3-RAll'!$B$2:$AC$500,9,FALSE),"") ->  | T6: =IFERROR(VLOOKUP(VALUE($A6),'FIAG4-RAll'!$B$2:$AC$500,9,FALSE),"") ->  | U6: =IFERROR(VLOOKUP(VALUE($A6),'FIAG5-RAll'!$B$2:$AC$500,9,FALSE),"") ->  | V6: =IFERROR(VLOOKUP(VALUE($A6),'FIAG6-RAll'!$B$2:$AC$500,9,FALSE),"") ->  | W6: =IFERROR(VLOOKUP(VALUE($A6),'FIAG7-RAll'!$B$2:$AC$500,9,FALSE),"") ->  | X6: =IFERROR(VLOOKUP(VALUE($A6),'FIAG8-RAll'!$B$2:$AC$500,9,FALSE),"") ->  | Y6: =IFERROR(VLOOKUP(VALUE($A6),'FIAG9-RAll'!$B$2:$AC$500,9,FALSE),"") -> 137 | Z6: =IFERROR(VLOOKUP(VALUE($A6),'FIAG10-RAll'!$B$2:$AC$500,9,FALSE),"") -> 150 | AA6: =IFERROR(VLOOKUP(VALUE($A6),'FIAG3-RAll'!$B$2:$AC$500,3,FALSE),"") ->  | AB6: =IFERROR(VLOOKUP(VALUE($A6),'FIAG4-RAll'!$B$2:$AC$500,3,FALSE),"") ->  | AC6: =IFERROR(VLOOKUP(VALUE($A6),'FIAG5-RAll'!$B$2:$AC$500,3,FALSE),"") ->  | AD6: =IFERROR(VLOOKUP(VALUE($A6),'FIAG6-RAll'!$B$2:$AC$500,3,FALSE),"") ->  | AE6: =IFERROR(VLOOKUP(VALUE($A6),'FIAG7-RAll'!$B$2:$AC$500,3,FALSE),"") ->  | AF6: =IFERROR(VLOOKUP(VALUE($A6),'FIAG8-RAll'!$B$2:$AC$500,3,FALSE),"") ->  | AG6: =IFERROR(VLOOKUP(VALUE($A6),'FIAG9-RAll'!$B$2:$AC$500,3,FALSE),"") -> 488 | AH6: =IFERROR(VLOOKUP(VALUE($A6),'FIAG10-RAll'!$B$2:$AC$500,3,FALSE),"") -> 520 | AI6: =VLOOKUP(TEXT($A6,"0000"),'SchType from OADA'!$A$1:$B$679,2,FALSE) -> 4 | AJ6: N-ETO | AK6: SS | AL6: H
A7: 7301 | B7: =VLOOKUP($A7,SchList!$A$2:$E$476,5,FALSE) -> 6 | C7: =VLOOKUP(A7,SchList!$A$2:$G$476,7,FALSE) -> SS-0 | D7: =VLOOKUP(A7,SchList!$A$2:$G$476,6,FALSE) -> 3 | E7: =VLOOKUP($A7,SchList!$A$2:$B$476,2,FALSE) -> MIAMI EDISON SENIOR HIGH | F7: =IF(VLOOKUP(TEXT($A7,"0000"),'2013 SG'!$D$2:$BE$500,29,FALSE)="Yes",VLOOKUP(TEXT($A7,"0000"),'2013 SG'!$D$2:$BE$500,30,FALSE)&VLOOKUP(TEXT($A7,"0000"),'2013 SG'!$D$2:$BE$500,54,FALSE),VLOOKUP(TEXT($A7,"0000"),'2013 SG'!$D$2:$BE$500,30,FALSE)) -> Pending | G7: 4 | H7: 33.50383632 | I7: 391 | J7: 131 | K7: =IFERROR(VLOOKUP(VALUE($A7),'FIAG3-RAll'!$B$2:$AC$500,12,FALSE)*100,"") ->  | L7: =IFERROR(VLOOKUP(VALUE($A7),'FIAG4-RAll'!$B$2:$AC$500,12,FALSE)*100,"") ->  | M7: =IFERROR(VLOOKUP(VALUE($A7),'FIAG5-RAll'!$B$2:$AC$500,12,FALSE)*100,"") ->  | N7: =IFERROR(VLOOKUP(VALUE($A7),'FIAG6-RAll'!$B$2:$AC$500,12,FALSE)*100,"") ->  | O7: =IFERROR(VLOOKUP(VALUE($A7),'FIAG7-RAll'!$B$2:$AC$500,12,FALSE)*100,"") ->  | P7: =IFERROR(VLOOKUP(VALUE($A7),'FIAG8-RAll'!$B$2:$AC$500,12,FALSE)*100,"") ->  | Q7: =IFERROR(VLOOKUP(VALUE($A7),'FIAG9-RAll'!$B$2:$AC$500,12,FALSE)*100,"") -> 36 | R7: =IFERROR(VLOOKUP(VALUE($A7),'FIAG10-RAll'!$B$2:$AC$500,12,FALSE)*100,"") -> 31 | S7: =IFERROR(VLOOKUP(VALUE($A7),'FIAG3-RAll'!$B$2:$AC$500,9,FALSE),"") ->  | T7: =IFERROR(VLOOKUP(VALUE($A7),'FIAG4-RAll'!$B$2:$AC$500,9,FALSE),"") ->  | U7: =IFERROR(VLOOKUP(VALUE($A7),'FIAG5-RAll'!$B$2:$AC$500,9,FALSE),"") ->  | V7: =IFERROR(VLOOKUP(VALUE($A7),'FIAG6-RAll'!$B$2:$AC$500,9,FALSE),"") ->  | W7: =IFERROR(VLOOKUP(VALUE($A7),'FIAG7-RAll'!$B$2:$AC$500,9,FALSE),"") ->  | X7: =IFERROR(VLOOKUP(VALUE($A7),'FIAG8-RAll'!$B$2:$AC$500,9,FALSE),"") ->  | Y7: =IFERROR(VLOOKUP(VALUE($A7),'FIAG9-RAll'!$B$2:$AC$500,9,FALSE),"") -> 70 | Z7: =IFERROR(VLOOKUP(VALUE($A7),'FIAG10-RAll'!$B$2:$AC$500,9,FALSE),"") -> 61 | AA7: =IFERROR(VLOOKUP(VALUE($A7),'FIAG3-RAll'!$B$2:$AC$500,3,FALSE),"") ->  | AB7: =IFERROR(VLOOKUP(VALUE($A7),'FIAG4-RAll'!$B$2:$AC$500,3,FALSE),"") ->  | AC7: =IFERROR(VLOOKUP(VALUE($A7),'FIAG5-RAll'!$B$2:$AC$500,3,FALSE),"") ->  | AD7: =IFERROR(VLOOKUP(VALUE($A7),'FIAG6-RAll'!$B$2:$AC$500,3,FALSE),"") ->  | AE7: =IFERROR(VLOOKUP(VALUE($A7),'FIAG7-RAll'!$B$2:$AC$500,3,FALSE),"") ->  | AF7: =IFERROR(VLOOKUP(VALUE($A7),'FIAG8-RAll'!$B$2:$AC$500,3,FALSE),"") ->  | AG7: =IFERROR(VLOOKUP(VALUE($A7),'FIAG9-RAll'!$B$2:$AC$500,3,FALSE),"") -> 196 | AH7: =IFERROR(VLOOKUP(VALUE($A7),'FIAG10-RAll'!$B$2:$AC$500,3,FALSE),"") -> 195 | AI7: =VLOOKUP(TEXT($A7,"0000"),'SchType from OADA'!$A$1:$B$679,2,FALSE) -> 4 | AJ7: ETO | AK7: N-SS | AL7: H
A8: 7721 | B8: =VLOOKUP($A8,SchList!$A$2:$E$476,5,FALSE) -> 4 | C8: =VLOOKUP(A8,SchList!$A$2:$G$476,7,FALSE) -> SS-1 | D8: =VLOOKUP(A8,SchList!$A$2:$G$476,6,FALSE) ->  | E8: =VLOOKUP($A8,SchList!$A$2:$B$476,2,FALSE) -> SOUTH MIAMI SENIOR HIGH | F8: =IF(VLOOKUP(TEXT($A8,"0000"),'2013 SG'!$D$2:$BE$500,29,FALSE)="Yes",VLOOKUP(TEXT($A8,"0000"),'2013 SG'!$D$2:$BE$500,30,FALSE)&VLOOKUP(TEXT($A8,"0000"),'2013 SG'!$D$2:$BE$500,54,FALSE),VLOOKUP(TEXT($A8,"0000"),'2013 SG'!$D$2:$BE$500,30,FALSE)) -> Pending | G8: 5 | H8: 34.2663274 | I8: 1179 | J8: 404 | K8: =IFERROR(VLOOKUP(VALUE($A8),'FIAG3-RAll'!$B$2:$AC$500,12,FALSE)*100,"") ->  | L8: =IFERROR(VLOOKUP(VALUE($A8),'FIAG4-RAll'!$B$2:$AC$500,12,FALSE)*100,"") ->  | M8: =IFERROR(VLOOKUP(VALUE($A8),'FIAG5-RAll'!$B$2:$AC$500,12,FALSE)*100,"") ->  | N8: =IFERROR(VLOOKUP(VALUE($A8),'FIAG6-RAll'!$B$2:$AC$500,12,FALSE)*100,"") ->  | O8: =IFERROR(VLOOKUP(VALUE($A8),'FIAG7-RAll'!$B$2:$AC$500,12,FALSE)*100,"") ->  | P8: =IFERROR(VLOOKUP(VALUE($A8),'FIAG8-RAll'!$B$2:$AC$500,12,FALSE)*100,"") ->  | Q8: =IFERROR(VLOOKUP(VALUE($A8),'FIAG9-RAll'!$B$2:$AC$500,12,FALSE)*100,"") -> 36 | R8: =IFERROR(VLOOKUP(VALUE($A8),'FIAG10-RAll'!$B$2:$AC$500,12,FALSE)*100,"") -> 33 | S8: =IFERROR(VLOOKUP(VALUE($A8),'FIAG3-RAll'!$B$2:$AC$500,9,FALSE),"") ->  | T8: =IFERROR(VLOOKUP(VALUE($A8),'FIAG4-RAll'!$B$2:$AC$500,9,FALSE),"") ->  | U8: =IFERROR(VLOOKUP(VALUE($A8),'FIAG5-RAll'!$B$2:$AC$500,9,FALSE),"") ->  | V8: =IFERROR(VLOOKUP(VALUE($A8),'FIAG6-RAll'!$B$2:$AC$500,9,FALSE),"") ->  | W8: =IFERROR(VLOOKUP(VALUE($A8),'FIAG7-RAll'!$B$2:$AC$500,9,FALSE),"") ->  | X8: =IFERROR(VLOOKUP(VALUE($A8),'FIAG8-RAll'!$B$2:$AC$500,9,FALSE),"") ->  | Y8: =IFERROR(VLOOKUP(VALUE($A8),'FIAG9-RAll'!$B$2:$AC$500,9,FALSE),"") -> 206 | Z8: =IFERROR(VLOOKUP(VALUE($A8),'FIAG10-RAll'!$B$2:$AC$500,9,FALSE),"") -> 198 | AA8: =IFERROR(VLOOKUP(VALUE($A8),'FIAG3-RAll'!$B$2:$AC$500,3,FALSE),"") ->  | AB8: =IFERROR(VLOOKUP(VALUE($A8),'FIAG4-RAll'!$B$2:$AC$500,3,FALSE),"") ->  | AC8: =IFERROR(VLOOKUP(VALUE($A8),'FIAG5-RAll'!$B$2:$AC$500,3,FALSE),"") ->  | AD8: =IFERROR(VLOOKUP(VALUE($A8),'FIAG6-RAll'!$B$2:$AC$500,3,FALSE),"") ->  | AE8: =IFERROR(VLOOKUP(VALUE($A8),'FIAG7-RAll'!$B$2:$AC$500,3,FALSE),"") ->  | AF8: =IFERROR(VLOOKUP(VALUE($A8),'FIAG8-RAll'!$B$2:$AC$500,3,FALSE),"") ->  | AG8: =IFERROR(VLOOKUP(VALUE($A8),'FIAG9-RAll'!$B$2:$AC$500,3,FALSE),"") -> 575 | AH8: =IFERROR(VLOOKUP(VALUE($A8),'FIAG10-RAll'!$B$2:$AC$500,3,FALSE),"") -> 604 | AI8: =VLOOKUP(TEXT($A8,"0000"),'SchType from OADA'!$A$1:$B$679,2,FALSE) -> 4 | AJ8: N-ETO | AK8: SS | AL8: H
A9: 7731 | B9: =VLOOKUP($A9,SchList!$A$2:$E$476,5,FALSE) -> 6 | C9: =VLOOKUP(A9,SchList!$A$2:$G$476,7,FALSE) -> SS-0 | D9: =VLOOKUP(A9,SchList!$A$2:$G$476,6,FALSE) -> 1 | E9: =VLOOKUP($A9,SchList!$A$2:$B$476,2,FALSE) -> MIAMI SOUTHRIDGE SENIOR HIGH | F9: =IF(VLOOKUP(TEXT($A9,"0000"),'2013 SG'!$D$2:$BE$500,29,FALSE)="Yes",VLOOKUP(TEXT($A9,"0000"),'2013 SG'!$D$2:$BE$500,30,FALSE)&VLOOKUP(TEXT($A9,"0000"),'2013 SG'!$D$2:$BE$500,54,FALSE),VLOOKUP(TEXT($A9,"0000"),'2013 SG'!$D$2:$BE$500,30,FALSE)) -> Pending | G9: 6 | H9: 34.68149646 | I9: 989 | J9: 343 | K9: =IFERROR(VLOOKUP(VALUE($A9),'FIAG3-RAll'!$B$2:$AC$500,12,FALSE)*100,"") ->  | L9: =IFERROR(VLOOKUP(VALUE($A9),'FIAG4-RAll'!$B$2:$AC$500,12,FALSE)*100,"") ->  | M9: =IFERROR(VLOOKUP(VALUE($A9),'FIAG5-RAll'!$B$2:$AC$500,12,FALSE)*100,"") ->  | N9: =IFERROR(VLOOKUP(VALUE($A9),'FIAG6-RAll'!$B$2:$AC$500,12,FALSE)*100,"") ->  | O9: =IFERROR(VLOOKUP(VALUE($A9),'FIAG7-RAll'!$B$2:$AC$500,12,FALSE)*100,"") ->  | P9: =IFERROR(VLOOKUP(VALUE($A9),'FIAG8-RAll'!$B$2:$AC$500,12,FALSE)*100,"") ->  | Q9: =IFERROR(VLOOKUP(VALUE($A9),'FIAG9-RAll'!$B$2:$AC$500,12,FALSE)*100,"") -> 35 | R9: =IFERROR(VLOOKUP(VALUE($A9),'FIAG10-RAll'!$B$2:$AC$500,12,FALSE)*100,"") -> 35 | S9: =IFERROR(VLOOKUP(VALUE($A9),'FIAG3-RAll'!$B$2:$AC$500,9,FALSE),"") ->  | T9: =IFERROR(VLOOKUP(VALUE($A9),'FIAG4-RAll'!$B$2:$AC$500,9,FALSE),"") ->  | U9: =IFERROR(VLOOKUP(VALUE($A9),'FIAG5-RAll'!$B$2:$AC$500,9,FALSE),"") ->  | V9: =IFERROR(VLOOKUP(VALUE($A9),'FIAG6-RAll'!$B$2:$AC$500,9,FALSE),"") ->  | W9: =IFERROR(VLOOKUP(VALUE($A9),'FIAG7-RAll'!$B$2:$AC$500,9,FALSE),"") ->  | X9: =IFERROR(VLOOKUP(VALUE($A9),'FIAG8-RAll'!$B$2:$AC$500,9,FALSE),"") ->  | Y9: =IFERROR(VLOOKUP(VALUE($A9),'FIAG9-RAll'!$B$2:$AC$500,9,FALSE),"") -> 177 | Z9: =IFERROR(VLOOKUP(VALUE($A9),'FIAG10-RAll'!$B$2:$AC$500,9,FALSE),"") -> 166 | AA9: =IFERROR(VLOOKUP(VALUE($A9),'FIAG3-RAll'!$B$2:$AC$500,3,FALSE),"") ->  | AB9: =IFERROR(VLOOKUP(VALUE($A9),'FIAG4-RAll'!$B$2:$AC$500,3,FALSE),"") ->  | AC9: =IFERROR(VLOOKUP(VALUE($A9),'FIAG5-RAll'!$B$2:$AC$500,3,FALSE),"") ->  | AD9: =IFERROR(VLOOKUP(VALUE($A9),'FIAG6-RAll'!$B$2:$AC$500,3,FALSE),"") ->  | AE9: =IFERROR(VLOOKUP(VALUE($A9),'FIAG7-RAll'!$B$2:$AC$500,3,FALSE),"") ->  | AF9: =IFERROR(VLOOKUP(VALUE($A9),'FIAG8-RAll'!$B$2:$AC$500,3,FALSE),"") ->  | AG9: =IFERROR(VLOOKUP(VALUE($A9),'FIAG9-RAll'!$B$2:$AC$500,3,FALSE),"") -> 510 | AH9: =IFERROR(VLOOKUP(VALUE($A9),'FIAG10-RAll'!$B$2:$AC$500,3,FALSE),"") -> 479 | AI9: =VLOOKUP(TEXT($A9,"0000"),'SchType from OADA'!$A$1:$B$679,2,FALSE) -> 4 | AJ9: ETO | AK9: N-SS | AL9: H
A10: 7381 | B10: =VLOOKUP($A10,SchList!$A$2:$E$476,5,FALSE) -> 6 | C10: =VLOOKUP(A10,SchList!$A$2:$G$476,7,FALSE) -> SS-0 | D10: =VLOOKUP(A10,SchList!$A$2:$G$476,6,FALSE) -> 2 | E10: =VLOOKUP($A10,SchList!$A$2:$B$476,2,FALSE) -> MIAMI NORLAND SENIOR HIGH | F10: =IF(VLOOKUP(TEXT($A10,"0000"),'2013 SG'!$D$2:$BE$500,29,FALSE)="Yes",VLOOKUP(TEXT($A10,"0000"),'2013 SG'!$D$2:$BE$500,30,FALSE)&VLOOKUP(TEXT($A10,"0000"),'2013 SG'!$D$2:$BE$500,54,FALSE),VLOOKUP(TEXT($A10,"0000"),'2013 SG'!$D$2:$BE$500,30,FALSE)) -> Pending | G10: 7 | H10: 35.73369565 | I10: 736 | J10: 263 | K10: =IFERROR(VLOOKUP(VALUE($A10),'FIAG3-RAll'!$B$2:$AC$500,12,FALSE)*100,"") ->  | L10: =IFERROR(VLOOKUP(VALUE($A10),'FIAG4-RAll'!$B$2:$AC$500,12,FALSE)*100,"") ->  | M10: =IFERROR(VLOOKUP(VALUE($A10),'FIAG5-RAll'!$B$2:$AC$500,12,FALSE)*100,"") ->  | N10: =IFERROR(VLOOKUP(VALUE($A10),'FIAG6-RAll'!$B$2:$AC$500,12,FALSE)*100,"") ->  | O10: =IFERROR(VLOOKUP(VALUE($A10),'FIAG7-RAll'!$B$2:$AC$500,12,FALSE)*100,"") ->  | P10: =IFERROR(VLOOKUP(VALUE($A10),'FIAG8-RAll'!$B$2:$AC$500,12,FALSE)*100,"") ->  | Q10: =IFERROR(VLOOKUP(VALUE($A10),'FIAG9-RAll'!$B$2:$AC$500,12,FALSE)*100,"") -> 37 | R10: =IFERROR(VLOOKUP(VALUE($A10),'FIAG10-RAll'!$B$2:$AC$500,12,FALSE)*100,"") -> 35 | S10: =IFERROR(VLOOKUP(VALUE($A10),'FIAG3-RAll'!$B$2:$AC$500,9,FALSE),"") ->  | T10: =IFERROR(VLOOKUP(VALUE($A10),'FIAG4-RAll'!$B$2:$AC$500,9,FALSE),"") ->  | U10: =IFERROR(VLOOKUP(VALUE($A10),'FIAG5-RAll'!$B$2:$AC$500,9,FALSE),"") ->  | V10: =IFERROR(VLOOKUP(VALUE($A10),'FIAG6-RAll'!$B$2:$AC$500,9,FALSE),"") ->  | W10: =IFERROR(VLOOKUP(VALUE($A10),'FIAG7-RAll'!$B$2:$AC$500,9,FALSE),"") ->  | X10: =IFERROR(VLOOKUP(VALUE($A10),'FIAG8-RAll'!$B$2:$AC$500,9,FALSE),"") ->  | Y10: =IFERROR(VLOOKUP(VALUE($A10),'FIAG9-RAll'!$B$2:$AC$500,9,FALSE),"") -> 127 | Z10: =IFERROR(VLOOKUP(VALUE($A10),'FIAG10-RAll'!$B$2:$AC$500,9,FALSE),"") -> 136 | AA10: =IFERROR(VLOOKUP(VALUE($A10),'FIAG3-RAll'!$B$2:$AC$500,3,FALSE),"") ->  | AB10: =IFERROR(VLOOKUP(VALUE($A10),'FIAG4-RAll'!$B$2:$AC$500,3,FALSE),"") ->  | AC10: =IFERROR(VLOOKUP(VALUE($A10),'FIAG5-RAll'!$B$2:$AC$500,3,FALSE),"") ->  | AD10: =IFERROR(VLOOKUP(VALUE($A10),'FIAG6-RAll'!$B$2:$AC$500,3,FALSE),"") ->  | AE10: =IFERROR(VLOOKUP(VALUE($A10),'FIAG7-RAll'!$B$2:$AC$500,3,FALSE),"") ->  | AF10: =IFERROR(VLOOKUP(VALUE($A10),'FIAG8-RAll'!$B$2:$AC$500,3,FALSE),"") ->  | AG10: =IFERROR(VLOOKUP(VALUE($A10),'FIAG9-RAll'!$B$2:$AC$500,3,FALSE),"") -> 347 | AH10: =IFERROR(VLOOKUP(VALUE($A10),'FIAG10-RAll'!$B$2:$AC$500,3,FALSE),"") -> 389 | AI10: =VLOOKUP(TEXT($A10,"0000"),'SchType from OADA'!$A$1:$B$679,2,FALSE) -> 4 | AJ10: ETO | AK10: N-SS | AL10: H
A11: 7411 | B11: =VLOOKUP($A11,SchList!$A$2:$E$476,5,FALSE) -> 6 | C11: =VLOOKUP(A11,SchList!$A$2:$G$476,7,FALSE) -> SS-0 | D11: =VLOOKUP(A11,SchList!$A$2:$G$476,6,FALSE) -> 3 | E11: =VLOOKUP($A11,SchList!$A$2:$B$476,2,FALSE) -> MIAMI NORTHWESTERN SENIOR HIGH | F11: =IF(VLOOKUP(TEXT($A11,"0000"),'2013 SG'!$D$2:$BE$500,29,FALSE)="Yes",VLOOKUP(TEXT($A11,"0000"),'2013 SG'!$D$2:$BE$500,30,FALSE)&VLOOKUP(TEXT($A11,"0000"),'2013 SG'!$D$2:$BE$500,54,FALSE),VLOOKUP(TEXT($A11,"0000"),'2013 SG'!$D$2:$BE$500,30,FALSE)) -> Pending | G11: 8 | H11: 36.51226158 | I11: 734 | J11: 268 | K11: =IFERROR(VLOOKUP(VALUE($A11),'FIAG3-RAll'!$B$2:$AC$500,12,FALSE)*100,"") ->  | L11: =IFERROR(VLOOKUP(VALUE($A11),'FIAG4-RAll'!$B$2:$AC$500,12,FALSE)*100,"") ->  | M11: =IFERROR(VLOOKUP(VALUE($A11),'FIAG5-RAll'!$B$2:$AC$500,12,FALSE)*100,"") ->  | N11: =IFERROR(VLOOKUP(VALUE($A11),'FIAG6-RAll'!$B$2:$AC$500,12,FALSE)*100,"") ->  | O11: =IFERROR(VLOOKUP(VALUE($A11),'FIAG7-RAll'!$B$2:$AC$500,12,FALSE)*100,"") ->  | P11: =IFERROR(VLOOKUP(VALUE($A11),'FIAG8-RAll'!$B$2:$AC$500,12,FALSE)*100,"") ->  | Q11: =IFERROR(VLOOKUP(VALUE($A11),'FIAG9-RAll'!$B$2:$AC$500,12,FALSE)*100,"") -> 34 | R11: =IFERROR(VLOOKUP(VALUE($A11),'FIAG10-RAll'!$B$2:$AC$500,12,FALSE)*100,"") -> 39 | S11: =IFERROR(VLOOKUP(VALUE($A11),'FIAG3-RAll'!$B$2:$AC$500,9,FALSE),"") ->  | T11: =IFERROR(VLOOKUP(VALUE($A11),'FIAG4-RAll'!$B$2:$AC$500,9,FALSE),"") ->  | U11: =IFERROR(VLOOKUP(VALUE($A11),'FIAG5-RAll'!$B$2:$AC$500,9,FALSE),"") ->  | V11: =IFERROR(VLOOKUP(VALUE($A11),'FIAG6-RAll'!$B$2:$AC$500,9,FALSE),"") ->  | W11: =IFERROR(VLOOKUP(VALUE($A11),'FIAG7-RAll'!$B$2:$AC$500,9,FALSE),"") ->  | X11: =IFERROR(VLOOKUP(VALUE($A11),'FIAG8-RAll'!$B$2:$AC$500,9,FALSE),"") ->  | Y11: =IFERROR(VLOOKUP(VALUE($A11),'FIAG9-RAll'!$B$2:$AC$500,9,FALSE),"") -> 124 | Z11: =IFERROR(VLOOKUP(VALUE($A11),'FIAG10-RAll'!$B$2:$AC$500,9,FALSE),"") -> 144 | AA11: =IFERROR(VLOOKUP(VALUE($A11),'FIAG3-RAll'!$B$2:$AC$500,3,FALSE),"") ->  | AB11: =IFERROR(VLOOKUP(VALUE($A11),'FIAG4-RAll'!$B$2:$AC$500,3,FALSE),"") ->  | AC11: =IFERROR(VLOOKUP(VALUE($A11),'FIAG5-RAll'!$B$2:$AC$500,3,FALSE),"") ->  | AD11: =IFERROR(VLOOKUP(VALUE($A11),'FIAG6-RAll'!$B$2:$AC$500,3,FALSE),"") ->  | AE11: =IFERROR(VLOOKUP(VALUE($A11),'FIAG7-RAll'!$B$2:$AC$500,3,FALSE),"") ->  | AF11: =IFERROR(VLOOKUP(VALUE($A11),'FIAG8-RAll'!$B$2:$AC$500,3,FALSE),"") ->  | AG11: =IFERROR(VLOOKUP(VALUE($A11),'FIAG9-RAll'!$B$2:$AC$500,3,FALSE),"") -> 369 | AH11: =IFERROR(VLOOKUP(VALUE($A11),'FIAG10-RAll'!$B$2:$AC$500,3,FALSE),"") -> 365 | AI11: =VLOOKUP(TEXT($A11,"0000"),'SchType from OADA'!$A$1:$B$679,2,FALSE) -> 4 | AJ11: ETO | AK11: N-SS | AL11: H
A12: 7056 | B12: =VLOOKUP($A12,SchList!$A$2:$E$476,5,FALSE) -> 4 | C12: =VLOOKUP(A12,SchList!$A$2:$G$476,7,FALSE) -> SS-0 | D12: =VLOOKUP(A12,SchList!$A$2:$G$476,6,FALSE) ->  | E12: =VLOOKUP($A12,SchList!$A$2:$B$476,2,FALSE) -> YOUNG MENS PREPARATORY ACADEMY | F12: =IF(VLOOKUP(TEXT($A12,"0000"),'2013 SG'!$D$2:$BE$500,29,FALSE)="Yes",VLOOKUP(TEXT($A12,"0000"),'2013 SG'!$D$2:$BE$500,30,FALSE)&VLOOKUP(TEXT($A12,"0000"),'2013 SG'!$D$2:$BE$500,54,FALSE),VLOOKUP(TEXT($A12,"0000"),'2013 SG'!$D$2:$BE$500,30,FALSE)) -> Pending | G12: 11 | H12: 38.03680982 | I12: 163 | J12: 62 | K12: =IFERROR(VLOOKUP(VALUE($A12),'FIAG3-RAll'!$B$2:$AC$500,12,FALSE)*100,"") ->  | L12: =IFERROR(VLOOKUP(VALUE($A12),'FIAG4-RAll'!$B$2:$AC$500,12,FALSE)*100,"") ->  | M12: =IFERROR(VLOOKUP(VALUE($A12),'FIAG5-RAll'!$B$2:$AC$500,12,FALSE)*100,"") ->  | N12: =IFERROR(VLOOKUP(VALUE($A12),'FIAG6-RAll'!$B$2:$AC$500,12,FALSE)*100,"") -> 46 | O12: =IFERROR(VLOOKUP(VALUE($A12),'FIAG7-RAll'!$B$2:$AC$500,12,FALSE)*100,"") -> 29 | P12: =IFERROR(VLOOKUP(VALUE($A12),'FIAG8-RAll'!$B$2:$AC$500,12,FALSE)*100,"") ->  | Q12: =IFERROR(VLOOKUP(VALUE($A12),'FIAG9-RAll'!$B$2:$AC$500,12,FALSE)*100,"") -> 33 | R12: =IFERROR(VLOOKUP(VALUE($A12),'FIAG10-RAll'!$B$2:$AC$500,12,FALSE)*100,"") -> 43 | S12: =IFERROR(VLOOKUP(VALUE($A12),'FIAG3-RAll'!$B$2:$AC$500,9,FALSE),"") ->  | T12: =IFERROR(VLOOKUP(VALUE($A12),'FIAG4-RAll'!$B$2:$AC$500,9,FALSE),"") ->  | U12: =IFERROR(VLOOKUP(VALUE($A12),'FIAG5-RAll'!$B$2:$AC$500,9,FALSE),"") ->  | V12: =IFERROR(VLOOKUP(VALUE($A12),'FIAG6-RAll'!$B$2:$AC$500,9,FALSE),"") -> 26 | W12: =IFERROR(VLOOKUP(VALUE($A12),'FIAG7-RAll'!$B$2:$AC$500,9,FALSE),"") -> 15 | X12: =IFERROR(VLOOKUP(VALUE($A12),'FIAG8-RAll'!$B$2:$AC$500,9,FALSE),"") ->  | Y12: =IFERROR(VLOOKUP(VALUE($A12),'FIAG9-RAll'!$B$2:$AC$500,9,FALSE),"") -> 9 | Z12: =IFERROR(VLOOKUP(VALUE($A12),'FIAG10-RAll'!$B$2:$AC$500,9,FALSE),"") -> 12 | AA12: =IFERROR(VLOOKUP(VALUE($A12),'FIAG3-RAll'!$B$2:$AC$500,3,FALSE),"") ->  | AB12: =IFERROR(VLOOKUP(VALUE($A12),'FIAG4-RAll'!$B$2:$AC$500,3,FALSE),"") ->  | AC12: =IFERROR(VLOOKUP(VALUE($A12),'FIAG5-RAll'!$B$2:$AC$500,3,FALSE),"") ->  | AD12: =IFERROR(VLOOKUP(VALUE($A12),'FIAG6-RAll'!$B$2:$AC$500,3,FALSE),"") -> 57 | AE12: =IFERROR(VLOOKUP(VALUE($A12),'FIAG7-RAll'!$B$2:$AC$500,3,FALSE),"") -> 51 | AF12: =IFERROR(VLOOKUP(VALUE($A12),'FIAG8-RAll'!$B$2:$AC$500,3,FALSE),"") ->  | AG12: =IFERROR(VLOOKUP(VALUE($A12),'FIAG9-RAll'!$B$2:$AC$500,3,FALSE),"") -> 27 | AH12: =IFERROR(VLOOKUP(VALUE($A12),'FIAG10-RAll'!$B$2:$AC$500,3,FALSE),"") -> 28 | AI12: =VLOOKUP(TEXT($A12,"0000"),'SchType from OADA'!$A$1:$B$679,2,FALSE) -> 4 | AJ12: N-ETO | AK12: N-SS | AL12: H
A13: 7531 | B13: =VLOOKUP($A13,SchList!$A$2:$E$476,5,FALSE) -> 5 | C13: =VLOOKUP(A13,SchList!$A$2:$G$476,7,FALSE) -> SS-2 | D13: =VLOOKUP(A13,SchList!$A$2:$G$476,6,FALSE) ->  | E13: =VLOOKUP($A13,SchList!$A$2:$B$476,2,FALSE) -> MIAMI SUNSET SENIOR HIGH | F13: =IF(VLOOKUP(TEXT($A13,"0000"),'2013 SG'!$D$2:$BE$500,29,FALSE)="Yes",VLOOKUP(TEXT($A13,"0000"),'2013 SG'!$D$2:$BE$500,30,FALSE)&VLOOKUP(TEXT($A13,"0000"),'2013 SG'!$D$2:$BE$500,54,FALSE),VLOOKUP(TEXT($A13,"0000"),'2013 SG'!$D$2:$BE$500,30,FALSE)) -> Pending | G13: 10 | H13: 36.55006031 | I13: 829 | J13: 303 | K13: =IFERROR(VLOOKUP(VALUE($A13),'FIAG3-RAll'!$B$2:$AC$500,12,FALSE)*100,"") ->  | L13: =IFERROR(VLOOKUP(VALUE($A13),'FIAG4-RAll'!$B$2:$AC$500,12,FALSE)*100,"") ->  | M13: =IFERROR(VLOOKUP(VALUE($A13),'FIAG5-RAll'!$B$2:$AC$500,12,FALSE)*100,"") ->  | N13: =IFERROR(VLOOKUP(VALUE($A13),'FIAG6-RAll'!$B$2:$AC$500,12,FALSE)*100,"") ->  | O13: =IFERROR(VLOOKUP(VALUE($A13),'FIAG7-RAll'!$B$2:$AC$500,12,FALSE)*100,"") ->  | P13: =IFERROR(VLOOKUP(VALUE($A13),'FIAG8-RAll'!$B$2:$AC$500,12,FALSE)*100,"") ->  | Q13: =IFERROR(VLOOKUP(VALUE($A13),'FIAG9-RAll'!$B$2:$AC$500,12,FALSE)*100,"") -> 40 | R13: =IFERROR(VLOOKUP(VALUE($A13),'FIAG10-RAll'!$B$2:$AC$500,12,FALSE)*100,"") -> 33 | S13: =IFERROR(VLOOKUP(VALUE($A13),'FIAG3-RAll'!$B$2:$AC$500,9,FALSE),"") ->  | T13: =IFERROR(VLOOKUP(VALUE($A13),'FIAG4-RAll'!$B$2:$AC$500,9,FALSE),"") ->  | U13: =IFERROR(VLOOKUP(VALUE($A13),'FIAG5-RAll'!$B$2:$AC$500,9,FALSE),"") ->  | V13: =IFERROR(VLOOKUP(VALUE($A13),'FIAG6-RAll'!$B$2:$AC$500,9,FALSE),"") ->  | W13: =IFERROR(VLOOKUP(VALUE($A13),'FIAG7-RAll'!$B$2:$AC$500,9,FALSE),"") ->  | X13: =IFERROR(VLOOKUP(VALUE($A13),'FIAG8-RAll'!$B$2:$AC$500,9,FALSE),"") ->  | Y13: =IFERROR(VLOOKUP(VALUE($A13),'FIAG9-RAll'!$B$2:$AC$500,9,FALSE),"") -> 167 | Z13: =IFERROR(VLOOKUP(VALUE($A13),'FIAG10-RAll'!$B$2:$AC$500,9,FALSE),"") -> 136 | AA13: =IFERROR(VLOOKUP(VALUE($A13),'FIAG3-RAll'!$B$2:$AC$500,3,FALSE),"") ->  | AB13: =IFERROR(VLOOKUP(VALUE($A13),'FIAG4-RAll'!$B$2:$AC$500,3,FALSE),"") ->  | AC13: =IFERROR(VLOOKUP(VALUE($A13),'FIAG5-RAll'!$B$2:$AC$500,3,FALSE),"") ->  | AD13: =IFERROR(VLOOKUP(VALUE($A13),'FIAG6-RAll'!$B$2:$AC$500,3,FALSE),"") ->  | AE13: =IFERROR(VLOOKUP(VALUE($A13),'FIAG7-RAll'!$B$2:$AC$500,3,FALSE),"") ->  | AF13: =IFERROR(VLOOKUP(VALUE($A13),'FIAG8-RAll'!$B$2:$AC$500,3,FALSE),"") ->  | AG13: =IFERROR(VLOOKUP(VALUE($A13),'FIAG9-RAll'!$B$2:$AC$500,3,FALSE),"") -> 415 | AH13: =IFERROR(VLOOKUP(VALUE($A13),'FIAG10-RAll'!$B$2:$AC$500,3,FALSE),"") -> 414 | AI13: =VLOOKUP(TEXT($A13,"0000"),'SchType from OADA'!$A$1:$B$679,2,FALSE) -> 4 | AJ13: N-ETO | AK13: SS | AL13: H
A14: 7701 | B14: =VLOOKUP($A14,SchList!$A$2:$E$476,5,FALSE) -> 5 | C14: =VLOOKUP(A14,SchList!$A$2:$G$476,7,FALSE) -> SS-0 | D14: =VLOOKUP(A14,SchList!$A$2:$G$476,6,FALSE) -> 3 | E14: =VLOOKUP($A14,SchList!$A$2:$B$476,2,FALSE) -> SOUTH DADE SENIOR HIGH | F14: =IF(VLOOKUP(TEXT($A14,"0000"),'2013 SG'!$D$2:$BE$500,29,FALSE)="Yes",VLOOKUP(TEXT($A14,"0000"),'2013 SG'!$D$2:$BE$500,30,FALSE)&VLOOKUP(TEXT($A14,"0000"),'2013 SG'!$D$2:$BE$500,54,FALSE),VLOOKUP(TEXT($A14,"0000"),'2013 SG'!$D$2:$BE$500,30,FALSE)) -> Pending | G14: 9 | H14: 36.52849741 | I14: 1544 | J14: 564 | K14: =IFERROR(VLOOKUP(VALUE($A14),'FIAG3-RAll'!$B$2:$AC$500,12,FALSE)*100,"") ->  | L14: =IFERROR(VLOOKUP(VALUE($A14),'FIAG4-RAll'!$B$2:$AC$500,12,FALSE)*100,"") ->  | M14: =IFERROR(VLOOKUP(VALUE($A14),'FIAG5-RAll'!$B$2:$AC$500,12,FALSE)*100,"") ->  | N14: =IFERROR(VLOOKUP(VALUE($A14),'FIAG6-RAll'!$B$2:$AC$500,12,FALSE)*100,"") ->  | O14: =IFERROR(VLOOKUP(VALUE($A14),'FIAG7-RAll'!$B$2:$AC$500,12,FALSE)*100,"") ->  | P14: =IFERROR(VLOOKUP(VALUE($A14),'FIAG8-RAll'!$B$2:$AC$500,12,FALSE)*100,"") ->  | Q14: =IFERROR(VLOOKUP(VALUE($A14),'FIAG9-RAll'!$B$2:$AC$500,12,FALSE)*100,"") -> 38 | R14: =IFERROR(VLOOKUP(VALUE($A14),'FIAG10-RAll'!$B$2:$AC$500,12,FALSE)*100,"") -> 35 | S14: =IFERROR(VLOOKUP(VALUE($A14),'FIAG3-RAll'!$B$2:$AC$500,9,FALSE),"") ->  | T14: =IFERROR(VLOOKUP(VALUE($A14),'FIAG4-RAll'!$B$2:$AC$500,9,FALSE),"") ->  | U14: =IFERROR(VLOOKUP(VALUE($A14),'FIAG5-RAll'!$B$2:$AC$500,9,FALSE),"") ->  | V14: =IFERROR(VLOOKUP(VALUE($A14),'FIAG6-RAll'!$B$2:$AC$500,9,FALSE),"") ->  | W14: =IFERROR(VLOOKUP(VALUE($A14),'FIAG7-RAll'!$B$2:$AC$500,9,FALSE),"") ->  | X14: =IFERROR(VLOOKUP(VALUE($A14),'FIAG8-RAll'!$B$2:$AC$500,9,FALSE),"") ->  | Y14: =IFERROR(VLOOKUP(VALUE($A14),'FIAG9-RAll'!$B$2:$AC$500,9,FALSE),"") -> 303 | Z14: =IFERROR(VLOOKUP(VALUE($A14),'FIAG10-RAll'!$B$2:$AC$500,9,FALSE),"") -> 261 | AA14: =IFERROR(VLOOKUP(VALUE($A14),'FIAG3-RAll'!$B$2:$AC$500,3,FALSE),"") ->  | AB14: =IFERROR(VLOOKUP(VALUE($A14),'FIAG4-RAll'!$B$2:$AC$500,3,FALSE),"") ->  | AC14: =IFERROR(VLOOKUP(VALUE($A14),'FIAG5-RAll'!$B$2:$AC$500,3,FALSE),"") ->  | AD14: =IFERROR(VLOOKUP(VALUE($A14),'FIAG6-RAll'!$B$2:$AC$500,3,FALSE),"") ->  | AE14: =IFERROR(VLOOKUP(VALUE($A14),'FIAG7-RAll'!$B$2:$AC$500,3,FALSE),"") ->  | AF14: =IFERROR(VLOOKUP(VALUE($A14),'FIAG8-RAll'!$B$2:$AC$500,3,FALSE),"") ->  | AG14: =IFERROR(VLOOKUP(VALUE($A14),'FIAG9-RAll'!$B$2:$AC$500,3,FALSE),"") -> 792 | AH14: =IFERROR(VLOOKUP(VALUE($A14),'FIAG10-RAll'!$B$2:$AC$500,3,FALSE),"") -> 752 | AI14: =VLOOKUP(TEXT($A14,"0000"),'SchType from OADA'!$A$1:$B$679,2,FALSE) -> 4 | AJ14: ETO | AK14: N-SS | AL14: H
A15: 7461 | B15: =VLOOKUP($A15,SchList!$A$2:$E$476,5,FALSE) -> 4 | C15: =VLOOKUP(A15,SchList!$A$2:$G$476,7,FALSE) -> SS-0 | D15: =VLOOKUP(A15,SchList!$A$2:$G$476,6,FALSE) -> 3 | E15: =VLOOKUP($A15,SchList!$A$2:$B$476,2,FALSE) -> MIAMI SENIOR HIGH | F15: =IF(VLOOKUP(TEXT($A15,"0000"),'2013 SG'!$D$2:$BE$500,29,FALSE)="Yes",VLOOKUP(TEXT($A15,"0000"),'2013 SG'!$D$2:$BE$500,30,FALSE)&VLOOKUP(TEXT($A15,"0000"),'2013 SG'!$D$2:$BE$500,54,FALSE),VLOOKUP(TEXT($A15,"0000"),'2013 SG'!$D$2:$BE$500,30,FALSE)) -> Pending | G15: 13 | H15: 38.69309838 | I15: 1362 | J15: 527 | K15: =IFERROR(VLOOKUP(VALUE($A15),'FIAG3-RAll'!$B$2:$AC$500,12,FALSE)*100,"") ->  | L15: =IFERROR(VLOOKUP(VALUE($A15),'FIAG4-RAll'!$B$2:$AC$500,12,FALSE)*100,"") ->  | M15: =IFERROR(VLOOKUP(VALUE($A15),'FIAG5-RAll'!$B$2:$AC$500,12,FALSE)*100,"") ->  | N15: =IFERROR(VLOOKUP(VALUE($A15),'FIAG6-RAll'!$B$2:$AC$500,12,FALSE)*100,"") ->  | O15: =IFERROR(VLOOKUP(VALUE($A15),'FIAG7-RAll'!$B$2:$AC$500,12,FALSE)*100,"") ->  | P15: =IFERROR(VLOOKUP(VALUE($A15),'FIAG8-RAll'!$B$2:$AC$500,12,FALSE)*100,"") ->  | Q15: =IFERROR(VLOOKUP(VALUE($A15),'FIAG9-RAll'!$B$2:$AC$500,12,FALSE)*100,"") -> 38 | R15: =IFERROR(VLOOKUP(VALUE($A15),'FIAG10-RAll'!$B$2:$AC$500,12,FALSE)*100,"") -> 39 | S15: =IFERROR(VLOOKUP(VALUE($A15),'FIAG3-RAll'!$B$2:$AC$500,9,FALSE),"") ->  | T15: =IFERROR(VLOOKUP(VALUE($A15),'FIAG4-RAll'!$B$2:$AC$500,9,FALSE),"") ->  | U15: =IFERROR(VLOOKUP(VALUE($A15),'FIAG5-RAll'!$B$2:$AC$500,9,FALSE),"") ->  | V15: =IFERROR(VLOOKUP(VALUE($A15),'FIAG6-RAll'!$B$2:$AC$500,9,FALSE),"") ->  | W15: =IFERROR(VLOOKUP(VALUE($A15),'FIAG7-RAll'!$B$2:$AC$500,9,FALSE),"") ->  | X15: =IFERROR(VLOOKUP(VALUE($A15),'FIAG8-RAll'!$B$2:$AC$500,9,FALSE),"") ->  | Y15: =IFERROR(VLOOKUP(VALUE($A15),'FIAG9-RAll'!$B$2:$AC$500,9,FALSE),"") -> 272 | Z15: =IFERROR(VLOOKUP(VALUE($A15),'FIAG10-RAll'!$B$2:$AC$500,9,FALSE),"") -> 255 | AA15: =IFERROR(VLOOKUP(VALUE($A15),'FIAG3-RAll'!$B$2:$AC$500,3,FALSE),"") ->  | AB15: =IFERROR(VLOOKUP(VALUE($A15),'FIAG4-RAll'!$B$2:$AC$500,3,FALSE),"") ->  | AC15: =IFERROR(VLOOKUP(VALUE($A15),'FIAG5-RAll'!$B$2:$AC$500,3,FALSE),"") ->  | AD15: =IFERROR(VLOOKUP(VALUE($A15),'FIAG6-RAll'!$B$2:$AC$500,3,FALSE),"") ->  | AE15: =IFERROR(VLOOKUP(VALUE($A15),'FIAG7-RAll'!$B$2:$AC$500,3,FALSE),"") ->  | AF15: =IFERROR(VLOOKUP(VALUE($A15),'FIAG8-RAll'!$B$2:$AC$500,3,FALSE),"") ->  | AG15: =IFERROR(VLOOKUP(VALUE($A15),'FIAG9-RAll'!$B$2:$AC$500,3,FALSE),"") -> 716 | AH15: =IFERROR(VLOOKUP(VALUE($A15),'FIAG10-RAll'!$B$2:$AC$500,3,FALSE),"") -> 646 | AI15: =VLOOKUP(TEXT($A15,"0000"),'SchType from OADA'!$A$1:$B$679,2,FALSE) -> 4 | AJ15: ETO | AK15: N-SS | AL15: H
A16: 7791 | B16: =VLOOKUP($A16,SchList!$A$2:$E$476,5,FALSE) -> 6 | C16: =VLOOKUP(A16,SchList!$A$2:$G$476,7,FALSE) -> SS-0 | D16: =VLOOKUP(A16,SchList!$A$2:$G$476,6,FALSE) -> 3 | E16: =VLOOKUP($A16,SchList!$A$2:$B$476,2,FALSE) -> BOOKER T. WASHINGTON SR. HIGH | F16: =IF(VLOOKUP(TEXT($A16,"0000"),'2013 SG'!$D$2:$BE$500,29,FALSE)="Yes",VLOOKUP(TEXT($A16,"0000"),'2013 SG'!$D$2:$BE$500,30,FALSE)&VLOOKUP(TEXT($A16,"0000"),'2013 SG'!$D$2:$BE$500,54,FALSE),VLOOKUP(TEXT($A16,"0000"),'2013 SG'!$D$2:$BE$500,30,FALSE)) -> Pending | G16: 14 | H16: 39.44020356 | I16: 393 | J16: 155 | K16: =IFERROR(VLOOKUP(VALUE($A16),'FIAG3-RAll'!$B$2:$AC$500,12,FALSE)*100,"") ->  | L16: =IFERROR(VLOOKUP(VALUE($A16),'FIAG4-RAll'!$B$2:$AC$500,12,FALSE)*100,"") ->  | M16: =IFERROR(VLOOKUP(VALUE($A16),'FIAG5-RAll'!$B$2:$AC$500,12,FALSE)*100,"") ->  | N16: =IFERROR(VLOOKUP(VALUE($A16),'FIAG6-RAll'!$B$2:$AC$500,12,FALSE)*100,"") ->  | O16: =IFERROR(VLOOKUP(VALUE($A16),'FIAG7-RAll'!$B$2:$AC$500,12,FALSE)*100,"") ->  | P16: =IFERROR(VLOOKUP(VALUE($A16),'FIAG8-RAll'!$B$2:$AC$500,12,FALSE)*100,"") ->  | Q16: =IFERROR(VLOOKUP(VALUE($A16),'FIAG9-RAll'!$B$2:$AC$500,12,FALSE)*100,"") -> 45 | R16: =IFERROR(VLOOKUP(VALUE($A16),'FIAG10-RAll'!$B$2:$AC$500,12,FALSE)*100,"") -> 34 | S16: =IFERROR(VLOOKUP(VALUE($A16),'FIAG3-RAll'!$B$2:$AC$500,9,FALSE),"") ->  | T16: =IFERROR(VLOOKUP(VALUE($A16),'FIAG4-RAll'!$B$2:$AC$500,9,FALSE),"") ->  | U16: =IFERROR(VLOOKUP(VALUE($A16),'FIAG5-RAll'!$B$2:$AC$500,9,FALSE),"") ->  | V16: =IFERROR(VLOOKUP(VALUE($A16),'FIAG6-RAll'!$B$2:$AC$500,9,FALSE),"") ->  | W16: =IFERROR(VLOOKUP(VALUE($A16),'FIAG7-RAll'!$B$2:$AC$500,9,FALSE),"") ->  | X16: =IFERROR(VLOOKUP(VALUE($A16),'FIAG8-RAll'!$B$2:$AC$500,9,FALSE),"") ->  | Y16: =IFERROR(VLOOKUP(VALUE($A16),'FIAG9-RAll'!$B$2:$AC$500,9,FALSE),"") -> 88 | Z16: =IFERROR(VLOOKUP(VALUE($A16),'FIAG10-RAll'!$B$2:$AC$500,9,FALSE),"") -> 67 | AA16: =IFERROR(VLOOKUP(VALUE($A16),'FIAG3-RAll'!$B$2:$AC$500,3,FALSE),"") ->  | AB16: =IFERROR(VLOOKUP(VALUE($A16),'FIAG4-RAll'!$B$2:$AC$500,3,FALSE),"") ->  | AC16: =IFERROR(VLOOKUP(VALUE($A16),'FIAG5-RAll'!$B$2:$AC$500,3,FALSE),"") ->  | AD16: =IFERROR(VLOOKUP(VALUE($A16),'FIAG6-RAll'!$B$2:$AC$500,3,FALSE),"") ->  | AE16: =IFERROR(VLOOKUP(VALUE($A16),'FIAG7-RAll'!$B$2:$AC$500,3,FALSE),"") ->  | AF16: =IFERROR(VLOOKUP(VALUE($A16),'FIAG8-RAll'!$B$2:$AC$500,3,FALSE),"") ->  | AG16: =IFERROR(VLOOKUP(VALUE($A16),'FIAG9-RAll'!$B$2:$AC$500,3,FALSE),"") -> 195 | AH16: =IFERROR(VLOOKUP(VALUE($A16),'FIAG10-RAll'!$B$2:$AC$500,3,FALSE),"") -> 198 | AI16: =VLOOKUP(TEXT($A16,"0000"),'SchType from OADA'!$A$1:$B$679,2,FALSE) -> 4 | AJ16: ETO | AK16: N-SS | AL16: H
A17: 7231 | B17: =VLOOKUP($A17,SchList!$A$2:$E$476,5,FALSE) -> 6 | C17: =VLOOKUP(A17,SchList!$A$2:$G$476,7,FALSE) -> SS-0 | D17: =VLOOKUP(A17,SchList!$A$2:$G$476,6,FALSE) -> 3 | E17: =VLOOKUP($A17,SchList!$A$2:$B$476,2,FALSE) -> MIAMI CAROL CITY SENIOR HIGH | F17: =IF(VLOOKUP(TEXT($A17,"0000"),'2013 SG'!$D$2:$BE$500,29,FALSE)="Yes",VLOOKUP(TEXT($A17,"0000"),'2013 SG'!$D$2:$BE$500,30,FALSE)&VLOOKUP(TEXT($A17,"0000"),'2013 SG'!$D$2:$BE$500,54,FALSE),VLOOKUP(TEXT($A17,"0000"),'2013 SG'!$D$2:$BE$500,30,FALSE)) -> Pending | G17: 12 | H17: 38.61892583 | I17: 782 | J17: 302 | K17: =IFERROR(VLOOKUP(VALUE($A17),'FIAG3-RAll'!$B$2:$AC$500,12,FALSE)*100,"") ->  | L17: =IFERROR(VLOOKUP(VALUE($A17),'FIAG4-RAll'!$B$2:$AC$500,12,FALSE)*100,"") ->  | M17: =IFERROR(VLOOKUP(VALUE($A17),'FIAG5-RAll'!$B$2:$AC$500,12,FALSE)*100,"") ->  | N17: =IFERROR(VLOOKUP(VALUE($A17),'FIAG6-RAll'!$B$2:$AC$500,12,FALSE)*100,"") ->  | O17: =IFERROR(VLOOKUP(VALUE($A17),'FIAG7-RAll'!$B$2:$AC$500,12,FALSE)*100,"") ->  | P17: =IFERROR(VLOOKUP(VALUE($A17),'FIAG8-RAll'!$B$2:$AC$500,12,FALSE)*100,"") ->  | Q17: =IFERROR(VLOOKUP(VALUE($A17),'FIAG9-RAll'!$B$2:$AC$500,12,FALSE)*100,"") -> 38 | R17: =IFERROR(VLOOKUP(VALUE($A17),'FIAG10-RAll'!$B$2:$AC$500,12,FALSE)*100,"") -> 39 | S17: =IFERROR(VLOOKUP(VALUE($A17),'FIAG3-RAll'!$B$2:$AC$500,9,FALSE),"") ->  | T17: =IFERROR(VLOOKUP(VALUE($A17),'FIAG4-RAll'!$B$2:$AC$500,9,FALSE),"") ->  | U17: =IFERROR(VLOOKUP(VALUE($A17),'FIAG5-RAll'!$B$2:$AC$500,9,FALSE),"") ->  | V17: =IFERROR(VLOOKUP(VALUE($A17),'FIAG6-RAll'!$B$2:$AC$500,9,FALSE),"") ->  | W17: =IFERROR(VLOOKUP(VALUE($A17),'FIAG7-RAll'!$B$2:$AC$500,9,FALSE),"") ->  | X17: =IFERROR(VLOOKUP(VALUE($A17),'FIAG8-RAll'!$B$2:$AC$500,9,FALSE),"") ->  | Y17: =IFERROR(VLOOKUP(VALUE($A17),'FIAG9-RAll'!$B$2:$AC$500,9,FALSE),"") -> 159 | Z17: =IFERROR(VLOOKUP(VALUE($A17),'FIAG10-RAll'!$B$2:$AC$500,9,FALSE),"") -> 143 | AA17: =IFERROR(VLOOKUP(VALUE($A17),'FIAG3-RAll'!$B$2:$AC$500,3,FALSE),"") ->  | AB17: =IFERROR(VLOOKUP(VALUE($A17),'FIAG4-RAll'!$B$2:$AC$500,3,FALSE),"") ->  | AC17: =IFERROR(VLOOKUP(VALUE($A17),'FIAG5-RAll'!$B$2:$AC$500,3,FALSE),"") ->  | AD17: =IFERROR(VLOOKUP(VALUE($A17),'FIAG6-RAll'!$B$2:$AC$500,3,FALSE),"") ->  | AE17: =IFERROR(VLOOKUP(VALUE($A17),'FIAG7-RAll'!$B$2:$AC$500,3,FALSE),"") ->  | AF17: =IFERROR(VLOOKUP(VALUE($A17),'FIAG8-RAll'!$B$2:$AC$500,3,FALSE),"") ->  | AG17: =IFERROR(VLOOKUP(VALUE($A17),'FIAG9-RAll'!$B$2:$AC$500,3,FALSE),"") -> 413 | AH17: =IFERROR(VLOOKUP(VALUE($A17),'FIAG10-RAll'!$B$2:$AC$500,3,FALSE),"") -> 369 | AI17: =VLOOKUP(TEXT($A17,"0000"),'SchType from OADA'!$A$1:$B$679,2,FALSE) -> 4 | AJ17: ETO | AK17: N-SS | AL17: H
A18: 7271 | B18: =VLOOKUP($A18,SchList!$A$2:$E$476,5,FALSE) -> 4 | C18: =VLOOKUP(A18,SchList!$A$2:$G$476,7,FALSE) -> SS-2 | D18: =VLOOKUP(A18,SchList!$A$2:$G$476,6,FALSE) ->  | E18: =VLOOKUP($A18,SchList!$A$2:$B$476,2,FALSE) -> MIAMI CORAL PARK SENIOR HIGH | F18: =IF(VLOOKUP(TEXT($A18,"0000"),'2013 SG'!$D$2:$BE$500,29,FALSE)="Yes",VLOOKUP(TEXT($A18,"0000"),'2013 SG'!$D$2:$BE$500,30,FALSE)&VLOOKUP(TEXT($A18,"0000"),'2013 SG'!$D$2:$BE$500,54,FALSE),VLOOKUP(TEXT($A18,"0000"),'2013 SG'!$D$2:$BE$500,30,FALSE)) -> Pending | G18: 16 | H18: 41.86222559 | I18: 1321 | J18: 553 | K18: =IFERROR(VLOOKUP(VALUE($A18),'FIAG3-RAll'!$B$2:$AC$500,12,FALSE)*100,"") ->  | L18: =IFERROR(VLOOKUP(VALUE($A18),'FIAG4-RAll'!$B$2:$AC$500,12,FALSE)*100,"") ->  | M18: =IFERROR(VLOOKUP(VALUE($A18),'FIAG5-RAll'!$B$2:$AC$500,12,FALSE)*100,"") ->  | N18: =IFERROR(VLOOKUP(VALUE($A18),'FIAG6-RAll'!$B$2:$AC$500,12,FALSE)*100,"") ->  | O18: =IFERROR(VLOOKUP(VALUE($A18),'FIAG7-RAll'!$B$2:$AC$500,12,FALSE)*100,"") ->  | P18: =IFERROR(VLOOKUP(VALUE($A18),'FIAG8-RAll'!$B$2:$AC$500,12,FALSE)*100,"") ->  | Q18: =IFERROR(VLOOKUP(VALUE($A18),'FIAG9-RAll'!$B$2:$AC$500,12,FALSE)*100,"") -> 43 | R18: =IFERROR(VLOOKUP(VALUE($A18),'FIAG10-RAll'!$B$2:$AC$500,12,FALSE)*100,"") -> 40 | S18: =IFERROR(VLOOKUP(VALUE($A18),'FIAG3-RAll'!$B$2:$AC$500,9,FALSE),"") ->  | T18: =IFERROR(VLOOKUP(VALUE($A18),'FIAG4-RAll'!$B$2:$AC$500,9,FALSE),"") ->  | U18: =IFERROR(VLOOKUP(VALUE($A18),'FIAG5-RAll'!$B$2:$AC$500,9,FALSE),"") ->  | V18: =IFERROR(VLOOKUP(VALUE($A18),'FIAG6-RAll'!$B$2:$AC$500,9,FALSE),"") ->  | W18: =IFERROR(VLOOKUP(VALUE($A18),'FIAG7-RAll'!$B$2:$AC$500,9,FALSE),"") ->  | X18: =IFERROR(VLOOKUP(VALUE($A18),'FIAG8-RAll'!$B$2:$AC$500,9,FALSE),"") ->  | Y18: =IFERROR(VLOOKUP(VALUE($A18),'FIAG9-RAll'!$B$2:$AC$500,9,FALSE),"") -> 284 | Z18: =IFERROR(VLOOKUP(VALUE($A18),'FIAG10-RAll'!$B$2:$AC$500,9,FALSE),"") -> 269 | AA18: =IFERROR(VLOOKUP(VALUE($A18),'FIAG3-RAll'!$B$2:$AC$500,3,FALSE),"") ->  | AB18: =IFERROR(VLOOKUP(VALUE($A18),'FIAG4-RAll'!$B$2:$AC$500,3,FALSE),"") ->  | AC18: =IFERROR(VLOOKUP(VALUE($A18),'FIAG5-RAll'!$B$2:$AC$500,3,FALSE),"") ->  | AD18: =IFERROR(VLOOKUP(VALUE($A18),'FIAG6-RAll'!$B$2:$AC$500,3,FALSE),"") ->  | AE18: =IFERROR(VLOOKUP(VALUE($A18),'FIAG7-RAll'!$B$2:$AC$500,3,FALSE),"") ->  | AF18: =IFERROR(VLOOKUP(VALUE($A18),'FIAG8-RAll'!$B$2:$AC$500,3,FALSE),"") ->  | AG18: =IFERROR(VLOOKUP(VALUE($A18),'FIAG9-RAll'!$B$2:$AC$500,3,FALSE),"") -> 656 | AH18: =IFERROR(VLOOKUP(VALUE($A18),'FIAG10-RAll'!$B$2:$AC$500,3,FALSE),"") -> 665 | AI18: =VLOOKUP(TEXT($A18,"0000"),'SchType from OADA'!$A$1:$B$679,2,FALSE) -> 4 | AJ18: N-ETO | AK18: SS | AL18: H
A19: 7151 | B19: =VLOOKUP($A19,SchList!$A$2:$E$476,5,FALSE) -> 6 | C19: =VLOOKUP(A19,SchList!$A$2:$G$476,7,FALSE) -> SS-0 | D19: =VLOOKUP(A19,SchList!$A$2:$G$476,6,FALSE) -> 3 | E19: =VLOOKUP($A19,SchList!$A$2:$B$476,2,FALSE) -> HOMESTEAD SENIOR HIGH | F19: =IF(VLOOKUP(TEXT($A19,"0000"),'2013 SG'!$D$2:$BE$500,29,FALSE)="Yes",VLOOKUP(TEXT($A19,"0000"),'2013 SG'!$D$2:$BE$500,30,FALSE)&VLOOKUP(TEXT($A19,"0000"),'2013 SG'!$D$2:$BE$500,54,FALSE),VLOOKUP(TEXT($A19,"0000"),'2013 SG'!$D$2:$BE$500,30,FALSE)) -> Pending | G19: 15 | H19: 41.74757282 | I19: 824 | J19: 344 | K19: =IFERROR(VLOOKUP(VALUE($A19),'FIAG3-RAll'!$B$2:$AC$500,12,FALSE)*100,"") ->  | L19: =IFERROR(VLOOKUP(VALUE($A19),'FIAG4-RAll'!$B$2:$AC$500,12,FALSE)*100,"") ->  | M19: =IFERROR(VLOOKUP(VALUE($A19),'FIAG5-RAll'!$B$2:$AC$500,12,FALSE)*100,"") ->  | N19: =IFERROR(VLOOKUP(VALUE($A19),'FIAG6-RAll'!$B$2:$AC$500,12,FALSE)*100,"") ->  | O19: =IFERROR(VLOOKUP(VALUE($A19),'FIAG7-RAll'!$B$2:$AC$500,12,FALSE)*100,"") ->  | P19: =IFERROR(VLOOKUP(VALUE($A19),'FIAG8-RAll'!$B$2:$AC$500,12,FALSE)*100,"") ->  | Q19: =IFERROR(VLOOKUP(VALUE($A19),'FIAG9-RAll'!$B$2:$AC$500,12,FALSE)*100,"") -> 44 | R19: =IFERROR(VLOOKUP(VALUE($A19),'FIAG10-RAll'!$B$2:$AC$500,12,FALSE)*100,"") -> 39 | S19: =IFERROR(VLOOKUP(VALUE($A19),'FIAG3-RAll'!$B$2:$AC$500,9,FALSE),"") ->  | T19: =IFERROR(VLOOKUP(VALUE($A19),'FIAG4-RAll'!$B$2:$AC$500,9,FALSE),"") ->  | U19: =IFERROR(VLOOKUP(VALUE($A19),'FIAG5-RAll'!$B$2:$AC$500,9,FALSE),"") ->  | V19: =IFERROR(VLOOKUP(VALUE($A19),'FIAG6-RAll'!$B$2:$AC$500,9,FALSE),"") ->  | W19: =IFERROR(VLOOKUP(VALUE($A19),'FIAG7-RAll'!$B$2:$AC$500,9,FALSE),"") ->  | X19: =IFERROR(VLOOKUP(VALUE($A19),'FIAG8-RAll'!$B$2:$AC$500,9,FALSE),"") ->  | Y19: =IFERROR(VLOOKUP(VALUE($A19),'FIAG9-RAll'!$B$2:$AC$500,9,FALSE),"") -> 196 | Z19: =IFERROR(VLOOKUP(VALUE($A19),'FIAG10-RAll'!$B$2:$AC$500,9,FALSE),"") -> 148 | AA19: =IFERROR(VLOOKUP(VALUE($A19),'FIAG3-RAll'!$B$2:$AC$500,3,FALSE),"") ->  | AB19: =IFERROR(VLOOKUP(VALUE($A19),'FIAG4-RAll'!$B$2:$AC$500,3,FALSE),"") ->  | AC19: =IFERROR(VLOOKUP(VALUE($A19),'FIAG5-RAll'!$B$2:$AC$500,3,FALSE),"") ->  | AD19: =IFERROR(VLOOKUP(VALUE($A19),'FIAG6-RAll'!$B$2:$AC$500,3,FALSE),"") ->  | AE19: =IFERROR(VLOOKUP(VALUE($A19),'FIAG7-RAll'!$B$2:$AC$500,3,FALSE),"") ->  | AF19: =IFERROR(VLOOKUP(VALUE($A19),'FIAG8-RAll'!$B$2:$AC$500,3,FALSE),"") ->  | AG19: =IFERROR(VLOOKUP(VALUE($A19),'FIAG9-RAll'!$B$2:$AC$500,3,FALSE),"") -> 447 | AH19: =IFERROR(VLOOKUP(VALUE($A19),'FIAG10-RAll'!$B$2:$AC$500,3,FALSE),"") -> 377 | AI19: =VLOOKUP(TEXT($A19,"0000"),'SchType from OADA'!$A$1:$B$679,2,FALSE) -> 4 | AJ19: ETO | AK19: N-SS | AL19: H
A20: 7011 | B20: =VLOOKUP($A20,SchList!$A$2:$E$476,5,FALSE) -> 1 | C20: =VLOOKUP(A20,SchList!$A$2:$G$476,7,FALSE) -> SS-0 | D20: =VLOOKUP(A20,SchList!$A$2:$G$476,6,FALSE) -> 1 | E20: =VLOOKUP($A20,SchList!$A$2:$B$476,2,FALSE) -> AMERICAN SENIOR | F20: =IF(VLOOKUP(TEXT($A20,"0000"),'2013 SG'!$D$2:$BE$500,29,FALSE)="Yes",VLOOKUP(TEXT($A20,"0000"),'2013 SG'!$D$2:$BE$500,30,FALSE)&VLOOKUP(TEXT($A20,"0000"),'2013 SG'!$D$2:$BE$500,54,FALSE),VLOOKUP(TEXT($A20,"0000"),'2013 SG'!$D$2:$BE$500,30,FALSE)) -> Pending | G20: 19 | H20: 43.27202323 | I20: 1033 | J20: 447 | K20: =IFERROR(VLOOKUP(VALUE($A20),'FIAG3-RAll'!$B$2:$AC$500,12,FALSE)*100,"") ->  | L20: =IFERROR(VLOOKUP(VALUE($A20),'FIAG4-RAll'!$B$2:$AC$500,12,FALSE)*100,"") ->  | M20: =IFERROR(VLOOKUP(VALUE($A20),'FIAG5-RAll'!$B$2:$AC$500,12,FALSE)*100,"") ->  | N20: =IFERROR(VLOOKUP(VALUE($A20),'FIAG6-RAll'!$B$2:$AC$500,12,FALSE)*100,"") ->  | O20: =IFERROR(VLOOKUP(VALUE($A20),'FIAG7-RAll'!$B$2:$AC$500,12,FALSE)*100,"") ->  | P20: =IFERROR(VLOOKUP(VALUE($A20),'FIAG8-RAll'!$B$2:$AC$500,12,FALSE)*100,"") ->  | Q20: =IFERROR(VLOOKUP(VALUE($A20),'FIAG9-RAll'!$B$2:$AC$500,12,FALSE)*100,"") -> 45 | R20: =IFERROR(VLOOKUP(VALUE($A20),'FIAG10-RAll'!$B$2:$AC$500,12,FALSE)*100,"") -> 42 | S20: =IFERROR(VLOOKUP(VALUE($A20),'FIAG3-RAll'!$B$2:$AC$500,9,FALSE),"") ->  | T20: =IFERROR(VLOOKUP(VALUE($A20),'FIAG4-RAll'!$B$2:$AC$500,9,FALSE),"") ->  | U20: =IFERROR(VLOOKUP(VALUE($A20),'FIAG5-RAll'!$B$2:$AC$500,9,FALSE),"") ->  | V20: =IFERROR(VLOOKUP(VALUE($A20),'FIAG6-RAll'!$B$2:$AC$500,9,FALSE),"") ->  | W20: =IFERROR(VLOOKUP(VALUE($A20),'FIAG7-RAll'!$B$2:$AC$500,9,FALSE),"") ->  | X20: =IFERROR(VLOOKUP(VALUE($A20),'FIAG8-RAll'!$B$2:$AC$500,9,FALSE),"") ->  | Y20: =IFERROR(VLOOKUP(VALUE($A20),'FIAG9-RAll'!$B$2:$AC$500,9,FALSE),"") -> 236 | Z20: =IFERROR(VLOOKUP(VALUE($A20),'FIAG10-RAll'!$B$2:$AC$500,9,FALSE),"") -> 211 | AA20: =IFERROR(VLOOKUP(VALUE($A20),'FIAG3-RAll'!$B$2:$AC$500,3,FALSE),"") ->  | AB20: =IFERROR(VLOOKUP(VALUE($A20),'FIAG4-RAll'!$B$2:$AC$500,3,FALSE),"") ->  | AC20: =IFERROR(VLOOKUP(VALUE($A20),'FIAG5-RAll'!$B$2:$AC$500,3,FALSE),"") ->  | AD20: =IFERROR(VLOOKUP(VALUE($A20),'FIAG6-RAll'!$B$2:$AC$500,3,FALSE),"") ->  | AE20: =IFERROR(VLOOKUP(VALUE($A20),'FIAG7-RAll'!$B$2:$AC$500,3,FALSE),"") ->  | AF20: =IFERROR(VLOOKUP(VALUE($A20),'FIAG8-RAll'!$B$2:$AC$500,3,FALSE),"") ->  | AG20: =IFERROR(VLOOKUP(VALUE($A20),'FIAG9-RAll'!$B$2:$AC$500,3,FALSE),"") -> 529 | AH20: =IFERROR(VLOOKUP(VALUE($A20),'FIAG10-RAll'!$B$2:$AC$500,3,FALSE),"") -> 504 | AI20: =VLOOKUP(TEXT($A20,"0000"),'SchType from OADA'!$A$1:$B$679,2,FALSE) -> 4 | AJ20: ETO | AK20: N-SS | AL20: H
A21: 7111 | B21: =VLOOKUP($A21,SchList!$A$2:$E$476,5,FALSE) -> 1 | C21: =VLOOKUP(A21,SchList!$A$2:$G$476,7,FALSE) -> SS-0 | D21: =VLOOKUP(A21,SchList!$A$2:$G$476,6,FALSE) -> 1 | E21: =VLOOKUP($A21,SchList!$A$2:$B$476,2,FALSE) -> HIALEAH SENIOR | F21: =IF(VLOOKUP(TEXT($A21,"0000"),'2013 SG'!$D$2:$BE$500,29,FALSE)="Yes",VLOOKUP(TEXT($A21,"0000"),'2013 SG'!$D$2:$BE$500,30,FALSE)&VLOOKUP(TEXT($A21,"0000"),'2013 SG'!$D$2:$BE$500,54,FALSE),VLOOKUP(TEXT($A21,"0000"),'2013 SG'!$D$2:$BE$500,30,FALSE)) -> Pending | G21: 17 | H21: 42.51170047 | I21: 1282 | J21: 545 | K21: =IFERROR(VLOOKUP(VALUE($A21),'FIAG3-RAll'!$B$2:$AC$500,12,FALSE)*100,"") ->  | L21: =IFERROR(VLOOKUP(VALUE($A21),'FIAG4-RAll'!$B$2:$AC$500,12,FALSE)*100,"") ->  | M21: =IFERROR(VLOOKUP(VALUE($A21),'FIAG5-RAll'!$B$2:$AC$500,12,FALSE)*100,"") ->  | N21: =IFERROR(VLOOKUP(VALUE($A21),'FIAG6-RAll'!$B$2:$AC$500,12,FALSE)*100,"") ->  | O21: =IFERROR(VLOOKUP(VALUE($A21),'FIAG7-RAll'!$B$2:$AC$500,12,FALSE)*100,"") ->  | P21: =IFERROR(VLOOKUP(VALUE($A21),'FIAG8-RAll'!$B$2:$AC$500,12,FALSE)*100,"") -> 100 | Q21: =IFERROR(VLOOKUP(VALUE($A21),'FIAG9-RAll'!$B$2:$AC$500,12,FALSE)*100,"") -> 43 | R21: =IFERROR(VLOOKUP(VALUE($A21),'FIAG10-RAll'!$B$2:$AC$500,12,FALSE)*100,"") -> 42 | S21: =IFERROR(VLOOKUP(VALUE($A21),'FIAG3-RAll'!$B$2:$AC$500,9,FALSE),"") ->  | T21: =IFERROR(VLOOKUP(VALUE($A21),'FIAG4-RAll'!$B$2:$AC$500,9,FALSE),"") ->  | U21: =IFERROR(VLOOKUP(VALUE($A21),'FIAG5-RAll'!$B$2:$AC$500,9,FALSE),"") ->  | V21: =IFERROR(VLOOKUP(VALUE($A21),'FIAG6-RAll'!$B$2:$AC$500,9,FALSE),"") ->  | W21: =IFERROR(VLOOKUP(VALUE($A21),'FIAG7-RAll'!$B$2:$AC$500,9,FALSE),"") ->  | X21: =IFERROR(VLOOKUP(VALUE($A21),'FIAG8-RAll'!$B$2:$AC$500,9,FALSE),"") -> 1 | Y21: =IFERROR(VLOOKUP(VALUE($A21),'FIAG9-RAll'!$B$2:$AC$500,9,FALSE),"") -> 263 | Z21: =IFERROR(VLOOKUP(VALUE($A21),'FIAG10-RAll'!$B$2:$AC$500,9,FALSE),"") -> 281 | AA21: =IFERROR(VLOOKUP(VALUE($A21),'FIAG3-RAll'!$B$2:$AC$500,3,FALSE),"") ->  | AB21: =IFERROR(VLOOKUP(VALUE($A21),'FIAG4-RAll'!$B$2:$AC$500,3,FALSE),"") ->  | AC21: =IFERROR(VLOOKUP(VALUE($A21),'FIAG5-RAll'!$B$2:$AC$500,3,FALSE),"") ->  | AD21: =IFERROR(VLOOKUP(VALUE($A21),'FIAG6-RAll'!$B$2:$AC$500,3,FALSE),"") ->  | AE21: =IFERROR(VLOOKUP(VALUE($A21),'FIAG7-RAll'!$B$2:$AC$500,3,FALSE),"") ->  | AF21: =IFERROR(VLOOKUP(VALUE($A21),'FIAG8-RAll'!$B$2:$AC$500,3,FALSE),"") -> 1 | AG21: =IFERROR(VLOOKUP(VALUE($A21),'FIAG9-RAll'!$B$2:$AC$500,3,FALSE),"") -> 618 | AH21: =IFERROR(VLOOKUP(VALUE($A21),'FIAG10-RAll'!$B$2:$AC$500,3,FALSE),"") -> 663 | AI21: =VLOOKUP(TEXT($A21,"0000"),'SchType from OADA'!$A$1:$B$679,2,FALSE) -> 4 | AJ21: ETO | AK21: N-SS | AL21: H
A22: 7541 | B22: =VLOOKUP($A22,SchList!$A$2:$E$476,5,FALSE) -> 6 | C22: =VLOOKUP(A22,SchList!$A$2:$G$476,7,FALSE) -> SS-0 | D22: =VLOOKUP(A22,SchList!$A$2:$G$476,6,FALSE) -> 3 | E22: =VLOOKUP($A22,SchList!$A$2:$B$476,2,FALSE) -> NORTH MIAMI BEACH SENIOR HIGH | F22: =IF(VLOOKUP(TEXT($A22,"0000"),'2013 SG'!$D$2:$BE$500,29,FALSE)="Yes",VLOOKUP(TEXT($A22,"0000"),'2013 SG'!$D$2:$BE$500,30,FALSE)&VLOOKUP(TEXT($A22,"0000"),'2013 SG'!$D$2:$BE$500,54,FALSE),VLOOKUP(TEXT($A22,"0000"),'2013 SG'!$D$2:$BE$500,30,FALSE)) -> Pending | G22: 18 | H22: 43.10722101 | I22: 914 | J22: 394 | K22: =IFERROR(VLOOKUP(VALUE($A22),'FIAG3-RAll'!$B$2:$AC$500,12,FALSE)*100,"") ->  | L22: =IFERROR(VLOOKUP(VALUE($A22),'FIAG4-RAll'!$B$2:$AC$500,12,FALSE)*100,"") ->  | M22: =IFERROR(VLOOKUP(VALUE($A22),'FIAG5-RAll'!$B$2:$AC$500,12,FALSE)*100,"") ->  | N22: =IFERROR(VLOOKUP(VALUE($A22),'FIAG6-RAll'!$B$2:$AC$500,12,FALSE)*100,"") ->  | O22: =IFERROR(VLOOKUP(VALUE($A22),'FIAG7-RAll'!$B$2:$AC$500,12,FALSE)*100,"") ->  | P22: =IFERROR(VLOOKUP(VALUE($A22),'FIAG8-RAll'!$B$2:$AC$500,12,FALSE)*100,"") ->  | Q22: =IFERROR(VLOOKUP(VALUE($A22),'FIAG9-RAll'!$B$2:$AC$500,12,FALSE)*100,"") -> 50 | R22: =IFERROR(VLOOKUP(VALUE($A22),'FIAG10-RAll'!$B$2:$AC$500,12,FALSE)*100,"") -> 36 | S22: =IFERROR(VLOOKUP(VALUE($A22),'FIAG3-RAll'!$B$2:$AC$500,9,FALSE),"") ->  | T22: =IFERROR(VLOOKUP(VALUE($A22),'FIAG4-RAll'!$B$2:$AC$500,9,FALSE),"") ->  | U22: =IFERROR(VLOOKUP(VALUE($A22),'FIAG5-RAll'!$B$2:$AC$500,9,FALSE),"") ->  | V22: =IFERROR(VLOOKUP(VALUE($A22),'FIAG6-RAll'!$B$2:$AC$500,9,FALSE),"") ->  | W22: =IFERROR(VLOOKUP(VALUE($A22),'FIAG7-RAll'!$B$2:$AC$500,9,FALSE),"") ->  | X22: =IFERROR(VLOOKUP(VALUE($A22),'FIAG8-RAll'!$B$2:$AC$500,9,FALSE),"") ->  | Y22: =IFERROR(VLOOKUP(VALUE($A22),'FIAG9-RAll'!$B$2:$AC$500,9,FALSE),"") -> 222 | Z22: =IFERROR(VLOOKUP(VALUE($A22),'FIAG10-RAll'!$B$2:$AC$500,9,FALSE),"") -> 172 | AA22: =IFERROR(VLOOKUP(VALUE($A22),'FIAG3-RAll'!$B$2:$AC$500,3,FALSE),"") ->  | AB22: =IFERROR(VLOOKUP(VALUE($A22),'FIAG4-RAll'!$B$2:$AC$500,3,FALSE),"") ->  | AC22: =IFERROR(VLOOKUP(VALUE($A22),'FIAG5-RAll'!$B$2:$AC$500,3,FALSE),"") ->  | AD22: =IFERROR(VLOOKUP(VALUE($A22),'FIAG6-RAll'!$B$2:$AC$500,3,FALSE),"") ->  | AE22: =IFERROR(VLOOKUP(VALUE($A22),'FIAG7-RAll'!$B$2:$AC$500,3,FALSE),"") ->  | AF22: =IFERROR(VLOOKUP(VALUE($A22),'FIAG8-RAll'!$B$2:$AC$500,3,FALSE),"") ->  | AG22: =IFERROR(VLOOKUP(VALUE($A22),'FIAG9-RAll'!$B$2:$AC$500,3,FALSE),"") -> 442 | AH22: =IFERROR(VLOOKUP(VALUE($A22),'FIAG10-RAll'!$B$2:$AC$500,3,FALSE),"") -> 472 | AI22: =VLOOKUP(TEXT($A22,"0000"),'SchType from OADA'!$A$1:$B$679,2,FALSE) -> 4 | AJ22: ETO | AK22: N-SS | AL22: H
A23: 7511 | B23: =VLOOKUP($A23,SchList!$A$2:$E$476,5,FALSE) -> 4 | C23: =VLOOKUP(A23,SchList!$A$2:$G$476,7,FALSE) -> SS-0 | D23: =VLOOKUP(A23,SchList!$A$2:$G$476,6,FALSE) ->  | E23: =VLOOKUP($A23,SchList!$A$2:$B$476,2,FALSE) -> MIAMI SPRINGS SENIOR HIGH | F23: =IF(VLOOKUP(TEXT($A23,"0000"),'2013 SG'!$D$2:$BE$500,29,FALSE)="Yes",VLOOKUP(TEXT($A23,"0000"),'2013 SG'!$D$2:$BE$500,30,FALSE)&VLOOKUP(TEXT($A23,"0000"),'2013 SG'!$D$2:$BE$500,54,FALSE),VLOOKUP(TEXT($A23,"0000"),'2013 SG'!$D$2:$BE$500,30,FALSE)) -> Pending | G23: 20 | H23: 45.55555556 | I23: 810 | J23: 369 | K23: =IFERROR(VLOOKUP(VALUE($A23),'FIAG3-RAll'!$B$2:$AC$500,12,FALSE)*100,"") ->  | L23: =IFERROR(VLOOKUP(VALUE($A23),'FIAG4-RAll'!$B$2:$AC$500,12,FALSE)*100,"") ->  | M23: =IFERROR(VLOOKUP(VALUE($A23),'FIAG5-RAll'!$B$2:$AC$500,12,FALSE)*100,"") ->  | N23: =IFERROR(VLOOKUP(VALUE($A23),'FIAG6-RAll'!$B$2:$AC$500,12,FALSE)*100,"") ->  | O23: =IFERROR(VLOOKUP(VALUE($A23),'FIAG7-RAll'!$B$2:$AC$500,12,FALSE)*100,"") ->  | P23: =IFERROR(VLOOKUP(VALUE($A23),'FIAG8-RAll'!$B$2:$AC$500,12,FALSE)*100,"") ->  | Q23: =IFERROR(VLOOKUP(VALUE($A23),'FIAG9-RAll'!$B$2:$AC$500,12,FALSE)*100,"") -> 43 | R23: =IFERROR(VLOOKUP(VALUE($A23),'FIAG10-RAll'!$B$2:$AC$500,12,FALSE)*100,"") -> 48 | S23: =IFERROR(VLOOKUP(VALUE($A23),'FIAG3-RAll'!$B$2:$AC$500,9,FALSE),"") ->  | T23: =IFERROR(VLOOKUP(VALUE($A23),'FIAG4-RAll'!$B$2:$AC$500,9,FALSE),"") ->  | U23: =IFERROR(VLOOKUP(VALUE($A23),'FIAG5-RAll'!$B$2:$AC$500,9,FALSE),"") ->  | V23: =IFERROR(VLOOKUP(VALUE($A23),'FIAG6-RAll'!$B$2:$AC$500,9,FALSE),"") ->  | W23: =IFERROR(VLOOKUP(VALUE($A23),'FIAG7-RAll'!$B$2:$AC$500,9,FALSE),"") ->  | X23: =IFERROR(VLOOKUP(VALUE($A23),'FIAG8-RAll'!$B$2:$AC$500,9,FALSE),"") ->  | Y23: =IFERROR(VLOOKUP(VALUE($A23),'FIAG9-RAll'!$B$2:$AC$500,9,FALSE),"") -> 176 | Z23: =IFERROR(VLOOKUP(VALUE($A23),'FIAG10-RAll'!$B$2:$AC$500,9,FALSE),"") -> 193 | AA23: =IFERROR(VLOOKUP(VALUE($A23),'FIAG3-RAll'!$B$2:$AC$500,3,FALSE),"") ->  | AB23: =IFERROR(VLOOKUP(VALUE($A23),'FIAG4-RAll'!$B$2:$AC$500,3,FALSE),"") ->  | AC23: =IFERROR(VLOOKUP(VALUE($A23),'FIAG5-RAll'!$B$2:$AC$500,3,FALSE),"") ->  | AD23: =IFERROR(VLOOKUP(VALUE($A23),'FIAG6-RAll'!$B$2:$AC$500,3,FALSE),"") ->  | AE23: =IFERROR(VLOOKUP(VALUE($A23),'FIAG7-RAll'!$B$2:$AC$500,3,FALSE),"") ->  | AF23: =IFERROR(VLOOKUP(VALUE($A23),'FIAG8-RAll'!$B$2:$AC$500,3,FALSE),"") ->  | AG23: =IFERROR(VLOOKUP(VALUE($A23),'FIAG9-RAll'!$B$2:$AC$500,3,FALSE),"") -> 411 | AH23: =IFERROR(VLOOKUP(VALUE($A23),'FIAG10-RAll'!$B$2:$AC$500,3,FALSE),"") -> 399 | AI23: =VLOOKUP(TEXT($A23,"0000"),'SchType from OADA'!$A$1:$B$679,2,FALSE) -> 4 | AJ23: N-ETO | AK23: N-SS | AL23: H
A24: 7591 | B24: =VLOOKUP($A24,SchList!$A$2:$E$476,5,FALSE) -> 6 | C24: =VLOOKUP(A24,SchList!$A$2:$G$476,7,FALSE) -> SS-0 | D24: =VLOOKUP(A24,SchList!$A$2:$G$476,6,FALSE) -> 1 | E24: =VLOOKUP($A24,SchList!$A$2:$B$476,2,FALSE) -> NORTH MIAMI SENIOR HIGH | F24: =IF(VLOOKUP(TEXT($A24,"0000"),'2013 SG'!$D$2:$BE$500,29,FALSE)="Yes",VLOOKUP(TEXT($A24,"0000"),'2013 SG'!$D$2:$BE$500,30,FALSE)&VLOOKUP(TEXT($A24,"0000"),'2013 SG'!$D$2:$BE$500,54,FALSE),VLOOKUP(TEXT($A24,"0000"),'2013 SG'!$D$2:$BE$500,30,FALSE)) -> I | G24: 21 | H24: 45.66098946 | I24: 1233 | J24: 563 | K24: =IFERROR(VLOOKUP(VALUE($A24),'FIAG3-RAll'!$B$2:$AC$500,12,FALSE)*100,"") ->  | L24: =IFERROR(VLOOKUP(VALUE($A24),'FIAG4-RAll'!$B$2:$AC$500,12,FALSE)*100,"") ->  | M24: =IFERROR(VLOOKUP(VALUE($A24),'FIAG5-RAll'!$B$2:$AC$500,12,FALSE)*100,"") ->  | N24: =IFERROR(VLOOKUP(VALUE($A24),'FIAG6-RAll'!$B$2:$AC$500,12,FALSE)*100,"") ->  | O24: =IFERROR(VLOOKUP(VALUE($A24),'FIAG7-RAll'!$B$2:$AC$500,12,FALSE)*100,"") ->  | P24: =IFERROR(VLOOKUP(VALUE($A24),'FIAG8-RAll'!$B$2:$AC$500,12,FALSE)*100,"") ->  | Q24: =IFERROR(VLOOKUP(VALUE($A24),'FIAG9-RAll'!$B$2:$AC$500,12,FALSE)*100,"") -> 45 | R24: =IFERROR(VLOOKUP(VALUE($A24),'FIAG10-RAll'!$B$2:$AC$500,12,FALSE)*100,"") -> 46 | S24: =IFERROR(VLOOKUP(VALUE($A24),'FIAG3-RAll'!$B$2:$AC$500,9,FALSE),"") ->  | T24: =IFERROR(VLOOKUP(VALUE($A24),'FIAG4-RAll'!$B$2:$AC$500,9,FALSE),"") ->  | U24: =IFERROR(VLOOKUP(VALUE($A24),'FIAG5-RAll'!$B$2:$AC$500,9,FALSE),"") ->  | V24: =IFERROR(VLOOKUP(VALUE($A24),'FIAG6-RAll'!$B$2:$AC$500,9,FALSE),"") ->  | W24: =IFERROR(VLOOKUP(VALUE($A24),'FIAG7-RAll'!$B$2:$AC$500,9,FALSE),"") ->  | X24: =IFERROR(VLOOKUP(VALUE($A24),'FIAG8-RAll'!$B$2:$AC$500,9,FALSE),"") ->  | Y24: =IFERROR(VLOOKUP(VALUE($A24),'FIAG9-RAll'!$B$2:$AC$500,9,FALSE),"") -> 297 | Z24: =IFERROR(VLOOKUP(VALUE($A24),'FIAG10-RAll'!$B$2:$AC$500,9,FALSE),"") -> 266 | AA24: =IFERROR(VLOOKUP(VALUE($A24),'FIAG3-RAll'!$B$2:$AC$500,3,FALSE),"") ->  | AB24: =IFERROR(VLOOKUP(VALUE($A24),'FIAG4-RAll'!$B$2:$AC$500,3,FALSE),"") ->  | AC24: =IFERROR(VLOOKUP(VALUE($A24),'FIAG5-RAll'!$B$2:$AC$500,3,FALSE),"") ->  | AD24: =IFERROR(VLOOKUP(VALUE($A24),'FIAG6-RAll'!$B$2:$AC$500,3,FALSE),"") ->  | AE24: =IFERROR(VLOOKUP(VALUE($A24),'FIAG7-RAll'!$B$2:$AC$500,3,FALSE),"") ->  | AF24: =IFERROR(VLOOKUP(VALUE($A24),'FIAG8-RAll'!$B$2:$AC$500,3,FALSE),"") ->  | AG24: =IFERROR(VLOOKUP(VALUE($A24),'FIAG9-RAll'!$B$2:$AC$500,3,FALSE),"") -> 660 | AH24: =IFERROR(VLOOKUP(VALUE($A24),'FIAG10-RAll'!$B$2:$AC$500,3,FALSE),"") -> 573 | AI24: =VLOOKUP(TEXT($A24,"0000"),'SchType from OADA'!$A$1:$B$679,2,FALSE) -> 4 | AJ24: ETO | AK24: N-SS | AL24: H
A25: 7131 | B25: =VLOOKUP($A25,SchList!$A$2:$E$476,5,FALSE) -> 1 | C25: =VLOOKUP(A25,SchList!$A$2:$G$476,7,FALSE) -> SS-0 | D25: =VLOOKUP(A25,SchList!$A$2:$G$476,6,FALSE) -> 1 | E25: =VLOOKUP($A25,SchList!$A$2:$B$476,2,FALSE) -> HIALEAH-MIAMI LAKES SENIOR | F25: =IF(VLOOKUP(TEXT($A25,"0000"),'2013 SG'!$D$2:$BE$500,29,FALSE)="Yes",VLOOKUP(TEXT($A25,"0000"),'2013 SG'!$D$2:$BE$500,30,FALSE)&VLOOKUP(TEXT($A25,"0000"),'2013 SG'!$D$2:$BE$500,54,FALSE),VLOOKUP(TEXT($A25,"0000"),'2013 SG'!$D$2:$BE$500,30,FALSE)) -> Pending | G25: 22 | H25: 47.75943396 | I25: 848 | J25: 405 | K25: =IFERROR(VLOOKUP(VALUE($A25),'FIAG3-RAll'!$B$2:$AC$500,12,FALSE)*100,"") ->  | L25: =IFERROR(VLOOKUP(VALUE($A25),'FIAG4-RAll'!$B$2:$AC$500,12,FALSE)*100,"") ->  | M25: =IFERROR(VLOOKUP(VALUE($A25),'FIAG5-RAll'!$B$2:$AC$500,12,FALSE)*100,"") ->  | N25: =IFERROR(VLOOKUP(VALUE($A25),'FIAG6-RAll'!$B$2:$AC$500,12,FALSE)*100,"") ->  | O25: =IFERROR(VLOOKUP(VALUE($A25),'FIAG7-RAll'!$B$2:$AC$500,12,FALSE)*100,"") ->  | P25: =IFERROR(VLOOKUP(VALUE($A25),'FIAG8-RAll'!$B$2:$AC$500,12,FALSE)*100,"") -> 0 | Q25: =IFERROR(VLOOKUP(VALUE($A25),'FIAG9-RAll'!$B$2:$AC$500,12,FALSE)*100,"") -> 56 | R25: =IFERROR(VLOOKUP(VALUE($A25),'FIAG10-RAll'!$B$2:$AC$500,12,FALSE)*100,"") -> 40 | S25: =IFERROR(VLOOKUP(VALUE($A25),'FIAG3-RAll'!$B$2:$AC$500,9,FALSE),"") ->  | T25: =IFERROR(VLOOKUP(VALUE($A25),'FIAG4-RAll'!$B$2:$AC$500,9,FALSE),"") ->  | U25: =IFERROR(VLOOKUP(VALUE($A25),'FIAG5-RAll'!$B$2:$AC$500,9,FALSE),"") ->  | V25: =IFERROR(VLOOKUP(VALUE($A25),'FIAG6-RAll'!$B$2:$AC$500,9,FALSE),"") ->  | W25: =IFERROR(VLOOKUP(VALUE($A25),'FIAG7-RAll'!$B$2:$AC$500,9,FALSE),"") ->  | X25: =IFERROR(VLOOKUP(VALUE($A25),'FIAG8-RAll'!$B$2:$AC$500,9,FALSE),"") -> 0 | Y25: =IFERROR(VLOOKUP(VALUE($A25),'FIAG9-RAll'!$B$2:$AC$500,9,FALSE),"") -> 240 | Z25: =IFERROR(VLOOKUP(VALUE($A25),'FIAG10-RAll'!$B$2:$AC$500,9,FALSE),"") -> 165 | AA25: =IFERROR(VLOOKUP(VALUE($A25),'FIAG3-RAll'!$B$2:$AC$500,3,FALSE),"") ->  | AB25: =IFERROR(VLOOKUP(VALUE($A25),'FIAG4-RAll'!$B$2:$AC$500,3,FALSE),"") ->  | AC25: =IFERROR(VLOOKUP(VALUE($A25),'FIAG5-RAll'!$B$2:$AC$500,3,FALSE),"") ->  | AD25: =IFERROR(VLOOKUP(VALUE($A25),'FIAG6-RAll'!$B$2:$AC$500,3,FALSE),"") ->  | AE25: =IFERROR(VLOOKUP(VALUE($A25),'FIAG7-RAll'!$B$2:$AC$500,3,FALSE),"") ->  | AF25: =IFERROR(VLOOKUP(VALUE($A25),'FIAG8-RAll'!$B$2:$AC$500,3,FALSE),"") -> 1 | AG25: =IFERROR(VLOOKUP(VALUE($A25),'FIAG9-RAll'!$B$2:$AC$500,3,FALSE),"") -> 431 | AH25: =IFERROR(VLOOKUP(VALUE($A25),'FIAG10-RAll'!$B$2:$AC$500,3,FALSE),"") -> 416 | AI25: =VLOOKUP(TEXT($A25,"0000"),'SchType from OADA'!$A$1:$B$679,2,FALSE) -> 4 | AJ25: ETO | AK25: N-SS | AL25: H
A26: 7191 | B26: =VLOOKUP($A26,SchList!$A$2:$E$476,5,FALSE) -> 1 | C26: =VLOOKUP(A26,SchList!$A$2:$G$476,7,FALSE) -> SS-1 | D26: =VLOOKUP(A26,SchList!$A$2:$G$476,6,FALSE) ->  | E26: =VLOOKUP($A26,SchList!$A$2:$B$476,2,FALSE) -> HIALEAH GARDENS SENIOR | F26: =IF(VLOOKUP(TEXT($A26,"0000"),'2013 SG'!$D$2:$BE$500,29,FALSE)="Yes",VLOOKUP(TEXT($A26,"0000"),'2013 SG'!$D$2:$BE$500,30,FALSE)&VLOOKUP(TEXT($A26,"0000"),'2013 SG'!$D$2:$BE$500,54,FALSE),VLOOKUP(TEXT($A26,"0000"),'2013 SG'!$D$2:$BE$500,30,FALSE)) -> Pending | G26: 23 | H26: 48.32807571 | I26: 1585 | J26: 766 | K26: =IFERROR(VLOOKUP(VALUE($A26),'FIAG3-RAll'!$B$2:$AC$500,12,FALSE)*100,"") ->  | L26: =IFERROR(VLOOKUP(VALUE($A26),'FIAG4-RAll'!$B$2:$AC$500,12,FALSE)*100,"") ->  | M26: =IFERROR(VLOOKUP(VALUE($A26),'FIAG5-RAll'!$B$2:$AC$500,12,FALSE)*100,"") ->  | N26: =IFERROR(VLOOKUP(VALUE($A26),'FIAG6-RAll'!$B$2:$AC$500,12,FALSE)*100,"") ->  | O26: =IFERROR(VLOOKUP(VALUE($A26),'FIAG7-RAll'!$B$2:$AC$500,12,FALSE)*100,"") ->  | P26: =IFERROR(VLOOKUP(VALUE($A26),'FIAG8-RAll'!$B$2:$AC$500,12,FALSE)*100,"") ->  | Q26: =IFERROR(VLOOKUP(VALUE($A26),'FIAG9-RAll'!$B$2:$AC$500,12,FALSE)*100,"") -> 52 | R26: =IFERROR(VLOOKUP(VALUE($A26),'FIAG10-RAll'!$B$2:$AC$500,12,FALSE)*100,"") -> 45 | S26: =IFERROR(VLOOKUP(VALUE($A26),'FIAG3-RAll'!$B$2:$AC$500,9,FALSE),"") ->  | T26: =IFERROR(VLOOKUP(VALUE($A26),'FIAG4-RAll'!$B$2:$AC$500,9,FALSE),"") ->  | U26: =IFERROR(VLOOKUP(VALUE($A26),'FIAG5-RAll'!$B$2:$AC$500,9,FALSE),"") ->  | V26: =IFERROR(VLOOKUP(VALUE($A26),'FIAG6-RAll'!$B$2:$AC$500,9,FALSE),"") ->  | W26: =IFERROR(VLOOKUP(VALUE($A26),'FIAG7-RAll'!$B$2:$AC$500,9,FALSE),"") ->  | X26: =IFERROR(VLOOKUP(VALUE($A26),'FIAG8-RAll'!$B$2:$AC$500,9,FALSE),"") ->  | Y26: =IFERROR(VLOOKUP(VALUE($A26),'FIAG9-RAll'!$B$2:$AC$500,9,FALSE),"") -> 412 | Z26: =IFERROR(VLOOKUP(VALUE($A26),'FIAG10-RAll'!$B$2:$AC$500,9,FALSE),"") -> 354 | AA26: =IFERROR(VLOOKUP(VALUE($A26),'FIAG3-RAll'!$B$2:$AC$500,3,FALSE),"") ->  | AB26: =IFERROR(VLOOKUP(VALUE($A26),'FIAG4-RAll'!$B$2:$AC$500,3,FALSE),"") ->  | AC26: =IFERROR(VLOOKUP(VALUE($A26),'FIAG5-RAll'!$B$2:$AC$500,3,FALSE),"") ->  | AD26: =IFERROR(VLOOKUP(VALUE($A26),'FIAG6-RAll'!$B$2:$AC$500,3,FALSE),"") ->  | AE26: =IFERROR(VLOOKUP(VALUE($A26),'FIAG7-RAll'!$B$2:$AC$500,3,FALSE),"") ->  | AF26: =IFERROR(VLOOKUP(VALUE($A26),'FIAG8-RAll'!$B$2:$AC$500,3,FALSE),"") ->  | AG26: =IFERROR(VLOOKUP(VALUE($A26),'FIAG9-RAll'!$B$2:$AC$500,3,FALSE),"") -> 791 | AH26: =IFERROR(VLOOKUP(VALUE($A26),'FIAG10-RAll'!$B$2:$AC$500,3,FALSE),"") -> 794 | AI26: =VLOOKUP(TEXT($A26,"0000"),'SchType from OADA'!$A$1:$B$679,2,FALSE) -> 4 | AJ26: N-ETO | AK26: SS | AL26: H
A27: 7361 | B27: =VLOOKUP($A27,SchList!$A$2:$E$476,5,FALSE) -> 5 | C27: =VLOOKUP(A27,SchList!$A$2:$G$476,7,FALSE) -> SS-1 | D27: =VLOOKUP(A27,SchList!$A$2:$G$476,6,FALSE) ->  | E27: =VLOOKUP($A27,SchList!$A$2:$B$476,2,FALSE) -> MIAMI KILLIAN SENIOR HIGH | F27: =IF(VLOOKUP(TEXT($A27,"0000"),'2013 SG'!$D$2:$BE$500,29,FALSE)="Yes",VLOOKUP(TEXT($A27,"0000"),'2013 SG'!$D$2:$BE$500,30,FALSE)&VLOOKUP(TEXT($A27,"0000"),'2013 SG'!$D$2:$BE$500,54,FALSE),VLOOKUP(TEXT($A27,"0000"),'2013 SG'!$D$2:$BE$500,30,FALSE)) -> Pending | G27: 24 | H27: 49.52380952 | I27: 1155 | J27: 572 | K27: =IFERROR(VLOOKUP(VALUE($A27),'FIAG3-RAll'!$B$2:$AC$500,12,FALSE)*100,"") ->  | L27: =IFERROR(VLOOKUP(VALUE($A27),'FIAG4-RAll'!$B$2:$AC$500,12,FALSE)*100,"") ->  | M27: =IFERROR(VLOOKUP(VALUE($A27),'FIAG5-RAll'!$B$2:$AC$500,12,FALSE)*100,"") ->  | N27: =IFERROR(VLOOKUP(VALUE($A27),'FIAG6-RAll'!$B$2:$AC$500,12,FALSE)*100,"") ->  | O27: =IFERROR(VLOOKUP(VALUE($A27),'FIAG7-RAll'!$B$2:$AC$500,12,FALSE)*100,"") ->  | P27: =IFERROR(VLOOKUP(VALUE($A27),'FIAG8-RAll'!$B$2:$AC$500,12,FALSE)*100,"") ->  | Q27: =IFERROR(VLOOKUP(VALUE($A27),'FIAG9-RAll'!$B$2:$AC$500,12,FALSE)*100,"") -> 52 | R27: =IFERROR(VLOOKUP(VALUE($A27),'FIAG10-RAll'!$B$2:$AC$500,12,FALSE)*100,"") -> 47 | S27: =IFERROR(VLOOKUP(VALUE($A27),'FIAG3-RAll'!$B$2:$AC$500,9,FALSE),"") ->  | T27: =IFERROR(VLOOKUP(VALUE($A27),'FIAG4-RAll'!$B$2:$AC$500,9,FALSE),"") ->  | U27: =IFERROR(VLOOKUP(VALUE($A27),'FIAG5-RAll'!$B$2:$AC$500,9,FALSE),"") ->  | V27: =IFERROR(VLOOKUP(VALUE($A27),'FIAG6-RAll'!$B$2:$AC$500,9,FALSE),"") ->  | W27: =IFERROR(VLOOKUP(VALUE($A27),'FIAG7-RAll'!$B$2:$AC$500,9,FALSE),"") ->  | X27: =IFERROR(VLOOKUP(VALUE($A27),'FIAG8-RAll'!$B$2:$AC$500,9,FALSE),"") ->  | Y27: =IFERROR(VLOOKUP(VALUE($A27),'FIAG9-RAll'!$B$2:$AC$500,9,FALSE),"") -> 307 | Z27: =IFERROR(VLOOKUP(VALUE($A27),'FIAG10-RAll'!$B$2:$AC$500,9,FALSE),"") -> 265 | AA27: =IFERROR(VLOOKUP(VALUE($A27),'FIAG3-RAll'!$B$2:$AC$500,3,FALSE),"") ->  | AB27: =IFERROR(VLOOKUP(VALUE($A27),'FIAG4-RAll'!$B$2:$AC$500,3,FALSE),"") ->  | AC27: =IFERROR(VLOOKUP(VALUE($A27),'FIAG5-RAll'!$B$2:$AC$500,3,FALSE),"") ->  | AD27: =IFERROR(VLOOKUP(VALUE($A27),'FIAG6-RAll'!$B$2:$AC$500,3,FALSE),"") ->  | AE27: =IFERROR(VLOOKUP(VALUE($A27),'FIAG7-RAll'!$B$2:$AC$500,3,FALSE),"") ->  | AF27: =IFERROR(VLOOKUP(VALUE($A27),'FIAG8-RAll'!$B$2:$AC$500,3,FALSE),"") ->  | AG27: =IFERROR(VLOOKUP(VALUE($A27),'FIAG9-RAll'!$B$2:$AC$500,3,FALSE),"") -> 593 | AH27: =IFERROR(VLOOKUP(VALUE($A27),'FIAG10-RAll'!$B$2:$AC$500,3,FALSE),"") -> 562 | AI27: =VLOOKUP(TEXT($A27,"0000"),'SchType from OADA'!$A$1:$B$679,2,FALSE) -> 4 | AJ27: N-ETO | AK27: SS | AL27: H
A28: 7201 | B28: =VLOOKUP($A28,SchList!$A$2:$E$476,5,FALSE) -> 1 | C28: =VLOOKUP(A28,SchList!$A$2:$G$476,7,FALSE) -> SS-1 | D28: =VLOOKUP(A28,SchList!$A$2:$G$476,6,FALSE) ->  | E28: =VLOOKUP($A28,SchList!$A$2:$B$476,2,FALSE) -> MIAMI BEACH SENIOR HIGH | F28: =IF(VLOOKUP(TEXT($A28,"0000"),'2013 SG'!$D$2:$BE$500,29,FALSE)="Yes",VLOOKUP(TEXT($A28,"0000"),'2013 SG'!$D$2:$BE$500,30,FALSE)&VLOOKUP(TEXT($A28,"0000"),'2013 SG'!$D$2:$BE$500,54,FALSE),VLOOKUP(TEXT($A28,"0000"),'2013 SG'!$D$2:$BE$500,30,FALSE)) -> Pending | G28: 25 | H28: 49.62546816 | I28: 1068 | J28: 530 | K28: =IFERROR(VLOOKUP(VALUE($A28),'FIAG3-RAll'!$B$2:$AC$500,12,FALSE)*100,"") ->  | L28: =IFERROR(VLOOKUP(VALUE($A28),'FIAG4-RAll'!$B$2:$AC$500,12,FALSE)*100,"") ->  | M28: =IFERROR(VLOOKUP(VALUE($A28),'FIAG5-RAll'!$B$2:$AC$500,12,FALSE)*100,"") ->  | N28: =IFERROR(VLOOKUP(VALUE($A28),'FIAG6-RAll'!$B$2:$AC$500,12,FALSE)*100,"") ->  | O28: =IFERROR(VLOOKUP(VALUE($A28),'FIAG7-RAll'!$B$2:$AC$500,12,FALSE)*100,"") ->  | P28: =IFERROR(VLOOKUP(VALUE($A28),'FIAG8-RAll'!$B$2:$AC$500,12,FALSE)*100,"") ->  | Q28: =IFERROR(VLOOKUP(VALUE($A28),'FIAG9-RAll'!$B$2:$AC$500,12,FALSE)*100,"") -> 54 | R28: =IFERROR(VLOOKUP(VALUE($A28),'FIAG10-RAll'!$B$2:$AC$500,12,FALSE)*100,"") -> 45 | S28: =IFERROR(VLOOKUP(VALUE($A28),'FIAG3-RAll'!$B$2:$AC$500,9,FALSE),"") ->  | T28: =IFERROR(VLOOKUP(VALUE($A28),'FIAG4-RAll'!$B$2:$AC$500,9,FALSE),"") ->  | U28: =IFERROR(VLOOKUP(VALUE($A28),'FIAG5-RAll'!$B$2:$AC$500,9,FALSE),"") ->  | V28: =IFERROR(VLOOKUP(VALUE($A28),'FIAG6-RAll'!$B$2:$AC$500,9,FALSE),"") ->  | W28: =IFERROR(VLOOKUP(VALUE($A28),'FIAG7-RAll'!$B$2:$AC$500,9,FALSE),"") ->  | X28: =IFERROR(VLOOKUP(VALUE($A28),'FIAG8-RAll'!$B$2:$AC$500,9,FALSE),"") ->  | Y28: =IFERROR(VLOOKUP(VALUE($A28),'FIAG9-RAll'!$B$2:$AC$500,9,FALSE),"") -> 294 | Z28: =IFERROR(VLOOKUP(VALUE($A28),'FIAG10-RAll'!$B$2:$AC$500,9,FALSE),"") -> 236 | AA28: =IFERROR(VLOOKUP(VALUE($A28),'FIAG3-RAll'!$B$2:$AC$500,3,FALSE),"") ->  | AB28: =IFERROR(VLOOKUP(VALUE($A28),'FIAG4-RAll'!$B$2:$AC$500,3,FALSE),"") ->  | AC28: =IFERROR(VLOOKUP(VALUE($A28),'FIAG5-RAll'!$B$2:$AC$500,3,FALSE),"") ->  | AD28: =IFERROR(VLOOKUP(VALUE($A28),'FIAG6-RAll'!$B$2:$AC$500,3,FALSE),"") ->  | AE28: =IFERROR(VLOOKUP(VALUE($A28),'FIAG7-RAll'!$B$2:$AC$500,3,FALSE),"") ->  | AF28: =IFERROR(VLOOKUP(VALUE($A28),'FIAG8-RAll'!$B$2:$AC$500,3,FALSE),"") ->  | AG28: =IFERROR(VLOOKUP(VALUE($A28),'FIAG9-RAll'!$B$2:$AC$500,3,FALSE),"") -> 545 | AH28: =IFERROR(VLOOKUP(VALUE($A28),'FIAG10-RAll'!$B$2:$AC$500,3,FALSE),"") -> 523 | AI28: =VLOOKUP(TEXT($A28,"0000"),'SchType from OADA'!$A$1:$B$679,2,FALSE) -> 4 | AJ28: N-ETO | AK28: SS | AL28: H
A29: 7071 | B29: =VLOOKUP($A29,SchList!$A$2:$E$476,5,FALSE) -> 4 | C29: =VLOOKUP(A29,SchList!$A$2:$G$476,7,FALSE) -> SS-2 | D29: =VLOOKUP(A29,SchList!$A$2:$G$476,6,FALSE) ->  | E29: =VLOOKUP($A29,SchList!$A$2:$B$476,2,FALSE) -> CORAL GABLES SENIOR HIGH | F29: =IF(VLOOKUP(TEXT($A29,"0000"),'2013 SG'!$D$2:$BE$500,29,FALSE)="Yes",VLOOKUP(TEXT($A29,"0000"),'2013 SG'!$D$2:$BE$500,30,FALSE)&VLOOKUP(TEXT($A29,"0000"),'2013 SG'!$D$2:$BE$500,54,FALSE),VLOOKUP(TEXT($A29,"0000"),'2013 SG'!$D$2:$BE$500,30,FALSE)) -> Pending | G29: 26 | H29: 51.32743363 | I29: 1582 | J29: 812 | K29: =IFERROR(VLOOKUP(VALUE($A29),'FIAG3-RAll'!$B$2:$AC$500,12,FALSE)*100,"") ->  | L29: =IFERROR(VLOOKUP(VALUE($A29),'FIAG4-RAll'!$B$2:$AC$500,12,FALSE)*100,"") ->  | M29: =IFERROR(VLOOKUP(VALUE($A29),'FIAG5-RAll'!$B$2:$AC$500,12,FALSE)*100,"") ->  | N29: =IFERROR(VLOOKUP(VALUE($A29),'FIAG6-RAll'!$B$2:$AC$500,12,FALSE)*100,"") ->  | O29: =IFERROR(VLOOKUP(VALUE($A29),'FIAG7-RAll'!$B$2:$AC$500,12,FALSE)*100,"") ->  | P29: =IFERROR(VLOOKUP(VALUE($A29),'FIAG8-RAll'!$B$2:$AC$500,12,FALSE)*100,"") ->  | Q29: =IFERROR(VLOOKUP(VALUE($A29),'FIAG9-RAll'!$B$2:$AC$500,12,FALSE)*100,"") -> 55 | R29: =IFERROR(VLOOKUP(VALUE($A29),'FIAG10-RAll'!$B$2:$AC$500,12,FALSE)*100,"") -> 48 | S29: =IFERROR(VLOOKUP(VALUE($A29),'FIAG3-RAll'!$B$2:$AC$500,9,FALSE),"") ->  | T29: =IFERROR(VLOOKUP(VALUE($A29),'FIAG4-RAll'!$B$2:$AC$500,9,FALSE),"") ->  | U29: =IFERROR(VLOOKUP(VALUE($A29),'FIAG5-RAll'!$B$2:$AC$500,9,FALSE),"") ->  | V29: =IFERROR(VLOOKUP(VALUE($A29),'FIAG6-RAll'!$B$2:$AC$500,9,FALSE),"") ->  | W29: =IFERROR(VLOOKUP(VALUE($A29),'FIAG7-RAll'!$B$2:$AC$500,9,FALSE),"") ->  | X29: =IFERROR(VLOOKUP(VALUE($A29),'FIAG8-RAll'!$B$2:$AC$500,9,FALSE),"") ->  | Y29: =IFERROR(VLOOKUP(VALUE($A29),'FIAG9-RAll'!$B$2:$AC$500,9,FALSE),"") -> 415 | Z29: =IFERROR(VLOOKUP(VALUE($A29),'FIAG10-RAll'!$B$2:$AC$500,9,FALSE),"") -> 397 | AA29: =IFERROR(VLOOKUP(VALUE($A29),'FIAG3-RAll'!$B$2:$AC$500,3,FALSE),"") ->  | AB29: =IFERROR(VLOOKUP(VALUE($A29),'FIAG4-RAll'!$B$2:$AC$500,3,FALSE),"") ->  | AC29: =IFERROR(VLOOKUP(VALUE($A29),'FIAG5-RAll'!$B$2:$AC$500,3,FALSE),"") ->  | AD29: =IFERROR(VLOOKUP(VALUE($A29),'FIAG6-RAll'!$B$2:$AC$500,3,FALSE),"") ->  | AE29: =IFERROR(VLOOKUP(VALUE($A29),'FIAG7-RAll'!$B$2:$AC$500,3,FALSE),"") ->  | AF29: =IFERROR(VLOOKUP(VALUE($A29),'FIAG8-RAll'!$B$2:$AC$500,3,FALSE),"") ->  | AG29: =IFERROR(VLOOKUP(VALUE($A29),'FIAG9-RAll'!$B$2:$AC$500,3,FALSE),"") -> 760 | AH29: =IFERROR(VLOOKUP(VALUE($A29),'FIAG10-RAll'!$B$2:$AC$500,3,FALSE),"") -> 822 | AI29: =VLOOKUP(TEXT($A29,"0000"),'SchType from OADA'!$A$1:$B$679,2,FALSE) -> 4 | AJ29: N-ETO | AK29: SS | AL29: H
A30: 7751 | B30: =VLOOKUP($A30,SchList!$A$2:$E$476,5,FALSE) -> 1 | C30: =VLOOKUP(A30,SchList!$A$2:$G$476,7,FALSE) -> SS-2 | D30: =VLOOKUP(A30,SchList!$A$2:$G$476,6,FALSE) ->  | E30: =VLOOKUP($A30,SchList!$A$2:$B$476,2,FALSE) -> BARBARA GOLEMAN SENIOR HIGH | F30: =IF(VLOOKUP(TEXT($A30,"0000"),'2013 SG'!$D$2:$BE$500,29,FALSE)="Yes",VLOOKUP(TEXT($A30,"0000"),'2013 SG'!$D$2:$BE$500,30,FALSE)&VLOOKUP(TEXT($A30,"0000"),'2013 SG'!$D$2:$BE$500,54,FALSE),VLOOKUP(TEXT($A30,"0000"),'2013 SG'!$D$2:$BE$500,30,FALSE)) -> Pending | G30: 27 | H30: 51.76630435 | I30: 736 | J30: 381 | K30: =IFERROR(VLOOKUP(VALUE($A30),'FIAG3-RAll'!$B$2:$AC$500,12,FALSE)*100,"") ->  | L30: =IFERROR(VLOOKUP(VALUE($A30),'FIAG4-RAll'!$B$2:$AC$500,12,FALSE)*100,"") ->  | M30: =IFERROR(VLOOKUP(VALUE($A30),'FIAG5-RAll'!$B$2:$AC$500,12,FALSE)*100,"") ->  | N30: =IFERROR(VLOOKUP(VALUE($A30),'FIAG6-RAll'!$B$2:$AC$500,12,FALSE)*100,"") ->  | O30: =IFERROR(VLOOKUP(VALUE($A30),'FIAG7-RAll'!$B$2:$AC$500,12,FALSE)*100,"") ->  | P30: =IFERROR(VLOOKUP(VALUE($A30),'FIAG8-RAll'!$B$2:$AC$500,12,FALSE)*100,"") ->  | Q30: =IFERROR(VLOOKUP(VALUE($A30),'FIAG9-RAll'!$B$2:$AC$500,12,FALSE)*100,"") -> 52 | R30: =IFERROR(VLOOKUP(VALUE($A30),'FIAG10-RAll'!$B$2:$AC$500,12,FALSE)*100,"") -> 52 | S30: =IFERROR(VLOOKUP(VALUE($A30),'FIAG3-RAll'!$B$2:$AC$500,9,FALSE),"") ->  | T30: =IFERROR(VLOOKUP(VALUE($A30),'FIAG4-RAll'!$B$2:$AC$500,9,FALSE),"") ->  | U30: =IFERROR(VLOOKUP(VALUE($A30),'FIAG5-RAll'!$B$2:$AC$500,9,FALSE),"") ->  | V30: =IFERROR(VLOOKUP(VALUE($A30),'FIAG6-RAll'!$B$2:$AC$500,9,FALSE),"") ->  | W30: =IFERROR(VLOOKUP(VALUE($A30),'FIAG7-RAll'!$B$2:$AC$500,9,FALSE),"") ->  | X30: =IFERROR(VLOOKUP(VALUE($A30),'FIAG8-RAll'!$B$2:$AC$500,9,FALSE),"") ->  | Y30: =IFERROR(VLOOKUP(VALUE($A30),'FIAG9-RAll'!$B$2:$AC$500,9,FALSE),"") -> 199 | Z30: =IFERROR(VLOOKUP(VALUE($A30),'FIAG10-RAll'!$B$2:$AC$500,9,FALSE),"") -> 182 | AA30: =IFERROR(VLOOKUP(VALUE($A30),'FIAG3-RAll'!$B$2:$AC$500,3,FALSE),"") ->  | AB30: =IFERROR(VLOOKUP(VALUE($A30),'FIAG4-RAll'!$B$2:$AC$500,3,FALSE),"") ->  | AC30: =IFERROR(VLOOKUP(VALUE($A30),'FIAG5-RAll'!$B$2:$AC$500,3,FALSE),"") ->  | AD30: =IFERROR(VLOOKUP(VALUE($A30),'FIAG6-RAll'!$B$2:$AC$500,3,FALSE),"") ->  | AE30: =IFERROR(VLOOKUP(VALUE($A30),'FIAG7-RAll'!$B$2:$AC$500,3,FALSE),"") ->  | AF30: =IFERROR(VLOOKUP(VALUE($A30),'FIAG8-RAll'!$B$2:$AC$500,3,FALSE),"") ->  | AG30: =IFERROR(VLOOKUP(VALUE($A30),'FIAG9-RAll'!$B$2:$AC$500,3,FALSE),"") -> 384 | AH30: =IFERROR(VLOOKUP(VALUE($A30),'FIAG10-RAll'!$B$2:$AC$500,3,FALSE),"") -> 352 | AI30: =VLOOKUP(TEXT($A30,"0000"),'SchType from OADA'!$A$1:$B$679,2,FALSE) -> 4 | AJ30: N-ETO | AK30: SS | AL30: H
A31: 6081 | B31: =VLOOKUP($A31,SchList!$A$2:$E$476,5,FALSE) -> 5 | C31: =VLOOKUP(A31,SchList!$A$2:$G$476,7,FALSE) -> SS-2 | D31: =VLOOKUP(A31,SchList!$A$2:$G$476,6,FALSE) ->  | E31: =VLOOKUP($A31,SchList!$A$2:$B$476,2,FALSE) -> CUTLER BAY ACAD OF ADV STUDIES | F31: =IF(VLOOKUP(TEXT($A31,"0000"),'2013 SG'!$D$2:$BE$500,29,FALSE)="Yes",VLOOKUP(TEXT($A31,"0000"),'2013 SG'!$D$2:$BE$500,30,FALSE)&VLOOKUP(TEXT($A31,"0000"),'2013 SG'!$D$2:$BE$500,54,FALSE),VLOOKUP(TEXT($A31,"0000"),'2013 SG'!$D$2:$BE$500,30,FALSE)) -> C | G31: 28 | H31: 51.89873418 | I31: 553 | J31: 287 | K31: =IFERROR(VLOOKUP(VALUE($A31),'FIAG3-RAll'!$B$2:$AC$500,12,FALSE)*100,"") ->  | L31: =IFERROR(VLOOKUP(VALUE($A31),'FIAG4-RAll'!$B$2:$AC$500,12,FALSE)*100,"") ->  | M31: =IFERROR(VLOOKUP(VALUE($A31),'FIAG5-RAll'!$B$2:$AC$500,12,FALSE)*100,"") ->  | N31: =IFERROR(VLOOKUP(VALUE($A31),'FIAG6-RAll'!$B$2:$AC$500,12,FALSE)*100,"") ->  | O31: =IFERROR(VLOOKUP(VALUE($A31),'FIAG7-RAll'!$B$2:$AC$500,12,FALSE)*100,"") ->  | P31: =IFERROR(VLOOKUP(VALUE($A31),'FIAG8-RAll'!$B$2:$AC$500,12,FALSE)*100,"") -> 37 | Q31: =IFERROR(VLOOKUP(VALUE($A31),'FIAG9-RAll'!$B$2:$AC$500,12,FALSE)*100,"") -> 79 | R31: =IFERROR(VLOOKUP(VALUE($A31),'FIAG10-RAll'!$B$2:$AC$500,12,FALSE)*100,"") -> 74 | S31: =IFERROR(VLOOKUP(VALUE($A31),'FIAG3-RAll'!$B$2:$AC$500,9,FALSE),"") ->  | T31: =IFERROR(VLOOKUP(VALUE($A31),'FIAG4-RAll'!$B$2:$AC$500,9,FALSE),"") ->  | U31: =IFERROR(VLOOKUP(VALUE($A31),'FIAG5-RAll'!$B$2:$AC$500,9,FALSE),"") ->  | V31: =IFERROR(VLOOKUP(VALUE($A31),'FIAG6-RAll'!$B$2:$AC$500,9,FALSE),"") ->  | W31: =IFERROR(VLOOKUP(VALUE($A31),'FIAG7-RAll'!$B$2:$AC$500,9,FALSE),"") ->  | X31: =IFERROR(VLOOKUP(VALUE($A31),'FIAG8-RAll'!$B$2:$AC$500,9,FALSE),"") -> 125 | Y31: =IFERROR(VLOOKUP(VALUE($A31),'FIAG9-RAll'!$B$2:$AC$500,9,FALSE),"") -> 99 | Z31: =IFERROR(VLOOKUP(VALUE($A31),'FIAG10-RAll'!$B$2:$AC$500,9,FALSE),"") -> 63 | AA31: =IFERROR(VLOOKUP(VALUE($A31),'FIAG3-RAll'!$B$2:$AC$500,3,FALSE),"") ->  | AB31: =IFERROR(VLOOKUP(VALUE($A31),'FIAG4-RAll'!$B$2:$AC$500,3,FALSE),"") ->  | AC31: =IFERROR(VLOOKUP(VALUE($A31),'FIAG5-RAll'!$B$2:$AC$500,3,FALSE),"") ->  | AD31: =IFERROR(VLOOKUP(VALUE($A31),'FIAG6-RAll'!$B$2:$AC$500,3,FALSE),"") ->  | AE31: =IFERROR(VLOOKUP(VALUE($A31),'FIAG7-RAll'!$B$2:$AC$500,3,FALSE),"") ->  | AF31: =IFERROR(VLOOKUP(VALUE($A31),'FIAG8-RAll'!$B$2:$AC$500,3,FALSE),"") -> 342 | AG31: =IFERROR(VLOOKUP(VALUE($A31),'FIAG9-RAll'!$B$2:$AC$500,3,FALSE),"") -> 126 | AH31: =IFERROR(VLOOKUP(VALUE($A31),'FIAG10-RAll'!$B$2:$AC$500,3,FALSE),"") -> 85 | AI31: =VLOOKUP(TEXT($A31,"0000"),'SchType from OADA'!$A$1:$B$679,2,FALSE) -> 3 | AJ31: N-ETO | AK31: SS | AL31: H
A32: 7351 | B32: =VLOOKUP($A32,SchList!$A$2:$E$476,5,FALSE) -> 5 | C32: =VLOOKUP(A32,SchList!$A$2:$G$476,7,FALSE) -> SS-0 | D32: =VLOOKUP(A32,SchList!$A$2:$G$476,6,FALSE) ->  | E32: =VLOOKUP($A32,SchList!$A$2:$B$476,2,FALSE) -> ARTHUR AND POLLY MAYS CONSERVA | F32: =IF(VLOOKUP(TEXT($A32,"0000"),'2013 SG'!$D$2:$BE$500,29,FALSE)="Yes",VLOOKUP(TEXT($A32,"0000"),'2013 SG'!$D$2:$BE$500,30,FALSE)&VLOOKUP(TEXT($A32,"0000"),'2013 SG'!$D$2:$BE$500,54,FALSE),VLOOKUP(TEXT($A32,"0000"),'2013 SG'!$D$2:$BE$500,30,FALSE)) -> A | G32: 29 | H32: 52.64270613 | I32: 473 | J32: 249 | K32: =IFERROR(VLOOKUP(VALUE($A32),'FIAG3-RAll'!$B$2:$AC$500,12,FALSE)*100,"") ->  | L32: =IFERROR(VLOOKUP(VALUE($A32),'FIAG4-RAll'!$B$2:$AC$500,12,FALSE)*100,"") ->  | M32: =IFERROR(VLOOKUP(VALUE($A32),'FIAG5-RAll'!$B$2:$AC$500,12,FALSE)*100,"") ->  | N32: =IFERROR(VLOOKUP(VALUE($A32),'FIAG6-RAll'!$B$2:$AC$500,12,FALSE)*100,"") -> 55 | O32: =IFERROR(VLOOKUP(VALUE($A32),'FIAG7-RAll'!$B$2:$AC$500,12,FALSE)*100,"") -> 60 | P32: =IFERROR(VLOOKUP(VALUE($A32),'FIAG8-RAll'!$B$2:$AC$500,12,FALSE)*100,"") -> 52 | Q32: =IFERROR(VLOOKUP(VALUE($A32),'FIAG9-RAll'!$B$2:$AC$500,12,FALSE)*100,"") -> 38 | R32: =IFERROR(VLOOKUP(VALUE($A32),'FIAG10-RAll'!$B$2:$AC$500,12,FALSE)*100,"") -> 53 | S32: =IFERROR(VLOOKUP(VALUE($A32),'FIAG3-RAll'!$B$2:$AC$500,9,FALSE),"") ->  | T32: =IFERROR(VLOOKUP(VALUE($A32),'FIAG4-RAll'!$B$2:$AC$500,9,FALSE),"") ->  | U32: =IFERROR(VLOOKUP(VALUE($A32),'FIAG5-RAll'!$B$2:$AC$500,9,FALSE),"") ->  | V32: =IFERROR(VLOOKUP(VALUE($A32),'FIAG6-RAll'!$B$2:$AC$500,9,FALSE),"") -> 60 | W32: =IFERROR(VLOOKUP(VALUE($A32),'FIAG7-RAll'!$B$2:$AC$500,9,FALSE),"") -> 74 | X32: =IFERROR(VLOOKUP(VALUE($A32),'FIAG8-RAll'!$B$2:$AC$500,9,FALSE),"") -> 51 | Y32: =IFERROR(VLOOKUP(VALUE($A32),'FIAG9-RAll'!$B$2:$AC$500,9,FALSE),"") -> 25 | Z32: =IFERROR(VLOOKUP(VALUE($A32),'FIAG10-RAll'!$B$2:$AC$500,9,FALSE),"") -> 39 | AA32: =IFERROR(VLOOKUP(VALUE($A32),'FIAG3-RAll'!$B$2:$AC$500,3,FALSE),"") ->  | AB32: =IFERROR(VLOOKUP(VALUE($A32),'FIAG4-RAll'!$B$2:$AC$500,3,FALSE),"") ->  | AC32: =IFERROR(VLOOKUP(VALUE($A32),'FIAG5-RAll'!$B$2:$AC$500,3,FALSE),"") ->  | AD32: =IFERROR(VLOOKUP(VALUE($A32),'FIAG6-RAll'!$B$2:$AC$500,3,FALSE),"") -> 110 | AE32: =IFERROR(VLOOKUP(VALUE($A32),'FIAG7-RAll'!$B$2:$AC$500,3,FALSE),"") -> 124 | AF32: =IFERROR(VLOOKUP(VALUE($A32),'FIAG8-RAll'!$B$2:$AC$500,3,FALSE),"") -> 99 | AG32: =IFERROR(VLOOKUP(VALUE($A32),'FIAG9-RAll'!$B$2:$AC$500,3,FALSE),"") -> 66 | AH32: =IFERROR(VLOOKUP(VALUE($A32),'FIAG10-RAll'!$B$2:$AC$500,3,FALSE),"") -> 74 | AI32: =VLOOKUP(TEXT($A32,"0000"),'SchType from OADA'!$A$1:$B$679,2,FALSE) -> 5 | AJ32: N-ETO | AK32: N-SS | AL32: H
A33: 7051 | B33: =VLOOKUP($A33,SchList!$A$2:$E$476,5,FALSE) -> 5 | C33: =VLOOKUP(A33,SchList!$A$2:$G$476,7,FALSE) -> SS-1 | D33: =VLOOKUP(A33,SchList!$A$2:$G$476,6,FALSE) ->  | E33: =VLOOKUP($A33,SchList!$A$2:$B$476,2,FALSE) -> G. HOLMES BRADDOCK SENIOR HIGH | F33: =IF(VLOOKUP(TEXT($A33,"0000"),'2013 SG'!$D$2:$BE$500,29,FALSE)="Yes",VLOOKUP(TEXT($A33,"0000"),'2013 SG'!$D$2:$BE$500,30,FALSE)&VLOOKUP(TEXT($A33,"0000"),'2013 SG'!$D$2:$BE$500,54,FALSE),VLOOKUP(TEXT($A33,"0000"),'2013 SG'!$D$2:$BE$500,30,FALSE)) -> I | G33: 30 | H33: 54.70228158 | I33: 1797 | J33: 983 | K33: =IFERROR(VLOOKUP(VALUE($A33),'FIAG3-RAll'!$B$2:$AC$500,12,FALSE)*100,"") ->  | L33: =IFERROR(VLOOKUP(VALUE($A33),'FIAG4-RAll'!$B$2:$AC$500,12,FALSE)*100,"") ->  | M33: =IFERROR(VLOOKUP(VALUE($A33),'FIAG5-RAll'!$B$2:$AC$500,12,FALSE)*100,"") ->  | N33: =IFERROR(VLOOKUP(VALUE($A33),'FIAG6-RAll'!$B$2:$AC$500,12,FALSE)*100,"") ->  | O33: =IFERROR(VLOOKUP(VALUE($A33),'FIAG7-RAll'!$B$2:$AC$500,12,FALSE)*100,"") ->  | P33: =IFERROR(VLOOKUP(VALUE($A33),'FIAG8-RAll'!$B$2:$AC$500,12,FALSE)*100,"") ->  | Q33: =IFERROR(VLOOKUP(VALUE($A33),'FIAG9-RAll'!$B$2:$AC$500,12,FALSE)*100,"") -> 60 | R33: =IFERROR(VLOOKUP(VALUE($A33),'FIAG10-RAll'!$B$2:$AC$500,12,FALSE)*100,"") -> 50 | S33: =IFERROR(VLOOKUP(VALUE($A33),'FIAG3-RAll'!$B$2:$AC$500,9,FALSE),"") ->  | T33: =IFERROR(VLOOKUP(VALUE($A33),'FIAG4-RAll'!$B$2:$AC$500,9,FALSE),"") ->  | U33: =IFERROR(VLOOKUP(VALUE($A33),'FIAG5-RAll'!$B$2:$AC$500,9,FALSE),"") ->  | V33: =IFERROR(VLOOKUP(VALUE($A33),'FIAG6-RAll'!$B$2:$AC$500,9,FALSE),"") ->  | W33: =IFERROR(VLOOKUP(VALUE($A33),'FIAG7-RAll'!$B$2:$AC$500,9,FALSE),"") ->  | X33: =IFERROR(VLOOKUP(VALUE($A33),'FIAG8-RAll'!$B$2:$AC$500,9,FALSE),"") ->  | Y33: =IFERROR(VLOOKUP(VALUE($A33),'FIAG9-RAll'!$B$2:$AC$500,9,FALSE),"") -> 553 | Z33: =IFERROR(VLOOKUP(VALUE($A33),'FIAG10-RAll'!$B$2:$AC$500,9,FALSE),"") -> 430 | AA33: =IFERROR(VLOOKUP(VALUE($A33),'FIAG3-RAll'!$B$2:$AC$500,3,FALSE),"") ->  | AB33: =IFERROR(VLOOKUP(VALUE($A33),'FIAG4-RAll'!$B$2:$AC$500,3,FALSE),"") ->  | AC33: =IFERROR(VLOOKUP(VALUE($A33),'FIAG5-RAll'!$B$2:$AC$500,3,FALSE),"") ->  | AD33: =IFERROR(VLOOKUP(VALUE($A33),'FIAG6-RAll'!$B$2:$AC$500,3,FALSE),"") ->  | AE33: =IFERROR(VLOOKUP(VALUE($A33),'FIAG7-RAll'!$B$2:$AC$500,3,FALSE),"") ->  | AF33: =IFERROR(VLOOKUP(VALUE($A33),'FIAG8-RAll'!$B$2:$AC$500,3,FALSE),"") ->  | AG33: =IFERROR(VLOOKUP(VALUE($A33),'FIAG9-RAll'!$B$2:$AC$500,3,FALSE),"") -> 929 | AH33: =IFERROR(VLOOKUP(VALUE($A33),'FIAG10-RAll'!$B$2:$AC$500,3,FALSE),"") -> 868 | AI33: =VLOOKUP(TEXT($A33,"0000"),'SchType from OADA'!$A$1:$B$679,2,FALSE) -> 4 | AJ33: N-ETO | AK33: SS | AL33: H
A34: 7741 | B34: =VLOOKUP($A34,SchList!$A$2:$E$476,5,FALSE) -> 5 | C34: =VLOOKUP(A34,SchList!$A$2:$G$476,7,FALSE) -> SS-1 | D34: =VLOOKUP(A34,SchList!$A$2:$G$476,6,FALSE) ->  | E34: =VLOOKUP($A34,SchList!$A$2:$B$476,2,FALSE) -> SOUTHWEST MIAMI SENIOR HIGH | F34: =IF(VLOOKUP(TEXT($A34,"0000"),'2013 SG'!$D$2:$BE$500,29,FALSE)="Yes",VLOOKUP(TEXT($A34,"0000"),'2013 SG'!$D$2:$BE$500,30,FALSE)&VLOOKUP(TEXT($A34,"0000"),'2013 SG'!$D$2:$BE$500,54,FALSE),VLOOKUP(TEXT($A34,"0000"),'2013 SG'!$D$2:$BE$500,30,FALSE)) -> Pending | G34: 34 | H34: 56.44736842 | I34: 1520 | J34: 858 | K34: =IFERROR(VLOOKUP(VALUE($A34),'FIAG3-RAll'!$B$2:$AC$500,12,FALSE)*100,"") ->  | L34: =IFERROR(VLOOKUP(VALUE($A34),'FIAG4-RAll'!$B$2:$AC$500,12,FALSE)*100,"") ->  | M34: =IFERROR(VLOOKUP(VALUE($A34),'FIAG5-RAll'!$B$2:$AC$500,12,FALSE)*100,"") ->  | N34: =IFERROR(VLOOKUP(VALUE($A34),'FIAG6-RAll'!$B$2:$AC$500,12,FALSE)*100,"") ->  | O34: =IFERROR(VLOOKUP(VALUE($A34),'FIAG7-RAll'!$B$2:$AC$500,12,FALSE)*100,"") ->  | P34: =IFERROR(VLOOKUP(VALUE($A34),'FIAG8-RAll'!$B$2:$AC$500,12,FALSE)*100,"") ->  | Q34: =IFERROR(VLOOKUP(VALUE($A34),'FIAG9-RAll'!$B$2:$AC$500,12,FALSE)*100,"") -> 55 | R34: =IFERROR(VLOOKUP(VALUE($A34),'FIAG10-RAll'!$B$2:$AC$500,12,FALSE)*100,"") -> 58 | S34: =IFERROR(VLOOKUP(VALUE($A34),'FIAG3-RAll'!$B$2:$AC$500,9,FALSE),"") ->  | T34: =IFERROR(VLOOKUP(VALUE($A34),'FIAG4-RAll'!$B$2:$AC$500,9,FALSE),"") ->  | U34: =IFERROR(VLOOKUP(VALUE($A34),'FIAG5-RAll'!$B$2:$AC$500,9,FALSE),"") ->  | V34: =IFERROR(VLOOKUP(VALUE($A34),'FIAG6-RAll'!$B$2:$AC$500,9,FALSE),"") ->  | W34: =IFERROR(VLOOKUP(VALUE($A34),'FIAG7-RAll'!$B$2:$AC$500,9,FALSE),"") ->  | X34: =IFERROR(VLOOKUP(VALUE($A34),'FIAG8-RAll'!$B$2:$AC$500,9,FALSE),"") ->  | Y34: =IFERROR(VLOOKUP(VALUE($A34),'FIAG9-RAll'!$B$2:$AC$500,9,FALSE),"") -> 409 | Z34: =IFERROR(VLOOKUP(VALUE($A34),'FIAG10-RAll'!$B$2:$AC$500,9,FALSE),"") -> 449 | AA34: =IFERROR(VLOOKUP(VALUE($A34),'FIAG3-RAll'!$B$2:$AC$500,3,FALSE),"") ->  | AB34: =IFERROR(VLOOKUP(VALUE($A34),'FIAG4-RAll'!$B$2:$AC$500,3,FALSE),"") ->  | AC34: =IFERROR(VLOOKUP(VALUE($A34),'FIAG5-RAll'!$B$2:$AC$500,3,FALSE),"") ->  | AD34: =IFERROR(VLOOKUP(VALUE($A34),'FIAG6-RAll'!$B$2:$AC$500,3,FALSE),"") ->  | AE34: =IFERROR(VLOOKUP(VALUE($A34),'FIAG7-RAll'!$B$2:$AC$500,3,FALSE),"") ->  | AF34: =IFERROR(VLOOKUP(VALUE($A34),'FIAG8-RAll'!$B$2:$AC$500,3,FALSE),"") ->  | AG34: =IFERROR(VLOOKUP(VALUE($A34),'FIAG9-RAll'!$B$2:$AC$500,3,FALSE),"") -> 748 | AH34: =IFERROR(VLOOKUP(VALUE($A34),'FIAG10-RAll'!$B$2:$AC$500,3,FALSE),"") -> 772 | AI34: =VLOOKUP(TEXT($A34,"0000"),'SchType from OADA'!$A$1:$B$679,2,FALSE) -> 4 | AJ34: N-ETO | AK34: SS | AL34: H
A35: 7048 | B35: =VLOOKUP($A35,SchList!$A$2:$E$476,5,FALSE) -> 1 | C35: =VLOOKUP(A35,SchList!$A$2:$G$476,7,FALSE) -> SS-0 | D35: =VLOOKUP(A35,SchList!$A$2:$G$476,6,FALSE) ->  | E35: =VLOOKUP($A35,SchList!$A$2:$B$476,2,FALSE) -> ALONZO & TRACY MOURNING SH | F35: =IF(VLOOKUP(TEXT($A35,"0000"),'2013 SG'!$D$2:$BE$500,29,FALSE)="Yes",VLOOKUP(TEXT($A35,"0000"),'2013 SG'!$D$2:$BE$500,30,FALSE)&VLOOKUP(TEXT($A35,"0000"),'2013 SG'!$D$2:$BE$500,54,FALSE),VLOOKUP(TEXT($A35,"0000"),'2013 SG'!$D$2:$BE$500,30,FALSE)) -> Pending | G35: 31 | H35: 55.71428571 | I35: 770 | J35: 429 | K35: =IFERROR(VLOOKUP(VALUE($A35),'FIAG3-RAll'!$B$2:$AC$500,12,FALSE)*100,"") ->  | L35: =IFERROR(VLOOKUP(VALUE($A35),'FIAG4-RAll'!$B$2:$AC$500,12,FALSE)*100,"") ->  | M35: =IFERROR(VLOOKUP(VALUE($A35),'FIAG5-RAll'!$B$2:$AC$500,12,FALSE)*100,"") ->  | N35: =IFERROR(VLOOKUP(VALUE($A35),'FIAG6-RAll'!$B$2:$AC$500,12,FALSE)*100,"") ->  | O35: =IFERROR(VLOOKUP(VALUE($A35),'FIAG7-RAll'!$B$2:$AC$500,12,FALSE)*100,"") ->  | P35: =IFERROR(VLOOKUP(VALUE($A35),'FIAG8-RAll'!$B$2:$AC$500,12,FALSE)*100,"") ->  | Q35: =IFERROR(VLOOKUP(VALUE($A35),'FIAG9-RAll'!$B$2:$AC$500,12,FALSE)*100,"") -> 57 | R35: =IFERROR(VLOOKUP(VALUE($A35),'FIAG10-RAll'!$B$2:$AC$500,12,FALSE)*100,"") -> 55 | S35: =IFERROR(VLOOKUP(VALUE($A35),'FIAG3-RAll'!$B$2:$AC$500,9,FALSE),"") ->  | T35: =IFERROR(VLOOKUP(VALUE($A35),'FIAG4-RAll'!$B$2:$AC$500,9,FALSE),"") ->  | U35: =IFERROR(VLOOKUP(VALUE($A35),'FIAG5-RAll'!$B$2:$AC$500,9,FALSE),"") ->  | V35: =IFERROR(VLOOKUP(VALUE($A35),'FIAG6-RAll'!$B$2:$AC$500,9,FALSE),"") ->  | W35: =IFERROR(VLOOKUP(VALUE($A35),'FIAG7-RAll'!$B$2:$AC$500,9,FALSE),"") ->  | X35: =IFERROR(VLOOKUP(VALUE($A35),'FIAG8-RAll'!$B$2:$AC$500,9,FALSE),"") ->  | Y35: =IFERROR(VLOOKUP(VALUE($A35),'FIAG9-RAll'!$B$2:$AC$500,9,FALSE),"") -> 208 | Z35: =IFERROR(VLOOKUP(VALUE($A35),'FIAG10-RAll'!$B$2:$AC$500,9,FALSE),"") -> 221 | AA35: =IFERROR(VLOOKUP(VALUE($A35),'FIAG3-RAll'!$B$2:$AC$500,3,FALSE),"") ->  | AB35: =IFERROR(VLOOKUP(VALUE($A35),'FIAG4-RAll'!$B$2:$AC$500,3,FALSE),"") ->  | AC35: =IFERROR(VLOOKUP(VALUE($A35),'FIAG5-RAll'!$B$2:$AC$500,3,FALSE),"") ->  | AD35: =IFERROR(VLOOKUP(VALUE($A35),'FIAG6-RAll'!$B$2:$AC$500,3,FALSE),"") ->  | AE35: =IFERROR(VLOOKUP(VALUE($A35),'FIAG7-RAll'!$B$2:$AC$500,3,FALSE),"") ->  | AF35: =IFERROR(VLOOKUP(VALUE($A35),'FIAG8-RAll'!$B$2:$AC$500,3,FALSE),"") ->  | AG35: =IFERROR(VLOOKUP(VALUE($A35),'FIAG9-RAll'!$B$2:$AC$500,3,FALSE),"") -> 366 | AH35: =IFERROR(VLOOKUP(VALUE($A35),'FIAG10-RAll'!$B$2:$AC$500,3,FALSE),"") -> 404 | AI35: =VLOOKUP(TEXT($A35,"0000"),'SchType from OADA'!$A$1:$B$679,2,FALSE) -> 4 | AJ35: N-ETO | AK35: N-SS | AL35: H
A36: 9999 | B36: =VLOOKUP($A36,SchList!$A$2:$E$476,5,FALSE) -> 9 | C36: =VLOOKUP(A36,SchList!$A$2:$G$476,7,FALSE) -> SS-9 | D36: =VLOOKUP(A36,SchList!$A$2:$G$476,6,FALSE) ->  | E36: =VLOOKUP($A36,SchList!$A$2:$B$476,2,FALSE) -> District | F36: =IF(VLOOKUP(TEXT($A36,"0000"),'2013 SG'!$D$2:$BE$500,29,FALSE)="Yes",VLOOKUP(TEXT($A36,"0000"),'2013 SG'!$D$2:$BE$500,30,FALSE)&VLOOKUP(TEXT($A36,"0000"),'2013 SG'!$D$2:$BE$500,54,FALSE),VLOOKUP(TEXT($A36,"0000"),'2013 SG'!$D$2:$BE$500,30,FALSE)) -> B | G36: =IF(H36="","",RANK(H36,$H$4:$H$56,1)) -> 32 | H36: =IFERROR(IF(I36<10,"",J36/I36*100),"") -> 55.96091336 | I36: =SUM(AA36:AH36) -> 199659 | J36: =SUM(S36:Z36) -> 111731 | K36: =IFERROR(VLOOKUP(VALUE($A36),'FIAG3-RAll'!$B$2:$AC$500,12,FALSE)*100,"") -> 51 | L36: =IFERROR(VLOOKUP(VALUE($A36),'FIAG4-RAll'!$B$2:$AC$500,12,FALSE)*100,"") -> 62 | M36: =IFERROR(VLOOKUP(VALUE($A36),'FIAG5-RAll'!$B$2:$AC$500,12,FALSE)*100,"") -> 57 | N36: =IFERROR(VLOOKUP(VALUE($A36),'FIAG6-RAll'!$B$2:$AC$500,12,FALSE)*100,"") -> 60 | O36: =IFERROR(VLOOKUP(VALUE($A36),'FIAG7-RAll'!$B$2:$AC$500,12,FALSE)*100,"") -> 59 | P36: =IFERROR(VLOOKUP(VALUE($A36),'FIAG8-RAll'!$B$2:$AC$500,12,FALSE)*100,"") -> 54 | Q36: =IFERROR(VLOOKUP(VALUE($A36),'FIAG9-RAll'!$B$2:$AC$500,12,FALSE)*100,"") -> 54 | R36: =IFERROR(VLOOKUP(VALUE($A36),'FIAG10-RAll'!$B$2:$AC$500,12,FALSE)*100,"") -> 51 | S36: =IFERROR(VLOOKUP(VALUE($A36),'FIAG3-RAll'!$B$2:$AC$500,9,FALSE),"") -> 13068 | T36: =IFERROR(VLOOKUP(VALUE($A36),'FIAG4-RAll'!$B$2:$AC$500,9,FALSE),"") -> 14840 | U36: =IFERROR(VLOOKUP(VALUE($A36),'FIAG5-RAll'!$B$2:$AC$500,9,FALSE),"") -> 13984 | V36: =IFERROR(VLOOKUP(VALUE($A36),'FIAG6-RAll'!$B$2:$AC$500,9,FALSE),"") -> 14451 | W36: =IFERROR(VLOOKUP(VALUE($A36),'FIAG7-RAll'!$B$2:$AC$500,9,FALSE),"") -> 14884 | X36: =IFERROR(VLOOKUP(VALUE($A36),'FIAG8-RAll'!$B$2:$AC$500,9,FALSE),"") -> 13883 | Y36: =IFERROR(VLOOKUP(VALUE($A36),'FIAG9-RAll'!$B$2:$AC$500,9,FALSE),"") -> 13926 | Z36: =IFERROR(VLOOKUP(VALUE($A36),'FIAG10-RAll'!$B$2:$AC$500,9,FALSE),"") -> 12695 | AA36: =IFERROR(VLOOKUP(VALUE($A36),'FIAG3-RAll'!$B$2:$AC$500,3,FALSE),"") -> 25756 | AB36: =IFERROR(VLOOKUP(VALUE($A36),'FIAG4-RAll'!$B$2:$AC$500,3,FALSE),"") -> 23760 | AC36: =IFERROR(VLOOKUP(VALUE($A36),'FIAG5-RAll'!$B$2:$AC$500,3,FALSE),"") -> 24427 | AD36: =IFERROR(VLOOKUP(VALUE($A36),'FIAG6-RAll'!$B$2:$AC$500,3,FALSE),"") -> 24105 | AE36: =IFERROR(VLOOKUP(VALUE($A36),'FIAG7-RAll'!$B$2:$AC$500,3,FALSE),"") -> 25026 | AF36: =IFERROR(VLOOKUP(VALUE($A36),'FIAG8-RAll'!$B$2:$AC$500,3,FALSE),"") -> 25644 | AG36: =IFERROR(VLOOKUP(VALUE($A36),'FIAG9-RAll'!$B$2:$AC$500,3,FALSE),"") -> 25948 | AH36: =IFERROR(VLOOKUP(VALUE($A36),'FIAG10-RAll'!$B$2:$AC$500,3,FALSE),"") -> 24993 | AI36: =VLOOKUP(TEXT($A36,"0000"),'SchType from OADA'!$A$1:$B$679,2,FALSE) -> 9 | AJ36: =IF(D36<>"","ETO","N-ETO") -> N-ETO | AK36: =IF(C36<>"SS-0","SS","N-SS") -> SS | AL36: 9
A37: 7371 | B37: =VLOOKUP($A37,SchList!$A$2:$E$476,5,FALSE) -> 5 | C37: =VLOOKUP(A37,SchList!$A$2:$G$476,7,FALSE) -> SS-0 | D37: =VLOOKUP(A37,SchList!$A$2:$G$476,6,FALSE) ->  | E37: =VLOOKUP($A37,SchList!$A$2:$B$476,2,FALSE) -> ROBERT MORGAN EDUCATIONAL CTR | F37: =IF(VLOOKUP(TEXT($A37,"0000"),'2013 SG'!$D$2:$BE$500,29,FALSE)="Yes",VLOOKUP(TEXT($A37,"0000"),'2013 SG'!$D$2:$BE$500,30,FALSE)&VLOOKUP(TEXT($A37,"0000"),'2013 SG'!$D$2:$BE$500,54,FALSE),VLOOKUP(TEXT($A37,"0000"),'2013 SG'!$D$2:$BE$500,30,FALSE)) -> Pending | G37: 35 | H37: 57.69927536 | I37: 1104 | J37: 637 | K37: =IFERROR(VLOOKUP(VALUE($A37),'FIAG3-RAll'!$B$2:$AC$500,12,FALSE)*100,"") ->  | L37: =IFERROR(VLOOKUP(VALUE($A37),'FIAG4-RAll'!$B$2:$AC$500,12,FALSE)*100,"") ->  | M37: =IFERROR(VLOOKUP(VALUE($A37),'FIAG5-RAll'!$B$2:$AC$500,12,FALSE)*100,"") ->  | N37: =IFERROR(VLOOKUP(VALUE($A37),'FIAG6-RAll'!$B$2:$AC$500,12,FALSE)*100,"") ->  | O37: =IFERROR(VLOOKUP(VALUE($A37),'FIAG7-RAll'!$B$2:$AC$500,12,FALSE)*100,"") ->  | P37: =IFERROR(VLOOKUP(VALUE($A37),'FIAG8-RAll'!$B$2:$AC$500,12,FALSE)*100,"") ->  | Q37: =IFERROR(VLOOKUP(VALUE($A37),'FIAG9-RAll'!$B$2:$AC$500,12,FALSE)*100,"") -> 63 | R37: =IFERROR(VLOOKUP(VALUE($A37),'FIAG10-RAll'!$B$2:$AC$500,12,FALSE)*100,"") -> 51 | S37: =IFERROR(VLOOKUP(VALUE($A37),'FIAG3-RAll'!$B$2:$AC$500,9,FALSE),"") ->  | T37: =IFERROR(VLOOKUP(VALUE($A37),'FIAG4-RAll'!$B$2:$AC$500,9,FALSE),"") ->  | U37: =IFERROR(VLOOKUP(VALUE($A37),'FIAG5-RAll'!$B$2:$AC$500,9,FALSE),"") ->  | V37: =IFERROR(VLOOKUP(VALUE($A37),'FIAG6-RAll'!$B$2:$AC$500,9,FALSE),"") ->  | W37: =IFERROR(VLOOKUP(VALUE($A37),'FIAG7-RAll'!$B$2:$AC$500,9,FALSE),"") ->  | X37: =IFERROR(VLOOKUP(VALUE($A37),'FIAG8-RAll'!$B$2:$AC$500,9,FALSE),"") ->  | Y37: =IFERROR(VLOOKUP(VALUE($A37),'FIAG9-RAll'!$B$2:$AC$500,9,FALSE),"") -> 372 | Z37: =IFERROR(VLOOKUP(VALUE($A37),'FIAG10-RAll'!$B$2:$AC$500,9,FALSE),"") -> 265 | AA37: =IFERROR(VLOOKUP(VALUE($A37),'FIAG3-RAll'!$B$2:$AC$500,3,FALSE),"") ->  | AB37: =IFERROR(VLOOKUP(VALUE($A37),'FIAG4-RAll'!$B$2:$AC$500,3,FALSE),"") ->  | AC37: =IFERROR(VLOOKUP(VALUE($A37),'FIAG5-RAll'!$B$2:$AC$500,3,FALSE),"") ->  | AD37: =IFERROR(VLOOKUP(VALUE($A37),'FIAG6-RAll'!$B$2:$AC$500,3,FALSE),"") ->  | AE37: =IFERROR(VLOOKUP(VALUE($A37),'FIAG7-RAll'!$B$2:$AC$500,3,FALSE),"") ->  | AF37: =IFERROR(VLOOKUP(VALUE($A37),'FIAG8-RAll'!$B$2:$AC$500,3,FALSE),"") ->  | AG37: =IFERROR(VLOOKUP(VALUE($A37),'FIAG9-RAll'!$B$2:$AC$500,3,FALSE),"") -> 586 | AH37: =IFERROR(VLOOKUP(VALUE($A37),'FIAG10-RAll'!$B$2:$AC$500,3,FALSE),"") -> 518 | AI37: =VLOOKUP(TEXT($A37,"0000"),'SchType from OADA'!$A$1:$B$679,2,FALSE) -> 4 | AJ37: N-ETO | AK37: N-SS | AL37: H
A38: 7141 | B38: =VLOOKUP($A38,SchList!$A$2:$E$476,5,FALSE) -> 1 | C38: =VLOOKUP(A38,SchList!$A$2:$G$476,7,FALSE) -> SS-0 | D38: =VLOOKUP(A38,SchList!$A$2:$G$476,6,FALSE) ->  | E38: =VLOOKUP($A38,SchList!$A$2:$B$476,2,FALSE) -> DR MICHAEL M KROP SENIOR HIGH | F38: =IF(VLOOKUP(TEXT($A38,"0000"),'2013 SG'!$D$2:$BE$500,29,FALSE)="Yes",VLOOKUP(TEXT($A38,"0000"),'2013 SG'!$D$2:$BE$500,30,FALSE)&VLOOKUP(TEXT($A38,"0000"),'2013 SG'!$D$2:$BE$500,54,FALSE),VLOOKUP(TEXT($A38,"0000"),'2013 SG'!$D$2:$BE$500,30,FALSE)) -> Pending | G38: 33 | H38: 56.10310842 | I38: 1319 | J38: 740 | K38: =IFERROR(VLOOKUP(VALUE($A38),'FIAG3-RAll'!$B$2:$AC$500,12,FALSE)*100,"") ->  | L38: =IFERROR(VLOOKUP(VALUE($A38),'FIAG4-RAll'!$B$2:$AC$500,12,FALSE)*100,"") ->  | M38: =IFERROR(VLOOKUP(VALUE($A38),'FIAG5-RAll'!$B$2:$AC$500,12,FALSE)*100,"") ->  | N38: =IFERROR(VLOOKUP(VALUE($A38),'FIAG6-RAll'!$B$2:$AC$500,12,FALSE)*100,"") ->  | O38: =IFERROR(VLOOKUP(VALUE($A38),'FIAG7-RAll'!$B$2:$AC$500,12,FALSE)*100,"") ->  | P38: =IFERROR(VLOOKUP(VALUE($A38),'FIAG8-RAll'!$B$2:$AC$500,12,FALSE)*100,"") ->  | Q38: =IFERROR(VLOOKUP(VALUE($A38),'FIAG9-RAll'!$B$2:$AC$500,12,FALSE)*100,"") -> 59 | R38: =IFERROR(VLOOKUP(VALUE($A38),'FIAG10-RAll'!$B$2:$AC$500,12,FALSE)*100,"") -> 53 | S38: =IFERROR(VLOOKUP(VALUE($A38),'FIAG3-RAll'!$B$2:$AC$500,9,FALSE),"") ->  | T38: =IFERROR(VLOOKUP(VALUE($A38),'FIAG4-RAll'!$B$2:$AC$500,9,FALSE),"") ->  | U38: =IFERROR(VLOOKUP(VALUE($A38),'FIAG5-RAll'!$B$2:$AC$500,9,FALSE),"") ->  | V38: =IFERROR(VLOOKUP(VALUE($A38),'FIAG6-RAll'!$B$2:$AC$500,9,FALSE),"") ->  | W38: =IFERROR(VLOOKUP(VALUE($A38),'FIAG7-RAll'!$B$2:$AC$500,9,FALSE),"") ->  | X38: =IFERROR(VLOOKUP(VALUE($A38),'FIAG8-RAll'!$B$2:$AC$500,9,FALSE),"") ->  | Y38: =IFERROR(VLOOKUP(VALUE($A38),'FIAG9-RAll'!$B$2:$AC$500,9,FALSE),"") -> 404 | Z38: =IFERROR(VLOOKUP(VALUE($A38),'FIAG10-RAll'!$B$2:$AC$500,9,FALSE),"") -> 336 | AA38: =IFERROR(VLOOKUP(VALUE($A38),'FIAG3-RAll'!$B$2:$AC$500,3,FALSE),"") ->  | AB38: =IFERROR(VLOOKUP(VALUE($A38),'FIAG4-RAll'!$B$2:$AC$500,3,FALSE),"") ->  | AC38: =IFERROR(VLOOKUP(VALUE($A38),'FIAG5-RAll'!$B$2:$AC$500,3,FALSE),"") ->  | AD38: =IFERROR(VLOOKUP(VALUE($A38),'FIAG6-RAll'!$B$2:$AC$500,3,FALSE),"") ->  | AE38: =IFERROR(VLOOKUP(VALUE($A38),'FIAG7-RAll'!$B$2:$AC$500,3,FALSE),"") ->  | AF38: =IFERROR(VLOOKUP(VALUE($A38),'FIAG8-RAll'!$B$2:$AC$500,3,FALSE),"") ->  | AG38: =IFERROR(VLOOKUP(VALUE($A38),'FIAG9-RAll'!$B$2:$AC$500,3,FALSE),"") -> 683 | AH38: =IFERROR(VLOOKUP(VALUE($A38),'FIAG10-RAll'!$B$2:$AC$500,3,FALSE),"") -> 636 | AI38: =VLOOKUP(TEXT($A38,"0000"),'SchType from OADA'!$A$1:$B$679,2,FALSE) -> 4 | AJ38: N-ETO | AK38: N-SS | AL38: H
A39: 7121 | B39: =VLOOKUP($A39,SchList!$A$2:$E$476,5,FALSE) -> 5 | C39: =VLOOKUP(A39,SchList!$A$2:$G$476,7,FALSE) -> SS-0 | D39: =VLOOKUP(A39,SchList!$A$2:$G$476,6,FALSE) ->  | E39: =VLOOKUP($A39,SchList!$A$2:$B$476,2,FALSE) -> JOHN A FERGUSON SENIOR HIGH | F39: =IF(VLOOKUP(TEXT($A39,"0000"),'2013 SG'!$D$2:$BE$500,29,FALSE)="Yes",VLOOKUP(TEXT($A39,"0000"),'2013 SG'!$D$2:$BE$500,30,FALSE)&VLOOKUP(TEXT($A39,"0000"),'2013 SG'!$D$2:$BE$500,54,FALSE),VLOOKUP(TEXT($A39,"0000"),'2013 SG'!$D$2:$BE$500,30,FALSE)) -> Pending | G39: 36 | H39: 57.89220404 | I39: 2078 | J39: 1203 | K39: =IFERROR(VLOOKUP(VALUE($A39),'FIAG3-RAll'!$B$2:$AC$500,12,FALSE)*100,"") ->  | L39: =IFERROR(VLOOKUP(VALUE($A39),'FIAG4-RAll'!$B$2:$AC$500,12,FALSE)*100,"") ->  | M39: =IFERROR(VLOOKUP(VALUE($A39),'FIAG5-RAll'!$B$2:$AC$500,12,FALSE)*100,"") ->  | N39: =IFERROR(VLOOKUP(VALUE($A39),'FIAG6-RAll'!$B$2:$AC$500,12,FALSE)*100,"") ->  | O39: =IFERROR(VLOOKUP(VALUE($A39),'FIAG7-RAll'!$B$2:$AC$500,12,FALSE)*100,"") ->  | P39: =IFERROR(VLOOKUP(VALUE($A39),'FIAG8-RAll'!$B$2:$AC$500,12,FALSE)*100,"") ->  | Q39: =IFERROR(VLOOKUP(VALUE($A39),'FIAG9-RAll'!$B$2:$AC$500,12,FALSE)*100,"") -> 61 | R39: =IFERROR(VLOOKUP(VALUE($A39),'FIAG10-RAll'!$B$2:$AC$500,12,FALSE)*100,"") -> 55 | S39: =IFERROR(VLOOKUP(VALUE($A39),'FIAG3-RAll'!$B$2:$AC$500,9,FALSE),"") ->  | T39: =IFERROR(VLOOKUP(VALUE($A39),'FIAG4-RAll'!$B$2:$AC$500,9,FALSE),"") ->  | U39: =IFERROR(VLOOKUP(VALUE($A39),'FIAG5-RAll'!$B$2:$AC$500,9,FALSE),"") ->  | V39: =IFERROR(VLOOKUP(VALUE($A39),'FIAG6-RAll'!$B$2:$AC$500,9,FALSE),"") ->  | W39: =IFERROR(VLOOKUP(VALUE($A39),'FIAG7-RAll'!$B$2:$AC$500,9,FALSE),"") ->  | X39: =IFERROR(VLOOKUP(VALUE($A39),'FIAG8-RAll'!$B$2:$AC$500,9,FALSE),"") ->  | Y39: =IFERROR(VLOOKUP(VALUE($A39),'FIAG9-RAll'!$B$2:$AC$500,9,FALSE),"") -> 633 | Z39: =IFERROR(VLOOKUP(VALUE($A39),'FIAG10-RAll'!$B$2:$AC$500,9,FALSE),"") -> 570 | AA39: =IFERROR(VLOOKUP(VALUE($A39),'FIAG3-RAll'!$B$2:$AC$500,3,FALSE),"") ->  | AB39: =IFERROR(VLOOKUP(VALUE($A39),'FIAG4-RAll'!$B$2:$AC$500,3,FALSE),"") ->  | AC39: =IFERROR(VLOOKUP(VALUE($A39),'FIAG5-RAll'!$B$2:$AC$500,3,FALSE),"") ->  | AD39: =IFERROR(VLOOKUP(VALUE($A39),'FIAG6-RAll'!$B$2:$AC$500,3,FALSE),"") ->  | AE39: =IFERROR(VLOOKUP(VALUE($A39),'FIAG7-RAll'!$B$2:$AC$500,3,FALSE),"") ->  | AF39: =IFERROR(VLOOKUP(VALUE($A39),'FIAG8-RAll'!$B$2:$AC$500,3,FALSE),"") ->  | AG39: =IFERROR(VLOOKUP(VALUE($A39),'FIAG9-RAll'!$B$2:$AC$500,3,FALSE),"") -> 1044 | AH39: =IFERROR(VLOOKUP(VALUE($A39),'FIAG10-RAll'!$B$2:$AC$500,3,FALSE),"") -> 1034 | AI39: =VLOOKUP(TEXT($A39,"0000"),'SchType from OADA'!$A$1:$B$679,2,FALSE) -> 4 | AJ39: N-ETO | AK39: N-SS | AL39: H
A40: 7781 | B40: =VLOOKUP($A40,SchList!$A$2:$E$476,5,FALSE) -> 5 | C40: =VLOOKUP(A40,SchList!$A$2:$G$476,7,FALSE) -> SS-1 | D40: =VLOOKUP(A40,SchList!$A$2:$G$476,6,FALSE) ->  | E40: =VLOOKUP($A40,SchList!$A$2:$B$476,2,FALSE) -> FELIX VARELA SENIOR HIGH | F40: =IF(VLOOKUP(TEXT($A40,"0000"),'2013 SG'!$D$2:$BE$500,29,FALSE)="Yes",VLOOKUP(TEXT($A40,"0000"),'2013 SG'!$D$2:$BE$500,30,FALSE)&VLOOKUP(TEXT($A40,"0000"),'2013 SG'!$D$2:$BE$500,54,FALSE),VLOOKUP(TEXT($A40,"0000"),'2013 SG'!$D$2:$BE$500,30,FALSE)) -> Pending | G40: 37 | H40: 58.37874659 | I40: 1468 | J40: 857 | K40: =IFERROR(VLOOKUP(VALUE($A40),'FIAG3-RAll'!$B$2:$AC$500,12,FALSE)*100,"") ->  | L40: =IFERROR(VLOOKUP(VALUE($A40),'FIAG4-RAll'!$B$2:$AC$500,12,FALSE)*100,"") ->  | M40: =IFERROR(VLOOKUP(VALUE($A40),'FIAG5-RAll'!$B$2:$AC$500,12,FALSE)*100,"") ->  | N40: =IFERROR(VLOOKUP(VALUE($A40),'FIAG6-RAll'!$B$2:$AC$500,12,FALSE)*100,"") ->  | O40: =IFERROR(VLOOKUP(VALUE($A40),'FIAG7-RAll'!$B$2:$AC$500,12,FALSE)*100,"") ->  | P40: =IFERROR(VLOOKUP(VALUE($A40),'FIAG8-RAll'!$B$2:$AC$500,12,FALSE)*100,"") ->  | Q40: =IFERROR(VLOOKUP(VALUE($A40),'FIAG9-RAll'!$B$2:$AC$500,12,FALSE)*100,"") -> 62 | R40: =IFERROR(VLOOKUP(VALUE($A40),'FIAG10-RAll'!$B$2:$AC$500,12,FALSE)*100,"") -> 56 | S40: =IFERROR(VLOOKUP(VALUE($A40),'FIAG3-RAll'!$B$2:$AC$500,9,FALSE),"") ->  | T40: =IFERROR(VLOOKUP(VALUE($A40),'FIAG4-RAll'!$B$2:$AC$500,9,FALSE),"") ->  | U40: =IFERROR(VLOOKUP(VALUE($A40),'FIAG5-RAll'!$B$2:$AC$500,9,FALSE),"") ->  | V40: =IFERROR(VLOOKUP(VALUE($A40),'FIAG6-RAll'!$B$2:$AC$500,9,FALSE),"") ->  | W40: =IFERROR(VLOOKUP(VALUE($A40),'FIAG7-RAll'!$B$2:$AC$500,9,FALSE),"") ->  | X40: =IFERROR(VLOOKUP(VALUE($A40),'FIAG8-RAll'!$B$2:$AC$500,9,FALSE),"") ->  | Y40: =IFERROR(VLOOKUP(VALUE($A40),'FIAG9-RAll'!$B$2:$AC$500,9,FALSE),"") -> 422 | Z40: =IFERROR(VLOOKUP(VALUE($A40),'FIAG10-RAll'!$B$2:$AC$500,9,FALSE),"") -> 435 | AA40: =IFERROR(VLOOKUP(VALUE($A40),'FIAG3-RAll'!$B$2:$AC$500,3,FALSE),"") ->  | AB40: =IFERROR(VLOOKUP(VALUE($A40),'FIAG4-RAll'!$B$2:$AC$500,3,FALSE),"") ->  | AC40: =IFERROR(VLOOKUP(VALUE($A40),'FIAG5-RAll'!$B$2:$AC$500,3,FALSE),"") ->  | AD40: =IFERROR(VLOOKUP(VALUE($A40),'FIAG6-RAll'!$B$2:$AC$500,3,FALSE),"") ->  | AE40: =IFERROR(VLOOKUP(VALUE($A40),'FIAG7-RAll'!$B$2:$AC$500,3,FALSE),"") ->  | AF40: =IFERROR(VLOOKUP(VALUE($A40),'FIAG8-RAll'!$B$2:$AC$500,3,FALSE),"") ->  | AG40: =IFERROR(VLOOKUP(VALUE($A40),'FIAG9-RAll'!$B$2:$AC$500,3,FALSE),"") -> 686 | AH40: =IFERROR(VLOOKUP(VALUE($A40),'FIAG10-RAll'!$B$2:$AC$500,3,FALSE),"") -> 782 | AI40: =VLOOKUP(TEXT($A40,"0000"),'SchType from OADA'!$A$1:$B$679,2,FALSE) -> 4 | AJ40: N-ETO | AK40: SS | AL40: H
A41: 7241 | B41: =VLOOKUP($A41,SchList!$A$2:$E$476,5,FALSE) -> 4 | C41: =VLOOKUP(A41,SchList!$A$2:$G$476,7,FALSE) -> SS-1 | D41: =VLOOKUP(A41,SchList!$A$2:$G$476,6,FALSE) ->  | E41: =VLOOKUP($A41,SchList!$A$2:$B$476,2,FALSE) -> RONALD W REAGAN/DORAL SENIOR | F41: =IF(VLOOKUP(TEXT($A41,"0000"),'2013 SG'!$D$2:$BE$500,29,FALSE)="Yes",VLOOKUP(TEXT($A41,"0000"),'2013 SG'!$D$2:$BE$500,30,FALSE)&VLOOKUP(TEXT($A41,"0000"),'2013 SG'!$D$2:$BE$500,54,FALSE),VLOOKUP(TEXT($A41,"0000"),'2013 SG'!$D$2:$BE$500,30,FALSE)) -> Pending | G41: 39 | H41: 62.30847804 | I41: 979 | J41: 610 | K41: =IFERROR(VLOOKUP(VALUE($A41),'FIAG3-RAll'!$B$2:$AC$500,12,FALSE)*100,"") ->  | L41: =IFERROR(VLOOKUP(VALUE($A41),'FIAG4-RAll'!$B$2:$AC$500,12,FALSE)*100,"") ->  | M41: =IFERROR(VLOOKUP(VALUE($A41),'FIAG5-RAll'!$B$2:$AC$500,12,FALSE)*100,"") ->  | N41: =IFERROR(VLOOKUP(VALUE($A41),'FIAG6-RAll'!$B$2:$AC$500,12,FALSE)*100,"") ->  | O41: =IFERROR(VLOOKUP(VALUE($A41),'FIAG7-RAll'!$B$2:$AC$500,12,FALSE)*100,"") ->  | P41: =IFERROR(VLOOKUP(VALUE($A41),'FIAG8-RAll'!$B$2:$AC$500,12,FALSE)*100,"") ->  | Q41: =IFERROR(VLOOKUP(VALUE($A41),'FIAG9-RAll'!$B$2:$AC$500,12,FALSE)*100,"") -> 63 | R41: =IFERROR(VLOOKUP(VALUE($A41),'FIAG10-RAll'!$B$2:$AC$500,12,FALSE)*100,"") -> 62 | S41: =IFERROR(VLOOKUP(VALUE($A41),'FIAG3-RAll'!$B$2:$AC$500,9,FALSE),"") ->  | T41: =IFERROR(VLOOKUP(VALUE($A41),'FIAG4-RAll'!$B$2:$AC$500,9,FALSE),"") ->  | U41: =IFERROR(VLOOKUP(VALUE($A41),'FIAG5-RAll'!$B$2:$AC$500,9,FALSE),"") ->  | V41: =IFERROR(VLOOKUP(VALUE($A41),'FIAG6-RAll'!$B$2:$AC$500,9,FALSE),"") ->  | W41: =IFERROR(VLOOKUP(VALUE($A41),'FIAG7-RAll'!$B$2:$AC$500,9,FALSE),"") ->  | X41: =IFERROR(VLOOKUP(VALUE($A41),'FIAG8-RAll'!$B$2:$AC$500,9,FALSE),"") ->  | Y41: =IFERROR(VLOOKUP(VALUE($A41),'FIAG9-RAll'!$B$2:$AC$500,9,FALSE),"") -> 305 | Z41: =IFERROR(VLOOKUP(VALUE($A41),'FIAG10-RAll'!$B$2:$AC$500,9,FALSE),"") -> 305 | AA41: =IFERROR(VLOOKUP(VALUE($A41),'FIAG3-RAll'!$B$2:$AC$500,3,FALSE),"") ->  | AB41: =IFERROR(VLOOKUP(VALUE($A41),'FIAG4-RAll'!$B$2:$AC$500,3,FALSE),"") ->  | AC41: =IFERROR(VLOOKUP(VALUE($A41),'FIAG5-RAll'!$B$2:$AC$500,3,FALSE),"") ->  | AD41: =IFERROR(VLOOKUP(VALUE($A41),'FIAG6-RAll'!$B$2:$AC$500,3,FALSE),"") ->  | AE41: =IFERROR(VLOOKUP(VALUE($A41),'FIAG7-RAll'!$B$2:$AC$500,3,FALSE),"") ->  | AF41: =IFERROR(VLOOKUP(VALUE($A41),'FIAG8-RAll'!$B$2:$AC$500,3,FALSE),"") ->  | AG41: =IFERROR(VLOOKUP(VALUE($A41),'FIAG9-RAll'!$B$2:$AC$500,3,FALSE),"") -> 485 | AH41: =IFERROR(VLOOKUP(VALUE($A41),'FIAG10-RAll'!$B$2:$AC$500,3,FALSE),"") -> 494 | AI41: =VLOOKUP(TEXT($A41,"0000"),'SchType from OADA'!$A$1:$B$679,2,FALSE) -> 4 | AJ41: N-ETO | AK41: SS | AL41: H
A42: 7431 | B42: =VLOOKUP($A42,SchList!$A$2:$E$476,5,FALSE) -> 5 | C42: =VLOOKUP(A42,SchList!$A$2:$G$476,7,FALSE) -> SS-0 | D42: =VLOOKUP(A42,SchList!$A$2:$G$476,6,FALSE) ->  | E42: =VLOOKUP($A42,SchList!$A$2:$B$476,2,FALSE) -> MIAMI PALMETTO SENIOR HIGH | F42: =IF(VLOOKUP(TEXT($A42,"0000"),'2013 SG'!$D$2:$BE$500,29,FALSE)="Yes",VLOOKUP(TEXT($A42,"0000"),'2013 SG'!$D$2:$BE$500,30,FALSE)&VLOOKUP(TEXT($A42,"0000"),'2013 SG'!$D$2:$BE$500,54,FALSE),VLOOKUP(TEXT($A42,"0000"),'2013 SG'!$D$2:$BE$500,30,FALSE)) -> Pending | G42: 38 | H42: 62.08835341 | I42: 1245 | J42: 773 | K42: =IFERROR(VLOOKUP(VALUE($A42),'FIAG3-RAll'!$B$2:$AC$500,12,FALSE)*100,"") ->  | L42: =IFERROR(VLOOKUP(VALUE($A42),'FIAG4-RAll'!$B$2:$AC$500,12,FALSE)*100,"") ->  | M42: =IFERROR(VLOOKUP(VALUE($A42),'FIAG5-RAll'!$B$2:$AC$500,12,FALSE)*100,"") ->  | N42: =IFERROR(VLOOKUP(VALUE($A42),'FIAG6-RAll'!$B$2:$AC$500,12,FALSE)*100,"") ->  | O42: =IFERROR(VLOOKUP(VALUE($A42),'FIAG7-RAll'!$B$2:$AC$500,12,FALSE)*100,"") ->  | P42: =IFERROR(VLOOKUP(VALUE($A42),'FIAG8-RAll'!$B$2:$AC$500,12,FALSE)*100,"") -> 50 | Q42: =IFERROR(VLOOKUP(VALUE($A42),'FIAG9-RAll'!$B$2:$AC$500,12,FALSE)*100,"") -> 61 | R42: =IFERROR(VLOOKUP(VALUE($A42),'FIAG10-RAll'!$B$2:$AC$500,12,FALSE)*100,"") -> 63 | S42: =IFERROR(VLOOKUP(VALUE($A42),'FIAG3-RAll'!$B$2:$AC$500,9,FALSE),"") ->  | T42: =IFERROR(VLOOKUP(VALUE($A42),'FIAG4-RAll'!$B$2:$AC$500,9,FALSE),"") ->  | U42: =IFERROR(VLOOKUP(VALUE($A42),'FIAG5-RAll'!$B$2:$AC$500,9,FALSE),"") ->  | V42: =IFERROR(VLOOKUP(VALUE($A42),'FIAG6-RAll'!$B$2:$AC$500,9,FALSE),"") ->  | W42: =IFERROR(VLOOKUP(VALUE($A42),'FIAG7-RAll'!$B$2:$AC$500,9,FALSE),"") ->  | X42: =IFERROR(VLOOKUP(VALUE($A42),'FIAG8-RAll'!$B$2:$AC$500,9,FALSE),"") -> 1 | Y42: =IFERROR(VLOOKUP(VALUE($A42),'FIAG9-RAll'!$B$2:$AC$500,9,FALSE),"") -> 367 | Z42: =IFERROR(VLOOKUP(VALUE($A42),'FIAG10-RAll'!$B$2:$AC$500,9,FALSE),"") -> 405 | AA42: =IFERROR(VLOOKUP(VALUE($A42),'FIAG3-RAll'!$B$2:$AC$500,3,FALSE),"") ->  | AB42: =IFERROR(VLOOKUP(VALUE($A42),'FIAG4-RAll'!$B$2:$AC$500,3,FALSE),"") ->  | AC42: =IFERROR(VLOOKUP(VALUE($A42),'FIAG5-RAll'!$B$2:$AC$500,3,FALSE),"") ->  | AD42: =IFERROR(VLOOKUP(VALUE($A42),'FIAG6-RAll'!$B$2:$AC$500,3,FALSE),"") ->  | AE42: =IFERROR(VLOOKUP(VALUE($A42),'FIAG7-RAll'!$B$2:$AC$500,3,FALSE),"") ->  | AF42: =IFERROR(VLOOKUP(VALUE($A42),'FIAG8-RAll'!$B$2:$AC$500,3,FALSE),"") -> 2 | AG42: =IFERROR(VLOOKUP(VALUE($A42),'FIAG9-RAll'!$B$2:$AC$500,3,FALSE),"") -> 605 | AH42: =IFERROR(VLOOKUP(VALUE($A42),'FIAG10-RAll'!$B$2:$AC$500,3,FALSE),"") -> 638 | AI42: =VLOOKUP(TEXT($A42,"0000"),'SchType from OADA'!$A$1:$B$679,2,FALSE) -> 4 | AJ42: N-ETO | AK42: N-SS | AL42: H
A43: 7391 | B43: =VLOOKUP($A43,SchList!$A$2:$E$476,5,FALSE) -> 1 | C43: =VLOOKUP(A43,SchList!$A$2:$G$476,7,FALSE) -> SS-0 | D43: =VLOOKUP(A43,SchList!$A$2:$G$476,6,FALSE) ->  | E43: =VLOOKUP($A43,SchList!$A$2:$B$476,2,FALSE) -> MIAMI LAKES EDUCATIONAL CENTER | F43: =IF(VLOOKUP(TEXT($A43,"0000"),'2013 SG'!$D$2:$BE$500,29,FALSE)="Yes",VLOOKUP(TEXT($A43,"0000"),'2013 SG'!$D$2:$BE$500,30,FALSE)&VLOOKUP(TEXT($A43,"0000"),'2013 SG'!$D$2:$BE$500,54,FALSE),VLOOKUP(TEXT($A43,"0000"),'2013 SG'!$D$2:$BE$500,30,FALSE)) -> Pending | G43: 40 | H43: 70.24901704 | I43: 763 | J43: 536 | K43: =IFERROR(VLOOKUP(VALUE($A43),'FIAG3-RAll'!$B$2:$AC$500,12,FALSE)*100,"") ->  | L43: =IFERROR(VLOOKUP(VALUE($A43),'FIAG4-RAll'!$B$2:$AC$500,12,FALSE)*100,"") ->  | M43: =IFERROR(VLOOKUP(VALUE($A43),'FIAG5-RAll'!$B$2:$AC$500,12,FALSE)*100,"") ->  | N43: =IFERROR(VLOOKUP(VALUE($A43),'FIAG6-RAll'!$B$2:$AC$500,12,FALSE)*100,"") ->  | O43: =IFERROR(VLOOKUP(VALUE($A43),'FIAG7-RAll'!$B$2:$AC$500,12,FALSE)*100,"") ->  | P43: =IFERROR(VLOOKUP(VALUE($A43),'FIAG8-RAll'!$B$2:$AC$500,12,FALSE)*100,"") ->  | Q43: =IFERROR(VLOOKUP(VALUE($A43),'FIAG9-RAll'!$B$2:$AC$500,12,FALSE)*100,"") -> 69 | R43: =IFERROR(VLOOKUP(VALUE($A43),'FIAG10-RAll'!$B$2:$AC$500,12,FALSE)*100,"") -> 72 | S43: =IFERROR(VLOOKUP(VALUE($A43),'FIAG3-RAll'!$B$2:$AC$500,9,FALSE),"") ->  | T43: =IFERROR(VLOOKUP(VALUE($A43),'FIAG4-RAll'!$B$2:$AC$500,9,FALSE),"") ->  | U43: =IFERROR(VLOOKUP(VALUE($A43),'FIAG5-RAll'!$B$2:$AC$500,9,FALSE),"") ->  | V43: =IFERROR(VLOOKUP(VALUE($A43),'FIAG6-RAll'!$B$2:$AC$500,9,FALSE),"") ->  | W43: =IFERROR(VLOOKUP(VALUE($A43),'FIAG7-RAll'!$B$2:$AC$500,9,FALSE),"") ->  | X43: =IFERROR(VLOOKUP(VALUE($A43),'FIAG8-RAll'!$B$2:$AC$500,9,FALSE),"") ->  | Y43: =IFERROR(VLOOKUP(VALUE($A43),'FIAG9-RAll'!$B$2:$AC$500,9,FALSE),"") -> 265 | Z43: =IFERROR(VLOOKUP(VALUE($A43),'FIAG10-RAll'!$B$2:$AC$500,9,FALSE),"") -> 271 | AA43: =IFERROR(VLOOKUP(VALUE($A43),'FIAG3-RAll'!$B$2:$AC$500,3,FALSE),"") ->  | AB43: =IFERROR(VLOOKUP(VALUE($A43),'FIAG4-RAll'!$B$2:$AC$500,3,FALSE),"") ->  | AC43: =IFERROR(VLOOKUP(VALUE($A43),'FIAG5-RAll'!$B$2:$AC$500,3,FALSE),"") ->  | AD43: =IFERROR(VLOOKUP(VALUE($A43),'FIAG6-RAll'!$B$2:$AC$500,3,FALSE),"") ->  | AE43: =IFERROR(VLOOKUP(VALUE($A43),'FIAG7-RAll'!$B$2:$AC$500,3,FALSE),"") ->  | AF43: =IFERROR(VLOOKUP(VALUE($A43),'FIAG8-RAll'!$B$2:$AC$500,3,FALSE),"") ->  | AG43: =IFERROR(VLOOKUP(VALUE($A43),'FIAG9-RAll'!$B$2:$AC$500,3,FALSE),"") -> 385 | AH43: =IFERROR(VLOOKUP(VALUE($A43),'FIAG10-RAll'!$B$2:$AC$500,3,FALSE),"") -> 378 | AI43: =VLOOKUP(TEXT($A43,"0000"),'SchType from OADA'!$A$1:$B$679,2,FALSE) -> 4 | AJ43: N-ETO | AK43: N-SS | AL43: H
A44: 7601 | B44: =VLOOKUP($A44,SchList!$A$2:$E$476,5,FALSE) -> 4 | C44: =VLOOKUP(A44,SchList!$A$2:$G$476,7,FALSE) -> SS-1 | D44: =VLOOKUP(A44,SchList!$A$2:$G$476,6,FALSE) ->  | E44: =VLOOKUP($A44,SchList!$A$2:$B$476,2,FALSE) -> WILLIAM H. TURNER TECHNICAL | F44: =IF(VLOOKUP(TEXT($A44,"0000"),'2013 SG'!$D$2:$BE$500,29,FALSE)="Yes",VLOOKUP(TEXT($A44,"0000"),'2013 SG'!$D$2:$BE$500,30,FALSE)&VLOOKUP(TEXT($A44,"0000"),'2013 SG'!$D$2:$BE$500,54,FALSE),VLOOKUP(TEXT($A44,"0000"),'2013 SG'!$D$2:$BE$500,30,FALSE)) -> Pending | G44: 41 | H44: 70.67938021 | I44: 839 | J44: 593 | K44: =IFERROR(VLOOKUP(VALUE($A44),'FIAG3-RAll'!$B$2:$AC$500,12,FALSE)*100,"") ->  | L44: =IFERROR(VLOOKUP(VALUE($A44),'FIAG4-RAll'!$B$2:$AC$500,12,FALSE)*100,"") ->  | M44: =IFERROR(VLOOKUP(VALUE($A44),'FIAG5-RAll'!$B$2:$AC$500,12,FALSE)*100,"") ->  | N44: =IFERROR(VLOOKUP(VALUE($A44),'FIAG6-RAll'!$B$2:$AC$500,12,FALSE)*100,"") ->  | O44: =IFERROR(VLOOKUP(VALUE($A44),'FIAG7-RAll'!$B$2:$AC$500,12,FALSE)*100,"") ->  | P44: =IFERROR(VLOOKUP(VALUE($A44),'FIAG8-RAll'!$B$2:$AC$500,12,FALSE)*100,"") ->  | Q44: =IFERROR(VLOOKUP(VALUE($A44),'FIAG9-RAll'!$B$2:$AC$500,12,FALSE)*100,"") -> 75 | R44: =IFERROR(VLOOKUP(VALUE($A44),'FIAG10-RAll'!$B$2:$AC$500,12,FALSE)*100,"") -> 66 | S44: =IFERROR(VLOOKUP(VALUE($A44),'FIAG3-RAll'!$B$2:$AC$500,9,FALSE),"") ->  | T44: =IFERROR(VLOOKUP(VALUE($A44),'FIAG4-RAll'!$B$2:$AC$500,9,FALSE),"") ->  | U44: =IFERROR(VLOOKUP(VALUE($A44),'FIAG5-RAll'!$B$2:$AC$500,9,FALSE),"") ->  | V44: =IFERROR(VLOOKUP(VALUE($A44),'FIAG6-RAll'!$B$2:$AC$500,9,FALSE),"") ->  | W44: =IFERROR(VLOOKUP(VALUE($A44),'FIAG7-RAll'!$B$2:$AC$500,9,FALSE),"") ->  | X44: =IFERROR(VLOOKUP(VALUE($A44),'FIAG8-RAll'!$B$2:$AC$500,9,FALSE),"") ->  | Y44: =IFERROR(VLOOKUP(VALUE($A44),'FIAG9-RAll'!$B$2:$AC$500,9,FALSE),"") -> 309 | Z44: =IFERROR(VLOOKUP(VALUE($A44),'FIAG10-RAll'!$B$2:$AC$500,9,FALSE),"") -> 284 | AA44: =IFERROR(VLOOKUP(VALUE($A44),'FIAG3-RAll'!$B$2:$AC$500,3,FALSE),"") ->  | AB44: =IFERROR(VLOOKUP(VALUE($A44),'FIAG4-RAll'!$B$2:$AC$500,3,FALSE),"") ->  | AC44: =IFERROR(VLOOKUP(VALUE($A44),'FIAG5-RAll'!$B$2:$AC$500,3,FALSE),"") ->  | AD44: =IFERROR(VLOOKUP(VALUE($A44),'FIAG6-RAll'!$B$2:$AC$500,3,FALSE),"") ->  | AE44: =IFERROR(VLOOKUP(VALUE($A44),'FIAG7-RAll'!$B$2:$AC$500,3,FALSE),"") ->  | AF44: =IFERROR(VLOOKUP(VALUE($A44),'FIAG8-RAll'!$B$2:$AC$500,3,FALSE),"") ->  | AG44: =IFERROR(VLOOKUP(VALUE($A44),'FIAG9-RAll'!$B$2:$AC$500,3,FALSE),"") -> 411 | AH44: =IFERROR(VLOOKUP(VALUE($A44),'FIAG10-RAll'!$B$2:$AC$500,3,FALSE),"") -> 428 | AI44: =VLOOKUP(TEXT($A44,"0000"),'SchType from OADA'!$A$1:$B$679,2,FALSE) -> 4 | AJ44: N-ETO | AK44: SS | AL44: H
A45: 7571 | B45: =VLOOKUP($A45,SchList!$A$2:$E$476,5,FALSE) -> 4 | C45: =VLOOKUP(A45,SchList!$A$2:$G$476,7,FALSE) -> SS-0 | D45: =VLOOKUP(A45,SchList!$A$2:$G$476,6,FALSE) ->  | E45: =VLOOKUP($A45,SchList!$A$2:$B$476,2,FALSE) -> INTL STUDIES PREP ACADEMY | F45: =IF(VLOOKUP(TEXT($A45,"0000"),'2013 SG'!$D$2:$BE$500,29,FALSE)="Yes",VLOOKUP(TEXT($A45,"0000"),'2013 SG'!$D$2:$BE$500,30,FALSE)&VLOOKUP(TEXT($A45,"0000"),'2013 SG'!$D$2:$BE$500,54,FALSE),VLOOKUP(TEXT($A45,"0000"),'2013 SG'!$D$2:$BE$500,30,FALSE)) -> A | G45: 42 | H45: 78.68852459 | I45: 183 | J45: 144 | K45: =IFERROR(VLOOKUP(VALUE($A45),'FIAG3-RAll'!$B$2:$AC$500,12,FALSE)*100,"") ->  | L45: =IFERROR(VLOOKUP(VALUE($A45),'FIAG4-RAll'!$B$2:$AC$500,12,FALSE)*100,"") ->  | M45: =IFERROR(VLOOKUP(VALUE($A45),'FIAG5-RAll'!$B$2:$AC$500,12,FALSE)*100,"") ->  | N45: =IFERROR(VLOOKUP(VALUE($A45),'FIAG6-RAll'!$B$2:$AC$500,12,FALSE)*100,"") ->  | O45: =IFERROR(VLOOKUP(VALUE($A45),'FIAG7-RAll'!$B$2:$AC$500,12,FALSE)*100,"") ->  | P45: =IFERROR(VLOOKUP(VALUE($A45),'FIAG8-RAll'!$B$2:$AC$500,12,FALSE)*100,"") ->  | Q45: =IFERROR(VLOOKUP(VALUE($A45),'FIAG9-RAll'!$B$2:$AC$500,12,FALSE)*100,"") -> 85 | R45: =IFERROR(VLOOKUP(VALUE($A45),'FIAG10-RAll'!$B$2:$AC$500,12,FALSE)*100,"") -> 72 | S45: =IFERROR(VLOOKUP(VALUE($A45),'FIAG3-RAll'!$B$2:$AC$500,9,FALSE),"") ->  | T45: =IFERROR(VLOOKUP(VALUE($A45),'FIAG4-RAll'!$B$2:$AC$500,9,FALSE),"") ->  | U45: =IFERROR(VLOOKUP(VALUE($A45),'FIAG5-RAll'!$B$2:$AC$500,9,FALSE),"") ->  | V45: =IFERROR(VLOOKUP(VALUE($A45),'FIAG6-RAll'!$B$2:$AC$500,9,FALSE),"") ->  | W45: =IFERROR(VLOOKUP(VALUE($A45),'FIAG7-RAll'!$B$2:$AC$500,9,FALSE),"") ->  | X45: =IFERROR(VLOOKUP(VALUE($A45),'FIAG8-RAll'!$B$2:$AC$500,9,FALSE),"") ->  | Y45: =IFERROR(VLOOKUP(VALUE($A45),'FIAG9-RAll'!$B$2:$AC$500,9,FALSE),"") -> 76 | Z45: =IFERROR(VLOOKUP(VALUE($A45),'FIAG10-RAll'!$B$2:$AC$500,9,FALSE),"") -> 68 | AA45: =IFERROR(VLOOKUP(VALUE($A45),'FIAG3-RAll'!$B$2:$AC$500,3,FALSE),"") ->  | AB45: =IFERROR(VLOOKUP(VALUE($A45),'FIAG4-RAll'!$B$2:$AC$500,3,FALSE),"") ->  | AC45: =IFERROR(VLOOKUP(VALUE($A45),'FIAG5-RAll'!$B$2:$AC$500,3,FALSE),"") ->  | AD45: =IFERROR(VLOOKUP(VALUE($A45),'FIAG6-RAll'!$B$2:$AC$500,3,FALSE),"") ->  | AE45: =IFERROR(VLOOKUP(VALUE($A45),'FIAG7-RAll'!$B$2:$AC$500,3,FALSE),"") ->  | AF45: =IFERROR(VLOOKUP(VALUE($A45),'FIAG8-RAll'!$B$2:$AC$500,3,FALSE),"") ->  | AG45: =IFERROR(VLOOKUP(VALUE($A45),'FIAG9-RAll'!$B$2:$AC$500,3,FALSE),"") -> 89 | AH45: =IFERROR(VLOOKUP(VALUE($A45),'FIAG10-RAll'!$B$2:$AC$500,3,FALSE),"") -> 94 | AI45: =VLOOKUP(TEXT($A45,"0000"),'SchType from OADA'!$A$1:$B$679,2,FALSE) -> 4 | AJ45: N-ETO | AK45: N-SS | AL45: H
A46: 7033 | B46: =VLOOKUP($A46,SchList!$A$2:$E$476,5,FALSE) -> 4 | C46: =VLOOKUP(A46,SchList!$A$2:$G$476,7,FALSE) -> SS-0 | D46: =VLOOKUP(A46,SchList!$A$2:$G$476,6,FALSE) ->  | E46: =VLOOKUP($A46,SchList!$A$2:$B$476,2,FALSE) -> LAW ENFORCEMENT OFFICERS HS | F46: =IF(VLOOKUP(TEXT($A46,"0000"),'2013 SG'!$D$2:$BE$500,29,FALSE)="Yes",VLOOKUP(TEXT($A46,"0000"),'2013 SG'!$D$2:$BE$500,30,FALSE)&VLOOKUP(TEXT($A46,"0000"),'2013 SG'!$D$2:$BE$500,54,FALSE),VLOOKUP(TEXT($A46,"0000"),'2013 SG'!$D$2:$BE$500,30,FALSE)) -> Pending | G46: 43 | H46: 79.31034483 | I46: 174 | J46: 138 | K46: =IFERROR(VLOOKUP(VALUE($A46),'FIAG3-RAll'!$B$2:$AC$500,12,FALSE)*100,"") ->  | L46: =IFERROR(VLOOKUP(VALUE($A46),'FIAG4-RAll'!$B$2:$AC$500,12,FALSE)*100,"") ->  | M46: =IFERROR(VLOOKUP(VALUE($A46),'FIAG5-RAll'!$B$2:$AC$500,12,FALSE)*100,"") ->  | N46: =IFERROR(VLOOKUP(VALUE($A46),'FIAG6-RAll'!$B$2:$AC$500,12,FALSE)*100,"") ->  | O46: =IFERROR(VLOOKUP(VALUE($A46),'FIAG7-RAll'!$B$2:$AC$500,12,FALSE)*100,"") ->  | P46: =IFERROR(VLOOKUP(VALUE($A46),'FIAG8-RAll'!$B$2:$AC$500,12,FALSE)*100,"") ->  | Q46: =IFERROR(VLOOKUP(VALUE($A46),'FIAG9-RAll'!$B$2:$AC$500,12,FALSE)*100,"") -> 72 | R46: =IFERROR(VLOOKUP(VALUE($A46),'FIAG10-RAll'!$B$2:$AC$500,12,FALSE)*100,"") -> 90 | S46: =IFERROR(VLOOKUP(VALUE($A46),'FIAG3-RAll'!$B$2:$AC$500,9,FALSE),"") ->  | T46: =IFERROR(VLOOKUP(VALUE($A46),'FIAG4-RAll'!$B$2:$AC$500,9,FALSE),"") ->  | U46: =IFERROR(VLOOKUP(VALUE($A46),'FIAG5-RAll'!$B$2:$AC$500,9,FALSE),"") ->  | V46: =IFERROR(VLOOKUP(VALUE($A46),'FIAG6-RAll'!$B$2:$AC$500,9,FALSE),"") ->  | W46: =IFERROR(VLOOKUP(VALUE($A46),'FIAG7-RAll'!$B$2:$AC$500,9,FALSE),"") ->  | X46: =IFERROR(VLOOKUP(VALUE($A46),'FIAG8-RAll'!$B$2:$AC$500,9,FALSE),"") ->  | Y46: =IFERROR(VLOOKUP(VALUE($A46),'FIAG9-RAll'!$B$2:$AC$500,9,FALSE),"") -> 75 | Z46: =IFERROR(VLOOKUP(VALUE($A46),'FIAG10-RAll'!$B$2:$AC$500,9,FALSE),"") -> 63 | AA46: =IFERROR(VLOOKUP(VALUE($A46),'FIAG3-RAll'!$B$2:$AC$500,3,FALSE),"") ->  | AB46: =IFERROR(VLOOKUP(VALUE($A46),'FIAG4-RAll'!$B$2:$AC$500,3,FALSE),"") ->  | AC46: =IFERROR(VLOOKUP(VALUE($A46),'FIAG5-RAll'!$B$2:$AC$500,3,FALSE),"") ->  | AD46: =IFERROR(VLOOKUP(VALUE($A46),'FIAG6-RAll'!$B$2:$AC$500,3,FALSE),"") ->  | AE46: =IFERROR(VLOOKUP(VALUE($A46),'FIAG7-RAll'!$B$2:$AC$500,3,FALSE),"") ->  | AF46: =IFERROR(VLOOKUP(VALUE($A46),'FIAG8-RAll'!$B$2:$AC$500,3,FALSE),"") ->  | AG46: =IFERROR(VLOOKUP(VALUE($A46),'FIAG9-RAll'!$B$2:$AC$500,3,FALSE),"") -> 104 | AH46: =IFERROR(VLOOKUP(VALUE($A46),'FIAG10-RAll'!$B$2:$AC$500,3,FALSE),"") -> 70 | AI46: =VLOOKUP(TEXT($A46,"0000"),'SchType from OADA'!$A$1:$B$679,2,FALSE) -> 4 | AJ46: N-ETO | AK46: N-SS | AL46: H
A47: 7101 | B47: =VLOOKUP($A47,SchList!$A$2:$E$476,5,FALSE) -> 5 | C47: =VLOOKUP(A47,SchList!$A$2:$G$476,7,FALSE) -> SS-0 | D47: =VLOOKUP(A47,SchList!$A$2:$G$476,6,FALSE) ->  | E47: =VLOOKUP($A47,SchList!$A$2:$B$476,2,FALSE) -> CORAL REEF SENIOR HIGH | F47: =IF(VLOOKUP(TEXT($A47,"0000"),'2013 SG'!$D$2:$BE$500,29,FALSE)="Yes",VLOOKUP(TEXT($A47,"0000"),'2013 SG'!$D$2:$BE$500,30,FALSE)&VLOOKUP(TEXT($A47,"0000"),'2013 SG'!$D$2:$BE$500,54,FALSE),VLOOKUP(TEXT($A47,"0000"),'2013 SG'!$D$2:$BE$500,30,FALSE)) -> Pending | G47: 44 | H47: 85.03067485 | I47: 1630 | J47: 1386 | K47: =IFERROR(VLOOKUP(VALUE($A47),'FIAG3-RAll'!$B$2:$AC$500,12,FALSE)*100,"") ->  | L47: =IFERROR(VLOOKUP(VALUE($A47),'FIAG4-RAll'!$B$2:$AC$500,12,FALSE)*100,"") ->  | M47: =IFERROR(VLOOKUP(VALUE($A47),'FIAG5-RAll'!$B$2:$AC$500,12,FALSE)*100,"") ->  | N47: =IFERROR(VLOOKUP(VALUE($A47),'FIAG6-RAll'!$B$2:$AC$500,12,FALSE)*100,"") ->  | O47: =IFERROR(VLOOKUP(VALUE($A47),'FIAG7-RAll'!$B$2:$AC$500,12,FALSE)*100,"") ->  | P47: =IFERROR(VLOOKUP(VALUE($A47),'FIAG8-RAll'!$B$2:$AC$500,12,FALSE)*100,"") ->  | Q47: =IFERROR(VLOOKUP(VALUE($A47),'FIAG9-RAll'!$B$2:$AC$500,12,FALSE)*100,"") -> 85 | R47: =IFERROR(VLOOKUP(VALUE($A47),'FIAG10-RAll'!$B$2:$AC$500,12,FALSE)*100,"") -> 85 | S47: =IFERROR(VLOOKUP(VALUE($A47),'FIAG3-RAll'!$B$2:$AC$500,9,FALSE),"") ->  | T47: =IFERROR(VLOOKUP(VALUE($A47),'FIAG4-RAll'!$B$2:$AC$500,9,FALSE),"") ->  | U47: =IFERROR(VLOOKUP(VALUE($A47),'FIAG5-RAll'!$B$2:$AC$500,9,FALSE),"") ->  | V47: =IFERROR(VLOOKUP(VALUE($A47),'FIAG6-RAll'!$B$2:$AC$500,9,FALSE),"") ->  | W47: =IFERROR(VLOOKUP(VALUE($A47),'FIAG7-RAll'!$B$2:$AC$500,9,FALSE),"") ->  | X47: =IFERROR(VLOOKUP(VALUE($A47),'FIAG8-RAll'!$B$2:$AC$500,9,FALSE),"") ->  | Y47: =IFERROR(VLOOKUP(VALUE($A47),'FIAG9-RAll'!$B$2:$AC$500,9,FALSE),"") -> 731 | Z47: =IFERROR(VLOOKUP(VALUE($A47),'FIAG10-RAll'!$B$2:$AC$500,9,FALSE),"") -> 655 | AA47: =IFERROR(VLOOKUP(VALUE($A47),'FIAG3-RAll'!$B$2:$AC$500,3,FALSE),"") ->  | AB47: =IFERROR(VLOOKUP(VALUE($A47),'FIAG4-RAll'!$B$2:$AC$500,3,FALSE),"") ->  | AC47: =IFERROR(VLOOKUP(VALUE($A47),'FIAG5-RAll'!$B$2:$AC$500,3,FALSE),"") ->  | AD47: =IFERROR(VLOOKUP(VALUE($A47),'FIAG6-RAll'!$B$2:$AC$500,3,FALSE),"") ->  | AE47: =IFERROR(VLOOKUP(VALUE($A47),'FIAG7-RAll'!$B$2:$AC$500,3,FALSE),"") ->  | AF47: =IFERROR(VLOOKUP(VALUE($A47),'FIAG8-RAll'!$B$2:$AC$500,3,FALSE),"") ->  | AG47: =IFERROR(VLOOKUP(VALUE($A47),'FIAG9-RAll'!$B$2:$AC$500,3,FALSE),"") -> 861 | AH47: =IFERROR(VLOOKUP(VALUE($A47),'FIAG10-RAll'!$B$2:$AC$500,3,FALSE),"") -> 769 | AI47: =VLOOKUP(TEXT($A47,"0000"),'SchType from OADA'!$A$1:$B$679,2,FALSE) -> 4 | AJ47: N-ETO | AK47: N-SS | AL47: H
A48: 7901 | B48: =VLOOKUP($A48,SchList!$A$2:$E$476,5,FALSE) -> 4 | C48: =VLOOKUP(A48,SchList!$A$2:$G$476,7,FALSE) -> SS-0 | D48: =VLOOKUP(A48,SchList!$A$2:$G$476,6,FALSE) ->  | E48: =VLOOKUP($A48,SchList!$A$2:$B$476,2,FALSE) -> NEW WORLD SCHOOL OF THE ARTS | F48: =IF(VLOOKUP(TEXT($A48,"0000"),'2013 SG'!$D$2:$BE$500,29,FALSE)="Yes",VLOOKUP(TEXT($A48,"0000"),'2013 SG'!$D$2:$BE$500,30,FALSE)&VLOOKUP(TEXT($A48,"0000"),'2013 SG'!$D$2:$BE$500,54,FALSE),VLOOKUP(TEXT($A48,"0000"),'2013 SG'!$D$2:$BE$500,30,FALSE)) -> Pending | G48: 45 | H48: 85.65737052 | I48: 251 | J48: 215 | K48: =IFERROR(VLOOKUP(VALUE($A48),'FIAG3-RAll'!$B$2:$AC$500,12,FALSE)*100,"") ->  | L48: =IFERROR(VLOOKUP(VALUE($A48),'FIAG4-RAll'!$B$2:$AC$500,12,FALSE)*100,"") ->  | M48: =IFERROR(VLOOKUP(VALUE($A48),'FIAG5-RAll'!$B$2:$AC$500,12,FALSE)*100,"") ->  | N48: =IFERROR(VLOOKUP(VALUE($A48),'FIAG6-RAll'!$B$2:$AC$500,12,FALSE)*100,"") ->  | O48: =IFERROR(VLOOKUP(VALUE($A48),'FIAG7-RAll'!$B$2:$AC$500,12,FALSE)*100,"") ->  | P48: =IFERROR(VLOOKUP(VALUE($A48),'FIAG8-RAll'!$B$2:$AC$500,12,FALSE)*100,"") ->  | Q48: =IFERROR(VLOOKUP(VALUE($A48),'FIAG9-RAll'!$B$2:$AC$500,12,FALSE)*100,"") -> 94 | R48: =IFERROR(VLOOKUP(VALUE($A48),'FIAG10-RAll'!$B$2:$AC$500,12,FALSE)*100,"") -> 78 | S48: =IFERROR(VLOOKUP(VALUE($A48),'FIAG3-RAll'!$B$2:$AC$500,9,FALSE),"") ->  | T48: =IFERROR(VLOOKUP(VALUE($A48),'FIAG4-RAll'!$B$2:$AC$500,9,FALSE),"") ->  | U48: =IFERROR(VLOOKUP(VALUE($A48),'FIAG5-RAll'!$B$2:$AC$500,9,FALSE),"") ->  | V48: =IFERROR(VLOOKUP(VALUE($A48),'FIAG6-RAll'!$B$2:$AC$500,9,FALSE),"") ->  | W48: =IFERROR(VLOOKUP(VALUE($A48),'FIAG7-RAll'!$B$2:$AC$500,9,FALSE),"") ->  | X48: =IFERROR(VLOOKUP(VALUE($A48),'FIAG8-RAll'!$B$2:$AC$500,9,FALSE),"") ->  | Y48: =IFERROR(VLOOKUP(VALUE($A48),'FIAG9-RAll'!$B$2:$AC$500,9,FALSE),"") -> 112 | Z48: =IFERROR(VLOOKUP(VALUE($A48),'FIAG10-RAll'!$B$2:$AC$500,9,FALSE),"") -> 103 | AA48: =IFERROR(VLOOKUP(VALUE($A48),'FIAG3-RAll'!$B$2:$AC$500,3,FALSE),"") ->  | AB48: =IFERROR(VLOOKUP(VALUE($A48),'FIAG4-RAll'!$B$2:$AC$500,3,FALSE),"") ->  | AC48: =IFERROR(VLOOKUP(VALUE($A48),'FIAG5-RAll'!$B$2:$AC$500,3,FALSE),"") ->  | AD48: =IFERROR(VLOOKUP(VALUE($A48),'FIAG6-RAll'!$B$2:$AC$500,3,FALSE),"") ->  | AE48: =IFERROR(VLOOKUP(VALUE($A48),'FIAG7-RAll'!$B$2:$AC$500,3,FALSE),"") ->  | AF48: =IFERROR(VLOOKUP(VALUE($A48),'FIAG8-RAll'!$B$2:$AC$500,3,FALSE),"") ->  | AG48: =IFERROR(VLOOKUP(VALUE($A48),'FIAG9-RAll'!$B$2:$AC$500,3,FALSE),"") -> 119 | AH48: =IFERROR(VLOOKUP(VALUE($A48),'FIAG10-RAll'!$B$2:$AC$500,3,FALSE),"") -> 132 | AI48: =VLOOKUP(TEXT($A48,"0000"),'SchType from OADA'!$A$1:$B$679,2,FALSE) -> 4 | AJ48: N-ETO | AK48: N-SS | AL48: H
A49: 7171 | B49: =VLOOKUP($A49,SchList!$A$2:$E$476,5,FALSE) -> 5 | C49: =VLOOKUP(A49,SchList!$A$2:$G$476,7,FALSE) -> SS-0 | D49: =VLOOKUP(A49,SchList!$A$2:$G$476,6,FALSE) ->  | E49: =VLOOKUP($A49,SchList!$A$2:$B$476,2,FALSE) -> MED ACAD SCIENCE & TECHNOLOGY | F49: =IF(VLOOKUP(TEXT($A49,"0000"),'2013 SG'!$D$2:$BE$500,29,FALSE)="Yes",VLOOKUP(TEXT($A49,"0000"),'2013 SG'!$D$2:$BE$500,30,FALSE)&VLOOKUP(TEXT($A49,"0000"),'2013 SG'!$D$2:$BE$500,54,FALSE),VLOOKUP(TEXT($A49,"0000"),'2013 SG'!$D$2:$BE$500,30,FALSE)) -> A | G49: 46 | H49: 86.59003831 | I49: 261 | J49: 226 | K49: =IFERROR(VLOOKUP(VALUE($A49),'FIAG3-RAll'!$B$2:$AC$500,12,FALSE)*100,"") ->  | L49: =IFERROR(VLOOKUP(VALUE($A49),'FIAG4-RAll'!$B$2:$AC$500,12,FALSE)*100,"") ->  | M49: =IFERROR(VLOOKUP(VALUE($A49),'FIAG5-RAll'!$B$2:$AC$500,12,FALSE)*100,"") ->  | N49: =IFERROR(VLOOKUP(VALUE($A49),'FIAG6-RAll'!$B$2:$AC$500,12,FALSE)*100,"") ->  | O49: =IFERROR(VLOOKUP(VALUE($A49),'FIAG7-RAll'!$B$2:$AC$500,12,FALSE)*100,"") ->  | P49: =IFERROR(VLOOKUP(VALUE($A49),'FIAG8-RAll'!$B$2:$AC$500,12,FALSE)*100,"") ->  | Q49: =IFERROR(VLOOKUP(VALUE($A49),'FIAG9-RAll'!$B$2:$AC$500,12,FALSE)*100,"") -> 87 | R49: =IFERROR(VLOOKUP(VALUE($A49),'FIAG10-RAll'!$B$2:$AC$500,12,FALSE)*100,"") -> 86 | S49: =IFERROR(VLOOKUP(VALUE($A49),'FIAG3-RAll'!$B$2:$AC$500,9,FALSE),"") ->  | T49: =IFERROR(VLOOKUP(VALUE($A49),'FIAG4-RAll'!$B$2:$AC$500,9,FALSE),"") ->  | U49: =IFERROR(VLOOKUP(VALUE($A49),'FIAG5-RAll'!$B$2:$AC$500,9,FALSE),"") ->  | V49: =IFERROR(VLOOKUP(VALUE($A49),'FIAG6-RAll'!$B$2:$AC$500,9,FALSE),"") ->  | W49: =IFERROR(VLOOKUP(VALUE($A49),'FIAG7-RAll'!$B$2:$AC$500,9,FALSE),"") ->  | X49: =IFERROR(VLOOKUP(VALUE($A49),'FIAG8-RAll'!$B$2:$AC$500,9,FALSE),"") ->  | Y49: =IFERROR(VLOOKUP(VALUE($A49),'FIAG9-RAll'!$B$2:$AC$500,9,FALSE),"") -> 99 | Z49: =IFERROR(VLOOKUP(VALUE($A49),'FIAG10-RAll'!$B$2:$AC$500,9,FALSE),"") -> 127 | AA49: =IFERROR(VLOOKUP(VALUE($A49),'FIAG3-RAll'!$B$2:$AC$500,3,FALSE),"") ->  | AB49: =IFERROR(VLOOKUP(VALUE($A49),'FIAG4-RAll'!$B$2:$AC$500,3,FALSE),"") ->  | AC49: =IFERROR(VLOOKUP(VALUE($A49),'FIAG5-RAll'!$B$2:$AC$500,3,FALSE),"") ->  | AD49: =IFERROR(VLOOKUP(VALUE($A49),'FIAG6-RAll'!$B$2:$AC$500,3,FALSE),"") ->  | AE49: =IFERROR(VLOOKUP(VALUE($A49),'FIAG7-RAll'!$B$2:$AC$500,3,FALSE),"") ->  | AF49: =IFERROR(VLOOKUP(VALUE($A49),'FIAG8-RAll'!$B$2:$AC$500,3,FALSE),"") ->  | AG49: =IFERROR(VLOOKUP(VALUE($A49),'FIAG9-RAll'!$B$2:$AC$500,3,FALSE),"") -> 114 | AH49: =IFERROR(VLOOKUP(VALUE($A49),'FIAG10-RAll'!$B$2:$AC$500,3,FALSE),"") -> 147 | AI49: =VLOOKUP(TEXT($A49,"0000"),'SchType from OADA'!$A$1:$B$679,2,FALSE) -> 4 | AJ49: N-ETO | AK49: N-SS | AL49: H
A50: 7161 | B50: =VLOOKUP($A50,SchList!$A$2:$E$476,5,FALSE) -> 4 | C50: =VLOOKUP(A50,SchList!$A$2:$G$476,7,FALSE) -> SS-0 | D50: =VLOOKUP(A50,SchList!$A$2:$G$476,6,FALSE) ->  | E50: =VLOOKUP($A50,SchList!$A$2:$B$476,2,FALSE) -> MARITIME & SCIENCE TECH ACAD | F50: =IF(VLOOKUP(TEXT($A50,"0000"),'2013 SG'!$D$2:$BE$500,29,FALSE)="Yes",VLOOKUP(TEXT($A50,"0000"),'2013 SG'!$D$2:$BE$500,30,FALSE)&VLOOKUP(TEXT($A50,"0000"),'2013 SG'!$D$2:$BE$500,54,FALSE),VLOOKUP(TEXT($A50,"0000"),'2013 SG'!$D$2:$BE$500,30,FALSE)) -> Pending | G50: 48 | H50: 88.82978723 | I50: 564 | J50: 501 | K50: =IFERROR(VLOOKUP(VALUE($A50),'FIAG3-RAll'!$B$2:$AC$500,12,FALSE)*100,"") ->  | L50: =IFERROR(VLOOKUP(VALUE($A50),'FIAG4-RAll'!$B$2:$AC$500,12,FALSE)*100,"") ->  | M50: =IFERROR(VLOOKUP(VALUE($A50),'FIAG5-RAll'!$B$2:$AC$500,12,FALSE)*100,"") ->  | N50: =IFERROR(VLOOKUP(VALUE($A50),'FIAG6-RAll'!$B$2:$AC$500,12,FALSE)*100,"") ->  | O50: =IFERROR(VLOOKUP(VALUE($A50),'FIAG7-RAll'!$B$2:$AC$500,12,FALSE)*100,"") ->  | P50: =IFERROR(VLOOKUP(VALUE($A50),'FIAG8-RAll'!$B$2:$AC$500,12,FALSE)*100,"") -> 86 | Q50: =IFERROR(VLOOKUP(VALUE($A50),'FIAG9-RAll'!$B$2:$AC$500,12,FALSE)*100,"") -> 88 | R50: =IFERROR(VLOOKUP(VALUE($A50),'FIAG10-RAll'!$B$2:$AC$500,12,FALSE)*100,"") -> 91 | S50: =IFERROR(VLOOKUP(VALUE($A50),'FIAG3-RAll'!$B$2:$AC$500,9,FALSE),"") ->  | T50: =IFERROR(VLOOKUP(VALUE($A50),'FIAG4-RAll'!$B$2:$AC$500,9,FALSE),"") ->  | U50: =IFERROR(VLOOKUP(VALUE($A50),'FIAG5-RAll'!$B$2:$AC$500,9,FALSE),"") ->  | V50: =IFERROR(VLOOKUP(VALUE($A50),'FIAG6-RAll'!$B$2:$AC$500,9,FALSE),"") ->  | W50: =IFERROR(VLOOKUP(VALUE($A50),'FIAG7-RAll'!$B$2:$AC$500,9,FALSE),"") ->  | X50: =IFERROR(VLOOKUP(VALUE($A50),'FIAG8-RAll'!$B$2:$AC$500,9,FALSE),"") -> 88 | Y50: =IFERROR(VLOOKUP(VALUE($A50),'FIAG9-RAll'!$B$2:$AC$500,9,FALSE),"") -> 231 | Z50: =IFERROR(VLOOKUP(VALUE($A50),'FIAG10-RAll'!$B$2:$AC$500,9,FALSE),"") -> 182 | AA50: =IFERROR(VLOOKUP(VALUE($A50),'FIAG3-RAll'!$B$2:$AC$500,3,FALSE),"") ->  | AB50: =IFERROR(VLOOKUP(VALUE($A50),'FIAG4-RAll'!$B$2:$AC$500,3,FALSE),"") ->  | AC50: =IFERROR(VLOOKUP(VALUE($A50),'FIAG5-RAll'!$B$2:$AC$500,3,FALSE),"") ->  | AD50: =IFERROR(VLOOKUP(VALUE($A50),'FIAG6-RAll'!$B$2:$AC$500,3,FALSE),"") ->  | AE50: =IFERROR(VLOOKUP(VALUE($A50),'FIAG7-RAll'!$B$2:$AC$500,3,FALSE),"") ->  | AF50: =IFERROR(VLOOKUP(VALUE($A50),'FIAG8-RAll'!$B$2:$AC$500,3,FALSE),"") -> 102 | AG50: =IFERROR(VLOOKUP(VALUE($A50),'FIAG9-RAll'!$B$2:$AC$500,3,FALSE),"") -> 262 | AH50: =IFERROR(VLOOKUP(VALUE($A50),'FIAG10-RAll'!$B$2:$AC$500,3,FALSE),"") -> 200 | AI50: =VLOOKUP(TEXT($A50,"0000"),'SchType from OADA'!$A$1:$B$679,2,FALSE) -> 4 | AJ50: N-ETO | AK50: N-SS | AL50: H
A51: 7029 | B51: =VLOOKUP($A51,SchList!$A$2:$E$476,5,FALSE) -> 5 | C51: =VLOOKUP(A51,SchList!$A$2:$G$476,7,FALSE) -> SS-0 | D51: =VLOOKUP(A51,SchList!$A$2:$G$476,6,FALSE) ->  | E51: =VLOOKUP($A51,SchList!$A$2:$B$476,2,FALSE) -> TERRA ENVIRONMENTAL RESEARCH | F51: =IF(VLOOKUP(TEXT($A51,"0000"),'2013 SG'!$D$2:$BE$500,29,FALSE)="Yes",VLOOKUP(TEXT($A51,"0000"),'2013 SG'!$D$2:$BE$500,30,FALSE)&VLOOKUP(TEXT($A51,"0000"),'2013 SG'!$D$2:$BE$500,54,FALSE),VLOOKUP(TEXT($A51,"0000"),'2013 SG'!$D$2:$BE$500,30,FALSE)) -> Pending | G51: 47 | H51: 88.56837607 | I51: 936 | J51: 829 | K51: =IFERROR(VLOOKUP(VALUE($A51),'FIAG3-RAll'!$B$2:$AC$500,12,FALSE)*100,"") ->  | L51: =IFERROR(VLOOKUP(VALUE($A51),'FIAG4-RAll'!$B$2:$AC$500,12,FALSE)*100,"") ->  | M51: =IFERROR(VLOOKUP(VALUE($A51),'FIAG5-RAll'!$B$2:$AC$500,12,FALSE)*100,"") ->  | N51: =IFERROR(VLOOKUP(VALUE($A51),'FIAG6-RAll'!$B$2:$AC$500,12,FALSE)*100,"") ->  | O51: =IFERROR(VLOOKUP(VALUE($A51),'FIAG7-RAll'!$B$2:$AC$500,12,FALSE)*100,"") ->  | P51: =IFERROR(VLOOKUP(VALUE($A51),'FIAG8-RAll'!$B$2:$AC$500,12,FALSE)*100,"") ->  | Q51: =IFERROR(VLOOKUP(VALUE($A51),'FIAG9-RAll'!$B$2:$AC$500,12,FALSE)*100,"") -> 89 | R51: =IFERROR(VLOOKUP(VALUE($A51),'FIAG10-RAll'!$B$2:$AC$500,12,FALSE)*100,"") -> 88 | S51: =IFERROR(VLOOKUP(VALUE($A51),'FIAG3-RAll'!$B$2:$AC$500,9,FALSE),"") ->  | T51: =IFERROR(VLOOKUP(VALUE($A51),'FIAG4-RAll'!$B$2:$AC$500,9,FALSE),"") ->  | U51: =IFERROR(VLOOKUP(VALUE($A51),'FIAG5-RAll'!$B$2:$AC$500,9,FALSE),"") ->  | V51: =IFERROR(VLOOKUP(VALUE($A51),'FIAG6-RAll'!$B$2:$AC$500,9,FALSE),"") ->  | W51: =IFERROR(VLOOKUP(VALUE($A51),'FIAG7-RAll'!$B$2:$AC$500,9,FALSE),"") ->  | X51: =IFERROR(VLOOKUP(VALUE($A51),'FIAG8-RAll'!$B$2:$AC$500,9,FALSE),"") ->  | Y51: =IFERROR(VLOOKUP(VALUE($A51),'FIAG9-RAll'!$B$2:$AC$500,9,FALSE),"") -> 405 | Z51: =IFERROR(VLOOKUP(VALUE($A51),'FIAG10-RAll'!$B$2:$AC$500,9,FALSE),"") -> 424 | AA51: =IFERROR(VLOOKUP(VALUE($A51),'FIAG3-RAll'!$B$2:$AC$500,3,FALSE),"") ->  | AB51: =IFERROR(VLOOKUP(VALUE($A51),'FIAG4-RAll'!$B$2:$AC$500,3,FALSE),"") ->  | AC51: =IFERROR(VLOOKUP(VALUE($A51),'FIAG5-RAll'!$B$2:$AC$500,3,FALSE),"") ->  | AD51: =IFERROR(VLOOKUP(VALUE($A51),'FIAG6-RAll'!$B$2:$AC$500,3,FALSE),"") ->  | AE51: =IFERROR(VLOOKUP(VALUE($A51),'FIAG7-RAll'!$B$2:$AC$500,3,FALSE),"") ->  | AF51: =IFERROR(VLOOKUP(VALUE($A51),'FIAG8-RAll'!$B$2:$AC$500,3,FALSE),"") ->  | AG51: =IFERROR(VLOOKUP(VALUE($A51),'FIAG9-RAll'!$B$2:$AC$500,3,FALSE),"") -> 456 | AH51: =IFERROR(VLOOKUP(VALUE($A51),'FIAG10-RAll'!$B$2:$AC$500,3,FALSE),"") -> 480 | AI51: =VLOOKUP(TEXT($A51,"0000"),'SchType from OADA'!$A$1:$B$679,2,FALSE) -> 4 | AJ51: N-ETO | AK51: N-SS | AL51: H
A52: 7291 | B52: =VLOOKUP($A52,SchList!$A$2:$E$476,5,FALSE) -> 1 | C52: =VLOOKUP(A52,SchList!$A$2:$G$476,7,FALSE) -> SS-0 | D52: =VLOOKUP(A52,SchList!$A$2:$G$476,6,FALSE) ->  | E52: =VLOOKUP($A52,SchList!$A$2:$B$476,2,FALSE) -> JOSE MARTI MAST 6-12 ACADEMY | F52: =IF(VLOOKUP(TEXT($A52,"0000"),'2013 SG'!$D$2:$BE$500,29,FALSE)="Yes",VLOOKUP(TEXT($A52,"0000"),'2013 SG'!$D$2:$BE$500,30,FALSE)&VLOOKUP(TEXT($A52,"0000"),'2013 SG'!$D$2:$BE$500,54,FALSE),VLOOKUP(TEXT($A52,"0000"),'2013 SG'!$D$2:$BE$500,30,FALSE)) -> A | G52: 49 | H52: 90.76923077 | I52: 520 | J52: 472 | K52: =IFERROR(VLOOKUP(VALUE($A52),'FIAG3-RAll'!$B$2:$AC$500,12,FALSE)*100,"") ->  | L52: =IFERROR(VLOOKUP(VALUE($A52),'FIAG4-RAll'!$B$2:$AC$500,12,FALSE)*100,"") ->  | M52: =IFERROR(VLOOKUP(VALUE($A52),'FIAG5-RAll'!$B$2:$AC$500,12,FALSE)*100,"") ->  | N52: =IFERROR(VLOOKUP(VALUE($A52),'FIAG6-RAll'!$B$2:$AC$500,12,FALSE)*100,"") -> 92 | O52: =IFERROR(VLOOKUP(VALUE($A52),'FIAG7-RAll'!$B$2:$AC$500,12,FALSE)*100,"") -> 93 | P52: =IFERROR(VLOOKUP(VALUE($A52),'FIAG8-RAll'!$B$2:$AC$500,12,FALSE)*100,"") -> 87 | Q52: =IFERROR(VLOOKUP(VALUE($A52),'FIAG9-RAll'!$B$2:$AC$500,12,FALSE)*100,"") -> 89 | R52: =IFERROR(VLOOKUP(VALUE($A52),'FIAG10-RAll'!$B$2:$AC$500,12,FALSE)*100,"") -> 91 | S52: =IFERROR(VLOOKUP(VALUE($A52),'FIAG3-RAll'!$B$2:$AC$500,9,FALSE),"") ->  | T52: =IFERROR(VLOOKUP(VALUE($A52),'FIAG4-RAll'!$B$2:$AC$500,9,FALSE),"") ->  | U52: =IFERROR(VLOOKUP(VALUE($A52),'FIAG5-RAll'!$B$2:$AC$500,9,FALSE),"") ->  | V52: =IFERROR(VLOOKUP(VALUE($A52),'FIAG6-RAll'!$B$2:$AC$500,9,FALSE),"") -> 144 | W52: =IFERROR(VLOOKUP(VALUE($A52),'FIAG7-RAll'!$B$2:$AC$500,9,FALSE),"") -> 138 | X52: =IFERROR(VLOOKUP(VALUE($A52),'FIAG8-RAll'!$B$2:$AC$500,9,FALSE),"") -> 95 | Y52: =IFERROR(VLOOKUP(VALUE($A52),'FIAG9-RAll'!$B$2:$AC$500,9,FALSE),"") -> 54 | Z52: =IFERROR(VLOOKUP(VALUE($A52),'FIAG10-RAll'!$B$2:$AC$500,9,FALSE),"") -> 41 | AA52: =IFERROR(VLOOKUP(VALUE($A52),'FIAG3-RAll'!$B$2:$AC$500,3,FALSE),"") ->  | AB52: =IFERROR(VLOOKUP(VALUE($A52),'FIAG4-RAll'!$B$2:$AC$500,3,FALSE),"") ->  | AC52: =IFERROR(VLOOKUP(VALUE($A52),'FIAG5-RAll'!$B$2:$AC$500,3,FALSE),"") ->  | AD52: =IFERROR(VLOOKUP(VALUE($A52),'FIAG6-RAll'!$B$2:$AC$500,3,FALSE),"") -> 156 | AE52: =IFERROR(VLOOKUP(VALUE($A52),'FIAG7-RAll'!$B$2:$AC$500,3,FALSE),"") -> 149 | AF52: =IFERROR(VLOOKUP(VALUE($A52),'FIAG8-RAll'!$B$2:$AC$500,3,FALSE),"") -> 109 | AG52: =IFERROR(VLOOKUP(VALUE($A52),'FIAG9-RAll'!$B$2:$AC$500,3,FALSE),"") -> 61 | AH52: =IFERROR(VLOOKUP(VALUE($A52),'FIAG10-RAll'!$B$2:$AC$500,3,FALSE),"") -> 45 | AI52: =VLOOKUP(TEXT($A52,"0000"),'SchType from OADA'!$A$1:$B$679,2,FALSE) -> 5 | AJ52: N-ETO | AK52: N-SS | AL52: H
A53: 7055 | B53: =VLOOKUP($A53,SchList!$A$2:$E$476,5,FALSE) -> 4 | C53: =VLOOKUP(A53,SchList!$A$2:$G$476,7,FALSE) -> SS-0 | D53: =VLOOKUP(A53,SchList!$A$2:$G$476,6,FALSE) ->  | E53: =VLOOKUP($A53,SchList!$A$2:$B$476,2,FALSE) -> YOUNG WOMEN'S PREPARATORY ACAD | F53: =IF(VLOOKUP(TEXT($A53,"0000"),'2013 SG'!$D$2:$BE$500,29,FALSE)="Yes",VLOOKUP(TEXT($A53,"0000"),'2013 SG'!$D$2:$BE$500,30,FALSE)&VLOOKUP(TEXT($A53,"0000"),'2013 SG'!$D$2:$BE$500,54,FALSE),VLOOKUP(TEXT($A53,"0000"),'2013 SG'!$D$2:$BE$500,30,FALSE)) -> Pending | G53: 50 | H53: 91.96428571 | I53: 336 | J53: 309 | K53: =IFERROR(VLOOKUP(VALUE($A53),'FIAG3-RAll'!$B$2:$AC$500,12,FALSE)*100,"") ->  | L53: =IFERROR(VLOOKUP(VALUE($A53),'FIAG4-RAll'!$B$2:$AC$500,12,FALSE)*100,"") ->  | M53: =IFERROR(VLOOKUP(VALUE($A53),'FIAG5-RAll'!$B$2:$AC$500,12,FALSE)*100,"") ->  | N53: =IFERROR(VLOOKUP(VALUE($A53),'FIAG6-RAll'!$B$2:$AC$500,12,FALSE)*100,"") -> 89 | O53: =IFERROR(VLOOKUP(VALUE($A53),'FIAG7-RAll'!$B$2:$AC$500,12,FALSE)*100,"") -> 94 | P53: =IFERROR(VLOOKUP(VALUE($A53),'FIAG8-RAll'!$B$2:$AC$500,12,FALSE)*100,"") -> 93 | Q53: =IFERROR(VLOOKUP(VALUE($A53),'FIAG9-RAll'!$B$2:$AC$500,12,FALSE)*100,"") -> 92 | R53: =IFERROR(VLOOKUP(VALUE($A53),'FIAG10-RAll'!$B$2:$AC$500,12,FALSE)*100,"") -> 93 | S53: =IFERROR(VLOOKUP(VALUE($A53),'FIAG3-RAll'!$B$2:$AC$500,9,FALSE),"") ->  | T53: =IFERROR(VLOOKUP(VALUE($A53),'FIAG4-RAll'!$B$2:$AC$500,9,FALSE),"") ->  | U53: =IFERROR(VLOOKUP(VALUE($A53),'FIAG5-RAll'!$B$2:$AC$500,9,FALSE),"") ->  | V53: =IFERROR(VLOOKUP(VALUE($A53),'FIAG6-RAll'!$B$2:$AC$500,9,FALSE),"") -> 78 | W53: =IFERROR(VLOOKUP(VALUE($A53),'FIAG7-RAll'!$B$2:$AC$500,9,FALSE),"") -> 74 | X53: =IFERROR(VLOOKUP(VALUE($A53),'FIAG8-RAll'!$B$2:$AC$500,9,FALSE),"") -> 71 | Y53: =IFERROR(VLOOKUP(VALUE($A53),'FIAG9-RAll'!$B$2:$AC$500,9,FALSE),"") -> 46 | Z53: =IFERROR(VLOOKUP(VALUE($A53),'FIAG10-RAll'!$B$2:$AC$500,9,FALSE),"") -> 40 | AA53: =IFERROR(VLOOKUP(VALUE($A53),'FIAG3-RAll'!$B$2:$AC$500,3,FALSE),"") ->  | AB53: =IFERROR(VLOOKUP(VALUE($A53),'FIAG4-RAll'!$B$2:$AC$500,3,FALSE),"") ->  | AC53: =IFERROR(VLOOKUP(VALUE($A53),'FIAG5-RAll'!$B$2:$AC$500,3,FALSE),"") ->  | AD53: =IFERROR(VLOOKUP(VALUE($A53),'FIAG6-RAll'!$B$2:$AC$500,3,FALSE),"") -> 88 | AE53: =IFERROR(VLOOKUP(VALUE($A53),'FIAG7-RAll'!$B$2:$AC$500,3,FALSE),"") -> 79 | AF53: =IFERROR(VLOOKUP(VALUE($A53),'FIAG8-RAll'!$B$2:$AC$500,3,FALSE),"") -> 76 | AG53: =IFERROR(VLOOKUP(VALUE($A53),'FIAG9-RAll'!$B$2:$AC$500,3,FALSE),"") -> 50 | AH53: =IFERROR(VLOOKUP(VALUE($A53),'FIAG10-RAll'!$B$2:$AC$500,3,FALSE),"") -> 43 | AI53: =VLOOKUP(TEXT($A53,"0000"),'SchType from OADA'!$A$1:$B$679,2,FALSE) -> 5 | AJ53: N-ETO | AK53: N-SS | AL53: H
A54: 7031 | B54: =VLOOKUP($A54,SchList!$A$2:$E$476,5,FALSE) -> 1 | C54: =VLOOKUP(A54,SchList!$A$2:$G$476,7,FALSE) -> SS-0 | D54: =VLOOKUP(A54,SchList!$A$2:$G$476,6,FALSE) ->  | E54: =VLOOKUP($A54,SchList!$A$2:$B$476,2,FALSE) -> MAST @ FIU BISCAYNE BAY CAMPUS | F54: =IF(VLOOKUP(TEXT($A54,"0000"),'2013 SG'!$D$2:$BE$500,29,FALSE)="Yes",VLOOKUP(TEXT($A54,"0000"),'2013 SG'!$D$2:$BE$500,30,FALSE)&VLOOKUP(TEXT($A54,"0000"),'2013 SG'!$D$2:$BE$500,54,FALSE),VLOOKUP(TEXT($A54,"0000"),'2013 SG'!$D$2:$BE$500,30,FALSE)) ->  | G54: 51 | H54: 92.04545455 | I54: 88 | J54: 81 | K54: =IFERROR(VLOOKUP(VALUE($A54),'FIAG3-RAll'!$B$2:$AC$500,12,FALSE)*100,"") ->  | L54: =IFERROR(VLOOKUP(VALUE($A54),'FIAG4-RAll'!$B$2:$AC$500,12,FALSE)*100,"") ->  | M54: =IFERROR(VLOOKUP(VALUE($A54),'FIAG5-RAll'!$B$2:$AC$500,12,FALSE)*100,"") ->  | N54: =IFERROR(VLOOKUP(VALUE($A54),'FIAG6-RAll'!$B$2:$AC$500,12,FALSE)*100,"") ->  | O54: =IFERROR(VLOOKUP(VALUE($A54),'FIAG7-RAll'!$B$2:$AC$500,12,FALSE)*100,"") ->  | P54: =IFERROR(VLOOKUP(VALUE($A54),'FIAG8-RAll'!$B$2:$AC$500,12,FALSE)*100,"") ->  | Q54: =IFERROR(VLOOKUP(VALUE($A54),'FIAG9-RAll'!$B$2:$AC$500,12,FALSE)*100,"") -> 92 | R54: =IFERROR(VLOOKUP(VALUE($A54),'FIAG10-RAll'!$B$2:$AC$500,12,FALSE)*100,"") ->  | S54: =IFERROR(VLOOKUP(VALUE($A54),'FIAG3-RAll'!$B$2:$AC$500,9,FALSE),"") ->  | T54: =IFERROR(VLOOKUP(VALUE($A54),'FIAG4-RAll'!$B$2:$AC$500,9,FALSE),"") ->  | U54: =IFERROR(VLOOKUP(VALUE($A54),'FIAG5-RAll'!$B$2:$AC$500,9,FALSE),"") ->  | V54: =IFERROR(VLOOKUP(VALUE($A54),'FIAG6-RAll'!$B$2:$AC$500,9,FALSE),"") ->  | W54: =IFERROR(VLOOKUP(VALUE($A54),'FIAG7-RAll'!$B$2:$AC$500,9,FALSE),"") ->  | X54: =IFERROR(VLOOKUP(VALUE($A54),'FIAG8-RAll'!$B$2:$AC$500,9,FALSE),"") ->  | Y54: =IFERROR(VLOOKUP(VALUE($A54),'FIAG9-RAll'!$B$2:$AC$500,9,FALSE),"") -> 81 | Z54: =IFERROR(VLOOKUP(VALUE($A54),'FIAG10-RAll'!$B$2:$AC$500,9,FALSE),"") ->  | AA54: =IFERROR(VLOOKUP(VALUE($A54),'FIAG3-RAll'!$B$2:$AC$500,3,FALSE),"") ->  | AB54: =IFERROR(VLOOKUP(VALUE($A54),'FIAG4-RAll'!$B$2:$AC$500,3,FALSE),"") ->  | AC54: =IFERROR(VLOOKUP(VALUE($A54),'FIAG5-RAll'!$B$2:$AC$500,3,FALSE),"") ->  | AD54: =IFERROR(VLOOKUP(VALUE($A54),'FIAG6-RAll'!$B$2:$AC$500,3,FALSE),"") ->  | AE54: =IFERROR(VLOOKUP(VALUE($A54),'FIAG7-RAll'!$B$2:$AC$500,3,FALSE),"") ->  | AF54: =IFERROR(VLOOKUP(VALUE($A54),'FIAG8-RAll'!$B$2:$AC$500,3,FALSE),"") ->  | AG54: =IFERROR(VLOOKUP(VALUE($A54),'FIAG9-RAll'!$B$2:$AC$500,3,FALSE),"") -> 88 | AH54: =IFERROR(VLOOKUP(VALUE($A54),'FIAG10-RAll'!$B$2:$AC$500,3,FALSE),"") ->  | AI54: 4 | AJ54: N-ETO | AK54: N-SS | AL54: H
A55: 7081 | B55: =VLOOKUP($A55,SchList!$A$2:$E$476,5,FALSE) -> 4 | C55: =VLOOKUP(A55,SchList!$A$2:$G$476,7,FALSE) -> SS-0 | D55: =VLOOKUP(A55,SchList!$A$2:$G$476,6,FALSE) ->  | E55: =VLOOKUP($A55,SchList!$A$2:$B$476,2,FALSE) -> DESIGN & ARCHITECTURE SENIOR | F55: =IF(VLOOKUP(TEXT($A55,"0000"),'2013 SG'!$D$2:$BE$500,29,FALSE)="Yes",VLOOKUP(TEXT($A55,"0000"),'2013 SG'!$D$2:$BE$500,30,FALSE)&VLOOKUP(TEXT($A55,"0000"),'2013 SG'!$D$2:$BE$500,54,FALSE),VLOOKUP(TEXT($A55,"0000"),'2013 SG'!$D$2:$BE$500,30,FALSE)) -> Pending | G55: 52 | H55: 94.46494465 | I55: 271 | J55: 256 | K55: =IFERROR(VLOOKUP(VALUE($A55),'FIAG3-RAll'!$B$2:$AC$500,12,FALSE)*100,"") ->  | L55: =IFERROR(VLOOKUP(VALUE($A55),'FIAG4-RAll'!$B$2:$AC$500,12,FALSE)*100,"") ->  | M55: =IFERROR(VLOOKUP(VALUE($A55),'FIAG5-RAll'!$B$2:$AC$500,12,FALSE)*100,"") ->  | N55: =IFERROR(VLOOKUP(VALUE($A55),'FIAG6-RAll'!$B$2:$AC$500,12,FALSE)*100,"") ->  | O55: =IFERROR(VLOOKUP(VALUE($A55),'FIAG7-RAll'!$B$2:$AC$500,12,FALSE)*100,"") ->  | P55: =IFERROR(VLOOKUP(VALUE($A55),'FIAG8-RAll'!$B$2:$AC$500,12,FALSE)*100,"") ->  | Q55: =IFERROR(VLOOKUP(VALUE($A55),'FIAG9-RAll'!$B$2:$AC$500,12,FALSE)*100,"") -> 96 | R55: =IFERROR(VLOOKUP(VALUE($A55),'FIAG10-RAll'!$B$2:$AC$500,12,FALSE)*100,"") -> 93 | S55: =IFERROR(VLOOKUP(VALUE($A55),'FIAG3-RAll'!$B$2:$AC$500,9,FALSE),"") ->  | T55: =IFERROR(VLOOKUP(VALUE($A55),'FIAG4-RAll'!$B$2:$AC$500,9,FALSE),"") ->  | U55: =IFERROR(VLOOKUP(VALUE($A55),'FIAG5-RAll'!$B$2:$AC$500,9,FALSE),"") ->  | V55: =IFERROR(VLOOKUP(VALUE($A55),'FIAG6-RAll'!$B$2:$AC$500,9,FALSE),"") ->  | W55: =IFERROR(VLOOKUP(VALUE($A55),'FIAG7-RAll'!$B$2:$AC$500,9,FALSE),"") ->  | X55: =IFERROR(VLOOKUP(VALUE($A55),'FIAG8-RAll'!$B$2:$AC$500,9,FALSE),"") ->  | Y55: =IFERROR(VLOOKUP(VALUE($A55),'FIAG9-RAll'!$B$2:$AC$500,9,FALSE),"") -> 131 | Z55: =IFERROR(VLOOKUP(VALUE($A55),'FIAG10-RAll'!$B$2:$AC$500,9,FALSE),"") -> 125 | AA55: =IFERROR(VLOOKUP(VALUE($A55),'FIAG3-RAll'!$B$2:$AC$500,3,FALSE),"") ->  | AB55: =IFERROR(VLOOKUP(VALUE($A55),'FIAG4-RAll'!$B$2:$AC$500,3,FALSE),"") ->  | AC55: =IFERROR(VLOOKUP(VALUE($A55),'FIAG5-RAll'!$B$2:$AC$500,3,FALSE),"") ->  | AD55: =IFERROR(VLOOKUP(VALUE($A55),'FIAG6-RAll'!$B$2:$AC$500,3,FALSE),"") ->  | AE55: =IFERROR(VLOOKUP(VALUE($A55),'FIAG7-RAll'!$B$2:$AC$500,3,FALSE),"") ->  | AF55: =IFERROR(VLOOKUP(VALUE($A55),'FIAG8-RAll'!$B$2:$AC$500,3,FALSE),"") ->  | AG55: =IFERROR(VLOOKUP(VALUE($A55),'FIAG9-RAll'!$B$2:$AC$500,3,FALSE),"") -> 136 | AH55: =IFERROR(VLOOKUP(VALUE($A55),'FIAG10-RAll'!$B$2:$AC$500,3,FALSE),"") -> 135 | AI55: =VLOOKUP(TEXT($A55,"0000"),'SchType from OADA'!$A$1:$B$679,2,FALSE) -> 4 | AJ55: N-ETO | AK55: N-SS | AL55: H
A56: 7581 | B56: =VLOOKUP($A56,SchList!$A$2:$E$476,5,FALSE) -> 4 | C56: =VLOOKUP(A56,SchList!$A$2:$G$476,7,FALSE) -> SS-0 | D56: =VLOOKUP(A56,SchList!$A$2:$G$476,6,FALSE) ->  | E56: =VLOOKUP($A56,SchList!$A$2:$B$476,2,FALSE) -> IPREPARATORY ACADEMY | F56: =IF(VLOOKUP(TEXT($A56,"0000"),'2013 SG'!$D$2:$BE$500,29,FALSE)="Yes",VLOOKUP(TEXT($A56,"0000"),'2013 SG'!$D$2:$BE$500,30,FALSE)&VLOOKUP(TEXT($A56,"0000"),'2013 SG'!$D$2:$BE$500,54,FALSE),VLOOKUP(TEXT($A56,"0000"),'2013 SG'!$D$2:$BE$500,30,FALSE)) -> A | G56: 53 | H56: 96.63865546 | I56: 119 | J56: 115 | K56: =IFERROR(VLOOKUP(VALUE($A56),'FIAG3-RAll'!$B$2:$AC$500,12,FALSE)*100,"") ->  | L56: =IFERROR(VLOOKUP(VALUE($A56),'FIAG4-RAll'!$B$2:$AC$500,12,FALSE)*100,"") ->  | M56: =IFERROR(VLOOKUP(VALUE($A56),'FIAG5-RAll'!$B$2:$AC$500,12,FALSE)*100,"") ->  | N56: =IFERROR(VLOOKUP(VALUE($A56),'FIAG6-RAll'!$B$2:$AC$500,12,FALSE)*100,"") ->  | O56: =IFERROR(VLOOKUP(VALUE($A56),'FIAG7-RAll'!$B$2:$AC$500,12,FALSE)*100,"") ->  | P56: =IFERROR(VLOOKUP(VALUE($A56),'FIAG8-RAll'!$B$2:$AC$500,12,FALSE)*100,"") ->  | Q56: =IFERROR(VLOOKUP(VALUE($A56),'FIAG9-RAll'!$B$2:$AC$500,12,FALSE)*100,"") -> 93 | R56: =IFERROR(VLOOKUP(VALUE($A56),'FIAG10-RAll'!$B$2:$AC$500,12,FALSE)*100,"") -> 99 | S56: =IFERROR(VLOOKUP(VALUE($A56),'FIAG3-RAll'!$B$2:$AC$500,9,FALSE),"") ->  | T56: =IFERROR(VLOOKUP(VALUE($A56),'FIAG4-RAll'!$B$2:$AC$500,9,FALSE),"") ->  | U56: =IFERROR(VLOOKUP(VALUE($A56),'FIAG5-RAll'!$B$2:$AC$500,9,FALSE),"") ->  | V56: =IFERROR(VLOOKUP(VALUE($A56),'FIAG6-RAll'!$B$2:$AC$500,9,FALSE),"") ->  | W56: =IFERROR(VLOOKUP(VALUE($A56),'FIAG7-RAll'!$B$2:$AC$500,9,FALSE),"") ->  | X56: =IFERROR(VLOOKUP(VALUE($A56),'FIAG8-RAll'!$B$2:$AC$500,9,FALSE),"") ->  | Y56: =IFERROR(VLOOKUP(VALUE($A56),'FIAG9-RAll'!$B$2:$AC$500,9,FALSE),"") -> 43 | Z56: =IFERROR(VLOOKUP(VALUE($A56),'FIAG10-RAll'!$B$2:$AC$500,9,FALSE),"") -> 72 | AA56: =IFERROR(VLOOKUP(VALUE($A56),'FIAG3-RAll'!$B$2:$AC$500,3,FALSE),"") ->  | AB56: =IFERROR(VLOOKUP(VALUE($A56),'FIAG4-RAll'!$B$2:$AC$500,3,FALSE),"") ->  | AC56: =IFERROR(VLOOKUP(VALUE($A56),'FIAG5-RAll'!$B$2:$AC$500,3,FALSE),"") ->  | AD56: =IFERROR(VLOOKUP(VALUE($A56),'FIAG6-RAll'!$B$2:$AC$500,3,FALSE),"") ->  | AE56: =IFERROR(VLOOKUP(VALUE($A56),'FIAG7-RAll'!$B$2:$AC$500,3,FALSE),"") ->  | AF56: =IFERROR(VLOOKUP(VALUE($A56),'FIAG8-RAll'!$B$2:$AC$500,3,FALSE),"") ->  | AG56: =IFERROR(VLOOKUP(VALUE($A56),'FIAG9-RAll'!$B$2:$AC$500,3,FALSE),"") -> 46 | AH56: =IFERROR(VLOOKUP(VALUE($A56),'FIAG10-RAll'!$B$2:$AC$500,3,FALSE),"") -> 73 | AI56: =VLOOKUP(TEXT($A56,"0000"),'SchType from OADA'!$A$1:$B$679,2,FALSE) -> 4 | AJ56: N-ETO | AK56: N-SS | AL56: H

Sheet Ranking FIA Reading M (hidden)
E1: Back to Content Page
A2: School Num | B2: Region | C2: SS Tier | D2: ETO Tier | E2: School Name* | F2: 2013 School Grade | G2: Ranking 2013 FIA Reading Satisfactory Progress | H2: 2013 FIA Reading Satisfactory Across Grades | I2: 2013 Total Tested Grades Across Grades | J2: # of Satisfactory Across Grades | K2: Grade 3 | L2: Grade 4 | M2: Grade 5 | N2: Grade 6 | O2: Grade 7 | P2: Grade 8 | Q2: Grade 9 | R2: Grade 10 | S2: Grade 3 # of Sat. | T2: Grade 4 # of Sat. | U2: Grade 5 # of Sat. | V2: Grade 6 # of Sat. | W2: Grade 7 # of Sat. | X2: Grade 8 # of Sat. | Y2: Grade 9 # of Sat. | Z2: Grade 10 # of Sat. | AA2: Grade 3 # Tested | AB2: Grade 4 # Tested | AC2: Grade 5 # Tested | AD2: Grade 6 # Tested | AE2: Grade 7 # Tested | AF2: Grade 8 # Tested | AG2: Grade 9 # Tested | AH2: Grade 10 # Tested | AI2: School Type from OADA | AJ2: ETO | AK2: Support Schools | AL2: School Type Web
